{"text_format":"1","workbook":"xlsx","n_sheets":20,"sheets":["AER only","Instructions","Contents","Business & other details","2.1 Expenditure summary","2.2 Repex","2.3 Augex","2.5 Connections","2.6 Non-network","2.7 Vegetation management","2.8 Maintenance","2.10 Overheads","2.10(A) Overheads","2.11 Labour","2.12 Input tables","5.2 Asset Age Profile","5.3 MD - Network level","5.4 MD & utilisation-Spatial","Amendments","Unlocked worksheet"],"not_rendered":{"charts":0,"images":1,"macros":1,"external_links":8,"defined_names":722,"comments":3,"pivot_tables":0},"unopened":[],"bounds":{"document_bytes":16777216,"sheet_cells":100000,"rows_first":2000,"rows_last":500,"rows_between":2000,"halvings":0,"cell_chars":16384,"cell_head_chars":4096},"cells_cut":0,"cells_raw":0,"read":"whole","date_system":"1900"}

{"sheet":"AER only","index":0,"n_rows":97,"n_cols":37,"rows_kept":97,"cut":false,"hidden":true,"merged":[[80,4,80,11],[0,1,0,11],[3,25,3,35],[4,25,4,28],[4,31,4,35],[43,23,43,27],[44,1,44,5],[44,15,44,22],[44,23,44,27],[45,2,45,3],[45,34,47,34],[48,34,52,34],[56,34,57,34],[62,23,62,26]]}
[null,"Data in these columns used for data validation and database purposes."]
[null,"Date last modified:"]
[]
[null,null,null,null,null,null,null,null,null,null,null,null,null,null,null,null,null,null,null,null,null,null,null,null,null,"FOR ELECTRICITY BUSINESSES ONLY"]
[null,null,null,null,null,null,null,null,null,null,null,null,null,null,null,null,null,null,null,null,null,null,null,null,null,"Feeder Types",null,null,null,"TasNetworks (D)","MAIFI flag","Feeder Names"]
[null,null,null,null,null,null,null,null,null,null,null,null,null,null,null,null,null,null,null,null,null,null,null,null,null,"CBD","Urban","Short rural","long rural","EXTRA"]
[null,"dms_TradingName_List","dms_TradingNameFull_List","dms_ABN_List","dms_JurisdictionList","dms_Sector_List","dms_Segment_List","dms_FormControl_List","dms_RPT_List","dms_RPTMonth_List","dms_CRCPlength_List","dms_FRCPlength_List","dms_663_List","dms_DeterminationRef_List",null,"dms_Addr1_List","dms_Addr2_List","dms_Suburb_List","dms_State_List","dms_PostCode_List","dms_PAddr1_List","dms_PAddr2_List","dms_PSuburb_List","dms_PState_List","dms_PPostCode_List","dms_CBD_flag","dms_Urban_flag","dms_ShortRural_flag","dms_LongRural_flag","dms_FeederType_5_flag","dms_MAIFI_flag_List","dms_FeederName_1","dms_FeederName_2","dms_FeederName_3","dms_FeederName_4","dms_FeederName_5"]
[null,"ActewAGL Distribution","ActewAGL Distribution",76670568688,"ACT","Electricity","Distribution","Revenue cap","Financial","June",5,5,5,"2014-19 Distribution Determination",null,"40 Bunda Street",null,"CANBERRA","ACT","2600","GPO BOX 366",null,"CANBERRA","ACT",2601,"NO","YES","YES","NO","NO",null,"CBD","Urban","Short rural","Long rural",null,"ActewAGL Distribution"]
[null,"ActewAGL Distribution (Tx Assets)","ActewAGL Distribution (Tx Assets)",76670568688,"ACT","Electricity","Distribution","Revenue cap","Financial","June",5,5,5,"distribution determination",null,"40 Bunda Street",null,"CANBERRA","ACT","2600","GPO BOX 366",null,"CANBERRA","ACT",2601,null,null,null,null,null,null,"CBD","Urban","Short rural","Long rural",null,"ActewAGL Distribution (Tx Assets)"]
[null,"ActewAGL Gas","ActewAGL Gas",76670568688,"ACT","Gas","Distribution","Weighted average price cap","Financial","June",5,5,"x",null,null,"40 Bunda Street",null,"CANBERRA","ACT","2600","GPO BOX 366",null,"CANBERRA","ACT",2601,null,null,null,null,null,null,null,null,null,null,null,"ActewAGL Gas"]
[null,"AGN","AGN",78551685,"SA","Gas","Distribution","Revenue cap","Financial","June",5,5,5,"distribution determination",null,null,null,null,"SA",null,null,null,null,null,null,null,null,null,null,null,null,"CBD","Urban","Short rural","Long rural",null,"AGN"]
[null,"Amadeus","APT Pipelines (NT) Pty Ltd",39009737393,"NT","Gas","Transmission","Weighted average price cap","Financial","June",5,5,"x","n/a",null,"Level 19, HSBC Building","580 George Street","SYDNEY","NSW","2000","Level 19, HSBC Building","580 George Street","SYDNEY","NSW","2000",null,null,null,null,null,null,null,null,null,null,null,"Amadeus"]
[null,"APA GasNet","APA VTS Australia Limited",79096457868,"Vic","Gas","Transmission",null,"Calendar","December",5,5,"x",null,null,"Level 19, HSBC Building","580 George Street","SYDNEY","NSW","2000","PO Box R41",null,"ROYAL EXCHANGE","NSW","1225",null,null,null,null,null,null,null,null,null,null,null,"APA GasNet"]
[null,"Ausgrid","Ausgrid",67505337385,"NSW","Electricity","Distribution","Revenue cap","Financial","June",5,5,5,"2014-19 Distribution Determination",null,"570 George St",null,"SYDNEY","NSW",2000,null,null,null,null,null,"YES","YES","YES","YES","NO",null,"CBD","Urban","Short rural","Long rural",null,"Ausgrid"]
[null,"Ausgrid (Tx Assets)","Ausgrid (Tx Assets)",67505337385,"NSW","Electricity","Distribution","Revenue cap","Financial","June",5,5,5,"distribution determination",null,null,null,null,"NSW",null,null,null,null,null,null,null,null,null,null,null,null,"CBD","Urban","Short rural","Long rural",null,"Ausgrid (Tx Assets)"]
[null,"AusNet (D)","AusNet Services (D)",91064651118,"Vic","Electricity","Distribution","Revenue cap","Calendar","December",5,5,2,"2016-20 Distribution Determination",null,"Level 32","2 Southbank Boulevard","SOUTHBANK","Vic","3006","Locked Bag 14051",null,"MELBOURNE CITY MAIL CENTRE","VIC",8001,null,"YES","YES","YES","NO",null,"CBD","Urban","Short rural","Long rural",null,"AusNet (D)"]
[null,"AusNet (Gas)",null,null,null,"Gas","Distribution",null,"Calendar","December",5,5,"X",null,null,null,null,null,null,null,null,null,null,null,null,null,null,null,null,null,null,null,null,null,null,null,"AusNet (Gas)"]
[null,"AusNet (T)","AusNet (T)",78079798173,"Vic","Electricity","Transmission","Revenue cap","Financial","March",5,5,2,"transmission determination",null,"Level 32","2 Southbank Boulevard","SOUTHBANK","Vic","3006",null,null,null,null,null,null,null,null,null,null,null,"CBD","Urban","Short rural","Long rural",null,"AusNet (T)"]
[null,"Australian Distribution Co.","Australian Distribution Co.",11222333444,"-","Electricity","Distribution","Revenue cap","Financial","June",5,5,2,"distribution determination",null,null,null,null,"-",null,null,null,null,null,null,null,null,null,null,null,null,"CBD","Urban","Short rural","Long rural",null,"Australian Distribution Co."]
[null,"Australian Transmission Co.","Australian Transmission Co.",11222333444,"-","Electricity","Transmission","Revenue cap","Financial","June",5,5,5,"transmission determination",null,null,null,null,"-",null,null,null,null,null,null,null,null,null,null,null,null,"CBD","Urban","Short rural","Long rural",null,"Australian Transmission Co."]
[null,"CitiPower","CitiPower",76064651056,"Vic","Electricity","Distribution","Revenue cap","Calendar","December",5,5,2,"2016-20 Distribution Determination",null,"40 Market Street",null,"MELBOURNE","Vic","3000","Locked Bag 14090",null,"MELBOURNE","VIC",8001,"YES","YES","NO","NO","NO",null,"CBD","Urban","Short rural","Long rural",null,"CitiPower"]
[null,"Directlink","Directlink",16779340889,"Qld","Electricity","Transmission","Revenue cap","Financial","June",9,5,5,"transmission determination",null,null,null,null,"NSW",null,null,null,null,null,null,null,null,null,null,null,null,"CBD","Urban","Short rural","Long rural",null,"Directlink"]
[null,"ElectraNet","ElectraNet",41094482416,"SA","Electricity","Transmission","Revenue cap","Financial","June",5,5,5,"transmission determination",null,"52-55 East Terrace","Rymill Park","ADELAIDE","SA","5000","PO Box 7096","Hutt Street Post Office","ADELAIDE","SA",null,null,null,null,null,null,null,"CBD","Urban","Short rural","Long rural",null,"ElectraNet"]
[null,"Endeavour Energy","Endeavour Energy",59253130878,"NSW","Electricity","Distribution","Revenue cap","Financial","June",5,5,5,"2014-19 Distribution Determination",null,"51 Huntingwood Drive",null,"HUNTINGWOOD","NSW","2148","PO Box 811",null,"SEVEN HILLS","NSW",null,"NO","YES","YES","YES","NO",null,"CBD","Urban","Short rural","Long rural",null,"Endeavour Energy"]
[null,"Energex","Energex",40078849055,"Qld","Electricity","Distribution","Revenue cap","Financial","June",5,5,5,"2015-20 Distribution Determination",null,"26 Reddacliff Street",null,"NEWSTEAD","Qld","4006","26 Reddacliff Street",null,"NEWSTEAD","QLD","4006","YES","YES","YES","NO","NO",null,"CBD","Urban","Short rural","Long rural",null,"Energex"]
[null,"Ergon Energy","Ergon Energy",50087646062,"Qld","Electricity","Distribution","Revenue cap","Financial","June",5,5,5,"2015-20 Distribution Determination",null,"22 Walker Street",null,"TOWNSVILLE","Qld","4810","Po Box 264",null,"FORTITUDE VALLEY","QLD",4006,"NO","YES","YES","YES","NO",null,"CBD","Urban","Short rural","Long rural",null,"Ergon Energy"]
[null,"Envestra (Victoria and Albury)","Australian Gas Networks Limited",19078551685,"SA","Gas","Distribution",null,"Calendar","December",5,5,"x",null,null,"Level 10","81 Flinders Street","ADELAIDE","SA","5000",null,null,null,null,null,null,null,null,null,null,null,null,null,null,null,null,"Envestra (Victoria and Albury)"]
[null,"Essential Energy","Essential Energy",37428185226,"NSW","Electricity","Distribution","Revenue cap","Financial","June",5,5,5,"2014-19 Distribution Determination",null,"8 Buller Street",null,"PORT MACQUARIE","NSW",null,"PO Box 5730",null,"PORT MACQUARIE","NSW",null,null,null,"YES","YES","NO",null,"CBD","Urban","Short rural","Long rural",null,"Essential Energy"]
[null,"Jemena Electricity","Jemena Electricity",82064651083,"Vic","Electricity","Distribution","Revenue cap","Calendar","December",5,5,2,"2016-20 Distribution Determination",null,"Level 16","567 Collins Street","MELBOURNE","VIC","3000","PO Box 16182",null,"MELBOURNE","VIC",8001,null,null,"YES","NO","NO",null,"CBD","Urban","Short rural","Long rural",null,"Jemena Electricity"]
[null,"Multinet Gas","Multinet Gas (DB No.1) Pty Ltd (ACN 086 026 986), Multinet Gas (DB No.2) Pty Ltd (ACN 086 230 122)",86026986,"Vic","Gas","Distribution",null,"Calendar","December",5,5,"x",null,null,null,null,null,null,null,null,null,null,null,null,null,null,null,null,null,null,null,null,null,null,null,"Multinet Gas"]
[null,"Murraylink","Murraylink",79181207909,"SA","Electricity","Transmission","Revenue cap","Financial","June",5,5,5,"transmission determination",null,null,null,null,null,null,null,null,null,null,null,null,null,null,null,null,null,"CBD","Urban","Short rural","Long rural",null,"Murraylink"]
[null,"Powercor Australia","Powercor Australia",89064651109,"Vic","Electricity","Distribution","Revenue cap","Calendar","December",5,5,2,"2016-20 Distribution Determination",null,"40 Market Street",null,"MELBOURNE","Vic","3000","Locked bag 14090",null,"MELBOURNE","VIC",8001,null,null,"YES","YES","NO",null,"CBD","Urban","Short rural","Long rural",null,"Powercor Australia"]
[null,"Powerlink","Queensland Electricity Transmission Corporation Limited trading as Powerlink Queensland",82078849233,"Qld","Electricity","Transmission","Revenue cap","Financial","June",5,5,5,"transmission determination",null,"33 Harold St",null,"VIRGINIA","Qld","4014","PO Box 1193",null,"VIRGINIA","QLD",4014,null,null,null,null,null,null,"CBD","Urban","Short rural","Long rural",null,"Powerlink"]
[null,"Roma to Brisbane Pipeline","APT Petroleum Pipelines Limited t/a Roma to Brisbane Pipeline","009 737 393","Qld","Gas","Distribution","?","Financial","June",5,5,"x","n/a",null,null,null,null,null,null,null,null,null,null,null,null,null,null,null,null,null,"CBD","Urban","Short rural","Long rural",null,"Roma to Brisbane Pipeline"]
[null,"SA Power Networks","SA Power Networks",13332330749,"SA","Electricity","Distribution","Revenue cap","Financial","June",5,5,5,"2015-20 Distribution Determination",null,"1 Anzac Highway",null,"KESWICK","SA","5035","GPO Box 77",null,"ADELAIDE","SA",null,null,null,"YES","YES","NO",null,"CBD","Urban","Short rural","Long rural",null,"SA Power Networks"]
[null,"TasNetworks (D)","TasNetworks (D)",24167357299,"Tas","Electricity","Distribution","Revenue cap","Financial","June",5,5,5,"distribution determination",null,"21 Kirksway Place",null,"HOBART","Tas","7000","GPO Box 191",null,"HOBART","Tas",null,null,null,"YES","YES","YES",null,"Critical Infrastructure","High density commercial","Urban","High density rural","Low density rural","TasNetworks (D)"]
[null,"TasNetworks (T)","TasNetworks (T)",24167357299,"Tas","Electricity","Transmission","Revenue cap","Financial","March",5,5,5,"transmission determination",null,"1-7 Maria Street",null,"LENAH VALLEY","Tas","7008","PO Box 606",null,"MOONAH","Tas",null,null,null,null,null,null,null,"CBD","Urban","Short rural","Long rural",null,"TasNetworks (T)"]
[null,"TransGrid","TransGrid",19622755774,"NSW","Electricity","Transmission","Revenue cap","Financial","June",5,4,5,"transmission determination",null,"180 Thomas Street",null,"HAYMARKET","NSW","2000","PO Box A1000",null,"SYDNEY SOUTH","NSW",null,null,null,null,null,null,null,"CBD","Urban","Short rural","Long rural",null,"TransGrid"]
[null,"United Energy","United Energy",70064651029,"Vic","Electricity","Distribution","Revenue cap","Calendar","December",5,5,2,"2016-20 Distribution Determination",null,"Level 3","6 Nexus Court","MULGRAVE","Vic","3149","PO Box 449",null,"MOUNT WAVERLEY","VIC",3170,null,null,"YES","NO","NO",null,"CBD","Urban","Short rural","Long rural",null,"United Energy"]
[null,"Western Power (D)","Western Power (D)",18540492861,"WA","Electricity","Distribution","Revenue cap","Financial","June",12,4,"x","distribution determination",null,"363 Wellington Street",null,"PERTH","WA","6000","GPO Box L921",null,"PERTH","WA",6842,null,null,"YES","YES","NO","NO","CBD","Urban","Short rural","Long rural",null,"Western Power (D)"]
[null,"Western Power (T)","Western Power (T)",18540492861,"WA","Electricity","Transmission","Revenue cap","Financial","June",12,4,"x","transmission determination",null,"363 Wellington Street",null,"PERTH","WA","6000","GPO Box L921",null,"PERTH","WA",6842,null,null,"YES","YES","NO",null,"CBD","Urban","Short rural","Long rural",null,"Western Power (T)"]
[]
[]
[null,null,null,null,null,null,null,null,null,null,null,null,null,null,null,null,null,null,null,null,null,null,null,"For EB & Reset RINs only"]
[null,"The Reg Year Ending (dms_RYE) must be set to the last year of the regulatory period. For forecast data is is usually (FRCP_y5) for actual it is a single year (CRY). For historical actual data the RYE will need to be set manually in the business details sheet by setting the dms_Multiyear_flag to 1 and putting the correct value in 'dms_Specified_FinalYear. See cells C67:C68",null,null,null,null,{"$f":"IF(dms_RPT=\"financial\",VALUE(LEFT(CRCP_y1,4)-1)&\"-\"&TEXT(VALUE(RIGHT(CRCP_y1,2)-1),\"00\"),VALUE(LEFT(CRCP_y1,4)-1))","v":"2009-10"},null,null,null,null,null,"Drop down selector box for CA & Reset RINs.","Drop down selector box for CA & Reset RINs.",null,"For CA & Reset RINs only",null,null,null,null,null,null,null,"for DNSP only",null,null,null,null,null,null,null,null,null,null,"Reason for interruption","dms_Reason_Interruption_Detailed","dms_Reason_Interruption"]
[null,"dms_Model_List ","DELETE NR 'CRY' IF NOT AN ANNUAL RIN (EB, CA , ARR)",null,"dms_RYE_Formula_Result",null,null,null,null,null,null,null,"dms_0203_ProjectType","dms_0203_02_ProjectType",null,"dms_020303_01_UOM","dms_020501_01_UOM","dms_020501_02_UOM","dms_020501_03_UOM","dms_020501_04_UOM","dms_020603_01_UOM","dms_040102_01_UOM","dms_040102_04_UOM","dms_030601_01_UOM","dms_030601_02_UOM","dms_030701_01_UOM","dms_030702_01_UOM","dms_030703_01_UOM",null,null,null,null,null,null,"Animal","Animal impact","Animal"]
[null,"ARR","ANNUAL REPORTING STATEMENT",null,{"$f":"LEFT(dms_SingleYear_FinalYear_Result,2)&RIGHT(dms_SingleYear_FinalYear_Result,2)","v":"2019"},"=LEFT(dms_SingleYear_FinalYear_Result,2)&RIGHT(dms_SingleYear_FinalYear_Result,2)",null,"Formula errors are OK",null,null,null,null,"New line on new route - single circuit","Demand growth",null,"Circuit line length in km","0's","0's","0's","0's","0's","0's","days","minutes/customer","minutes/customer","Customer / km","%","km",null,null,null,null,null,null,null,"Animal nesting/burrowing, etc and other","Asset failure"]
[null,"CA","CATEGORY ANALYSIS",null,{"$f":"LEFT(dms_SingleYear_FinalYear_Result,2)&RIGHT(dms_SingleYear_FinalYear_Result,2)","v":"2019"},"=LEFT(dms_SingleYear_FinalYear_Result,2)&RIGHT(dms_SingleYear_FinalYear_Result,2)",null,"Formula errors are OK",null,null,null,null,"New line on new route - dual circuit","Voltage issues",null,"Circuit line length in km","0's","0's","0's","0's","0's","0's","0's","minutes/customer","minutes/customer","MWh/customer","Number of spans",null,null,null,null,null,null,null,null,"Other","Other"]
[null,"CPI","CPI",null,null,null,null,null,null,null,null,null,"New line on new route - other","Reactive power issue",null,"Circuit line length in km","MVA added","MVA added","MVA added","MVA added","0's","0's","$0s","interruptions/customer","interruptions/customer","kVA / customer","Number of spans",null,null,null,null,null,null,null,"Asset failure","LV","Overloads"]
[null,"EB","ECONOMIC BENCHMARKING",null,{"$f":"LEFT(dms_SingleYear_FinalYear_Result,2)&RIGHT(dms_SingleYear_FinalYear_Result,2)","v":"2019"},"=LEFT(dms_SingleYear_FinalYear_Result,2)&RIGHT(dms_SingleYear_FinalYear_Result,2)",null,"Formula errors are OK",null,null,null,null,"Line rebuild over existing route - single circuit","Fault level issues",null,"Circuit line length in km","0's","0's","0's","0's","0's","$0s","0's","interruptions/customer","interruptions/customer",null,"Number of spans",null,null,null,null,null,null,null,null,"Distribution substation","Planned"]
[null,"PTRM","POST TAX REVENUE MODEL",null,{"$f":"LEFT(dms_MultiYear_FinalYear_Result,2)&RIGHT(dms_MultiYear_FinalYear_Result,2)","v":"2020"},"=LEFT(dms_MultiYear_FinalYear_Result,2)&RIGHT(dms_MultiYear_FinalYear_Result,2)",null,null,null,null,null,null,"Line rebuild over existing route - dual circuit","Net market benefit",null,"Number","total spend $0s","total spend $0s","total spend $0s","total spend $0s","(per cent)",null,null,null,null,null,"Number of spans",null,null,null,null,null,null,null,null,"HV","Network business"]
[null,"Reset","REGULATORY REPORTING STATEMENT",null,{"$f":"LEFT(dms_MultiYear_FinalYear_Result,2)&RIGHT(dms_MultiYear_FinalYear_Result,2)","v":"2020"},"=LEFT(dms_MultiYear_FinalYear_Result,2)&RIGHT(dms_MultiYear_FinalYear_Result,2)",null,"Formula errors are OK",null,null,null,null,"Reconductor - Single circuit","Safety",null,"Number","net circuit km added","net circuit km added","net circuit km added","net circuit km added",null,null,null,null,null,null,"Years",null,null,null,null,null,null,null,null,"Zone substation","Third party"]
[null,"RFM","ROLL FORWARD MODEL",null,{"$f":"LEFT(dms_CRCP_FinalYear_Result,2)&RIGHT(dms_CRCP_FinalYear_Result,2)","v":"2019"},"=LEFT(dms_CRCP_FinalYear_Result,2)&RIGHT(dms_CRCP_FinalYear_Result,2)",null,null,null,null,null,null,"Reconductor - Dual circuit","Environment",null,"Number","total spend $0s","total spend $0s","total spend $0s","total spend $0s",null,null,null,null,null,null,"Years",null,null,null,null,null,null,null,null,"Subtransmission","Unknown"]
[null,"WACC","WEIGHTED AVERAGE COST OF CAPITAL",null,{"$f":"LEFT(dms_MultiYear_FinalYear_Result,2)&RIGHT(dms_MultiYear_FinalYear_Result,2)","v":"2020"},"=LEFT(dms_MultiYear_FinalYear_Result,2)&RIGHT(dms_MultiYear_FinalYear_Result,2)",null,null,null,null,null,null,"Other","Other",null,null,"net circuit km added","net circuit km added","net circuit km added","net circuit km added",null,null,null,null,null,null,"Trees",null,null,null,null,null,null,null,"Other","insert description of 'other'","Vegetation"]
[null,null,null,null,null,null,null,null,null,null,null,null,null,null,null,null,"total spend $0s","total spend $0s","total spend $0s","total spend $0s",null,null,null,null,null,null,"Trees",null,null,null,null,null,null,null,"Overloads","-","Weather"]
[null,null,null,null,null,null,null,null,null,null,null,null,null,null,null,null,"0's",null,"$0s",null,null,null,null,null,null,null,"Defects",null,null,null,null,null,null,null,"Planned","-","2 - STPIS Exclusion (3.3)(a)"]
[null,null,null,null,null,null,null,null,null,null,null,null,null,null,null,null,"0's",null,null,null,null,null,null,null,null,null,"Defects",null,null,null,null,null,null,null,"Network business","Network error","3 - STPIS Exclusion (3.3)(a)"]
[null,null,null,null,null,null,null,null,null,null,null,null,null,null,null,null,"0's",null,null,null,null,null,null,null,null,null,"Spans",null,null,null,null,null,null,null,null,"Switching and protection error","4 - STPIS Exclusion (3.3)(a)"]
[null,null,null,null,null,null,null,null,null,null,null,null,null,null,null,null,"$0s",null,null,null,null,null,null,null,null,null,"km",null,null,null,null,null,null,null,"Third party","Fire","5 - STPIS Exclusion (3.3)(a)"]
[null,null,null,null,null,null,null,null,null,null,null,null,null,null,null,null,null,null,null,null,null,null,null,null,null,null,"Spans",null,null,"",null,null,null,null,null,"Other","6 - STPIS Exclusion (3.3)(a)"]
[null,null,null,null,null,null,null,null,null,null,null,null,null,null,null,null,null,null,null,null,null,null,null,null,null,null,null,null,null,null,null,null,null,null,null,"Dig-in","7 - STPIS Exclusion (3.3)(a)"]
[null,null,null,null,null,null,null,null,null,null,null,null,null,null,null,null,null,null,null,null,null,null,null,null,null,null,null,null,null,null,null,null,null,null,null,"Unauthorised access"]
[null,"For all files either AER or business needs to be able to specify the type of submission","For PTRM & RFM templates we must provide a choice in case they change their form of control - otherwise it is drawn from the business specific lookup table above.",null,"These are indeces and lookup values for various dates. All step from the value placed in FRCP_y1 on the business and other details worksheet",null,null,null,null,null,null,null,null,null,null,null,null,null,null,null,null,null,null,"for TNSP only",null,null,null,null,null,null,null,null,null,null,null,"Vehicle impact"]
[null,"dms_SourceList","dms_FormControl_Choices",null,"dms_FRCPlength_Num_List","dms_FinalYear_List","dms_CRCPlength_Num_List","dms_CFinalYear_List","dms_FRCP_years",null,"dms_CRCP_years",null,"dms_CRCP_index",null,null,null,null,null,null,null,null,null,null,"dms_030601_01_UOM",null,"dms_030701_01_UOM","dms_030702_01_UOM",null,null,null,null,null,null,null,"Unknown","Unknown"]
[null,"After appeal","Revenue cap",null,1,"dms_FRCP_y1",1,"CRCP_y1",{"$f":"FRCP_y1","v":"2015-16"},"dms_FRCP_y1",{"$f":"IF(dms_RPT=\"financial\",VALUE(LEFT(dms_FRCP_y1,4)-1)&\"-\"&TEXT(VALUE(MID(dms_FRCP_y1,3,2)),\"00\"),VALUE(LEFT(dms_FRCP_y1,4)-1))","v":"2014-15"},"dms_CRCP_yZ",1,null,null,null,null,null,null,null,null,null,null,"%",null,"Number of spans","km",null,null,null,null,null,null,null,"Vegetation","Blow-in/Fall-in - NSP responsibility"]
[null,"Draft decision","Revenue yield",null,2,"dms_FRCP_y2",2,"CRCP_y2",{"$f":"IF(dms_RPT=\"financial\",VALUE(LEFT(dms_FRCP_y1,4)+1)&\"-\"&TEXT(VALUE(RIGHT(dms_FRCP_y1,2)+1),\"00\"),VALUE(LEFT(dms_FRCP_y1,4)+1))","v":"2016-17"},"dms_FRCP_y2",{"$f":"IF(dms_RPT=\"financial\",VALUE(LEFT(dms_CRCP_yZ,4)-1)&\"-\"&TEXT(VALUE(MID(dms_CRCP_yZ,3,2)),\"00\"),VALUE(LEFT(dms_CRCP_yZ,4)-1))","v":"2013-14"},"dms_CRCP_yY",2,null,null,null,null,null,null,null,null,null,null,"number",null,"Years","%",null,null,null,null,null,null,null,null,"Grow-in - NSP responsibility"]
[null,"Final decision","Weighted average price cap",null,3,"dms_FRCP_y3",3,"CRCP_y3",{"$f":"IF(dms_RPT=\"financial\",VALUE(LEFT(dms_FRCP_y2,4)+1)&\"-\"&TEXT(VALUE(RIGHT(dms_FRCP_y2,2)+1),\"00\"),VALUE(LEFT(dms_FRCP_y2,4)+1))","v":"2017-18"},"dms_FRCP_y3",{"$f":"IF(dms_RPT=\"financial\",VALUE(LEFT(dms_CRCP_yY,4)-1)&\"-\"&TEXT(VALUE(MID(dms_CRCP_yY,3,2)),\"00\"),VALUE(LEFT(dms_CRCP_yY,4)-1))","v":"2012-13"},"dms_CRCP_yX",3,null,null,null,null,null,null,null,null,null,null,"number",null,"Trees","km",null,null,null,null,null,null,null,null,"Blow-in/Fall-in - Other responsible party"]
[null,"PTRM update 1",null,null,4,"dms_FRCP_y4",4,"CRCP_y4",{"$f":"IF(dms_RPT=\"financial\",VALUE(LEFT(dms_FRCP_y3,4)+1)&\"-\"&TEXT(VALUE(RIGHT(dms_FRCP_y3,2)+1),\"00\"),VALUE(LEFT(dms_FRCP_y3,4)+1))","v":"2018-19"},"dms_FRCP_y4",{"$f":"IF(dms_RPT=\"financial\",VALUE(LEFT(dms_CRCP_yX,4)-1)&\"-\"&TEXT(VALUE(MID(dms_CRCP_yX,3,2)),\"00\"),VALUE(LEFT(dms_CRCP_yX,4)-1))","v":"2011-12"},"dms_CRCP_yW",4,null,null,null,null,null,null,null,null,null,null,"%",null,"Defects","number",null,null,null,null,null,null,null,null,"Grow-in - Other responsible party"]
[null,"PTRM update 2",null,null,5,"dms_FRCP_y5",5,"CRCP_y5",{"$f":"IF(dms_RPT=\"financial\",VALUE(LEFT(dms_FRCP_y4,4)+1)&\"-\"&TEXT(VALUE(RIGHT(dms_FRCP_y4,2)+1),\"00\"),VALUE(LEFT(dms_FRCP_y4,4)+1))","v":"2019-20"},"dms_FRCP_y5",{"$f":"IF(dms_RPT=\"financial\",VALUE(LEFT(dms_CRCP_yW,4)-1)&\"-\"&TEXT(VALUE(MID(dms_CRCP_yW,3,2)),\"00\"),VALUE(LEFT(dms_CRCP_yW,4)-1))","v":"2010-11"},"dms_CRCP_yV",5,null,null,null,null,null,null,null,null,null,null,"number",null,"Number of spans",null,null,null,null,null,null,null,null,"Weather"]
[null,"PTRM update 3",null,null,6,"dms_FRCP_y6",6,"CRCP_y6",{"$f":"IF(dms_RPT=\"financial\",VALUE(LEFT(dms_FRCP_y5,4)+1)&\"-\"&TEXT(VALUE(RIGHT(dms_FRCP_y5,2)+1),\"00\"),VALUE(LEFT(dms_FRCP_y5,4)+1))","v":"2020-21"},"dms_FRCP_y6",{"$f":"IF(dms_RPT=\"financial\",VALUE(LEFT(dms_CRCP_yV,4)-1)&\"-\"&TEXT(VALUE(MID(dms_CRCP_yV,3,2)),\"00\"),VALUE(LEFT(dms_CRCP_yV,4)-1))","v":"2009-10"},"dms_CRCP_yU",6,null,null,null,null,null,null,null,null,null,null,"number",null,"km",null,null,null,null,null,null,null,null,"2 - STPIS Exclusion (3.3)(a)"]
[null,"PTRM update 4",null,null,7,"dms_FRCP_y7",7,"CRCP_y7",{"$f":"IF(dms_RPT=\"financial\",VALUE(LEFT(dms_FRCP_y6,4)+1)&\"-\"&TEXT(VALUE(RIGHT(dms_FRCP_y6,2)+1),\"00\"),VALUE(LEFT(dms_FRCP_y6,4)+1))","v":"2021-22"},"dms_FRCP_y7",{"$f":"IF(dms_RPT=\"financial\",VALUE(LEFT(dms_CRCP_yU,4)-1)&\"-\"&TEXT(VALUE(MID(dms_CRCP_yU,3,2)),\"00\"),VALUE(LEFT(dms_CRCP_yU,4)-1))","v":"2008-09"},"dms_CRCP_yT",7,null,null,null,null,null,null,null,null,null,null,"%",null,"km",null,null,null,null,null,null,null,null,"3 - STPIS Exclusion (3.3)(a)"]
[null,"PTRM update 5",null,null,8,"dms_FRCP_y8",8,"CRCP_y8",{"$f":"IF(dms_RPT=\"financial\",VALUE(LEFT(dms_FRCP_y7,4)+1)&\"-\"&TEXT(VALUE(RIGHT(dms_FRCP_y7,2)+1),\"00\"),VALUE(LEFT(dms_FRCP_y7,4)+1))","v":"2022-23"},"dms_FRCP_y8",{"$f":"IF(dms_RPT=\"financial\",VALUE(LEFT(dms_CRCP_yT,4)-1)&\"-\"&TEXT(VALUE(MID(dms_CRCP_yT,3,2)),\"00\"),VALUE(LEFT(dms_CRCP_yT,4)-1))","v":"2007-08"},"dms_CRCP_yS",8,null,null,null,null,null,null,null,null,null,null,"number",null,"Number of spans",null,null,null,null,null,null,null,null,"4 - STPIS Exclusion (3.3)(a)"]
[null,"PTRM update 6",null,null,9,"dms_FRCP_y9",9,"CRCP_y9",{"$f":"IF(dms_RPT=\"financial\",VALUE(LEFT(dms_FRCP_y8,4)+1)&\"-\"&TEXT(VALUE(RIGHT(dms_FRCP_y8,2)+1),\"00\"),VALUE(LEFT(dms_FRCP_y8,4)+1))","v":"2023-24"},"dms_FRCP_y9",{"$f":"IF(dms_RPT=\"financial\",VALUE(LEFT(dms_CRCP_yS,4)-1)&\"-\"&TEXT(VALUE(MID(dms_CRCP_yS,3,2)),\"00\"),VALUE(LEFT(dms_CRCP_yS,4)-1))","v":"2006-07"},"dms_CRCP_yR",9,null,null,null,null,null,null,null,null,null,null,"number",null,null,null,null,null,null,null,null,null,null,"5 - STPIS Exclusion (3.3)(a)"]
[null,"PTRM update 7",null,null,10,"dms_FRCP_y10",10,"CRCP_y10",{"$f":"IF(dms_RPT=\"financial\",VALUE(LEFT(dms_FRCP_y9,4)+1)&\"-\"&TEXT(VALUE(RIGHT(dms_FRCP_y9,2)+1),\"00\"),VALUE(LEFT(dms_FRCP_y9,4)+1))","v":"2024-25"},"dms_FRCP_y10",{"$f":"IF(dms_RPT=\"financial\",VALUE(LEFT(dms_CRCP_yR,4)-1)&\"-\"&TEXT(VALUE(MID(dms_CRCP_yR,3,2)),\"00\"),VALUE(LEFT(dms_CRCP_yR,4)-1))","v":"2005-06"},"dms_CRCP_yQ",10,null,null,null,null,null,null,null,null,null,null,"%",null,null,null,null,null,null,null,null,null,null,"6 - STPIS Exclusion (3.3)(a)"]
[null,"Regulatory proposal",null,null,11,"dms_FRCP_y11",11,"CRCP_y11",{"$f":"IF(dms_RPT=\"financial\",VALUE(LEFT(dms_FRCP_y10,4)+1)&\"-\"&TEXT(VALUE(RIGHT(dms_FRCP_y10,2)+1),\"00\"),VALUE(LEFT(dms_FRCP_y10,4)+1))","v":"2025-26"},"dms_FRCP_y11",{"$f":"IF(dms_RPT=\"financial\",VALUE(LEFT(dms_CRCP_yQ,4)-1)&\"-\"&TEXT(VALUE(MID(dms_CRCP_yQ,3,2)),\"00\"),VALUE(LEFT(dms_CRCP_yQ,4)-1))","v":"2004-05"},"dms_CRCP_yP",11,null,null,null,null,null,null,null,null,null,null,"number",null,null,null,null,null,null,null,null,null,null,"7 - STPIS Exclusion (3.3)(a)"]
[null,"Reporting",null,null,12,"dms_FRCP_y12",12,"CRCP_y12",{"$f":"IF(dms_RPT=\"financial\",VALUE(LEFT(dms_FRCP_y11,4)+1)&\"-\"&TEXT(VALUE(RIGHT(dms_FRCP_y11,2)+1),\"00\"),VALUE(LEFT(dms_FRCP_y11,4)+1))","v":"2026-27"},"dms_FRCP_y12",{"$f":"IF(dms_RPT=\"financial\",VALUE(LEFT(dms_CRCP_yP,4)-1)&\"-\"&TEXT(VALUE(MID(dms_CRCP_yP,3,2)),\"00\"),VALUE(LEFT(dms_CRCP_yP,4)-1))","v":"2003-04"},"dms_CRCP_yO",12,null,null,null,null,null,null,null,null,null,null,"%"]
[null,"Revised regulatory proposal",null,null,13,"dms_FRCP_y13",13,"CRCP_y13",{"$f":"IF(dms_RPT=\"financial\",VALUE(LEFT(dms_FRCP_y12,4)+1)&\"-\"&TEXT(VALUE(RIGHT(dms_FRCP_y12,2)+1),\"00\"),VALUE(LEFT(dms_FRCP_y12,4)+1))","v":"2027-28"},"dms_FRCP_y13",{"$f":"IF(dms_RPT=\"financial\",VALUE(LEFT(dms_CRCP_yO,4)-1)&\"-\"&TEXT(VALUE(MID(dms_CRCP_yO,3,2)),\"00\"),VALUE(LEFT(dms_CRCP_yO,4)-1))","v":"2002-03"},"dms_CRCP_yN",13,null,null,null,null,null,null,null,null,null,null,"number"]
[null,"RFM annual update",null,null,14,"dms_FRCP_y14",14,"CRCP_y14",{"$f":"IF(dms_RPT=\"financial\",VALUE(LEFT(dms_FRCP_y13,4)+1)&\"-\"&TEXT(VALUE(RIGHT(dms_FRCP_y13,2)+1),\"00\"),VALUE(LEFT(dms_FRCP_y13,4)+1))","v":"2028-29"},"dms_FRCP_y14",{"$f":"IF(dms_RPT=\"financial\",VALUE(LEFT(dms_CRCP_yN,4)-1)&\"-\"&TEXT(VALUE(MID(dms_CRCP_yN,3,2)),\"00\"),VALUE(LEFT(dms_CRCP_yN,4)-1))","v":"2001-02"},"dms_CRCP_yM",14,null,null,null,null,null,null,null,null,null,null,"%"]
[null,null,null,null,15,"dms_FRCP_y15",15,"CRCP_y15",{"$f":"IF(dms_RPT=\"financial\",VALUE(LEFT(dms_FRCP_y14,4)+1)&\"-\"&TEXT(VALUE(RIGHT(dms_FRCP_y14,2)+1),\"00\"),VALUE(LEFT(dms_FRCP_y14,4)+1))","v":"2029-30"},"dms_FRCP_y15",{"$f":"IF(dms_RPT=\"financial\",VALUE(LEFT(dms_CRCP_yM,4)-1)&\"-\"&TEXT(VALUE(MID(dms_CRCP_yM,3,2)),\"00\"),VALUE(LEFT(dms_CRCP_yM,4)-1))","v":"2000-01"},"dms_CRCP_yL",15,null,null,null,null,null,null,null,null,null,null,"number"]
[]
[null,"dms_DataQuality_List",null,null,"These are drop down lists for businesses to select the correct FRCP_y1 on the business and other details worksheet.\nThis also populates the column headings in the worksheets"]
[null,"Actual",null,null,"dms_RCP_fyear_list","dms_CRY_ListF","dms_CRY_ListC","dms_RCP_cyear_list","dms_FRCP_fyear_list","dms_FRCP_ListF","dms_FRCP_ListC","dms_FRCP_cyear_list"]
[null,"Estimate",null,null,"dms_fy1","2006-07",2007,"dms_cy1","dms_frcp_fy1","2016-17","2017","dms_crcp_cy1"]
[null,"Consolidated",null,null,"dms_fy2","2007-08","2008","dms_cy2","dms_frcp_fy2","2017-18","2018","dms_crcp_cy2"]
[null,"Recast",null,null,"dms_fy3","2008-09","2009","dms_cy3","dms_frcp_fy3","2018-19","2019","dms_crcp_cy3"]
[null,"Public",null,null,"dms_fy4","2009-10","2010","dms_cy4","dms_frcp_fy4","2019-20","2020","dms_crcp_cy4"]
[null,null,null,null,"dms_fy5","2010-11","2011","dms_cy5","dms_frcp_fy5","2020-21","2021","dms_crcp_cy5"]
[null,null,null,null,"dms_fy6","2011-12","2012","dms_cy6","dms_frcp_fy6","2021-22","2022","dms_crcp_cy6"]
[null,null,null,null,"dms_fy7","2012-13","2013","dms_cy7","dms_frcp_fy7","2022-23","2023","dms_crcp_cy7"]
[null,null,null,null,"dms_fy8","2013-14","2014","dms_cy8","dms_frcp_fy8","2023-24","2024","dms_crcp_cy8"]
[null,null,null,null,"dms_fy9","2014-15","2015","dms_cy9","dms_frcp_fy9","2024-25","2025","dms_crcp_cy9"]
[null,null,null,null,"dms_fy10","2015-16","2016","dms_cy10","dms_frcp_fy10","2025-26","2026","dms_crcp_cy10"]
[null,null,null,null,"dms_fy11","2016-17","2017","dms_cy11","dms_frcp_fy11","2026-27","2027","dms_crcp_cy11"]
[null,null,null,null,"dms_fy12","2017-18","2018","dms_cy12","dms_frcp_fy12","2027-28","2028","dms_crcp_cy12"]
[null,null,null,null,"dms_fy13","2018-19",2019,"dms_cy13","dms_frcp_fy13","2028-29","2029","dms_crcp_cy13"]
[null,null,null,null,"dms_fy14","2019-20","2020","dms_cy14","dms_frcp_fy14","2029-30","2030","dms_crcp_cy14"]
[null,null,null,null,"dms_fy15","2020-21","2021","dms_cy15","dms_frcp_fy15","2030-31","2031","dms_crcp_cy15"]

{"sheet":"Instructions","index":1,"n_rows":27,"n_cols":4,"rows_kept":27,"cut":false,"hidden":true,"merged":[[25,2,25,3],[26,2,26,4],[8,2,8,4],[10,2,10,4],[12,2,12,4],[20,2,20,4],[22,2,22,4],[24,2,24,4],[7,2,7,3],[1,1,1,5],[2,1,2,5],[3,2,3,4],[4,2,4,4],[5,2,5,4]]}
[]
[null,"Transmission Network Service Provider"]
[null,"Historical Reporting RIN Template"]
[null,null,"This template is to be used by Powerlink to fulfil its reporting obligations to the AER."]
[null,null,"INSTRUCTIONS"]
[null,null,"Complete the Business & other details worksheet before entering data or values in any other worksheets. The Business & other details worksheet is linked to other worksheets within the workbook and automatically generates certain column headings and conditional formatting."]
[]
[null,null,"Identifying CONFIDENTIAL INFORMATION:\n\nPlease use the macro at the top of each \nworksheet to identify confidential information. \n\n"]
[null,null,"-Do this by selecting the cell or cells that contain confidential information and then run the Mark selection CONFIDENTIAL macro. This will format the cells a specific colour that is identified by the AER's database which in turn marks that information as confidential.\n\n-To reverse this, select the cell or cells and run the Return selection to NON-CONFIDENTIAL macro."]
[]
[null,null,"UNITS OF MEASURE\n\nAll amounts are to be unrounded and reported on a one for one basis: that is 1000 is to be entered as '1000'. Applicable units of measure may be identified in the table column headings or row descriptors.\n\n\n"]
[]
[null,null,"COLOUR CODING OF INPUT / NON-INPUT CELLS:"]
[null,null,null,"Yellow = Input cell (mandatory)"]
[null,null,null,"Darker yellow = input cell (mandatory)"]
[null,null,null,"Orange = input cell (if data available)"]
[null,null,null,"Grey = Not applicable/No inputs required"]
[null,null,null,". \nPLEASE DO NOT ENTER TEXT into cells that are to contain numeric data."]
[]
[]
[null,null,"WORKSHEET NAVIGATION\n\nMany tables in the worksheets have been \"grouped\" to allow for easy navigation. To ungroup or group data use the outline symbols in the left margin of excel (for Row groupings) or above the columns (for column groupings). \n\n\n\n"]
[]
[null,null,"RETURNING COMPLETED RESPONSES\n\nPlease return four (4) files to the AER: \n1. A confidential version which must contain a complete set of all responses with confidential information marked using the Mark selected cells CONFIDENTIAL macro and which has been completed using the locked template file provided by the AER. \n\n2. An actual and an estimate version with confidential information marked using the Mark selection CONFIDENTIAL macro and which has been completed using the locked template file provided by the AER.\n\n3. A public version with confidential information either removed completely or aggregated in some form together with writtten consent to disclose the public version of the response.\n\n\nUse the drop down box on the Business and other details worksheet to identify the file as either confidential ('consolidated') or public. "]
[]
[null,null,"SUBMITTING AMENDED DATA TO THE AER\n\nIf an NSP wishes to correct data previously submitted to the AER it should resubmit that data using the original completed submission as the starting point. Please make any necessary changes to the data. Data that is not being amended should be left unchanged. \n\nNSPs must identify the reason for the amendments in the Amendment Reason box on the  Business and other details worksheet. NSPs may provide further details regarding any amendments in the Amendments worksheet. \n\n."]
[null,null,"NSP may use Amended Data macro \nto highlight cells that contain amended data.\nNB: if data is also CONFIDENTIAL, re-apply \nthe Confidentiality macro after applying the \nAmended macro"]
[null,null,"Please resubmit two (2) files - a confidential version and a public version of the amended submission to the AER"]

{"sheet":"Contents","index":2,"n_rows":26,"n_cols":12,"rows_kept":26,"cut":false,"hidden":false,"merged":[]}
[null,"REGULATORY REPORTING STATEMENT"]
[null,{"$f":"INDEX(dms_TradingNameFull_List,MATCH(dms_TradingName,dms_TradingName_List))","v":"AusNet (T)"}]
[null,{"$f":"CONCATENATE((LOOKUP(dms_Model,dms_Model_List,dms_Worksheet_List))&\" \"&CRY)","v":"CATEGORY ANALYSIS 2018-19"}]
[null,"CONTENTS"]
[]
[]
[null,null,null,null,"1. Business details",null,null,null,null,null,null,"2. Expenditure"]
[]
[]
[]
[]
[]
[]
[]
[]
[]
[]
[]
[]
[]
[]
[]
[]
[]
[]
[null,null,null,null,"4. Network information",null,null,null,null,null,null,"5. Network information"]

{"sheet":"Business & other details","index":3,"n_rows":88,"n_cols":27,"rows_kept":88,"cut":false,"hidden":false,"merged":[[54,0,87,0],[82,4,82,8],[24,2,24,3],[24,4,24,7],[32,1,32,8],[49,2,49,3],[51,2,51,8],[23,4,23,7],[7,1,7,8],[11,1,11,8],[13,2,13,4],[14,2,14,4],[17,2,17,3],[17,4,17,7],[18,4,18,7],[19,2,19,3],[19,4,19,7],[22,2,22,3],[22,4,22,7]]}
[null,"REGULATORY REPORTING STATEMENT"]
[null,{"$f":"INDEX(dms_TradingNameFull_List,MATCH(dms_TradingName,dms_TradingName_List))","v":"AusNet (T)"}]
[null,{"$f":"CONCATENATE((LOOKUP(dms_Model,dms_Model_List,dms_Worksheet_List))&\" \"&CRY)","v":"CATEGORY ANALYSIS 2018-19"}]
[null,"BUSINESS & OTHER DETAILS"]
[]
[]
[null,"Instructions"]
[null,"Complete the following business details regulatory template before entering data or values in any other regulatory template. This regulatory template is linked to other cells within the spreadsheet and automatically generates column headings."]
[]
[null,"SUBMISSION PARTICULARS INPUT SHEETS"]
[]
[null,"ENTITY DETAILS"]
[]
[null,"Short name","AusNet (T)"]
[null,"ACN / ABN",{"$f":"INDEX(dms_ABN_List,MATCH(dms_TradingName,dms_TradingName_List))","v":78079798173}]
[]
[]
[null,"Business address","Address 1",null,{"$f":"INDEX(dms_Addr1_List,MATCH(dms_TradingName,dms_TradingName_List))","v":"Level 32"}]
[null,null,null,"Address 2",{"$f":"IF(ISBLANK(INDEX(dms_Addr2_List,MATCH(dms_TradingName,dms_TradingName_List))),\"\",INDEX(dms_Addr2_List,MATCH(dms_TradingName,dms_TradingName_List)))","v":"2 Southbank Boulevard"}]
[null,null,"Suburb",null,{"$f":"INDEX(dms_Suburb_List,MATCH(dms_TradingName,dms_TradingName_List))","v":"SOUTHBANK"}]
[null,null,null,"State",{"$f":"INDEX(dms_State_List,MATCH(dms_TradingName,dms_TradingName_List))","v":"Vic"},"p/code",{"$f":"INDEX(dms_PostCode_List,MATCH(dms_TradingName,dms_TradingName_List))","v":"3006"}]
[]
[null,"Postal address","Address 1",null,"Locked Bag 14051"]
[null,null,null,"Address 2",""]
[null,null,"Suburb",null,"MELBOURNE CITY MAIL CENTRE"]
[null,null,null,"State","Vic","p/code",8001]
[]
[]
[null,"Contact name/s","Clare Thompson"]
[null,"Contact phone/s",null,null,null,null,null,null,null,null,null,null,null,null,null,null,null,null,null,null,null,null,null,null,null,null,"Tom Hallam"]
[null,"Contact email address/s",null,null,null,null,null,null,null,null,null,null,null,null,null,null,null,null,null,null,null,null,null,null,null,null,"Tom Hallam"]
[]
[null,"REGULATORY CONTROL PERIODS"]
[]
[null,"Forthcoming regulatory control period","2015-16",{"$f":"dms_FRCP_y2","v":"2016-17"},{"$f":"dms_FRCP_y3","v":"2017-18"},{"$f":"dms_FRCP_y4","v":"2018-19"},{"$f":"dms_FRCP_y5","v":"2019-20"},{"$f":"dms_FRCP_y6","v":"2020-21"},{"$f":"IF(dms_RPT=\"financial\",VALUE(LEFT(FRCP_y6,4)+1)&\"-\"&VALUE(MID(FRCP_y6,3,2)+2),VALUE(LEFT(FRCP_y6,4)+1))","v":"2021-22"}]
[]
[]
[null,"Current regulatory control period",{"$f":"dms_CRCP_FirstYear_Result","v":"2010-11"},{"$f":"IF(dms_RPT=\"financial\",VALUE(LEFT(CRCP_y1,4)+1)&\"-\"&TEXT(VALUE(RIGHT(CRCP_y1,2)+1),\"0#\"),VALUE(LEFT(CRCP_y1,4)+1))","v":"2011-12"},{"$f":"IF(dms_RPT=\"financial\",VALUE(LEFT(CRCP_y2,4)+1)&\"-\"&TEXT(VALUE(RIGHT(CRCP_y2,2)+1),\"0#\"),VALUE(LEFT(CRCP_y2,4)+1))","v":"2012-13"},{"$f":"IF(dms_RPT=\"financial\",VALUE(LEFT(CRCP_y3,4)+1)&\"-\"&TEXT(VALUE(RIGHT(CRCP_y3,2)+1),\"0#\"),VALUE(LEFT(CRCP_y3,4)+1))","v":"2013-14"},{"$f":"IF(dms_RPT=\"financial\",VALUE(LEFT(CRCP_y4,4)+1)&\"-\"&TEXT(VALUE(RIGHT(CRCP_y4,2)+1),\"0#\"),VALUE(LEFT(CRCP_y4,4)+1))","v":"2014-15"},{"$f":"IF(dms_RPT=\"financial\",VALUE(LEFT(CRCP_y5,4)+1)&\"-\"&TEXT(VALUE(RIGHT(CRCP_y5,2)+1),\"0#\"),VALUE(LEFT(CRCP_y5,4)+1))","v":"2015-16"}]
[]
[]
[null,"Previous regulatory control period",{"$f":"IF(dms_RPT=\"financial\",VALUE(LEFT(PRCP_y2,4)-1)&\"-\"&TEXT(VALUE(MID(PRCP_y2,3,2)),\"0#\"),VALUE(LEFT(PRCP_y2,4)-1))","v":"2005-06"},{"$f":"IF(dms_RPT=\"financial\",VALUE(LEFT(PRCP_y3,4)-1)&\"-\"&TEXT(VALUE(MID(PRCP_y3,3,2)),\"0#\"),VALUE(LEFT(PRCP_y3,4)-1))","v":"2006-07"},{"$f":"IF(dms_RPT=\"financial\",VALUE(LEFT(PRCP_y4,4)-1)&\"-\"&TEXT(VALUE(MID(PRCP_y4,3,2)),\"0#\"),VALUE(LEFT(PRCP_y4,4)-1))","v":"2007-08"},{"$f":"IF(dms_RPT=\"financial\",VALUE(LEFT(PRCP_y5,4)-1)&\"-\"&TEXT(VALUE(RIGHT(PRCP_y5,2)-1),\"0#\"),VALUE(LEFT(PRCP_y5,4)-1))","v":"2008-09"},{"$f":"IF(dms_RPT=\"financial\",VALUE(LEFT(CRCP_y1,4)-1)&\"-\"&TEXT(VALUE(RIGHT(CRCP_y1,2)-1),\"0#\"),VALUE(LEFT(CRCP_y1,4)-1))","v":"2009-10"}]
[]
[]
[null,"Current regulatory year","2018-19","CRY"]
[]
[]
[null,null,"DELETE NR 'CRY' IF NOT AN ANNUAL RIN (EB, CA , ARR)"]
[null,null,"APPLY NR 'CRY' IF AN ANNUAL RIN (EB, CA , ARR)"]
[]
[null,"Source","Reporting",null,"Please select the correct submission type from the dropdown list."]
[null,"Data quality (actual, estimate, public, consolidated)","Public"]
[null,"Amended RIN submission - amendment reason"]
[null,"Submission Date","dd/mm/yyyy","dms_SubmissionDate","Please enter date this file submitted to AER (dd/mm/yyyy)"]
[null,"EBSS - First application of scheme in forthcoming period?","No"]
["HIDE THESE ROWS","Sector",{"$f":"INDEX(dms_Sector_List,MATCH(dms_TradingName,dms_TradingName_List))","v":"Electricity"},"dms_Sector","=INDEX(dms_Sector_List,MATCH(dms_TradingName,dms_TradingName_List))"]
[null,"Segment",{"$f":"INDEX(dms_Segment_List,MATCH(dms_TradingName,dms_TradingName_List))","v":"Transmission"},"dms_Segment","=INDEX(dms_Segment_List,MATCH(dms_TradingName,dms_TradingName_List))"]
[null,"Regulatory Year Ending",{"$f":"IF(dms_MultiYear_Flag=1,LEFT(dms_Specified_FinalYear,2)&RIGHT(dms_Specified_FinalYear,2),INDEX(dms_RYE_Formula_Result,MATCH(dms_Model,dms_Model_List)))","v":"2019"},"dms_RYE","=IF(dms_MultiYear_Flag=1,LEFT(dms_Specified_FinalYear,2)&RIGHT(dms_Specified_FinalYear,2),INDEX(dms_RYE_Formula_Result,MATCH(dms_Model,dms_Model_List)))"]
[null,"Reporting Period Type",{"$f":"INDEX(dms_RPT_List,MATCH(dms_TradingName,dms_TradingName_List))","v":"Financial"},"dms_RPT","=INDEX(dms_RPT_List,MATCH(dms_TradingName,dms_TradingName_List))"]
[null,"Model or RIN Type","CA","dms_Model","Drop down selection"]
[null,"Security Classification","Public","dms_Classification","Always Public"]
[null,"Template - version no.",5,"dms_TemplateNumber"]
[null,"Dollar $ real month",{"$f":"INDEX(dms_RPTMonth_List,MATCH(dms_TradingName,dms_TradingName_List))","v":"March"},"dms_RPTMonth","=INDEX(dms_RPTMonth_List,MATCH(dms_TradingName,dms_TradingName_List))"]
[null,"Dollar $ real  (the last month before the FRCP_y1)",{"$f":"IF(SUM(dms_SingleYear_Model)>0,CONCATENATE(dms_RPTMonth)&\" \"&VALUE((LEFT(CRY,2))&RIGHT(CRY,2)),CONCATENATE(dms_RPTMonth)&\" \"&VALUE((LEFT(dms_CRCP_FinalYear_Result,2))&RIGHT(dms_CRCP_FinalYear_Result,2)))","v":"March 2019"},"dms_DollarReal","=IF(SUM(dms_SingleYear_Model)>0,CONCATENATE(dms_RPTMonth)&\" \"&VALUE((LEFT(CRY,2))&RIGHT(CRY,2)),CONCATENATE(dms_RPTMonth)&\" \"&VALUE((LEFT(dms_CRCP_FinalYear_Result,2))&RIGHT(dms_CRCP_FinalYear_Result,2)))"]
[null,"Form of control",{"$f":"INDEX(dms_FormControl_List,MATCH(dms_TradingName,dms_TradingName_List))","v":"Revenue cap"},"dms_FormControl","=INDEX(dms_FormControl_List,MATCH(dms_TradingName,dms_TradingName_List))"]
[null,"RIN response - version no.",1,"dms_RINversion"]
[null,"Jurisdiction",{"$f":"INDEX(dms_JurisdictionList,MATCH(dms_TradingName,dms_TradingName_List))","v":"Vic"},"dms_Jurisdiction","=INDEX(dms_JurisdictionList,MATCH(dms_TradingName,dms_TradingName_List))"]
[null,"Backcast Multiyear EB, CA or ARR?",0,"dms_MultiYear_Flag","1=y, 0-n"]
[null,null,2013,"dms_Specified_FinalYear","The result here is returned to dms_CRCP_FinalYear_Result if dms_MultiYear_Flag is set to 1"]
[null,"Single Year Model T/F",{"$f":"IF(dms_Model=\"EB\",1,0)","v":0},"dms_EB"]
[null,null,{"$f":"IF(dms_Model=\"CA\",1,0)","v":1},"dms_CA","=dms_SingleYear_Model"]
[null,null,{"$f":"IF(dms_Model=\"ARR\",1,0)","v":0},"dms_ARR"]
[null,"Single Year Final Year Reference","CRY","dms_SingleYear_FinalYear_Ref","This is the reference for EB, CA & ARR RINs"]
[null,"Single Year Final Year Result",{"$f":"INDIRECT(dms_SingleYear_FinalYear_Ref)","v":"2018-19"},"dms_SingleYear_FinalYear_Result","=INDIRECT(dms_SingleYear_FinalYear_Ref)",null,null,null,"Formula errors OK"]
[null,"FRCP length in years",{"$f":"INDEX(dms_FRCPlength_List,MATCH(dms_TradingName,dms_TradingName_List))","v":5},"dms_FRCPlength_Num","=INDEX(dms_FRCPlength_List,MATCH(dms_TradingName,dms_TradingName_List))"]
[null,"Multi Year Final Year Reference",{"$f":"INDEX(dms_FinalYear_List,MATCH(dms_FRCPlength_Num,dms_FRCPlength_Num_List))","v":"dms_FRCP_y5"},"dms_MultiYear_FinalYear_Ref","=INDEX(dms_FinalYear_List,MATCH(dms_FRCPlength_Num,dms_FRCPlength_Num_List))"]
[null,"Multi Year Final Year Result",{"$f":"IF(dms_MultiYear_Flag=0,INDIRECT(dms_MultiYear_FinalYear_Ref),dms_Specified_FinalYear)","v":"2019-20"},"dms_MultiYear_FinalYear_Result","=IF(dms_MultiYear_Flag=0,INDIRECT(dms_MultiYear_FinalYear_Ref),dms_Specified_FinalYear)",null,null,null,"Formula errors OK"]
[null,"CRCP length in years",{"$f":"INDEX(dms_CRCPlength_List,MATCH(dms_TradingName,dms_TradingName_List))","v":5},"dms_CRCPlength_Num","=INDEX(dms_CRCPlength_List,MATCH(dms_TradingName,dms_TradingName_List))"]
[null,"CRCP Final Year Reference",{"$f":"INDEX(dms_CFinalYear_List,MATCH(dms_CRCPlength_Num,dms_CRCPlength_Num_List))","v":"CRCP_y5"},"dms_CRCP_FinalYear_Ref","=INDEX(dms_CFinalYear_List,MATCH(dms_CRCPlength_Num,dms_CRCPlength_Num_List))"]
[null,"CRCP First Year Result",{"$f":"INDEX(dms_CRCP_years,MATCH(dms_CRCPlength_Num,dms_CRCP_index))","v":"2010-11"},"dms_CRCP_FirstYear_Result","=INDEX(dms_CRCP_years,MATCH(dms_CRCPlength_Num,dms_CRCP_index))"]
[null,"CRCP Final Year Result",{"$f":"IF(dms_MultiYear_Flag=0,(IF(SUM(dms_SingleYear_Model)>0,CRY,dms_CRCP_yZ)),dms_Specified_FinalYear)","v":"2018-19"},"dms_CRCP_FinalYear_Result","=IF(dms_MultiYear_Flag=0,(IF(SUM(dms_SingleYear_Model)>0,CRY,dms_CRCP_yZ)),dms_Specified_FinalYear)"]
[null,"Table 6.6.3 - Public lighting repair - no. business days",{"$f":"INDEX(dms_663_List,MATCH(dms_TradingName,dms_TradingName_List))","v":2},"dms_663"]
[null,"Distribution Determination Reference",{"$f":"INDEX(dms_DeterminationRef_List,MATCH(dms_TradingName,dms_TradingName_List))","v":"transmission determination"}]
[null,"Backcast templates only - unit of measure ","$0s","dms_Backcast_UOM","If the cover sheet is for Backcast data ensure to apply dms_Backcast_UOM named range to this field. Otherwise, do not apply this named range."]
[null,"EB/CA Unit of Measure for Monetary Values","$0s","dms_dollar_nom_UOM","If the cover sheet is attached to an EB files make sure this field is set"]
[]
[null,"discard this record?","NO","dms_DISCARD","If record is to be discarded from DB set this flag to YES"]
[]
[null,"USES NAMED RANGES FLAG","yes","dms_Defined_Names_Used"]

{"sheet":"2.1 Expenditure summary","index":4,"n_rows":59,"n_cols":3,"rows_kept":59,"cut":false,"hidden":false,"merged":[]}
[null,"REGULATORY REPORTING STATEMENT"]
[null,{"$f":"INDEX(dms_TradingNameFull_List,MATCH(dms_TradingName,dms_TradingName_List))","v":"AusNet (T)"}]
[null,{"$f":"CONCATENATE((LOOKUP(dms_Model,dms_Model_List,dms_Worksheet_List))&\" \"&CRY)","v":"CATEGORY ANALYSIS 2018-19"}]
[null,"2.1 EXPENDITURE SUMMARY AND RECONCILIATION"]
[]
[null,"There are TWO tables on this worksheet. Each has been grouped for ease of navigation. See the Instructions sheet on how to group or ungroup tables. "]
[]
[null,"2.1.1 - PRESCRIBED TRANSMISSION SERVICES CAPEX (as incurred)"]
[null,null,"Actual \n($0's)"]
[null,null,{"$f":"CRY","v":"2018-19"}]
[null,"Replacement expenditure",124996359.77]
[null,"Connections",21482928.880000003]
[null,"Augmentation Expenditure",0]
[null,"Non-network",13216225.400000004]
[null,"Capitalised network overheads",5986036.3323891507]
[null,"Capitalised corporate overheads",1245462.1676108469]
[]
[]
[]
[]
[]
[]
[]
[]
[]
[]
[]
[]
[]
[]
[]
[null,"balancing item",-22458189.383858394]
[null,"TOTAL  CAPEX",{"$f":"+SUM(C11:C32)","v":144468823.16614163}]
[]
[null,"2.1.2 - PRESCRIBED TRANSMISSION SERVICE OPEX "]
[null,null,"Actual \n($0's)"]
[null,null,{"$f":"CRY","v":"2018-19"}]
[null,"Vegetation management",3491199.5500000003]
[null,"Maintenance",18498948.772999987]
[null,"Non-network",23004807.18]
[null,"Network overheads",23894543.219999999]
[null,"Corporate overheads",155568864.13]
[]
[]
[]
[]
[]
[]
[]
[]
[]
[]
[]
[]
[]
[]
[]
[null,"balancing item",-930570.61155671033]
[null,"TOTAL OPEX",{"$f":"SUM(C38:C58)","v":223527792.24144328}]

{"sheet":"2.2 Repex","index":5,"n_rows":249,"n_cols":6,"rows_kept":249,"cut":false,"hidden":false,"merged":[[167,1,178,1],[84,1,119,1],[10,1,24,1],[25,1,39,1],[40,1,61,1],[62,1,83,1],[120,1,144,1],[145,1,166,1]]}
[null,"REGULATORY REPORTING STATEMENT"]
[null,{"$f":"INDEX(dms_TradingNameFull_List,MATCH(dms_TradingName,dms_TradingName_List))","v":"AusNet (T)"}]
[null,{"$f":"CONCATENATE((LOOKUP(dms_Model,dms_Model_List,dms_Worksheet_List))&\" \"&CRY)","v":"CATEGORY ANALYSIS 2018-19"}]
[null,"2.2 REPEX"]
[]
[null,"There are TWO tables (with three sub-tables each) on this worksheet. Each table has been grouped (and sub-grouped) for ease of navigation. See the Instructions sheet on how to group or ungroup data."]
[]
[null,"2.2.1 - REPLACEMENT EXPENDITURE, VOLUMES AND ASSET FAILURES BY ASSET CATEGORY"]
[null,null,null,"EXPENDITURE ($0's)","ASSET REPLACEMENTS ","ASSET FAILURES  "]
[null,"ASSET GROUP","ASSET CATEGORY",{"$f":"CRY","v":"2018-19"},{"$f":"CRY","v":"2018-19"},{"$f":"CRY","v":"2018-19"}]
[null,"TRANSMISSION TOWERS\nHighest operating voltage; Circuit configuration","< = 33 kV ; Single Circuit",0,0,0]
[null,null,"> 33 kV & < = 66 kV ; Single Circuit",0,0,0]
[null,null,"> 66 kV & < = 132 kV ; Single Circuit",0,0,0]
[null,null,"> 132 kV & < = 275 kV ; Single Circuit",0,0,0]
[null,null,"> 275 kV & < = 330 kV ; Single Circuit",0,0,0]
[null,null,"> 330 kV & < = 500 kV ; Single Circuit",0,0,0]
[null,null,"> 500 kV ; Single Circuit",0,0,0]
[null,null,"< = 33 kV ; Multiple Circuit",0,0,0]
[null,null,"> 33 kV & < = 66 kV ; Multiple Circuit",0,0,0]
[null,null,"> 66 kV & < = 132 kV ; Multiple Circuit",0,0,0]
[null,null,"> 132 kV & < = 275 kV ; Multiple Circuit",0,0,0]
[null,null,"> 275 kV & < = 330 kV ; Multiple Circuit",0,0,0]
[null,null,"> 330 kV & < = 500 kV ; Multiple Circuit",0,0,0]
[null,null,"> 500 kV ; Multiple Circuit",0,0,0]
[null,null,"Other",0,0,0]
[null,"TRANSMISSION TOWER SUPPORT STRUCTURES BY:\nHighest operating voltage; Circuit configuration","< = 33 kV ; Single Circuit",0,0,0]
[null,null,"> 33 kV & < = 66 kV ; Single Circuit",0,0,0]
[null,null,"> 66 kV & < = 132 kV ; Single Circuit",0,0,0]
[null,null,"> 132 kV & < = 275 kV ; Single Circuit",0,0,0]
[null,null,"> 275 kV & < = 330 kV ; Single Circuit",0,0,0]
[null,null,"> 330 kV & < = 500 kV ; Single Circuit",0,0,0]
[null,null,"> 500 kV ; Single Circuit",0,0,0]
[null,null,"< = 33 kV ; Multiple Circuit",0,0,0]
[null,null,"> 33 kV & < = 66 kV ; Multiple Circuit",0,0,0]
[null,null,"> 66 kV & < = 132 kV ; Multiple Circuit",0,0,0]
[null,null,"> 132 kV & < = 275 kV ; Multiple Circuit",0,0,0]
[null,null,"> 275 kV & < = 330 kV ; Multiple Circuit",0,0,0]
[null,null,"> 330 kV & < = 500 kV ; Multiple Circuit",0,0,0]
[null,null,"> 500 kV ; Multiple Circuit",0,0,0]
[null,null,"Other",22245377.845613293,5668.026755022478,81.501541659866177]
[null,"CONDUCTORS BY: \nVoltage; Maximum continuous rating","< = 33 kV ; < = 100 MVA",0,0,0]
[null,null,"< = 33 kV ; > 100 MVA & < = 400 MVA",0,0,0]
[null,null,"< = 33 kV ; > 400 MVA",0,0,0]
[null,null,"> 33 kV & < = 66 kV ; < = 100 MVA",0,0,0]
[null,null,"> 33 kV & < = 66 kV ; > 100 MVA & < = 400 MVA",0,0,0]
[null,null,"> 33 kV & < = 66 kV ; > 400 MVA",0,0,0]
[null,null,"> 66 kV & < = 132 kV ; < = 100 MVA",0,0,0]
[null,null,"> 66 kV & < = 132 kV ; > 100 MVA & < = 400 MVA",0,0,0]
[null,null,"> 66 kV & < = 132 kV ; > 400 MVA",0,0,0]
[null,null,"> 132 kV & < = 275 kV ; < = 200 MVA",0,0,0]
[null,null,"> 132 kV & < = 275 kV ; > 200 MVA & < = 600 MVA",0,0,0]
[null,null,"> 132 kV & < = 275 kV ; > 600 MVA",0,0,0]
[null,null,"> 275 kV & < = 330 kV ; < = 800 MVA",0,0,0]
[null,null,"> 275 kV & < = 330 kV ; > 800 MVA & < = 1200 MVA",0,0,0]
[null,null,"> 275 kV & < = 330 kV ; > 1200 MVA",0,0,0]
[null,null,"> 330 kV & < = 500 kV ; < = 1000 MVA",0,0,0]
[null,null,"> 330 kV & < = 500 kV ; > 1000 MVA & < = 1500 MVA",0,0,0]
[null,null,"> 330 kV & < = 500 kV ; > 1500 MVA",0,0,0]
[null,null,"> 500 kV ; < = 2000 MVA",0,0,0]
[null,null,"> 500 kV ; > 2000 MVA & < = 3000 MVA",0,0,0]
[null,null,"> 500 kV ; > 3000 MVA",0,0,0]
[null,null,"Other",0,0,0]
[null,"TRANSMISSION CABLES BY: \nHighest operating voltage; Insulation type","< = 33 kV ; Oil Filled",0,0,0]
[null,null,"> 33 kV & < = 66 kV ; Oil Filled",0,0,0]
[null,null,"> 66 kV & < = 132 kV ; Oil Filled",0,0,0]
[null,null,"> 132 kV & < = 275 kV ; Oil Filled",0,0,0]
[null,null,"> 275 kV & < = 330 kV ; Oil Filled",0,0,0]
[null,null,"> 330 kV & < = 500 kV ; Oil Filled",0,0,0]
[null,null,"> 500 kV ; Oil Filled",0,0,0]
[null,null,"< = 33 kV ; XLPE Insulated",0,0,0]
[null,null,"> 33 kV & < = 66 kV ; XLPE Insulated",0,0,0]
[null,null,"> 66 kV & < = 132 kV ; XLPE Insulated",0,0,0]
[null,null,"> 132 kV & < = 275 kV ; XLPE Insulated",0,0,0]
[null,null,"> 275 kV & < = 330 kV ; XLPE Insulated",0,0,0]
[null,null,"> 330 kV & < = 500 kV ; XLPE Insulated",0,0,0]
[null,null,"> 500 kV ; XLPE Insulated",0,0,0]
[null,null,"< = 33 kV ; Other Insulated",0,0,0]
[null,null,"> 33 kV & < = 66 kV ; Other Insulated",0,0,0]
[null,null,"> 66 kV & < = 132 kV ; Other Insulated",0,0,0]
[null,null,"> 132 kV & < = 275 kV ; Other Insulated",0,0,0]
[null,null,"> 275 kV & < = 330 kV ; Other Insulated",0,0,0]
[null,null,"> 330 kV & < = 500 kV ; Other Insulated",0,0,0]
[null,null,"> 500 kV ; Other Insulated",0,0,0]
[null,null,"Other",0,0,0]
[null,"SUBSTATION SWITCHBAYS BY: \nHighest operating voltage; Switch type","< = 33 kV ; Air Insulated circuit Breaker",8585.2940863576205,0,0]
[null,null,"> 33 kV & < = 66 kV ; Air Insulated circuit Breaker",0,0,0]
[null,null,"> 66 kV & < = 132 kV ; Air Insulated circuit Breaker",9366685.5834793579,27.700553402209302,2.6070791941118254]
[null,null,"> 132 kV & < = 275 kV ; Air Insulated circuit Breaker",7149825.6540228706,15.63533441914179,7.9854073509420739E-3]
[null,null,"> 275 kV & < = 330 kV ; Air Insulated circuit Breaker",185549.31367977397,0,0]
[null,null,"> 330 kV & < = 500 kV ; Air Insulated circuit Breaker",0,0,0]
[null,null,"> 500 kV ; Air Insulated circuit Breaker",0,0,0]
[null,null,"< = 33 kV ; Air Insulated Isolators / Earth Switch",221335.05217763415,5.9999999999999991,0]
[null,null,"> 33 kV & < = 66 kV ; Air Insulated Isolators / Earth Switch",0,0,0]
[null,null,"> 66 kV & < = 132 kV ; Air Insulated Isolators / Earth Switch",1614006.6665013882,48.63214025620141,0]
[null,null,"> 132 kV & < = 275 kV ; Air Insulated Isolators / Earth Switch",249902.20605278914,4,0]
[null,null,"> 275 kV & < = 330 kV ; Air Insulated Isolators / Earth Switch",0,0,0]
[null,null,"> 330 kV & < = 500 kV ; Air Insulated Isolators / Earth Switch",0,0,0]
[null,null,"> 500 kV ; Air Insulated Isolators / Earth Switch",0,0,0]
[null,null,"< = 33 kV ; VT",290710.39902673842,15.999999999999998,0]
[null,null,"> 33 kV & < = 66 kV ; VT",0,0,0]
[null,null,"> 66 kV & < = 132 kV ; VT",787894.46448581852,10.165814468715297,0]
[null,null,"> 132 kV & < = 275 kV ; VT",854546.71572465624,7.3989773624583544,0]
[null,null,"> 275 kV & < = 330 kV ; VT",0,0,0]
[null,null,"> 330 kV & < = 500 kV ; VT",0,0,0]
[null,null,"> 500 kV ; VT",0,0,0]
[null,null,"< = 33 kV ; CT",25424.811758288015,3.0000000000000004,0]
[null,null,"> 33 kV & < = 66 kV ; CT",0,0,0]
[null,null,"> 66 kV & < = 132 kV ; CT",9088.3560591053301,1.4679228689563066,0]
[null,null,"> 132 kV & < = 275 kV ; CT",11049.433833881078,1.466325787486118,0]
[null,null,"> 275 kV & < = 330 kV ; CT",0,0,0]
[null,null,"> 330 kV & < = 500 kV ; CT",0,0,0]
[null,null,"> 500 kV ; CT",0,0,0]
[null,null,"< = 33 kV ; GIS Module",0,0,0]
[null,null,"> 33 kV & < = 66 kV ; GIS Module",0,0,0]
[null,null,"> 66 kV & < = 132 kV ; GIS Module",0,0,0]
[null,null,"> 132 kV & < = 275 kV ; GIS Module",0,0,0]
[null,null,"> 275 kV & < = 330 kV ; GIS Module",0,0,0]
[null,null,"> 330 kV & < = 500 kV ; GIS Module",0,0,0]
[null,null,"> 500 kV ; GIS Module",0,0,0]
[null,null,"Other",250946.37885225232,1.6321402562014131,0]
[null,"SUBSTATION POWER TRANSFORMERS BY: \nHighest operating voltage;  Ampere rating","< = 33 kV ; < = 10 MVA",0,0,0]
[null,null,"< = 33 kV ; > 10 MVA & < = 30 MVA",0,0,0]
[null,null,"< = 33 kV ; > 30 MVA",0,0,0]
[null,null,"> 33 kV & < = 66 kV ; < = 10 MVA",0,0,0]
[null,null,"> 33 kV & < = 66 kV ; > 10 MVA & < = 30 MVA",0,0,0]
[null,null,"> 33 kV & < = 66 kV ; > 30 MVA",0,0,0]
[null,null,"> 66 kV & < = 132 kV ; < = 30 MVA",0,0,0]
[null,null,"> 66 kV & < = 132 kV ; > 30 MVA & < = 60 MVA",0,0,0]
[null,null,"> 66 kV & < = 132 kV ; > 60 MVA",0,0,0]
[null,null,"> 132 kV & < = 220 kV ; < = 50 MVA",0,0,0]
[null,null,"> 132 kV & < = 220 kV ; > 50 MVA & < = 100 MVA",0,0,0]
[null,null,"> 132 kV & < = 220 kV ; > 100 MVA",22865344.073869586,7.1018269600505963,2.7622355422218966E-2]
[null,null,"> 220 kV & < = 275 kV ; < = 50 MVA",0,0,0]
[null,null,"> 220 kV & < = 275 kV ; > 50 MVA & < = 100 MVA",0,0,0]
[null,null,"> 220 kV & < = 275 kV ; > 100 MVA",0,0,0]
[null,null,"> 275 kV & < = 330 kV ; < = 100 MVA",0,0,0]
[null,null,"> 275 kV & < = 330 kV ; > 100 MVA & < = 250 MVA",5244176.794256378,1,0]
[null,null,"> 275 kV & < = 330 kV ; > 250 MVA",0,0,0]
[null,null,"> 330 kV & < = 500 kV ; < = 150 MVA",0,0,0]
[null,null,"> 330 kV & < = 500 kV ; > 150 MVA & < = 300 MVA",0,0,0]
[null,null,"> 330 kV & < = 500 kV ; > 300 MVA",0,0,0]
[null,null,"> 500 kV ; < = 1000 MVA",0,0,0]
[null,null,"> 500 kV ; > 1000 MVA & < = 1500 MVA",0,0,0]
[null,null,"> 500 kV ; > 1500 MVA",0,0,0]
[null,null,"Other",0,0,0]
[null,"SUBSTATION REACTIVE PLANT BY: \nHighest operating voltage; Function","< = 33 kV ; SVCS",0,0,0]
[null,null,"> 33 kV & < = 66 kV ; SVCS",0,0,0]
[null,null,"> 66 kV & < = 132 kV ; SVCS",0,0,0]
[null,null,"> 132 kV & < = 275 kV ; SVCS",16287.356183264599,0,0]
[null,null,"> 275 kV & < = 330 kV ; SVCS",0,0,0]
[null,null,"> 330 kV & < = 500 kV ; SVCS",0,0,0]
[null,null,"> 500 kV ; SVCS",0,0,0]
[null,null,"< = 33 kV ; Capacitors",0,0,0]
[null,null,"> 33 kV & < = 66 kV ; Capacitors",0,0,0]
[null,null,"> 66 kV & < = 132 kV ; Capacitors",0,0,0]
[null,null,"> 132 kV & < = 275 kV ; Capacitors",0,0,0]
[null,null,"> 275 kV & < = 330 kV ; Capacitors",0,0,0]
[null,null,"> 330 kV & < = 500 kV ; Capacitors",0,0,0]
[null,null,"> 500 kV ; Capacitors",0,0,0]
[null,null,"< = 33 kV ; Oil Filled Reactors",0,0,0]
[null,null,"> 33 kV & < = 66 kV ; Oil Filled Reactors",0,0,0]
[null,null,"> 66 kV & < = 132 kV ; Oil Filled Reactors",0,0,0]
[null,null,"> 132 kV & < = 275 kV ; Oil Filled Reactors",0,0,0]
[null,null,"> 275 kV & < = 330 kV ; Oil Filled Reactors",0,0,0]
[null,null,"> 330 kV & < = 500 kV ; Oil Filled Reactors",0,0,0]
[null,null,"> 500 kV ; Oil Filled Reactors",0,0,0]
[null,null,"Other",0,0,0]
[null,"SCADA, NETWORK CONTROL AND PROTECTION SYSTEMS BY:\nFunction","Communications Network Assets",15382874.343614431,294.58694385133089,11.621609868169639]
[null,null,"Master Station Assets",0,0,0]
[null,null,"Control equipment / systems",8364441.8103260519,122.502763120279,17.037174399979765]
[null,null,"Infrastructure: protection and control",0,0,0]
[null,null,"Metering systems",5686987.2494195029,80,0.45621314090516574]
[null,null,"OPGW",0,0,0]
[null,null,"Protection schemes / systems",5770691.4705758076,85.131713104307551,0.90493638192048964]
[null,null,"Site establishment",0,0,0]
[null,null,"Station SCADA and control systems",0,0,0]
[null,null,"Telecommunications Network / Systems",0,0,0]
[null,null,"Total secondary systems",0,0,0]
[null,null,"Other",0,0,0]
[null,"OTHER BY: \nTNSP defined","<NSP to enter description for Asset Group/Category not listed above>",0,0,0]
[null,null,"Station Property & Civil Infrastructure",15427179.026106777,81.657795158628616,1.4984153346187397]
[null,null,"GENERATORS AND MOTORS",0,0,0]
[null,null,"INFRASTRUCTURE : COMPRESSOR",0,0,0]
[null,null,"INFRASTRUCTURE : Earth Grid",0,0,0]
[null,null,"OTHER: NEUTRAL EARTH COMPENSATORS/RESISTORS",0,0,0]
[null,null,"OTHER : SURGE DIVERTERS < = 33 kV  ;",25755.88225907286,12,0]
[null,null,"OTHER : SURGE DIVERTERS > 132 kV & < = 275 kV  ;",306864.22084255179,11.79795472491671,0]
[null,null,"OTHER : SURGE DIVERTERS > 275 kV & < = 330 kV  ;",50849.62351657603,3.0000000000000004,0]
[null,null,"OTHER : SURGE DIVERTERS > 33 & < = 66 kV  ;",0,0,0]
[null,null,"OTHER : SURGE DIVERTERS > 33 kV & < = 66 kV  ;",304057.16367585171,10.398977362458353,0]
[null,null,"OTHER : SURGE DIVERTERS > 330 kV & < = 500 kV  ;",0,0,0]
[null,null,"OTHER: < = 33 kV ; BUS",0,0,0]
[null,null,"OTHER: > 132 kV & < = 275 kV  ; BUS",0,0,0]
[null,null,"OTHER: > 275 kV & < = 330 kV  ; BUS",0,0,0]
[null,null,"OTHER: > 33 kV & < = 66 kV  ; BUS",0,0,0]
[null,null,"OTHER: > 330 kV & < = 500 kV  ; BUS",0,0,0]
[null,null,null,0,0,0]
[null,null,null,null,null,0]
[null,null,null,null,null,0]
[null,null,null,null,null,0]
[null,null,null,null,null,0]
[null,null,null,null,null,0]
[null,null,null,null,null,0]
[null,null,null,null,null,0]
[null,null,null,null,null,0]
[]
[]
[]
[]
[]
[null,"2.2.2 - SELECTED ASSET CHARACTERISTICS"]
[null,null,null,"ASSET VOLUMES CURRENTLY IN COMMISSION","ASSET REPLACEMENTS "]
[null,"ASSET GROUP","ASSET CATEGORY",{"$f":"CRY","v":"2018-19"},{"$f":"CRY","v":"2018-19"}]
[null,"CONDUCTORS BY: \nCONDUCTOR LENGTH MATERIAL TYPE","AAAC",58.895145882588928,0]
[null,null,"AAC",44.44471011741107,0]
[null,null,"ACAR",0,0]
[null,null,"ACSR",6400.1333299999997,0]
[null,null,"HD Cu",0,0]
[null,null,"OP Ground Wire",1906.1175899999987,0]
[null,null,"Steel Ground Wire",3365.2952948227608,0]
[null,null,"ACSR Ground Wire",2255.3796811772327,0]
[null,null,null,0,0]
[]
[]
[]
[]
[]
[]
[]
[]
[]
[]
[]
[]
[]
[]
[]
[]
[]
[]
[]
[]
[]
[]
[]
[]
[null,"SUBSTATION REACTIVE PLANT BY:\nREACTIVE CAPACITY","Total MVAr by SVCs",460,0]
[null,null,"Total MVAr by Capacitors",3789.2700000000004,0]
[null,null,"Total MVAr by Oil Filled Reactors",390.02,0]

{"sheet":"2.3 Augex","index":6,"n_rows":212,"n_cols":35,"rows_kept":212,"cut":false,"hidden":false,"merged":[[139,3,141,3],[139,6,141,6],[139,5,141,5],[139,4,141,4],[139,7,140,10],[140,16,140,17],[140,20,141,20],[138,11,138,24],[28,2,34,2],[28,3,34,3],[28,4,34,4],[28,5,34,5],[28,6,34,6],[28,7,34,7],[60,2,66,2],[60,3,66,3],[60,4,66,4],[60,5,66,5],[60,6,66,6],[60,7,66,7],[60,8,66,8],[52,8,58,8],[52,9,58,9],[52,10,58,10],[92,4,98,4],[92,5,98,5],[92,6,98,6],[10,18,10,21],[9,11,9,24],[10,23,10,24],[11,20,11,21],[20,6,26,6],[20,7,26,7],[20,8,26,8],[20,9,26,9],[20,10,26,10],[92,7,98,7],[92,8,98,8],[5,1,5,3],[9,32,9,33],[10,1,11,1],[10,2,11,2],[10,3,11,3],[10,4,11,4],[10,5,11,5],[10,6,11,6],[10,7,10,8],[10,9,10,10],[10,11,10,14],[9,1,9,10],[9,25,9,26],[9,27,11,27],[9,28,11,28],[9,29,9,31],[10,15,10,17],[11,25,11,26],[11,29,11,31],[11,32,11,33],[12,1,18,1],[12,2,18,2],[20,1,26,1],[20,2,26,2],[20,3,26,3],[20,4,26,4],[20,5,26,5],[12,9,18,9],[12,10,18,10],[12,3,18,3],[12,4,18,4],[12,5,18,5],[12,6,18,6],[12,7,18,7],[12,8,18,8],[12,33,18,33],[12,27,18,27],[12,28,18,28],[20,29,26,29],[20,30,26,30],[20,31,26,31],[12,25,18,25],[12,26,18,26],[12,29,18,29],[12,30,18,30],[12,31,18,31],[12,32,18,32],[20,26,26,26],[20,25,26,25],[20,28,26,28],[28,30,34,30],[28,31,34,31],[28,32,34,32],[28,33,34,33],[28,27,34,27],[28,28,34,28],[20,32,26,32],[20,33,26,33],[20,27,26,27],[28,29,34,29],[36,1,42,1],[36,2,42,2],[36,3,42,3],[36,4,42,4],[36,5,42,5],[28,9,34,9],[28,10,34,10],[28,25,34,25],[28,26,34,26],[28,1,34,1],[28,8,34,8],[36,32,42,32],[36,33,42,33],[36,27,42,27],[36,28,42,28],[36,29,42,29],[36,30,42,30],[36,31,42,31],[44,2,50,2],[44,3,50,3],[44,4,50,4],[44,5,50,5],[44,6,50,6],[44,7,50,7],[44,8,50,8],[36,26,42,26],[36,6,42,6],[36,7,42,7],[36,8,42,8],[36,9,42,9],[36,10,42,10],[36,25,42,25],[44,29,50,29],[44,30,50,30],[44,31,50,31],[44,32,50,32],[44,33,50,33],[52,1,58,1],[52,2,58,2],[52,3,58,3],[52,4,58,4],[52,5,58,5],[44,9,50,9],[44,10,50,10],[44,25,50,25],[44,26,50,26],[44,27,50,27],[44,28,50,28],[52,32,58,32],[52,33,58,33],[52,27,58,27],[52,28,58,28],[52,29,58,29],[52,30,58,30],[52,31,58,31],[44,1,50,1],[52,26,58,26],[52,6,58,6],[52,7,58,7],[52,25,58,25],[60,29,66,29],[60,30,66,30],[60,31,66,31],[60,32,66,32],[60,33,66,33],[68,1,74,1],[68,2,74,2],[68,3,74,3],[68,4,74,4],[68,5,74,5],[60,9,66,9],[60,10,66,10],[60,25,66,25],[60,26,66,26],[60,27,66,27],[60,28,66,28],[68,32,74,32],[68,33,74,33],[68,27,74,27],[68,28,74,28],[68,29,74,29],[68,30,74,30],[68,31,74,31],[60,1,66,1],[76,2,82,2],[76,3,82,3],[76,4,82,4],[76,5,82,5],[76,6,82,6],[76,7,82,7],[76,8,82,8],[68,26,74,26],[68,6,74,6],[68,7,74,7],[68,8,74,8],[68,9,74,9],[68,10,74,10],[68,25,74,25],[76,29,82,29],[76,30,82,30],[76,31,82,31],[76,32,82,32],[76,33,82,33],[84,1,90,1],[84,2,90,2],[84,3,90,3],[84,4,90,4],[84,5,90,5],[76,9,82,9],[76,10,82,10],[76,25,82,25],[76,26,82,26],[76,27,82,27],[76,28,82,28],[84,32,90,32],[84,33,90,33],[84,27,90,27],[84,28,90,28],[84,29,90,29],[84,30,90,30],[84,31,90,31],[76,1,82,1],[84,26,90,26],[84,6,90,6],[84,7,90,7],[84,8,90,8],[84,9,90,9],[84,10,90,10],[84,25,90,25],[92,29,98,29],[92,30,98,30],[92,31,98,31],[92,32,98,32],[92,33,98,33],[100,1,106,1],[100,2,106,2],[100,3,106,3],[100,4,106,4],[100,5,106,5],[92,9,98,9],[92,10,98,10],[92,25,98,25],[92,26,98,26],[92,27,98,27],[92,28,98,28],[100,32,106,32],[100,33,106,33],[100,27,106,27],[100,28,106,28],[100,29,106,29],[100,30,106,30],[100,31,106,31],[92,1,98,1],[92,2,98,2],[92,3,98,3],[108,2,114,2],[108,3,114,3],[108,4,114,4],[108,5,114,5],[108,6,114,6],[108,7,114,7],[108,8,114,8],[100,26,106,26],[100,6,106,6],[100,7,106,7],[100,8,106,8],[100,9,106,9],[100,10,106,10],[100,25,106,25],[108,29,114,29],[108,30,114,30],[108,31,114,31],[108,32,114,32],[108,33,114,33],[116,1,122,1],[116,2,122,2],[116,3,122,3],[116,4,122,4],[116,5,122,5],[108,9,114,9],[108,10,114,10],[108,25,114,25],[108,26,114,26],[108,27,114,27],[108,28,114,28],[116,32,122,32],[116,33,122,33],[116,27,122,27],[116,28,122,28],[116,29,122,29],[116,30,122,30],[116,31,122,31],[108,1,114,1],[124,1,130,1],[124,2,130,2],[124,3,130,3],[124,4,130,4],[124,5,130,5],[124,6,130,6],[124,7,130,7],[124,8,130,8],[116,26,122,26],[116,6,122,6],[116,7,122,7],[116,8,122,8],[116,9,122,9],[116,10,122,10],[116,25,122,25],[124,29,130,29],[124,30,130,30],[124,31,130,31],[124,32,130,32],[124,33,130,33],[132,3,132,10],[124,9,130,9],[124,10,130,10],[124,25,130,25],[124,26,130,26],[124,27,130,27],[124,28,130,28],[139,1,141,1],[133,3,133,10],[138,1,138,10],[138,32,138,33],[138,27,141,27],[141,29,141,31],[141,32,141,33],[139,29,140,29],[139,30,140,30],[139,31,140,31],[139,32,140,32],[139,33,140,33],[138,28,141,28],[138,29,138,31],[140,21,141,21],[138,25,138,26],[139,25,140,25],[139,26,140,26],[141,25,141,26],[139,23,140,24],[139,22,140,22],[140,18,140,19],[139,11,140,14],[139,15,139,21],[158,29,164,29],[158,30,164,30],[150,27,156,27],[150,28,156,28],[150,29,156,29],[150,30,156,30],[150,31,156,31],[142,33,148,33],[142,28,148,28],[142,29,148,29],[142,30,148,30],[142,31,148,31],[142,32,148,32],[158,31,164,31],[158,32,164,32],[158,33,164,33],[150,32,156,32],[150,33,156,33],[174,29,180,29],[174,30,180,30],[174,31,180,31],[174,32,180,32],[182,29,188,29],[182,30,188,30],[166,32,172,32],[166,33,172,33],[174,1,180,1],[166,27,172,27],[166,28,172,28],[166,29,172,29],[166,30,172,30],[166,31,172,31],[166,1,172,1],[174,33,180,33],[190,31,196,31],[190,32,196,32],[190,33,196,33],[190,27,196,27],[190,28,196,28],[190,29,196,29],[190,30,196,30],[182,31,188,31],[182,32,188,32],[182,33,188,33],[182,27,188,27],[142,4,148,4],[150,4,156,4],[158,4,164,4],[166,4,172,4],[174,4,180,4],[182,4,188,4],[190,4,196,4],[190,1,196,1],[182,28,188,28],[158,1,164,1],[142,27,148,27],[150,1,156,1],[142,1,148,1],[158,27,164,27],[158,28,164,28],[182,1,188,1],[174,27,180,27],[174,28,180,28]]}
[null,"REGULATORY REPORTING STATEMENT"]
[null,{"$f":"INDEX(dms_TradingNameFull_List,MATCH(dms_TradingName,dms_TradingName_List))","v":"AusNet (T)"}]
[null,{"$f":"CONCATENATE((LOOKUP(dms_Model,dms_Model_List,dms_Worksheet_List))&\" \"&CRY)","v":"CATEGORY ANALYSIS 2018-19"}]
[null,"2.3 AUGEX PROJECTS"]
[]
[null,"There are THREE tables on this worksheet - each has been 'grouped' for easy navigation. Both ROWS and COLUMNS have been grouped.  See the Instructions sheet on how to group or ungroup tables. "]
[]
[null,"2.3.1 - AUGEX ASSET DATA - SUBSTATIONS"]
[null,"NOTE: TNSP MUST PROVIDE EXPENDITURE INFORMATION ON A PROJECT CLOSE BASIS."]
[null,"SUBSTATION AND PROJECT SUMMARY",null,null,null,null,null,null,null,null,null,"PLANT AND EQUIPMENT EXPENDITURE AND VOLUME",null,null,null,null,null,null,null,null,null,null,null,null,null,"OTHER EXPENDITURE",null,"TOTAL DIRECT EXPENDITURE\n($0's)","YEARS INCURRED","RELATED PARTY CONTRACTS",null,null,"LAND AND EASEMENTS"]
[null,"SUBSTATION ID","SUBSTATION TYPE","PROJECT ID","PROJECT TYPE","PROJECT TRIGGER","VOLTAGE (KV)","SUBSTATION RATING\nNORMAL CYCLIC\n(MVA)",null,"SUBSTATION RATING\nN-1 EMERGENCY\n(MVA)",null,"TRANSFORMERS",null,null,null,"SWITCHGEAR",null,null,"REACTIVE PLANT",null,null,null,"OTHER PLANT ITEM","INSTALLATION (LABOUR)",null,"CIVIL WORKS","OTHER DIRECT",null,null,"RELATED PARTY MARGINS","TOTAL","ALL NON RELATED PARTYCONTRACTS","LAND PURCHASES","EASEMENTS","Comments"]
[null,null,null,null,null,null,null,"PRE","POST","PRE","POST","Units Added","MVA Added","OLTC INCLUDED?","Expenditure ($0's)","Insulation","Units Added","Expenditure\n($0's)","Plant Type","Units Added","Expenditure\n($0's)",null,"Expenditure\n($0's)","Volume","Expenditure\n($0's)","Expenditure ($0's)",null,null,null,"Expenditure ($0's)",null,null,"Expenditure\n($0's)"]
[null,"<Enter substation ID>",null,null,null,null,""]
[]
[]
[]
[]
[]
[]
[null,"Project Totals",null,null,null,null,null,null,null,null,null,{"$f":"SUM(L13:L19)","v":0},{"$f":"SUM(M13:M19)","v":0},null,{"$f":"SUM(O13:O19)","v":0},null,{"$f":"SUM(Q13:Q19)","v":0},{"$f":"SUM(R13:R19)","v":0},null,{"$f":"SUM(T13:T19)","v":0},{"$f":"SUM(U13:U19)","v":0},null,{"$f":"SUM(W13:W19)","v":0},{"$f":"SUM(X13:X19)","v":0},{"$f":"SUM(Y13:Y19)","v":0},{"$f":"SUM(Z13)","v":0},{"$f":"SUM(AA13)","v":0},{"$f":"O20+R20+U20+W20+SUM(Y20:AA20)","v":0},null,{"$f":"SUM(AD13)","v":0},{"$f":"SUM(AE13)","v":0},{"$f":"SUM(AF13)","v":0},{"$f":"SUM(AG13)","v":0},{"$f":"SUM(AH13)","v":0}]
[null,"<Enter substation ID>",null,null,null,null,""]
[]
[]
[]
[]
[]
[]
[null,"Project Totals",null,null,null,null,null,null,null,null,null,{"$f":"SUM(L21:L27)","v":0},{"$f":"SUM(M21:M27)","v":0},null,{"$f":"SUM(O21:O27)","v":0},null,{"$f":"SUM(Q21:Q27)","v":0},{"$f":"SUM(R21:R27)","v":0},null,{"$f":"SUM(T21:T27)","v":0},{"$f":"SUM(U21:U27)","v":0},null,{"$f":"SUM(W21:W27)","v":0},{"$f":"SUM(X21:X27)","v":0},{"$f":"SUM(Y21:Y27)","v":0},{"$f":"SUM(Z21)","v":0},{"$f":"SUM(AA21)","v":0},{"$f":"O28+R28+U28+W28+SUM(Y28:AA28)","v":0},null,{"$f":"SUM(AD21)","v":0},{"$f":"SUM(AE21)","v":0},{"$f":"SUM(AF21)","v":0},{"$f":"SUM(AG21)","v":0},{"$f":"SUM(AH21)","v":0}]
[null,"<Enter substation ID>",null,null,null,null,""]
[]
[]
[]
[]
[]
[]
[null,"Project Totals",null,null,null,null,null,null,null,null,null,{"$f":"SUM(L29:L35)","v":0},{"$f":"SUM(M29:M35)","v":0},null,{"$f":"SUM(O29:O35)","v":0},null,{"$f":"SUM(Q29:Q35)","v":0},{"$f":"SUM(R29:R35)","v":0},null,{"$f":"SUM(T29:T35)","v":0},{"$f":"SUM(U29:U35)","v":0},null,{"$f":"SUM(W29:W35)","v":0},{"$f":"SUM(X29:X35)","v":0},{"$f":"SUM(Y29:Y35)","v":0},{"$f":"SUM(Z29)","v":0},{"$f":"SUM(AA29)","v":0},{"$f":"O36+R36+U36+W36+SUM(Y36:AA36)","v":0},null,{"$f":"SUM(AD29)","v":0},{"$f":"SUM(AE29)","v":0},{"$f":"SUM(AF29)","v":0},{"$f":"SUM(AG29)","v":0},{"$f":"SUM(AH29)","v":0}]
[null,"<Enter substation ID>",null,null,null,null,""]
[]
[]
[]
[]
[]
[]
[null,"Project Totals",null,null,null,null,null,null,null,null,null,{"$f":"SUM(L37:L43)","v":0},{"$f":"SUM(M37:M43)","v":0},null,{"$f":"SUM(O37:O43)","v":0},null,{"$f":"SUM(Q37:Q43)","v":0},{"$f":"SUM(R37:R43)","v":0},null,{"$f":"SUM(T37:T43)","v":0},{"$f":"SUM(U37:U43)","v":0},null,{"$f":"SUM(W37:W43)","v":0},{"$f":"SUM(X37:X43)","v":0},{"$f":"SUM(Y37:Y43)","v":0},{"$f":"SUM(Z37)","v":0},{"$f":"SUM(AA37)","v":0},{"$f":"O44+R44+U44+W44+SUM(Y44:AA44)","v":0},null,{"$f":"SUM(AD37)","v":0},{"$f":"SUM(AE37)","v":0},{"$f":"SUM(AF37)","v":0},{"$f":"SUM(AG37)","v":0},{"$f":"SUM(AH37)","v":0}]
[null,"<Enter substation ID>",null,null,null,null,""]
[]
[]
[]
[]
[]
[]
[null,"Project Totals",null,null,null,null,null,null,null,null,null,{"$f":"SUM(L45:L51)","v":0},{"$f":"SUM(M45:M51)","v":0},null,{"$f":"SUM(O45:O51)","v":0},null,{"$f":"SUM(Q45:Q51)","v":0},{"$f":"SUM(R45:R51)","v":0},null,{"$f":"SUM(T45:T51)","v":0},{"$f":"SUM(U45:U51)","v":0},null,{"$f":"SUM(W45:W51)","v":0},{"$f":"SUM(X45:X51)","v":0},{"$f":"SUM(Y45:Y51)","v":0},{"$f":"SUM(Z45)","v":0},{"$f":"SUM(AA45)","v":0},{"$f":"O52+R52+U52+W52+SUM(Y52:AA52)","v":0},null,{"$f":"SUM(AD45)","v":0},{"$f":"SUM(AE45)","v":0},{"$f":"SUM(AF45)","v":0},{"$f":"SUM(AG45)","v":0},{"$f":"SUM(AH45)","v":0}]
[null,"<Enter substation ID>",null,null,null,null,""]
[]
[]
[]
[]
[]
[]
[null,"Project Totals",null,null,null,null,null,null,null,null,null,{"$f":"SUM(L53:L59)","v":0},{"$f":"SUM(M53:M59)","v":0},null,{"$f":"SUM(O53:O59)","v":0},null,{"$f":"SUM(Q53:Q59)","v":0},{"$f":"SUM(R53:R59)","v":0},null,{"$f":"SUM(T53:T59)","v":0},{"$f":"SUM(U53:U59)","v":0},null,{"$f":"SUM(W53:W59)","v":0},{"$f":"SUM(X53:X59)","v":0},{"$f":"SUM(Y53:Y59)","v":0},{"$f":"SUM(Z53)","v":0},{"$f":"SUM(AA53)","v":0},{"$f":"O60+R60+U60+W60+SUM(Y60:AA60)","v":0},null,{"$f":"SUM(AD53)","v":0},{"$f":"SUM(AE53)","v":0},{"$f":"SUM(AF53)","v":0},{"$f":"SUM(AG53)","v":0},{"$f":"SUM(AH53)","v":0}]
[null,"<Enter substation ID>",null,null,null,null,""]
[]
[]
[]
[]
[]
[]
[null,"Project Totals",null,null,null,null,null,null,null,null,null,{"$f":"SUM(L61:L67)","v":0},{"$f":"SUM(M61:M67)","v":0},null,{"$f":"SUM(O61:O67)","v":0},null,{"$f":"SUM(Q61:Q67)","v":0},{"$f":"SUM(R61:R67)","v":0},null,{"$f":"SUM(T61:T67)","v":0},{"$f":"SUM(U61:U67)","v":0},null,{"$f":"SUM(W61:W67)","v":0},{"$f":"SUM(X61:X67)","v":0},{"$f":"SUM(Y61:Y67)","v":0},{"$f":"SUM(Z61)","v":0},{"$f":"SUM(AA61)","v":0},{"$f":"O68+R68+U68+W68+SUM(Y68:AA68)","v":0},null,{"$f":"SUM(AD61)","v":0},{"$f":"SUM(AE61)","v":0},{"$f":"SUM(AF61)","v":0},{"$f":"SUM(AG61)","v":0},{"$f":"SUM(AH61)","v":0}]
[null,"<Enter substation ID>",null,null,null,null,""]
[]
[]
[]
[]
[]
[]
[null,"Project Totals",null,null,null,null,null,null,null,null,null,{"$f":"SUM(L69:L75)","v":0},{"$f":"SUM(M69:M75)","v":0},null,{"$f":"SUM(O69:O75)","v":0},null,{"$f":"SUM(Q69:Q75)","v":0},{"$f":"SUM(R69:R75)","v":0},null,{"$f":"SUM(T69:T75)","v":0},{"$f":"SUM(U69:U75)","v":0},null,{"$f":"SUM(W69:W75)","v":0},{"$f":"SUM(X69:X75)","v":0},{"$f":"SUM(Y69:Y75)","v":0},{"$f":"SUM(Z69)","v":0},{"$f":"SUM(AA69)","v":0},{"$f":"O76+R76+U76+W76+SUM(Y76:AA76)","v":0},null,{"$f":"SUM(AD69)","v":0},{"$f":"SUM(AE69)","v":0},{"$f":"SUM(AF69)","v":0},{"$f":"SUM(AG69)","v":0},{"$f":"SUM(AH69)","v":0}]
[null,"<Enter substation ID>",null,null,null,null,""]
[]
[]
[]
[]
[]
[]
[null,"Project Totals",null,null,null,null,null,null,null,null,null,{"$f":"SUM(L77:L83)","v":0},{"$f":"SUM(M77:M83)","v":0},null,{"$f":"SUM(O77:O83)","v":0},null,{"$f":"SUM(Q77:Q83)","v":0},{"$f":"SUM(R77:R83)","v":0},null,{"$f":"SUM(T77:T83)","v":0},{"$f":"SUM(U77:U83)","v":0},null,{"$f":"SUM(W77:W83)","v":0},{"$f":"SUM(X77:X83)","v":0},{"$f":"SUM(Y77:Y83)","v":0},{"$f":"SUM(Z77)","v":0},{"$f":"SUM(AA77)","v":0},{"$f":"O84+R84+U84+W84+SUM(Y84:AA84)","v":0},null,{"$f":"SUM(AD77)","v":0},{"$f":"SUM(AE77)","v":0},{"$f":"SUM(AF77)","v":0},{"$f":"SUM(AG77)","v":0},{"$f":"SUM(AH77)","v":0}]
[null,"<Enter substation ID>",null,null,null,null,""]
[]
[]
[]
[]
[]
[]
[null,"Project Totals",null,null,null,null,null,null,null,null,null,{"$f":"SUM(L85:L91)","v":0},{"$f":"SUM(M85:M91)","v":0},null,{"$f":"SUM(O85:O91)","v":0},null,{"$f":"SUM(Q85:Q91)","v":0},{"$f":"SUM(R85:R91)","v":0},null,{"$f":"SUM(T85:T91)","v":0},{"$f":"SUM(U85:U91)","v":0},null,{"$f":"SUM(W85:W91)","v":0},{"$f":"SUM(X85:X91)","v":0},{"$f":"SUM(Y85:Y91)","v":0},{"$f":"SUM(Z85)","v":0},{"$f":"SUM(AA85)","v":0},{"$f":"O92+R92+U92+W92+SUM(Y92:AA92)","v":0},null,{"$f":"SUM(AD85)","v":0},{"$f":"SUM(AE85)","v":0},{"$f":"SUM(AF85)","v":0},{"$f":"SUM(AG85)","v":0},{"$f":"SUM(AH85)","v":0}]
[null,"<Enter substation ID>",null,null,null,null,""]
[]
[]
[]
[]
[]
[]
[null,"Project Totals",null,null,null,null,null,null,null,null,null,{"$f":"SUM(L93:L99)","v":0},{"$f":"SUM(M93:M99)","v":0},null,{"$f":"SUM(O93:O99)","v":0},null,{"$f":"SUM(Q93:Q99)","v":0},{"$f":"SUM(R93:R99)","v":0},null,{"$f":"SUM(T93:T99)","v":0},{"$f":"SUM(U93:U99)","v":0},null,{"$f":"SUM(W93:W99)","v":0},{"$f":"SUM(X93:X99)","v":0},{"$f":"SUM(Y93:Y99)","v":0},{"$f":"SUM(Z93)","v":0},{"$f":"SUM(AA93)","v":0},{"$f":"O100+R100+U100+W100+SUM(Y100:AA100)","v":0},null,{"$f":"SUM(AD93)","v":0},{"$f":"SUM(AE93)","v":0},{"$f":"SUM(AF93)","v":0},{"$f":"SUM(AG93)","v":0},{"$f":"SUM(AH93)","v":0}]
[null,"<Enter substation ID>",null,null,null,null,""]
[]
[]
[]
[]
[]
[]
[null,"Project Totals",null,null,null,null,null,null,null,null,null,{"$f":"SUM(L101:L107)","v":0},{"$f":"SUM(M101:M107)","v":0},null,{"$f":"SUM(O101:O107)","v":0},null,{"$f":"SUM(Q101:Q107)","v":0},{"$f":"SUM(R101:R107)","v":0},null,{"$f":"SUM(T101:T107)","v":0},{"$f":"SUM(U101:U107)","v":0},null,{"$f":"SUM(W101:W107)","v":0},{"$f":"SUM(X101:X107)","v":0},{"$f":"SUM(Y101:Y107)","v":0},{"$f":"SUM(Z101)","v":0},{"$f":"SUM(AA101)","v":0},{"$f":"O108+R108+U108+W108+SUM(Y108:AA108)","v":0},null,{"$f":"SUM(AD101)","v":0},{"$f":"SUM(AE101)","v":0},{"$f":"SUM(AF101)","v":0},{"$f":"SUM(AG101)","v":0},{"$f":"SUM(AH101)","v":0}]
[null,"<Enter substation ID>",null,null,null,null,""]
[]
[]
[]
[]
[]
[]
[null,"Project Totals",null,null,null,null,null,null,null,null,null,{"$f":"SUM(L109:L115)","v":0},{"$f":"SUM(M109:M115)","v":0},null,{"$f":"SUM(O109:O115)","v":0},null,{"$f":"SUM(Q109:Q115)","v":0},{"$f":"SUM(R109:R115)","v":0},null,{"$f":"SUM(T109:T115)","v":0},{"$f":"SUM(U109:U115)","v":0},null,{"$f":"SUM(W109:W115)","v":0},{"$f":"SUM(X109:X115)","v":0},{"$f":"SUM(Y109:Y115)","v":0},{"$f":"SUM(Z109)","v":0},{"$f":"SUM(AA109)","v":0},{"$f":"O116+R116+U116+W116+SUM(Y116:AA116)","v":0},null,{"$f":"SUM(AD109)","v":0},{"$f":"SUM(AE109)","v":0},{"$f":"SUM(AF109)","v":0},{"$f":"SUM(AG109)","v":0},{"$f":"SUM(AH109)","v":0}]
[null,"<Enter substation ID>",null,null,null,null,""]
[]
[]
[]
[]
[]
[]
[null,"Project Totals",null,null,null,null,null,null,null,null,null,{"$f":"SUM(L117:L123)","v":0},{"$f":"SUM(M117:M123)","v":0},null,{"$f":"SUM(O117:O123)","v":0},null,{"$f":"SUM(Q117:Q123)","v":0},{"$f":"SUM(R117:R123)","v":0},null,{"$f":"SUM(T117:T123)","v":0},{"$f":"SUM(U117:U123)","v":0},null,{"$f":"SUM(W117:W123)","v":0},{"$f":"SUM(X117:X123)","v":0},{"$f":"SUM(Y117:Y123)","v":0},{"$f":"SUM(Z117)","v":0},{"$f":"SUM(AA117)","v":0},{"$f":"O124+R124+U124+W124+SUM(Y124:AA124)","v":0},null,{"$f":"SUM(AD117)","v":0},{"$f":"SUM(AE117)","v":0},{"$f":"SUM(AF117)","v":0},{"$f":"SUM(AG117)","v":0},{"$f":"SUM(AH117)","v":0}]
[null,"<Enter substation ID>",null,null,null,null,""]
[]
[]
[]
[]
[]
[]
[null,"Project Totals",null,null,null,null,null,null,null,null,null,{"$f":"SUM(L125:L131)","v":0},{"$f":"SUM(M125:M131)","v":0},null,{"$f":"SUM(O125:O131)","v":0},null,{"$f":"SUM(Q125:Q131)","v":0},{"$f":"SUM(R125:R131)","v":0},null,{"$f":"SUM(T125:T131)","v":0},{"$f":"SUM(U125:U131)","v":0},null,{"$f":"SUM(W125:W131)","v":0},{"$f":"SUM(X125:X131)","v":0},{"$f":"SUM(Y125:Y131)","v":0},{"$f":"SUM(Z125)","v":0},{"$f":"SUM(AA125)","v":0},{"$f":"O132+R132+U132+W132+SUM(Y132:AA132)","v":0},null,{"$f":"SUM(AD125)","v":0},{"$f":"SUM(AE125)","v":0},{"$f":"SUM(AF125)","v":0},{"$f":"SUM(AG125)","v":0},{"$f":"SUM(AH125)","v":0}]
[null,null,null,"Non material projects"]
[null,null,null,"Non material projects"]
[]
[]
[null,"2.3.2 - AUGEX ASSET DATA - LINES"]
[null,"NOTE: TNSP MUST PROVIDE EXPENDITURE INFORMATION ON A PROJECT CLOSE BASIS."]
[null,"LINE AND PROJECT SUMMARY",null,null,null,null,null,null,null,null,null,"PLANT AND EQUIPMENT EXPENDITURE AND VOLUME",null,null,null,null,null,null,null,null,null,null,null,null,null,"OTHER EXPENDITURE",null,"TOTAL DIRECT EXPENDITURE ($0's)","YEARS INCURRED","ALL RELATED PARTY CONTRACTS",null,null,"LAND AND EASEMENTS"]
[null,"LINE ID",null,"PROJECT ID","PROJECT TYPE","PROJECT TRIGGER","VOLTAGE (KV)","ROUTE LINE LENGTH ADDED",null,null,null,"TOWERS/POLES (INCLUDING STRUCTURES, AND CIVIL WORKS)",null,null,null,"LINES AND CABLES",null,null,null,null,null,null,"OTHER PLANT ITEM","INSTALLATION (LABOUR)",null,"CIVIL WORKS","OTHER DIRECT",null,null,"RELATED PARTY MARGINS","TOTAL","ALL NON RELATED PARTYCONTRACTS","LAND PURCHASES","EASEMENTS"]
[null,null,null,null,null,null,null,null,null,null,null,null,null,null,null,"Type","Rating (MVA)",null,"N-1 Emergency Rating (MVA)",null,"Circuit KM Added","Expenditure\n($0's)"]
[null,null,null,null,null,null,null,"KM ADDED",null,null,null,"Configuration","Towers/Poles Added","Towers/Poles Upgraded","Expenditure\n($0's)",null,"PRE","POST","PRE","POST",null,null,"Expenditure ($0's)","Volume","Expenditure\n($0's)","Expenditure ($0's)",null,null,null,"Expenditure ($0's)",null,null,"Expenditure\n($0's)"]
[null,"<Enter line ID>"]
[]
[]
[]
[]
[]
[]
[null,"Project Totals",null,null,null,null,null,null,null,null,null,null,{"$f":"SUM(M143:M149)","v":0},{"$f":"SUM(N143:N149)","v":0},{"$f":"SUM(O143:O149)","v":0},null,null,null,null,null,{"$f":"SUM(U143:U149)","v":0},0,0,0,0,0,0,{"$f":"O150+R150+U150+W150+SUM(Y150:AA150)","v":0},null,{"$f":"SUM(AD143:AD149)","v":0},{"$f":"SUM(AE143:AE149)","v":0},{"$f":"SUM(AF143:AF149)","v":0},{"$f":"SUM(AG143:AG149)","v":0},{"$f":"SUM(AH143:AH149)","v":0}]
[null,"<Enter line ID>"]
[]
[]
[]
[]
[]
[]
[null,"Project Totals",null,null,null,null,null,null,null,null,null,null,{"$f":"SUM(M151:M157)","v":0},{"$f":"SUM(N151:N157)","v":0},{"$f":"SUM(O151:O157)","v":0},null,null,null,null,null,{"$f":"SUM(U151:U157)","v":0},{"$f":"SUM(V151:V157)","v":0},{"$f":"SUM(W151:W157)","v":0},0,0,0,0,{"$f":"O158+R158+U158+W158+SUM(Y158:AA158)","v":0},null,{"$f":"SUM(AD151:AD157)","v":0},{"$f":"SUM(AE151:AE157)","v":0},{"$f":"SUM(AF151:AF157)","v":0},{"$f":"SUM(AG151:AG157)","v":0},{"$f":"SUM(AH151:AH157)","v":0}]
[null,"<Enter line ID>"]
[]
[]
[]
[]
[]
[]
[null,"Project Totals",null,null,null,null,null,null,null,null,null,null,{"$f":"SUM(M159:M165)","v":0},{"$f":"SUM(N159:N165)","v":0},{"$f":"SUM(O159:O165)","v":0},null,null,null,null,null,{"$f":"SUM(U159:U165)","v":0},{"$f":"SUM(V159:V165)","v":0},{"$f":"SUM(W159:W165)","v":0},0,0,0,0,{"$f":"O166+R166+U166+W166+SUM(Y166:AA166)","v":0},null,{"$f":"SUM(AD159:AD165)","v":0},{"$f":"SUM(AE159:AE165)","v":0},{"$f":"SUM(AF159:AF165)","v":0},{"$f":"SUM(AG159:AG165)","v":0},{"$f":"SUM(AH159:AH165)","v":0}]
[null,"<Enter line ID>"]
[]
[]
[]
[]
[]
[]
[null,"Project Totals",null,null,null,null,null,null,null,null,null,null,{"$f":"SUM(M167:M173)","v":0},{"$f":"SUM(N167:N173)","v":0},{"$f":"SUM(O167:O173)","v":0},null,null,null,null,null,{"$f":"SUM(U167:U173)","v":0},{"$f":"SUM(V167:V173)","v":0},{"$f":"SUM(W167:W173)","v":0},0,0,0,0,{"$f":"O174+R174+U174+W174+SUM(Y174:AA174)","v":0},null,{"$f":"SUM(AD167:AD173)","v":0},{"$f":"SUM(AE167:AE173)","v":0},{"$f":"SUM(AF167:AF173)","v":0},{"$f":"SUM(AG167:AG173)","v":0},{"$f":"SUM(AH167:AH173)","v":0}]
[null,"<Enter line ID>"]
[]
[]
[]
[]
[]
[]
[null,"Project Totals",null,null,null,null,null,null,null,null,null,null,{"$f":"SUM(M175:M181)","v":0},{"$f":"SUM(N175:N181)","v":0},{"$f":"SUM(O175:O181)","v":0},null,null,null,null,null,{"$f":"SUM(U175:U181)","v":0},{"$f":"SUM(V175:V181)","v":0},{"$f":"SUM(W175:W181)","v":0},0,0,0,0,{"$f":"O182+R182+U182+W182+SUM(Y182:AA182)","v":0},null,{"$f":"SUM(AD175:AD181)","v":0},{"$f":"SUM(AE175:AE181)","v":0},{"$f":"SUM(AF175:AF181)","v":0},{"$f":"SUM(AG175:AG181)","v":0},{"$f":"SUM(AH175:AH181)","v":0}]
[null,"<Enter line ID>"]
[]
[]
[]
[]
[]
[]
[null,"Project Totals",null,null,null,null,null,null,null,null,null,null,{"$f":"SUM(M183:M189)","v":0},{"$f":"SUM(N183:N189)","v":0},{"$f":"SUM(O183:O189)","v":0},null,null,null,null,null,{"$f":"SUM(U183:U189)","v":0},{"$f":"SUM(V183:V189)","v":0},{"$f":"SUM(W183:W189)","v":0},0,0,0,0,{"$f":"O190+R190+U190+W190+SUM(Y190:AA190)","v":0},null,{"$f":"SUM(AD183:AD189)","v":0},{"$f":"SUM(AE183:AE189)","v":0},{"$f":"SUM(AF183:AF189)","v":0},{"$f":"SUM(AG183:AG189)","v":0},{"$f":"SUM(AH183:AH189)","v":0}]
[null,"<Enter line ID>"]
[]
[]
[]
[]
[]
[]
[null,"Project Totals",null,null,null,null,null,null,null,null,null,null,{"$f":"SUM(M191:M197)","v":0},{"$f":"SUM(N191:N197)","v":0},{"$f":"SUM(O191:O197)","v":0},null,null,null,null,null,{"$f":"SUM(U191:U197)","v":0},{"$f":"SUM(V191:V197)","v":0},{"$f":"SUM(W191:W197)","v":0},0,0,0,0,{"$f":"O198+R198+U198+W198+SUM(Y198:AA198)","v":0},null,{"$f":"SUM(AD191:AD197)","v":0},{"$f":"SUM(AE191:AE197)","v":0},{"$f":"SUM(AF191:AF197)","v":0},{"$f":"SUM(AG191:AG197)","v":0},{"$f":"SUM(AH191:AH197)","v":0}]
[null,null,null,"Non material projects"]
[null,null,null,"Non material projects"]
[null,null,null,"Non material projects"]
[]
[]
[]
[null,"2.3.4 - AUGEX - TOTAL EXPENDITURE"]
[]
[null,null,"EXPENDITURE\n($0's)"]
[null,"AUGMENTATION CAPEX (as incurred)",{"$f":"CRY","v":"2018-19"}]
[null,"Substations"]
[null,"Lines"]
[null,"Other assets"]
[null,"Total augmentation capex",{"$f":"SUM(C209:C211)","v":0}]

{"sheet":"2.5 Connections","index":7,"n_rows":91,"n_cols":6,"rows_kept":91,"cut":false,"hidden":false,"merged":[]}
[null,"REGULATORY REPORTING STATEMENT"]
[null,{"$f":"INDEX(dms_TradingNameFull_List,MATCH(dms_TradingName,dms_TradingName_List))","v":"AusNet (T)"}]
[null,{"$f":"CONCATENATE((LOOKUP(dms_Model,dms_Model_List,dms_Worksheet_List))&\" \"&CRY)","v":"CATEGORY ANALYSIS 2018-19"}]
[null,"2.5 CONNECTIONS EXPENDITURE"]
[]
[null,"There are TWO tables on this worksheet. Each has been grouped (or sub-grouped).  See the Instructions sheet on how to group or ungroup data."]
[]
[null,"2.5.1 - EXPENDITURE ON CONNECTION PROJECTS"]
[null,null,"EXPENDITURE \n($0's)"]
[null,"CONNECTION PROJECT",{"$f":"CRY","v":"2018-19"}]
[null,"DIRECT MATERIALS EXPENDITURE"]
[null,{"$f":"'[7]2.5 Connections to report'!$B29","v":"TC-0005100 - Metro Tunnel Early Works - Tower replcmt"}]
[null,{"$f":"'[7]2.5 Connections to report'!$B30","v":"TC-0006354 - BTS - NS 22kV feeder prot upgrade"}]
[null,{"$f":"'[7]2.5 Connections to report'!$B31","v":"TC-0007240 - VicRoads -Replace towers at M80 crossing"}]
[null,{"$f":"'[7]2.5 Connections to report'!$B32","v":"TC-0007347 - CBTS-FTS 66kV Dynamic Wind Monitoring"}]
[null,{"$f":"'[7]2.5 Connections to report'!$B33","v":"TC-0007348 - TBTS - HGS 1 & 2 66kV Prot upgrade"}]
[null,{"$f":"'[7]2.5 Connections to report'!$B34","v":"TC-0007556 - EPN-TTS 66kV Protection & Control Relays"}]
[null,{"$f":"'[7]2.5 Connections to report'!$B35","v":"TD-0001269 - ZC16 - Richmond Terminal Station - Addit"}]
[null,{"$f":"'[7]2.5 Connections to report'!$B36","v":"TD-0001086 - Waverley Park 220kV line realignment"}]
[null,{"$f":"'[7]2.5 Connections to report'!$B37","v":"TC-0007251 - HOTS modifications for KIATA Wind Farm"}]
[]
[]
[]
[]
[]
[]
[]
[]
[]
[]
[]
[]
[]
[]
[]
[]
[null,"DIRECT LABOUR EXPENDITURE"]
[null,{"$f":"IF(ISBLANK(B12),\"\",B12)","v":"TC-0005100 - Metro Tunnel Early Works - Tower replcmt"}]
[null,{"$f":"IF(ISBLANK(B13),\"\",B13)","v":"TC-0006354 - BTS - NS 22kV feeder prot upgrade"}]
[null,"TC-0007240 - VicRoads -Replace towers at M80 crossing"]
[null,"TC-0007347 - CBTS-FTS 66kV Dynamic Wind Monitoring"]
[null,"TC-0007348 - TBTS - HGS 1 & 2 66kV Prot upgrade"]
[null,"TC-0007556 - EPN-TTS 66kV Protection & Control Relays"]
[null,"TD-0001269 - ZC16 - Richmond Terminal Station - Addit"]
[null,"TD-0001086 - Waverley Park 220kV line realignment"]
[null,"TC-0007251 - HOTS modifications for KIATA Wind Farm"]
[null,""]
[null,""]
[null,""]
[null,""]
[null,""]
[null,""]
[null,""]
[null,""]
[null,""]
[null,""]
[null,""]
[null,""]
[null,""]
[null,""]
[null,""]
[]
[]
[]
[]
[null,"2.5.2 - DESCRIPTION OF CONNECTION PROJECTS"]
[null,null,"CONNECTION RATING (MVA)","CONNECTION \nVOLTAGE (KV)","UNDERGROUND / OVERHEAD","YEAR CONNECTION PROJECT COMPLETED "]
[null,{"$f":"IF(ISBLANK(B12),\"\",B12)","v":"TC-0005100 - Metro Tunnel Early Works - Tower replcmt"},"N/A",220,"Overhead",2019]
[null,"TC-0006354 - BTS - NS 22kV feeder prot upgrade","N/A",22,"Overhead",2019]
[null,"TC-0007240 - VicRoads -Replace towers at M80 crossing","N/A",220,"Overhead",2019]
[null,"TC-0007347 - CBTS-FTS 66kV Dynamic Wind Monitoring","N/A",66,"Overhead",2019]
[null,"TC-0007348 - TBTS - HGS 1 & 2 66kV Prot upgrade","N/A",66,"Overhead",2019]
[null,"TC-0007556 - EPN-TTS 66kV Protection & Control Relays","N/A",66,"Overhead",2019]
[null,"TD-0001269 - ZC16 - Richmond Terminal Station - Addit","N/A",66,"Underground",2019]
[null,"TD-0001086 - Waverley Park 220kV line realignment","N/A",220,"Overhead",2019]
[null,"TC-0007251 - HOTS modifications for KIATA Wind Farm","N/A",66,"Overhead",2018]
[null,""]
[null,""]
[null,""]
[null,""]
[null,""]
[null,""]
[null,""]
[null,""]
[null,""]
[null,""]
[null,""]
[null,""]
[null,""]
[null,""]
[null,""]

{"sheet":"2.6 Non-network","index":8,"n_rows":93,"n_cols":5,"rows_kept":93,"cut":false,"hidden":false,"merged":[[78,1,82,1],[83,1,87,1],[88,1,92,1],[5,1,5,2],[68,1,72,1],[60,2,60,3],[61,2,61,3],[62,2,62,3],[73,1,77,1]]}
[null,"REGULATORY REPORTING STATEMENT"]
[null,{"$f":"INDEX(dms_TradingNameFull_List,MATCH(dms_TradingName,dms_TradingName_List))","v":"AusNet (T)"}]
[null,{"$f":"CONCATENATE((LOOKUP(dms_Model,dms_Model_List,dms_Worksheet_List))&\" \"&CRY)","v":"CATEGORY ANALYSIS 2018-19"}]
[null,"2.6 NON NETWORK EXPENDITURE"]
[]
[null,"There are THREE tables on this worksheet - each has been 'grouped' (and sub-grouped) for easy navigation. See the Instructions sheet on how to group or ungroup tables. "]
[]
[null,"2.6.1 - NON-NETWORK EXPENDITURE"]
[null,null,null,null,"EXPENDITURE\n($0's)"]
[null,"SERVICE SUBCATEGORY","ASSET CATEGORY",null,{"$f":"CRY","v":"2018-19"}]
[null,"OPEX"]
[null,"IT & COMMUNICATIONS","Client device expenditure",null,0]
[null,null,"Recurrent expenditure",null,12347383.180000002]
[null,null,"Non-recurrent expenditure",null,198716.28999999998]
[null,"MOTOR VEHICLES","Car",null,238382.54750881108]
[null,null,"Light commercial vehicle",null,372597.37967998884]
[null,null,"Elevated work platform (LCV)  ",null,0]
[null,null,"Elevated work platform (HCV)",null,0]
[null,null,"Heavy commercial vehicle",null,49867.0728112]
[null,"BUILDINGS AND PROPERTY","Total buildings and property expenditure",null,9797860.7100000009]
[null,"OTHER","Other expenditure",null,0]
[null,"OTHER - DNSP nominated",null,null,0]
[]
[]
[]
[]
[]
[]
[]
[]
[]
[]
[null,"CAPEX"]
[null,"IT & COMMUNICATIONS","Client device expenditure",null,0]
[null,null,"Recurrent expenditure",null,8915784.5210000034]
[null,null,"Non-recurrent expenditure",null,2330658.889]
[null,"MOTOR VEHICLES","Car",null,216812.93]
[null,null,"Light commercial vehicle",null,888642.51000000013]
[null,null,"Elevated work platform (LCV)  ",null,0]
[null,null,"Elevated work platform (HCV)",null,0]
[null,null,"Heavy commercial vehicle",null,15157.05]
[null,"BUILDINGS AND PROPERTY","Total buildings and property expenditure",null,598683.54]
[null,"OTHER","Other expenditure",null,250485.95999999973]
[null,"OTHER - DNSP nominated","Tools and Equipment",null,0]
[]
[]
[]
[]
[]
[]
[]
[]
[]
[]
[]
[]
[]
[null,"2.6.2 - ANNUAL DESCRIPTOR METRICS - IT & COMMUNICATIONS EXPENDITURE"]
[null,null,null,null,"VOLUMES\n(0's)"]
[null,"NON-NETWORK CATEGORY","DESCRIPTOR METRIC",null,{"$f":"CRY","v":"2018-19"}]
[null,"IT & COMMUNICATIONS","Employee numbers",null,358.97829333544041]
[null,null,"User numbers",null,755.69919141993989]
[null,null,"Number of devices",null,827.54316006062197]
[]
[]
[null,"2.6.3 - ANNUAL DESCRIPTOR METRICS - MOTOR VEHICLES"]
[null,null,null,null,"VOLUMES / %"]
[null,"ASSET CATEGORY","DESCRIPTOR METRIC","UNITS",{"$f":"CRY","v":"2018-19"}]
[null,"CAR","Average kilometres travelled","0's",18237.571763816479]
[null,null,"Number purchased","0's",9.4547891847136256]
[null,null,"Number leased","0's",4.097075313375905]
[null,null,"Number in fleet","0's",59.880331503186298]
[null,null,"Proportion of total fleet expenditure allocated as regulatory expenditure","(per cent)",0.94547891847136256]
[null,"LIGHT COMMERCIAL VEHICLE","Average kilometres travelled","0's",20097.93208675737]
[null,null,"Number purchased","0's",12.291225940127713]
[null,null,"Number leased","0's",10.400268103184988]
[null,null,"Number in fleet","0's",68.38964176942855]
[null,null,"Proportion of total fleet expenditure allocated as regulatory expenditure","(per cent)",0.94547891847136256]
[null,"ELEVATED WORK PLATFORM (LCV) ","Average kilometres travelled","0's",0]
[null,null,"Number purchased","0's",0]
[null,null,"Number leased","0's",0]
[null,null,"Number in fleet","0's",0]
[null,null,"Proportion of total fleet expenditure allocated as regulatory expenditure","(per cent)",0]
[null,"ELEVATED WORK PLATFORM (HCV)","Average kilometres travelled","0's",0]
[null,null,"Number purchased","0's",0]
[null,null,"Number leased","0's",0]
[null,null,"Number in fleet","0's",0]
[null,null,"Proportion of total fleet expenditure allocated as regulatory expenditure","(per cent)",0]
[null,"HEAVY COMMERCIAL VEHICLE ","Average kilometres travelled","0's",4485.4442310738486]
[null,null,"Number purchased","0's",1]
[null,null,"Number leased","0's",0]
[null,null,"Number in fleet","0's",9.6911589143314671]
[null,null,"Proportion of total fleet expenditure allocated as regulatory expenditure","(per cent)",0.94547891847136256]

{"sheet":"2.7 Vegetation management","index":9,"n_rows":158,"n_cols":5,"rows_kept":158,"cut":false,"hidden":false,"merged":[[5,1,5,2],[149,1,149,3]]}
[null,"REGULATORY REPORTING STATEMENT"]
[null,{"$f":"INDEX(dms_TradingNameFull_List,MATCH(dms_TradingName,dms_TradingName_List))","v":"AusNet (T)"}]
[null,{"$f":"CONCATENATE((LOOKUP(dms_Model,dms_Model_List,dms_Worksheet_List))&\" \"&CRY)","v":"CATEGORY ANALYSIS 2018-19"}]
[null,"2.7 VEGETATION MANAGEMENT"]
[]
[null,"There are THREE tables on this worksheet. Each has been 'grouped' for easy navigation. See the Instructions sheet on how to group or ungroup data."]
[]
[null,"2.7.1 - DESCRIPTOR METRICS BY ZONE"]
[null,null,null,null,"VOLUMES"]
[null,"ZONES","ASSET / ENVIRONMENTAL FACTOR","UNITS",{"$f":"CRY","v":"2018-19"}]
[null,"ZONE 1","Route line length within zone","km",5017.1400000000003]
[null,null,"Number of maintenance spans","0's",1120]
[null,null,"Total length of maintenance spans","km",431.91366640000001]
[null,null,"Average number of trees per maintenance span","0's",11.861000000000001]
[null,null,"Length of vegetation corridors","km",1098.294752]
[null,null,"Average width of vegetation corridors","metres",59.76]
[null,null,"Average frequency of cutting cycle","years",3]
[null,"ZONE 2","Route line length within zone","km"]
[null,null,"Number of maintenance spans","0's"]
[null,null,"Total length of maintenance spans","km"]
[null,null,"Average number of trees per maintenance span","0's"]
[null,null,"Length of vegetation corridors","km"]
[null,null,"Average width of vegetation corridors","metres"]
[null,null,"Average frequency of cutting cycle","years"]
[null,"ZONE 3","Route line length within zone","km"]
[null,null,"Number of maintenance spans","0's"]
[null,null,"Total length of maintenance spans","km"]
[null,null,"Average number of trees per maintenance span","0's"]
[null,null,"Length of vegetation corridors","km"]
[null,null,"Average width of vegetation corridors","metres"]
[null,null,"Average frequency of cutting cycle","years"]
[null,"ZONE 4","Route line length within zone","km"]
[null,null,"Number of maintenance spans","0's"]
[null,null,"Total length of maintenance spans","km"]
[null,null,"Average number of trees per maintenance span","0's"]
[null,null,"Length of vegetation corridors","km"]
[null,null,"Average width of vegetation corridors","metres"]
[null,null,"Average frequency of cutting cycle","years"]
[null,"ZONE 5","Route line length within zone","km"]
[null,null,"Number of maintenance spans","0's"]
[null,null,"Total length of maintenance spans","km"]
[null,null,"Average number of trees per maintenance span","0's"]
[null,null,"Length of vegetation corridors","km"]
[null,null,"Average width of vegetation corridors","metres"]
[null,null,"Average frequency of cutting cycle","years"]
[null,"ZONE 6","Route line length within zone","km"]
[null,null,"Number of maintenance spans","0's"]
[null,null,"Total length of maintenance spans","km"]
[null,null,"Average number of trees per maintenance span","0's"]
[null,null,"Length of vegetation corridors","km"]
[null,null,"Average width of vegetation corridors","metres"]
[null,null,"Average frequency of cutting cycle","years"]
[null,"ZONE 7","Route line length within zone","km"]
[null,null,"Number of maintenance spans","0's"]
[null,null,"Total length of maintenance spans","km"]
[null,null,"Average number of trees per maintenance span","0's"]
[null,null,"Length of vegetation corridors","km"]
[null,null,"Average width of vegetation corridors","metres"]
[null,null,"Average frequency of cutting cycle","years"]
[null,"ZONE 8","Route line length within zone","km"]
[null,null,"Number of maintenance spans","0's"]
[null,null,"Total length of maintenance spans","km"]
[null,null,"Average number of trees per maintenance span","0's"]
[null,null,"Length of vegetation corridors","km"]
[null,null,"Average width of vegetation corridors","metres"]
[null,null,"Average frequency of cutting cycle","years"]
[null,"ZONE 9","Route line length within zone","km"]
[null,null,"Number of maintenance spans","0's"]
[null,null,"Total length of maintenance spans","km"]
[null,null,"Average number of trees per maintenance span","0's"]
[null,null,"Length of vegetation corridors","km"]
[null,null,"Average width of vegetation corridors","metres"]
[null,null,"Average frequency of cutting cycle","years"]
[null,"ZONE 10","Route line length within zone","km"]
[null,null,"Number of maintenance spans","0's"]
[null,null,"Total length of maintenance spans","km"]
[null,null,"Average number of trees per maintenance span","0's"]
[null,null,"Length of vegetation corridors","km"]
[null,null,"Average width of vegetation corridors","metres"]
[null,null,"Average frequency of cutting cycle","years"]
[]
[]
[null,"2.7.2 - EXPENDITURE METRICS BY ZONE"]
[null,null,null,null,"EXPENDITURE\n($0's)"]
[null,"ZONES","SERVICE SUBCATEGORY",null,{"$f":"CRY","v":"2018-19"}]
[null,{"$f":"B11","v":"ZONE 1"},"Tree trimming"]
[null,null,"Vegetation corridor clearance "]
[null,null,"Inspection "]
[null,null,"Audit "]
[null,null,"Contractor liaison expenditure "]
[null,null,"Other vegetation management expenditure"]
[null,{"$f":"B18","v":"ZONE 2"},"Tree trimming"]
[null,null,"Vegetation corridor clearance "]
[null,null,"Inspection "]
[null,null,"Audit "]
[null,null,"Contractor liaison expenditure "]
[null,null,"Other vegetation management expenditure"]
[null,{"$f":"B25","v":"ZONE 3"},"Tree trimming"]
[null,null,"Vegetation corridor clearance "]
[null,null,"Inspection "]
[null,null,"Audit "]
[null,null,"Contractor liaison expenditure "]
[null,null,"Other vegetation management expenditure"]
[null,{"$f":"B32","v":"ZONE 4"},"Tree trimming"]
[null,null,"Vegetation corridor clearance "]
[null,null,"Inspection "]
[null,null,"Audit "]
[null,null,"Contractor liaison expenditure "]
[null,null,"Other vegetation management expenditure"]
[null,{"$f":"B39","v":"ZONE 5"},"Tree trimming"]
[null,null,"Vegetation corridor clearance "]
[null,null,"Inspection "]
[null,null,"Audit "]
[null,null,"Contractor liaison expenditure "]
[null,null,"Other vegetation management expenditure"]
[null,{"$f":"B46","v":"ZONE 6"},"Tree trimming"]
[null,null,"Vegetation corridor clearance "]
[null,null,"Inspection "]
[null,null,"Audit "]
[null,null,"Contractor liaison expenditure "]
[null,null,"Other vegetation management expenditure"]
[null,{"$f":"B53","v":"ZONE 7"},"Tree trimming"]
[null,null,"Vegetation corridor clearance "]
[null,null,"Inspection "]
[null,null,"Audit "]
[null,null,"Contractor liaison expenditure "]
[null,null,"Other vegetation management expenditure"]
[null,{"$f":"B60","v":"ZONE 8"},"Tree trimming"]
[null,null,"Vegetation corridor clearance "]
[null,null,"Inspection "]
[null,null,"Audit "]
[null,null,"Contractor liaison expenditure "]
[null,null,"Other vegetation management expenditure"]
[null,{"$f":"B67","v":"ZONE 9"},"Tree trimming"]
[null,null,"Vegetation corridor clearance "]
[null,null,"Inspection "]
[null,null,"Audit "]
[null,null,"Contractor liaison expenditure "]
[null,null,"Other vegetation management expenditure"]
[null,{"$f":"B74","v":"ZONE 10"},"Tree trimming"]
[null,null,"Vegetation corridor clearance "]
[null,null,"Inspection "]
[null,null,"Audit "]
[null,null,"Contractor liaison expenditure "]
[null,null,"Other vegetation management expenditure"]
[]
[]
[null,"2.7.3 - DESCRIPTOR METRICS ACROSS ALL ZONES - UNPLANNED VEGETATION EVENTS"]
[null,null,null,null,"VOLUMES\n(0's)"]
[null,"DESCRIPTOR METRIC",null,null,{"$f":"CRY","v":"2018-19"}]
[null,"Number of fire starts caused by vegetation grow-ins (NSP responsibility)",null,"",0]
[null,"Number of fire starts caused by vegetation blow-ins and fall-ins (NSP responsibility)",null,"",0]
[null,"Number of outages caused by vegetation grow-ins (NSP responsibility)",null,"",0]
[null,"Number of outages caused by vegetation blow-ins and fall-ins (NSP responsibility)",null,"",0]
[null,"Number of fire starts caused by vegetation grow-ins (other party responsibility)",null,"",0]
[null,"Number of fire starts caused by vegetation blow-ins and fall-ins (other party responsibility)",null,"",0]
[null,"Number of outages caused by vegetation grow-ins (other party responsibility)",null,"",0]
[null,"Number of outages caused by vegetation blow-ins and fall-ins (other party responsibility)",null,"",0]

{"sheet":"2.8 Maintenance","index":10,"n_rows":81,"n_cols":10,"rows_kept":81,"cut":false,"hidden":false,"merged":[[5,1,5,2],[8,5,8,6],[8,7,9,7],[8,8,10,8],[8,9,10,9],[9,1,10,1],[9,2,10,2],[9,4,10,4],[9,3,10,3],[46,5,46,6],[15,1,17,1],[53,1,55,1],[47,1,48,1],[11,1,14,1],[49,1,52,1],[47,2,48,4]]}
[null,"REGULATORY REPORTING STATEMENT"]
[null,{"$f":"INDEX(dms_TradingNameFull_List,MATCH(dms_TradingName,dms_TradingName_List))","v":"AusNet (T)"}]
[null,{"$f":"CONCATENATE((LOOKUP(dms_Model,dms_Model_List,dms_Worksheet_List))&\" \"&CRY)","v":"CATEGORY ANALYSIS 2018-19"}]
[null,"2.8 MAINTENANCE"]
[]
[null,"There are TWO tables on this worksheet. Each has been 'grouped' for easy navigation. See the Instructions sheet on how to group or ungroup data."]
[]
[null,"2.8.1 - DESCRIPTOR METRICS FOR ROUTINE AND NON-ROUTINE MAINTENANCE"]
[null,null,null,null,null,"ASSET QUANTITY",null,"AVERAGE AGE OF ASSET GROUP ","INSPECTION CYCLE \n(YEARS)","MAINTENANCE CYCLE \n(YEARS)"]
[null,"MAINTENANCE ACTIVITY","MAINTENANCE ASSET CATEGORY","MEASURE \n/ ASSET QUANTITY","UNITS","AT YEAR END","INSPECTED/ MAINTAINED"]
[null,null,null,null,null,{"$f":"CRY","v":"2018-19"},{"$f":"CRY","v":"2018-19"},{"$f":"CRY","v":"2018-19"}]
[null,"Transmission lines maintenance","Transmission towers","Number of towers","0's",13212,17616,48.958598244020585,1,3]
[null,null,"Transmission tower support structures","Number of towers","0's",69313,46208.666666666664,48.252456249188462,3,3]
[null,null,"Conductors","Route length","km",5008.6000000000004,1669.5333333333335,44.700732124130788,3,0]
[null,null,"Transmission cables","Route length","km",8.5399999999999991,8,25.126849550546439,1,1]
[null,"Substations equipment & property maintenance","Substation switchbays (incl. Reactive plant)","Number of switchbays","0's",1117,2166,22.792200966996006,1,6]
[null,null,"Substation power transformers","Number of transformers","0's",304,564,29.351973684210527,1,4]
[null,null,"Substation property","Number of substation properties maintained","0's",47,1322,30,8.3299999999999999E-2,0.5]
[null,"SCADA & network control maintenance","SCADA & network control maintenance","Units","0's",16264.117590000002,8132.0587950000008,20.891326265810761,4,4]
[null,"Protection systems maintenance","Protection systems maintenance","Units","0's",6566.0000000000009,4377.3333333333339,14.501485088593212,3,3]
[null,"Other maintenance activity ",null,null,null,null,0]
[]
[]
[]
[]
[]
[]
[]
[]
[]
[]
[]
[]
[]
[]
[]
[]
[]
[]
[]
[]
[]
[]
[]
[]
[null,"2.8.2 - COST METRICS FOR ROUTINE AND NON-ROUTINE MAINTENANCE"]
[null,null,null,null,null,"DIRECT EXPENDITURE\n($0's)"]
[null,"ASSET CATEGORIES","ASSET SUBCATEGORIES",null,null," ROUTINE MAINTENANCE","NON-ROUTINE MAINTENANCE"]
[null,null,null,null,null,{"$f":"CRY","v":"2018-19"},{"$f":"CRY","v":"2018-19"}]
[null,"Transmission lines maintenance","Transmission towers",null,null,1178563.4186488935,393478.72861900047]
[null,null,"Transmission tower support structures",null,null,233386.35461883698,450499.16041515296]
[null,null,"Conductors",null,null,1569564.5837027815,120533.05958503761]
[null,null,"Transmission cables",null,null,1806.1379970346154,78647.435881784186]
[null,"Substations equipment & property maintenance","Substation switchbays (incl. Reactive plant)",null,null,3745609.2259125337,2165654.9409054131]
[null,null,"Substation power transformers",null,null,845573.75998447579,3162217.3064692472]
[null,null,"Substation property",null,null,980680.82747676817,1231552.6676408837]
[null,"SCADA & network control maintenance","SCADA & network control maintenance",null,null,625946.96206076851,294629.03774764924]
[null,"Protection systems maintenance","Protection systems maintenance",null,null,1004886.2125978963,415718.95273583307]
[null,"Other maintenance activity ",{"$f":"IF(ISBLANK(C21),\"\",C21)","v":""},{"$f":"IF(ISBLANK(D21),\"\",D21)","v":""},"",0,0]
[null,null,{"$f":"IF(ISBLANK(C22),\"\",C22)","v":""},"",""]
[null,null,"","",""]
[null,null,"","",""]
[null,null,"","",""]
[null,null,"","",""]
[null,null,"","",""]
[null,null,"","",""]
[null,null,"","",""]
[null,null,"","",""]
[null,null,"","",""]
[null,null,"","",""]
[null,null,"","",""]
[null,null,"","",""]
[null,null,"","",""]
[null,null,"","",""]
[null,null,"","",""]
[null,null,"","",""]
[null,null,"","",""]
[null,null,"","",""]
[null,null,"","",""]
[null,null,"","",""]
[null,null,"","",""]

{"sheet":"2.10 Overheads","index":11,"n_rows":128,"n_cols":4,"rows_kept":128,"cut":false,"hidden":false,"merged":[[5,1,5,2],[65,1,65,3],[41,1,41,3],[13,1,13,3],[42,1,62,1],[174,60,174,69],[174,71,174,80],[176,34,176,35],[174,16,174,25],[174,27,174,36],[174,38,174,47],[174,49,174,58],[176,16,176,20],[176,21,176,22],[176,23,176,24],[176,27,176,31],[176,32,176,33],[176,76,176,77],[176,78,176,79],[176,38,176,42],[176,43,176,44],[176,60,176,64],[176,65,176,66],[176,67,176,68],[176,71,176,75],[204,7,204,13],[204,15,204,22],[204,24,204,31],[204,33,204,40],[204,42,204,49],[176,45,176,46],[176,49,176,53],[176,54,176,55],[176,56,176,57],[204,51,204,58],[100,1,100,3],[8,1,8,2],[207,56,207,57],[207,7,207,10],[207,11,207,12],[207,15,207,19],[207,20,207,21],[207,24,207,28],[207,29,207,30],[207,33,207,37],[207,38,207,39],[207,42,207,46],[207,47,207,48],[207,51,207,55]]}
[null,"REGULATORY REPORTING STATEMENT"]
[null,{"$f":"INDEX(dms_TradingNameFull_List,MATCH(dms_TradingName,dms_TradingName_List))","v":"AusNet (T)"}]
[null,{"$f":"CONCATENATE((LOOKUP(dms_Model,dms_Model_List,dms_Worksheet_List))&\" \"&CRY)","v":"CATEGORY ANALYSIS 2018-19"}]
[null,"2.10 OVERHEADS"]
[]
[null,"There are TWO tables on this worksheet. Each has been 'grouped' (and sub-grouped) for easy navigation. See the Instructions sheet on how to group or ungroup data."]
[]
[null,"Instructions"]
[null,"Enter each expenditure category currently reported under annual Information Guidelines."]
[]
[null,"2.10.1 - NETWORK OVERHEADS EXPENDITURE"]
[null,null,null,"EXPENDITURE\n($0's)"]
[null,null,null,{"$f":"CRY","v":"2018-19"}]
[null,"MAINTENANCE SUPPORT"]
[null,"Prescribed Services","    MAINTENANCE"]
[]
[]
[]
[]
[]
[]
[]
[]
[]
[]
[]
[]
[]
[]
[]
[]
[]
[]
[]
[]
[]
[]
[]
[]
[null,"Negotiated Services","Total",0]
[null,"Unregulated Services","Total",0]
[null,"NETWORK MONITORING AND CONTROL"]
[null,"Prescribed Services","OPERATIONS"]
[]
[]
[]
[]
[]
[]
[]
[]
[]
[]
[]
[]
[]
[]
[]
[]
[]
[]
[]
[]
[null,"Negotiated Services","Total",0]
[null,"Unregulated Services","Total",0]
[null,"ASEET MANAGEMENT SUPPORT"]
[null,"Prescribed Services","    ASSET MANAGEMENT SUPPORT"]
[null,null,"ASSET WORKS"]
[]
[]
[]
[]
[]
[]
[]
[]
[]
[]
[]
[]
[]
[]
[]
[]
[]
[]
[]
[]
[]
[]
[]
[]
[null,"Negotiated Services","Total"]
[null,"Unregulated Services","Total"]
[]
[]
[]
[null,"2.10.2 - CORPORATE OVERHEADS EXPENDITURE"]
[null,null,null,"EXPENDITURE\n($0's)"]
[null,null,null,{"$f":"CRY","v":"2018-19"}]
[null,"CORPORATE OVERHEADS"]
[null,"Prescribed Services","TAXES AND CHARGES"]
[null,null,"INSURANCE"]
[null,null,"SELF-INSURANCE"]
[null,null,"OH&S"]
[null,null,"FINANCE"]
[null,null,"HR"]
[null,null,"IT SUPPORT"]
[null,null,"OTHER "]
[null,null,"AVAILABILITY REBATE"]
[null,null,"EASEMENT TAX"]
[]
[]
[]
[]
[]
[]
[]
[]
[]
[]
[]
[]
[]
[]
[]
[null,"Negotiated Services","Total"]
[null,"Unregulated Services","Total"]

{"sheet":"2.10(A) Overheads","index":12,"n_rows":37,"n_cols":4,"rows_kept":37,"cut":false,"hidden":false,"merged":[[5,1,5,2],[8,1,8,2]]}
[null,"REGULATORY REPORTING STATEMENT"]
[null,"AusNet (T)"]
[null,"CATEGORY ANALYSIS 2017-18"]
[null,"2.10(A) OVERHEADS"]
[]
[null,"This worksheet may be completed on a voluntary basis. Please see worksheet 2.10 for an explanation of Overheads reporting options."]
[]
[]
[null,"There are TWO tables on this worksheet. Each has been grouped (and sub-grouped)  for ease of navigation. See the Instructions sheet on how to group or ungroup tables. "]
[]
[null,"2.10.1 - NETWORK OVERHEADS EXPENDITURE"]
[null,null,null,"EXPENDITURE\n($0's)"]
[null,null,null,"2018/19"]
[null,"OPEX"]
[null,"Prescribed Transmission Services","Total  ",23894543.219999999]
[null,"Alternative Control Services","Total  ",0]
[null,"CAPEX"]
[null,"Prescribed Transmission Services","Total  ",5986036.3323891507]
[null,"Alternative Control Services","Total  ",0]
[null,"OTHER DISTRIBUTION SERVICES"]
[null,"Negotiated Services","Total  ",1631868.09]
[null,"Unregulated Services","Total  ",9753651.8500000015]
[]
[]
[]
[null,"2.10.2 - CORPORATE OVERHEADS EXPENDITURE"]
[null,null,null,"EXPENDITURE\n($0's)"]
[null,null,null,"2018/19"]
[null,"OPEX"]
[null,"Prescribed Transmission Services","Total",155568864.13]
[null,"Alternative Control Services","Total",0]
[null,"CAPEX"]
[null,"Prescribed Transmission Services","Total",1245462.1676108469]
[null,"Alternative Control Services","Total",0]
[null,"OTHER DISTRIBUTION SERVICES"]
[null,"Negotiated Services","Total",0]
[null,"Unregulated Services","Total",0]

{"sheet":"2.11 Labour","index":13,"n_rows":54,"n_cols":7,"rows_kept":54,"cut":false,"hidden":false,"merged":[[5,1,5,2],[33,3,33,4],[33,5,33,6],[8,5,9,5],[8,6,9,6],[8,3,9,3],[8,4,9,4]]}
[null,"REGULATORY REPORTING STATEMENT"]
[null,{"$f":"INDEX(dms_TradingNameFull_List,MATCH(dms_TradingName,dms_TradingName_List))","v":"AusNet (T)"}]
[null,{"$f":"CONCATENATE((LOOKUP(dms_Model,dms_Model_List,dms_Worksheet_List))&\" \"&CRY)","v":"CATEGORY ANALYSIS 2018-19"}]
[null,"2.11 LABOUR"]
[]
[null,"There are TWO tables on this worksheet. Each table has been 'grouped' (and sub-grouped) for easy navigation.  See the Instructions sheet on how to group or ungroup data."]
[]
[null,"2.11.1 - COST METRICS PER ANNUM"]
[null,null,null,"ASL \n(0's)","TOTAL LABOUR EXPENDITURE \n($0's)","AVERAGE PRODUCTIVE WORK HOURS \nPER ASL \n(0's)","STAND-DOWN OCCURENCES \nPER ASL\n(0's)"]
[]
[null,null,null,{"$f":"CRY","v":"2018-19"},{"$f":"CRY","v":"2018-19"},{"$f":"CRY","v":"2018-19"},{"$f":"CRY","v":"2018-19"}]
[null,"CORPORATE OVERHEADS","Executive manager"]
[null,null,"Senior manager"]
[null,null,"Manager"]
[null,null,"Professional"]
[null,null,"Semi professional"]
[null,null,"Support staff"]
[null,null,"Intern, junior staff, apprentice"]
[null,"NETWORK OVERHEADS","Executive manager"]
[null,null,"Senior manager"]
[null,null,"Manager"]
[null,null,"Professional"]
[null,null,"Semi professional"]
[null,null,"Support staff"]
[null,null,"Intern, junior staff, apprentice"]
[null,"TOTAL DIRECT NETWORK LABOUR","Skilled electrical worker"]
[null,null,"Skilled non electical worker"]
[null,null,"Apprentice"]
[null,null,"Unskilled worker"]
[]
[]
[null,"2.11.2 - DESCRIPTOR METRICS"]
[null,"AVERAGE PRODUCTIVE WORK HOURS PER ASL"]
[null,null,null,"ORDINARY TIME (0's)",null,"OVERTIME (0's)"]
[null,null,null,"PER ASL","HOURLY RATE \nPER ASL","PER ASL","HOURLY RATE \nPER ASL"]
[null,null,null,{"$f":"CRY","v":"2018-19"},{"$f":"CRY","v":"2018-19"},{"$f":"CRY","v":"2018-19"},{"$f":"CRY","v":"2018-19"}]
[null,"CORPORATE OVERHEADS","Executive manager"]
[null,null,"Senior manager"]
[null,null,"Manager"]
[null,null,"Professional"]
[null,null,"Semi professional"]
[null,null,"Support staff"]
[null,null,"Intern, junior staff, apprentice"]
[null,"NETWORK OVERHEADS","Executive manager"]
[null,null,"Senior manager"]
[null,null,"Manager"]
[null,null,"Professional"]
[null,null,"Semi professional"]
[null,null,"Support staff"]
[null,null,"Intern, junior staff, apprentice"]
[null,"TOTAL DIRECT NETWORK LABOUR","Skilled electrical worker"]
[null,null,"Skilled non electical worker"]
[null,null,"Apprentice"]
[null,null,"Unskilled worker"]

{"sheet":"2.12 Input tables","index":14,"n_rows":86,"n_cols":9,"rows_kept":86,"cut":false,"hidden":false,"merged":[[9,1,28,1],[29,1,46,1]]}
[null,"REGULATORY REPORTING STATEMENT"]
[null,{"$f":"INDEX(dms_TradingNameFull_List,MATCH(dms_TradingName,dms_TradingName_List))","v":"AusNet (T)"}]
[null,{"$f":"CONCATENATE((LOOKUP(dms_Model,dms_Model_List,dms_Worksheet_List))&\" \"&CRY)","v":"CATEGORY ANALYSIS 2018-19"}]
[null,"2.12 INPUT TABLES"]
[]
[]
[null,"2.12  INPUT TABLES"]
[null,null,null,"DIRECT MATERIAL EXPENDITURE ($0's)","DIRECT LABOUR EXPENDITURE ($0's)","CONTRACT \nEXPENDITURE ($0's)","OTHER \nEXPENDITURE ($0's)","RELATED PARTY CONTRACT \nEXPENDITURE ($0's)","RELATED PARTY CONTRACT MARGIN"]
[null,null,null,{"$f":"CRY","v":"2018-19"},"2018-19","2018-19","2018-19","2018-19","2018-19"]
[null,"VEGETATION MANAGEMENT",{"$f":"'2.7 Vegetation management'!B11","v":"ZONE 1"},0,430033.13,2978874.95,82291.47]
[null,null,{"$f":"'2.7 Vegetation management'!B18","v":"ZONE 2"}]
[null,null,{"$f":"'2.7 Vegetation management'!B25","v":"ZONE 3"}]
[null,null,{"$f":"'2.7 Vegetation management'!B32","v":"ZONE 4"}]
[null,null,{"$f":"'2.7 Vegetation management'!B39","v":"ZONE 5"}]
[null,null,{"$f":"'2.7 Vegetation management'!B46","v":"ZONE 6"}]
[null,null,{"$f":"'2.7 Vegetation management'!B53","v":"ZONE 7"}]
[null,null,{"$f":"'2.7 Vegetation management'!B60","v":"ZONE 8"}]
[null,null,{"$f":"'2.7 Vegetation management'!B67","v":"ZONE 9"}]
[null,null,{"$f":"'2.7 Vegetation management'!B74","v":"ZONE 10"}]
[]
[]
[]
[]
[]
[]
[]
[]
[]
[]
[null,"ROUTINE MAINTENANCE","Transmission Lines Maintenance",49195.409649586298,568767.76334211254,1568121.4486533771,797235.87332252099]
[null,null,"Substations Equipment & Propoerty Maintenance",320455.2535940464,1693041.8527514781,2835270.8083745125,723095.89865374751]
[null,null,"SCADA & Network Control Maintenance",61281.162930803963,221510.38662851547,224289.68220919149,118865.73029225817]
[null,null,"Protection Systems Maintenance",1729.6173636038566,454001.19612819591,527002.98174326704,22152.417362830191]
[]
[]
[]
[]
[]
[]
[]
[]
[]
[]
[]
[]
[]
[]
[null,"NON-ROUTINE MAINTENANCE","Transmission Lines Maintenance",69623.067038714813,253324.13204615124,635171.33188869676,85039.853527412517]
[null,null,"Substations Equipment & Propoerty Maintenance",343245.190166571,1556982.263593002,3543963.0142552098,1115234.4470007506]
[null,null,"Scada & Network Control Maintenance",7115.3373589797429,111143.8849152078,146980.44013257514,29389.375340886523]
[null,null,"Protection Systems Maintenance",60090.608472374122,87649.512298852831,258489.00116527278,9489.8307993330836]
[]
[]
[]
[]
[]
[]
[]
[]
[]
[]
[]
[]
[null,"OVERHEADS","Network Overheads",53099.75263745628,32126341.091912836,496107.56244643626,8590551.0953924265]
[null,null,"Corporate Overheads",-23532.560116305602,11979652.82576135,585776.91461507103,144272429.11735073]
[null,"AUGMENTATION","Subtransmission Substations, Switching Stations , Zone Substations",0,0,0,0]
[null,null,"Subtransmission Lines"]
[null,null,"HV Feeders"]
[null,null,"Other Assets"]
[null,"CONNECTIONS","All New Customer Connections",10916789.850000001,1800944.2900000003,7871392.29,893802.45000000007]
[null,"REPLACEMENT","Transmission Towers",0,0,0,0]
[null,null,"Transmission Tower Support Structures",2051637.01,32563.67,130574.93,1432.6]
[null,null,"Conductors",69378.87,150769.76,93407.4,531130.12]
[null,null,"Transmission Cables",63628.21,177263.83000000002,9631.75,51356.17]
[null,null,"Substation Switchbays",18822142.215344023,3126642.9511406906,20580969.90894768,2671129.8228441938]
[null,null,"Substation Power Transformers",11775508.772539904,2777346.6383483671,7609522.8864525389,1135711.5260047866]
[null,null,"Substation Reactive Plant",1511004.55,136073.73000000001,0,327.65999999999997]
[null,null,"SCADA network control and protection systems",9210182.6408252176,4264815.3427423416,5350810.5954244444,12105931.911231125]
[null,null,"Other ",11367647.991290854,2248024.5077685993,5442449.8291753326,1497341.9699198932]
[null,"NON-NETWORK EXPENDITURE","IT and communications",3209.29,10207128.910000002,215088.89,13367115.789999999]
[null,null,"Motor Vehicles",80631.930000000008,16537.349999999999,174225,949732.37]
[null,null,"Buildings And Property",328489.44,539586.94000000006,830605.01,8696822.8699999992]
[null,null,"Other",102626.33,71945.509999999995,520272.61,117014.3400000002]
[]
[]
[null,null,null,{"$f":"SUMPRODUCT(--([8]WorkcodeData!$E:$E=[8]WorkcodeData!E$44),([8]WorkcodeData!$K:$K))","v":0},{"$f":"SUMPRODUCT(--([8]WorkcodeData!$E:$E=[8]WorkcodeData!F$44),([8]WorkcodeData!$I:$I))","v":0}]

{"sheet":"5.2 Asset Age Profile","index":15,"n_rows":205,"n_cols":112,"rows_kept":205,"cut":false,"hidden":false,"merged":[[5,1,5,2],[8,3,8,4],[25,1,39,1],[40,1,61,1],[62,1,83,1],[179,1,204,1],[84,1,119,1],[120,1,144,1],[145,1,166,1],[167,1,178,1]]}
[null,"REGULATORY REPORTING STATEMENT"]
[null,{"$f":"INDEX(dms_TradingNameFull_List,MATCH(dms_TradingName,dms_TradingName_List))","v":"AusNet (T)"}]
[null,{"$f":"CONCATENATE((LOOKUP(dms_Model,dms_Model_List,dms_Worksheet_List))&\" \"&CRY)","v":"CATEGORY ANALYSIS 2018-19"}]
[null,"5.2 ASSET AGE PROFILE"]
[null,"."]
[null,"There is ONE table on this worksheet. Both ROWS and COLUMNS have been 'grouped' for easy navigation. See the Instructions sheet on how to group or ungroup data."]
[]
[null,"TABLE 5.2.1 - ASSET AGE PROFILE"]
[null,null,null,"ECONOMIC LIFE (YEARS)",null,"INSTALLED ASSETS -˃ QUANTITY CURRENTLY IN COMMISSION BY YEAR"]
[null,"ASSET GROUP","ASSET CATEGORY","MEAN ","STANDARD DEVIATION ",{"$f":"CRY","v":"2018-19"},{"$f":"IF(dms_RPT=\"financial\",(VALUE(LEFT(F10,4)-1)&\"-\"&MID(F10,3,2)),VALUE(LEFT(F10,4)-1))","v":"2017-18"},{"$f":"IF(dms_RPT=\"financial\",(VALUE(LEFT(G10,4)-1)&\"-\"&MID(G10,3,2)),VALUE(LEFT(G10,4)-1))","v":"2016-17"},"2015-16","2014-15","2013-14","2012-13","2011-12","2010-11","2009-10","2008-09","2007-08","2006-07","2005-06","2004-05","2003-04","2002-03","2001-02","2000-01","1999-00","1998-99","1997-98","1996-97","1995-96","1994-95","1993-94","1992-93","1991-92","1990-91","1989-90","1988-89","1987-88","1986-87",{"$f":"IF(dms_RPT=\"financial\",(VALUE(LEFT(AL10,4)-1)&\"-\"&MID(AL10,3,2)),VALUE(LEFT(AL10,4)-1))","v":"1985-86"},"1984-85","1983-84","1982-83","1981-82","1980-81","1979-80","1978-79","1977-78","1976-77","1975-76","1974-75","1973-74","1972-73","1971-72","1970-71","1969-70","1968-69","1967-68","1966-67","1965-66","1964-65","1963-64","1962-63","1961-62","1960-61","1959-60","1958-59","1957-58","1956-57","1955-56","1954-55",{"$f":"IF(dms_RPT=\"financial\",(VALUE(LEFT(BR10,4)-1)&\"-\"&MID(BR10,3,2)),VALUE(LEFT(BR10,4)-1))","v":"1953-54"},"1952-53","1951-52","1950-51","1949-50","1948-49","1947-48","1946-47","1945-46","1944-45","1943-44","1942-43","1941-42","1940-41","1939-40","1938-39","1937-38","1936-37","1935-36","1934-35","1933-34","1932-33","1931-32","1930-31","1929-30","1928-29","1927-28","1926-27","1925-26","1924-25","1923-24","1922-23",{"$f":"IF(dms_RPT=\"financial\",(VALUE(LEFT(CX10,4)-1)&\"-\"&MID(CX10,3,2)),VALUE(LEFT(CX10,4)-1))","v":"1921-22"},"1920-21","1919-20",{"$f":"IF(dms_RPT=\"financial\",(VALUE(LEFT(DA10,4)-1)&\"-\"&MID(DA10,3,2)),VALUE(LEFT(DA10,4)-1))","v":"1918-19"},{"$f":"IF(dms_RPT=\"financial\",(VALUE(LEFT(DB10,4)-1)&\"-\"&MID(DB10,3,2)),VALUE(LEFT(DB10,4)-1))","v":"1917-18"},{"$f":"IF(dms_RPT=\"financial\",(VALUE(LEFT(DC10,4)-1)&\"-\"&MID(DC10,3,2)),VALUE(LEFT(DC10,4)-1))","v":"1916-17"},{"$f":"IF(dms_RPT=\"financial\",(VALUE(LEFT(DD10,4)-1)&\"-\"&MID(DD10,3,2)),VALUE(LEFT(DD10,4)-1))","v":"1915-16"},{"$f":"IF(dms_RPT=\"financial\",(VALUE(LEFT(DE10,4)-1)&\"-\"&MID(DE10,3,2)),VALUE(LEFT(DE10,4)-1))","v":"1914-15"},{"$f":"IF(dms_RPT=\"financial\",(VALUE(LEFT(DF10,4)-1)&\"-\"&MID(DF10,3,2)),VALUE(LEFT(DF10,4)-1))","v":"1913-14"},{"$f":"IF(dms_RPT=\"financial\",(VALUE(LEFT(DG10,4)-1)&\"-\"&MID(DG10,3,2)),VALUE(LEFT(DG10,4)-1))","v":"1912-13"}]
[{"$f":"SUM(F11:DH11)","v":0},"TRANSMISSION TOWERS\nHighest operating voltage; Circuit configuration","< = 33 kV; Single Circuit",0,0,0,0,0,0,0,0,0,0,0,0,0,0,0,0,0,0,0,0,0,0,0,0,0,0,0,0,0,0,0,0,0,0,0,0,0,0,0,0,0,0,0,0,0,0,0,0,0,0,0,0,0,0,0,0,0,0,0,0,0,0,0,0,0,0,0,0,0,0,0,0,0,0,0,0,0,0,0,0,0,0,0,0,0,0,0,0,0,0,0,0,0,0,0,0,0,0,0,0,0,0,0,0,0,0,0,0,0]
[{"$f":"SUM(F12:DH12)","v":105},null,"> 33 kV & < = 66 kV ; Single Circuit",70,12.5,0,0,0,0,0,0,0,0,4,0,0,0,0,23,0,0,0,0,0,0,0,0,0,0,0,0,0,0,0,0,0,0,0,0,0,20,0,0,0,0,0,0,0,0,0,0,0,29,0,0,0,0,0,3,0,0,0,0,0,0,0,2,0,0,0,0,0,0,0,0,8,0,0,0,0,0,0,0,16,0,0,0,0,0,0,0,0,0,0,0,0,0,0,0,0,0,0,0,0,0,0,0,0,0,0,0,0]
[2,null,"> 66 kV & < = 132 kV ; Single Circuit",70,12.5,0,0,0,0,0,0,2,0,0,0,0,0,0,0,0,0,0,0,0,0,0,0,0,0,0,0,0,0,0,0,0,0,0,0,0,0,0,0,0,0,0,0,0,0,0,0,0,0,0,0,0,0,0,0,0,0,0,0,0,0,0,0,0,0,0,0,0,0,0,0,0,0,0,0,0,0,0,0,0,0,0,0,0,0,0,0,0,0,0,0,0,0,0,0,0,0,0,0,0,0,0,0,0,0,0,0,0]
[4673,null,"> 132 kV & < = 275 kV ; Single Circuit",70,12.5,3,5,0,0,1,5,13,51,5,2,2,2,0,8,2,0,0,0,0,3,0,0,0,0,0,5,0,0,0,2,0,1,66,4,155,0,35,2,143,95,5,0,2,3,15,7,690,8,32,417,392,9,6,157,34,2,1024,275,34,0,8,910,0,0,0,3,0,0,20,0,0,0,10,0,0,0,0,0,0,0,0,0,0,0,0,0,0,0,0,0,0,0,0,0,0,0,0,0,0,0,0,0,0,0,0,0,0]
[1778,null,"> 275 kV & < = 330 kV ; Single Circuit",70,12.5,0,0,0,0,0,0,0,0,1,0,0,1,0,0,0,0,24,0,0,3,0,0,0,0,0,0,0,0,1,12,0,3,0,0,0,0,1,0,0,147,0,0,0,0,0,0,0,2,0,0,0,544,541,226,35,0,3,6,0,0,228,0,0,0,0,0,0,0,0,0,0,0,0,0,0,0,0,0,0,0,0,0,0,0,0,0,0,0,0,0,0,0,0,0,0,0,0,0,0,0,0,0,0,0,0,0,0]
[2483,null,"> 330 kV & < = 500 kV  ; Single Circuit",70,12.5,0,0,0,0,0,0,10,10,0,0,0,0,0,6,0,0,0,0,0,0,0,0,0,0,1,0,0,1,0,4,1,0,74,341,79,104,52,641,169,0,1,0,0,0,0,0,0,0,0,500,0,489,0,0,0,0,0,0,0,0,0,0,0,0,0,0,0,0,0,0,0,0,0,0,0,0,0,0,0,0,0,0,0,0,0,0,0,0,0,0,0,0,0,0,0,0,0,0,0,0,0,0,0,0,0,0,0]
[0,null,"> 500 kV  ; Single Circuit",0,0,0,0,0,0,0,0,0,0,0,0,0,0,0,0,0,0,0,0,0,0,0,0,0,0,0,0,0,0,0,0,0,0,0,0,0,0,0,0,0,0,0,0,0,0,0,0,0,0,0,0,0,0,0,0,0,0,0,0,0,0,0,0,0,0,0,0,0,0,0,0,0,0,0,0,0,0,0,0,0,0,0,0,0,0,0,0,0,0,0,0,0,0,0,0,0,0,0,0,0,0,0,0,0,0,0,0,0]
[0,null,"< = 33 kV; Multiple Circuit",0,0,0,0,0,0,0,0,0,0,0,0,0,0,0,0,0,0,0,0,0,0,0,0,0,0,0,0,0,0,0,0,0,0,0,0,0,0,0,0,0,0,0,0,0,0,0,0,0,0,0,0,0,0,0,0,0,0,0,0,0,0,0,0,0,0,0,0,0,0,0,0,0,0,0,0,0,0,0,0,0,0,0,0,0,0,0,0,0,0,0,0,0,0,0,0,0,0,0,0,0,0,0,0,0,0,0,0,0]
[310,null,"> 33 kV & < = 66 kV ; Multiple Circuit",70,12.5,0,0,0,0,0,0,0,0,0,0,0,0,0,0,0,0,0,0,0,0,0,0,0,0,0,0,0,0,0,0,0,0,0,0,0,90,55,0,0,0,0,0,0,0,0,0,0,109,0,0,38,0,17,1,0,0,0,0,0,0,0,0,0,0,0,0,0,0,0,0,0,0,0,0,0,0,0,0,0,0,0,0,0,0,0,0,0,0,0,0,0,0,0,0,0,0,0,0,0,0,0,0,0,0,0,0,0]
[0,null,"> 66 kV & < = 132 kV ; Multiple Circuit",0,0,0,0,0,0,0,0,0,0,0,0,0,0,0,0,0,0,0,0,0,0,0,0,0,0,0,0,0,0,0,0,0,0,0,0,0,0,0,0,0,0,0,0,0,0,0,0,0,0,0,0,0,0,0,0,0,0,0,0,0,0,0,0,0,0,0,0,0,0,0,0,0,0,0,0,0,0,0,0,0,0,0,0,0,0,0,0,0,0,0,0,0,0,0,0,0,0,0,0,0,0,0,0,0,0,0,0,0]
[3219,null,"> 132 kV & < = 275 kV ; Multiple Circuit",70,12.5,6,0,0,3,0,0,0,3,0,0,17,3,1,4,0,0,1,0,0,0,0,1,0,0,12,10,0,0,0,0,188,15,9,0,19,9,20,0,427,16,12,0,120,0,2,36,9,5,19,20,47,50,357,118,301,9,320,56,0,0,0,0,46,0,1,332,0,0,595,0,0,0,0,0,0,0,0,0,0,0,0,0,0,0,0,0,0,0,0,0,0,0,0,0,0,0,0,0,0,0,0,0,0,0,0,0,0]
[0,null,"> 275 kV & < = 330 kV ; Multiple Circuit",0,0,0,0,0,0,0,0,0,0,0,0,0,0,0,0,0,0,0,0,0,0,0,0,0,0,0,0,0,0,0,0,0,0,0,0,0,0,0,0,0,0,0,0,0,0,0,0,0,0,0,0,0,0,0,0,0,0,0,0,0,0,0,0,0,0,0,0,0,0,0,0,0,0,0,0,0,0,0,0,0,0,0,0,0,0,0,0,0,0,0,0,0,0,0,0,0,0,0,0,0,0,0,0,0,0,0,0,0]
[636,null,"> 330 kV & < = 500 kV  ; Multiple Circuit",70,12.5,0,0,0,0,0,0,0,0,0,0,0,0,0,0,0,0,0,0,0,0,0,0,0,0,0,0,0,4,0,0,4,0,0,0,0,0,0,616,0,12,0,0,0,0,0,0,0,0,0,0,0,0,0,0,0,0,0,0,0,0,0,0,0,0,0,0,0,0,0,0,0,0,0,0,0,0,0,0,0,0,0,0,0,0,0,0,0,0,0,0,0,0,0,0,0,0,0,0,0,0,0,0,0,0,0,0,0]
[0,null,"> 500 kV  ; Multiple Circuit",0,0,0,0,0,0,0,0,0,0,0,0,0,0,0,0,0,0,0,0,0,0,0,0,0,0,0,0,0,0,0,0,0,0,0,0,0,0,0,0,0,0,0,0,0,0,0,0,0,0,0,0,0,0,0,0,0,0,0,0,0,0,0,0,0,0,0,0,0,0,0,0,0,0,0,0,0,0,0,0,0,0,0,0,0,0,0,0,0,0,0,0,0,0,0,0,0,0,0,0,0,0,0,0,0,0,0,0,0]
[6,null,"Other",70,12.5,0,0,3,0,0,0,0,0,0,0,0,0,0,0,0,0,0,0,0,0,0,0,0,0,0,0,0,0,0,0,0,0,0,0,0,0,0,0,0,0,0,0,0,0,0,0,0,0,0,0,0,0,0,0,3,0,0,0,0,0,0,0,0,0,0,0,0,0,0,0,0,0,0,0,0,0,0,0,0,0,0,0,0,0,0,0,0,0,0,0,0,0,0,0,0,0,0,0,0,0,0,0,0,0,0,0,0]
[0,"TRANSMISSION TOWER SUPPORT STRUCTURES BY:\nHighest operating voltage; Circuit configuration","< = 33 kV; Single Circuit",0,0,0,0,0,0,0,0,0,0,0,0,0,0,0,0,0,0,0,0,0,0,0,0,0,0,0,0,0,0,0,0,0,0,0,0,0,0,0,0,0,0,0,0,0,0,0,0,0,0,0,0,0,0,0,0,0,0,0,0,0,0,0,0,0,0,0,0,0,0,0,0,0,0,0,0,0,0,0,0,0,0,0,0,0,0,0,0,0,0,0,0,0,0,0,0,0,0,0,0,0,0,0,0,0,0,0,0,0]
[0,null,"> 33 kV & < = 66 kV ; Single Circuit",0,0,0,0,0,0,0,0,0,0,0,0,0,0,0,0,0,0,0,0,0,0,0,0,0,0,0,0,0,0,0,0,0,0,0,0,0,0,0,0,0,0,0,0,0,0,0,0,0,0,0,0,0,0,0,0,0,0,0,0,0,0,0,0,0,0,0,0,0,0,0,0,0,0,0,0,0,0,0,0,0,0,0,0,0,0,0,0,0,0,0,0,0,0,0,0,0,0,0,0,0,0,0,0,0,0,0,0,0]
[0,null,"> 66 kV & < = 132 kV ; Single Circuit",0,0,0,0,0,0,0,0,0,0,0,0,0,0,0,0,0,0,0,0,0,0,0,0,0,0,0,0,0,0,0,0,0,0,0,0,0,0,0,0,0,0,0,0,0,0,0,0,0,0,0,0,0,0,0,0,0,0,0,0,0,0,0,0,0,0,0,0,0,0,0,0,0,0,0,0,0,0,0,0,0,0,0,0,0,0,0,0,0,0,0,0,0,0,0,0,0,0,0,0,0,0,0,0,0,0,0,0,0]
[12974,null,"> 132 kV & < = 275 kV ; Single Circuit",70,12.5,45,519,0,0,0,12,243,0,15,0,0,6,0,0,0,0,0,0,0,0,0,0,0,0,0,9,0,0,0,0,0,0,153,0,525,0,114,12,630,381,15,0,3,0,42,24,918,12,21,504,1134,24,9,534,18,3,3061,834,114,0,0,3001,0,0,0,3,0,0,36,0,0,0,0,0,0,0,0,0,0,0,0,0,0,0,0,0,0,0,0,0,0,0,0,0,0,0,0,0,0,0,0,0,0,0,0,0,0]
[5690,null,"> 275 kV & < = 330 kV ; Single Circuit",70,12.5,0,0,0,0,0,0,3,0,0,0,0,13,0,0,0,0,24,0,0,9,0,0,0,0,0,0,0,0,0,54,0,0,0,0,0,0,3,0,0,546,0,0,0,0,0,0,0,6,0,0,0,1317,1866,861,120,0,12,0,0,0,856,0,0,0,0,0,0,0,0,0,0,0,0,0,0,0,0,0,0,0,0,0,0,0,0,0,0,0,0,0,0,0,0,0,0,0,0,0,0,0,0,0,0,0,0,0,0]
[15446,null,"> 330 kV & < = 500 kV  ; Single Circuit",70,12.5,0,0,0,0,0,0,102,3,6,0,0,0,0,0,0,0,0,0,0,0,0,0,0,0,6,0,0,6,0,0,0,6,429,2061,468,624,225,3831,903,36,0,0,0,0,3,15,102,0,0,3144,0,3071,126,9,6,0,150,27,0,0,0,84,0,0,0,0,0,0,3,0,0,0,0,0,0,0,0,0,0,0,0,0,0,0,0,0,0,0,0,0,0,0,0,0,0,0,0,0,0,0,0,0,0,0,0,0,0]
[0,null,"> 500 kV  ; Single Circuit",0,0,0,0,0,0,0,0,0,0,0,0,0,0,0,0,0,0,0,0,0,0,0,0,0,0,0,0,0,0,0,0,0,0,0,0,0,0,0,0,0,0,0,0,0,0,0,0,0,0,0,0,0,0,0,0,0,0,0,0,0,0,0,0,0,0,0,0,0,0,0,0,0,0,0,0,0,0,0,0,0,0,0,0,0,0,0,0,0,0,0,0,0,0,0,0,0,0,0,0,0,0,0,0,0,0,0,0,0]
[0,null,"< = 33 kV; Multiple Circuit",0,0,0,0,0,0,0,0,0,0,0,0,0,0,0,0,0,0,0,0,0,0,0,0,0,0,0,0,0,0,0,0,0,0,0,0,0,0,0,0,0,0,0,0,0,0,0,0,0,0,0,0,0,0,0,0,0,0,0,0,0,0,0,0,0,0,0,0,0,0,0,0,0,0,0,0,0,0,0,0,0,0,0,0,0,0,0,0,0,0,0,0,0,0,0,0,0,0,0,0,0,0,0,0,0,0,0,0,0]
[0,null,"> 33 kV & < = 66 kV ; Multiple Circuit",0,0,0,0,0,0,0,0,0,0,0,0,0,0,0,0,0,0,0,0,0,0,0,0,0,0,0,0,0,0,0,0,0,0,0,0,0,0,0,0,0,0,0,0,0,0,0,0,0,0,0,0,0,0,0,0,0,0,0,0,0,0,0,0,0,0,0,0,0,0,0,0,0,0,0,0,0,0,0,0,0,0,0,0,0,0,0,0,0,0,0,0,0,0,0,0,0,0,0,0,0,0,0,0,0,0,0,0,0]
[0,null,"> 66 kV & < = 132 kV ; Multiple Circuit",0,0,0,0,0,0,0,0,0,0,0,0,0,0,0,0,0,0,0,0,0,0,0,0,0,0,0,0,0,0,0,0,0,0,0,0,0,0,0,0,0,0,0,0,0,0,0,0,0,0,0,0,0,0,0,0,0,0,0,0,0,0,0,0,0,0,0,0,0,0,0,0,0,0,0,0,0,0,0,0,0,0,0,0,0,0,0,0,0,0,0,0,0,0,0,0,0,0,0,0,0,0,0,0,0,0,0,0,0]
[30871,null,"> 132 kV & < = 275 kV ; Multiple Circuit",70,12.5,48,6,0,24,0,2,102,12,0,12,0,36,0,6,0,0,0,0,0,0,0,24,0,0,132,105,0,0,0,0,1464,243,396,0,360,54,222,0,3900,378,198,0,1206,0,24,555,18,84,384,395,792,780,3150,1485,4743,162,1797,705,0,0,0,0,72,0,6,1653,0,0,5136,0,0,0,0,0,0,0,0,0,0,0,0,0,0,0,0,0,0,0,0,0,0,0,0,0,0,0,0,0,0,0,0,0,0,0,0,0,0]
[0,null,"> 275 kV & < = 330 kV ; Multiple Circuit",0,0,0,0,0,0,0,0,0,0,0,0,0,0,0,0,0,0,0,0,0,0,0,0,0,0,0,0,0,0,0,0,0,0,0,0,0,0,0,0,0,0,0,0,0,0,0,0,0,0,0,0,0,0,0,0,0,0,0,0,0,0,0,0,0,0,0,0,0,0,0,0,0,0,0,0,0,0,0,0,0,0,0,0,0,0,0,0,0,0,0,0,0,0,0,0,0,0,0,0,0,0,0,0,0,0,0,0,0]
[4332,null,"> 330 kV & < = 500 kV  ; Multiple Circuit",70,12.5,0,0,0,0,0,0,0,0,0,0,0,0,0,0,0,0,0,0,0,0,0,0,0,0,0,0,0,66,0,0,60,0,0,0,0,0,0,4086,0,120,0,0,0,0,0,0,0,0,0,0,0,0,0,0,0,0,0,0,0,0,0,0,0,0,0,0,0,0,0,0,0,0,0,0,0,0,0,0,0,0,0,0,0,0,0,0,0,0,0,0,0,0,0,0,0,0,0,0,0,0,0,0,0,0,0,0,0]
[0,null,"> 500 kV  ; Multiple Circuit",0,0,0,0,0,0,0,0,0,0,0,0,0,0,0,0,0,0,0,0,0,0,0,0,0,0,0,0,0,0,0,0,0,0,0,0,0,0,0,0,0,0,0,0,0,0,0,0,0,0,0,0,0,0,0,0,0,0,0,0,0,0,0,0,0,0,0,0,0,0,0,0,0,0,0,0,0,0,0,0,0,0,0,0,0,0,0,0,0,0,0,0,0,0,0,0,0,0,0,0,0,0,0,0,0,0,0,0,0]
[0,null,"Other",0,0,0,0,0,0,0,0,0,0,0,0,0,0,0,0,0,0,0,0,0,0,0,0,0,0,0,0,0,0,0,0,0,0,0,0,0,0,0,0,0,0,0,0,0,0,0,0,0,0,0,0,0,0,0,0,0,0,0,0,0,0,0,0,0,0,0,0,0,0,0,0,0,0,0,0,0,0,0,0,0,0,0,0,0,0,0,0,0,0,0,0,0,0,0,0,0,0,0,0,0,0,0,0,0,0,0,0,0]
[0,"CONDUCTORS BY: \nVoltage; Maximum continuous rating","< = 33 kV ; < = 100 MVA",0,0,0,0,0,0,0,0,0,0,0,0,0,0,0,0,0,0,0,0,0,0,0,0,0,0,0,0,0,0,0,0,0,0,0,0,0,0,0,0,0,0,0,0,0,0,0,0,0,0,0,0,0,0,0,0,0,0,0,0,0,0,0,0,0,0,0,0,0,0,0,0,0,0,0,0,0,0,0,0,0,0,0,0,0,0,0,0,0,0,0,0,0,0,0,0,0,0,0,0,0,0,0,0,0,0,0,0,0]
[0,null,"< = 33 kV ; > 100 MVA & < = 400 MVA",0,0,0,0,0,0,0,0,0,0,0,0,0,0,0,0,0,0,0,0,0,0,0,0,0,0,0,0,0,0,0,0,0,0,0,0,0,0,0,0,0,0,0,0,0,0,0,0,0,0,0,0,0,0,0,0,0,0,0,0,0,0,0,0,0,0,0,0,0,0,0,0,0,0,0,0,0,0,0,0,0,0,0,0,0,0,0,0,0,0,0,0,0,0,0,0,0,0,0,0,0,0,0,0,0,0,0,0,0]
[0,null,"< = 33 kV ; > 400 MVA",0,0,0,0,0,0,0,0,0,0,0,0,0,0,0,0,0,0,0,0,0,0,0,0,0,0,0,0,0,0,0,0,0,0,0,0,0,0,0,0,0,0,0,0,0,0,0,0,0,0,0,0,0,0,0,0,0,0,0,0,0,0,0,0,0,0,0,0,0,0,0,0,0,0,0,0,0,0,0,0,0,0,0,0,0,0,0,0,0,0,0,0,0,0,0,0,0,0,0,0,0,0,0,0,0,0,0,0,0]
[102.61607266278475,null,"> 33 kV & < = 66 kV  ; < = 100 MVA",60,15,0,0,0,0,0,0,0,0,0.74389636509025514,0,0,0,0,38.715464014632964,0,0,0,0,0,0,0,0,0,0,0,0,0,0,0,0,0,0,0,0,0,25.468524295024004,0.21466355909965032,0,0,0,0,0,0,0,0,0,0,37.473524428937871,0,0,0,0,0,0,0,0,0,0,0,0,0,0,0,0,0,0,0,0,0,0,0,0,0,0,0,0,0,0,0,0,0,0,0,0,0,0,0,0,0,0,0,0,0,0,0,0,0,0,0,0,0,0,0,0,0,0,0]
[72.403927337215308,null,"> 33 kV & < = 66 kV  ; > 100 MVA & < = 400 MVA",60,15,0,0,0,0,0,0,0,0,2.1716773854603272E-2,0,0,0,0,0,0,0,0,0,0,0,0,0,0,0,0,0,0,0,0,0,0,0,0,0,0,0,33.774758404911722,0,0,0,0,0,0,0,0,0,0,0.57812824355063008,0,0,22.135990760620395,0,9.9790701333385634,4.990144984573285,0,0,0,0,0,0,0,0,0,0,0,0,0,0,0,0,0,0,0,0,0,0,0,0,0.92411803636609646,0,0,0,0,0,0,0,0,0,0,0,0,0,0,0,0,0,0,0,0,0,0,0,0,0,0,0,0]
[0,null,"> 33 kV & < = 66 kV  ; > 400 MVA",0,0,0,0,0,0,0,0,0,0,0,0,0,0,0,0,0,0,0,0,0,0,0,0,0,0,0,0,0,0,0,0,0,0,0,0,0,0,0,0,0,0,0,0,0,0,0,0,0,0,0,0,0,0,0,0,0,0,0,0,0,0,0,0,0,0,0,0,0,0,0,0,0,0,0,0,0,0,0,0,0,0,0,0,0,0,0,0,0,0,0,0,0,0,0,0,0,0,0,0,0,0,0,0,0,0,0,0,0]
[0,null,"> 66 kV & < = 132 kV  ; < = 100 MVA",0,0,0,0,0,0,0,0,0,0,0,0,0,0,0,0,0,0,0,0,0,0,0,0,0,0,0,0,0,0,0,0,0,0,0,0,0,0,0,0,0,0,0,0,0,0,0,0,0,0,0,0,0,0,0,0,0,0,0,0,0,0,0,0,0,0,0,0,0,0,0,0,0,0,0,0,0,0,0,0,0,0,0,0,0,0,0,0,0,0,0,0,0,0,0,0,0,0,0,0,0,0,0,0,0,0,0,0,0]
[0,null,"> 66 kV & < = 132 kV  ; > 100 MVA & < = 400 MVA",0,0,0,0,0,0,0,0,0,0,0,0,0,0,0,0,0,0,0,0,0,0,0,0,0,0,0,0,0,0,0,0,0,0,0,0,0,0,0,0,0,0,0,0,0,0,0,0,0,0,0,0,0,0,0,0,0,0,0,0,0,0,0,0,0,0,0,0,0,0,0,0,0,0,0,0,0,0,0,0,0,0,0,0,0,0,0,0,0,0,0,0,0,0,0,0,0,0,0,0,0,0,0,0,0,0,0,0,0]
[0,null,"> 66 kV & < = 132 kV  ; > 400 MVA",0,0,0,0,0,0,0,0,0,0,0,0,0,0,0,0,0,0,0,0,0,0,0,0,0,0,0,0,0,0,0,0,0,0,0,0,0,0,0,0,0,0,0,0,0,0,0,0,0,0,0,0,0,0,0,0,0,0,0,0,0,0,0,0,0,0,0,0,0,0,0,0,0,0,0,0,0,0,0,0,0,0,0,0,0,0,0,0,0,0,0,0,0,0,0,0,0,0,0,0,0,0,0,0,0,0,0,0,0]
[0.27638499999999999,null,"> 132 kV & < = 275 kV  ; < = 200 MVA",0,0,0,0,0.27638499999999999,0,0,0,0,0,0,0,0,0,0,0,0,0,0,0,0,0,0,0,0,0,0,0,0,0,0,0,0,0,0,0,0,0,0,0,0,0,0,0,0,0,0,0,0,0,0,0,0,0,0,0,0,0,0,0,0,0,0,0,0,0,0,0,0,0,0,0,0,0,0,0,0,0,0,0,0,0,0,0,0,0,0,0,0,0,0,0,0,0,0,0,0,0,0,0,0,0,0,0,0,0,0,0,0]
[3861.0278299221327,null,"> 132 kV & < = 275 kV  ; > 200 MVA & < = 600 MVA",60,15,3.9478404624424002,59.442839459691641,0,0,0,0.11871052179554237,0,242.33282894256345,2.1534808717533562,178.8289403350739,13.846227247340217,3.1565797804824798,3.7762347030142238,0,0.45574039412155554,0,0,0,0,0,0,0.78987000938600971,0,0,7.7664883753986755,1.2880541654705209,0,0,0,0,159.16660758268793,0,19.756151067884264,0.34803084738709966,75.405283476439507,3.0173674415276399,7.9104011309705227,0.84432483593838781,313.3705853073418,43.192888361069812,4.7562215632286469,0,3.253488369884233,0,2.9801641440483291,2.585629174812091,278.52774704511575,1.5455369872184594,6.8070233341163879,0.61801477715900044,130.62133749949911,12.931216146191137,249.20508805879226,106.60270863090072,156.08928482707725,63.613038281868313,444.13700166577001,154.11487482710223,14.808112503135941,0,5.0411468173107865,375.77295628285123,23.425236273803502,0,0,220.29802590850369,0,0,462.3110955094977,0,0,0,6.7405974465202648E-2,0,0,0,0,0,0,0,0,0,0,0,0,0,0,0,0,0,0,0,0,0,0,0,0,0,0,0,0,0,0,0,0,0,0]
[363.97578507786727,null,"> 132 kV & < = 275 kV  ; > 600 MVA",60,15,0.37215953755730879,5.6036255403098494,0,0,0,0,0,0,0,0,0,0,0,77.407517797215291,0,0,0,0,0,0,0,0,0,0,0,6.9902199570664116,0,0,0,0,0,7.196464297643546,4.8172750647449094,0,0.1304754075047394,2.8118382284467791,13.239525992945195,0,66.080108901252032,12.28252615758579,0.7647722814170651,0,0,0,0,21.091759688707548,0,3.0251096016852412,5.6285413256590919,10.290082807940736,26.323152513266169,16.941672484172525,0,25.653329049824688,54.279782571115916,3.8863032092483082E-2,0,6.4482810323235121E-2,0,0,0,7.5023359315225122E-2,0,0,2.3299179911560601E-2,0,0,0,2.844177490164026,0,0,0,0,0,0,0,0,0,0,0,0,0,0,0,0,0,0,0,0,0,0,0,0,0,0,0,0,0,0,0,0,0,0,0,0,0,0]
[0,null,"> 275 kV & < = 330 kV  ; < = 800 MVA",0,0,0,0,0,0,0,0,0,0,0,0,0,0,0,0,0,0,0,0,0,0,0,0,0,0,0,0,0,0,0,0,0,0,0,0,0,0,0,0,0,0,0,0,0,0,0,0,0,0,0,0,0,0,0,0,0,0,0,0,0,0,0,0,0,0,0,0,0,0,0,0,0,0,0,0,0,0,0,0,0,0,0,0,0,0,0,0,0,0,0,0,0,0,0,0,0,0,0,0,0,0,0,0,0,0,0,0,0]
[739.0200000000001,null,"> 275 kV & < = 330 kV  ; > 800 MVA & < = 1200 MVA",60,15,0,0.50867973868634908,0,0,0,0,0,0,0.39822756512565249,0,0,0.33255600129845536,0,0,0,0,9.9245026320772567,0,0,1.0784330321638218,0,0,0,0,0,0,0,0,0,5.0312214515649085,0,0.47109601265993989,0,0,0,0,0.48988787567289738,0,0,60.813567368193219,0,0,0,0,0,0,0,0.72668534097979265,0,0,0,222.03295842508146,221.05548167825347,98.31273001054997,14.049716390294043,0,1.4621668731571404,0.88111847052776804,0,0,101.29603822057513,0.15493291313874535,0,0,0,0,0,0,0,0,0,0,0,0,0,0,0,0,0,0,0,0,0,0,0,0,0,0,0,0,0,0,0,0,0,0,0,0,0,0,0,0,0,0,0,0,0]
[0,null,"> 275 kV & < = 330 kV  ; > 1200 MVA",0,0,0,0,0,0,0,0,0,0,0,0,0,0,0,0,0,0,0,0,0,0,0,0,0,0,0,0,0,0,0,0,0,0,0,0,0,0,0,0,0,0,0,0,0,0,0,0,0,0,0,0,0,0,0,0,0,0,0,0,0,0,0,0,0,0,0,0,0,0,0,0,0,0,0,0,0,0,0,0,0,0,0,0,0,0,0,0,0,0,0,0,0,0,0,0,0,0,0,0,0,0,0,0,0,0,0,0,0]
[0,null,"> 330 kV & < = 500 kV   ; < = 1000 MVA",0,0,0,0,0,0,0,0,0,0,0,0,0,0,0,0,0,0,0,0,0,0,0,0,0,0,0,0,0,0,0,0,0,0,0,0,0,0,0,0,0,0,0,0,0,0,0,0,0,0,0,0,0,0,0,0,0,0,0,0,0,0,0,0,0,0,0,0,0,0,0,0,0,0,0,0,0,0,0,0,0,0,0,0,0,0,0,0,0,0,0,0,0,0,0,0,0,0,0,0,0,0,0,0,0,0,0,0,0]
[0,null,"> 330 kV & < = 500 kV   ; > 1000 MVA & < = 1500 MVA",0,0,0,0,0,0,0,0,0,0,0,0,0,0,0,0,0,0,0,0,0,0,0,0,0,0,0,0,0,0,0,0,0,0,0,0,0,0,0,0,0,0,0,0,0,0,0,0,0,0,0,0,0,0,0,0,0,0,0,0,0,0,0,0,0,0,0,0,0,0,0,0,0,0,0,0,0,0,0,0,0,0,0,0,0,0,0,0,0,0,0,0,0,0,0,0,0,0,0,0,0,0,0,0,0,0,0,0,0]
[1479.9100000000003,null,"> 330 kV & < = 500 kV   ; > 1500 MVA",60,15,0,0,0,0,0,9.5871777862903329,252.66203753900257,246.26259411902691,2.3314384499206033,1.8657301482140238,0,0,0,272.30130225704477,0,0,0,0,0,0,0,0,0,0,0.31486756048458553,0,0,2.0413447330274446,0,0.76579147166079709,0.93930827133139527,0,27.103284150735174,0,28.798694124258137,42.066785574487561,15.432106666846671,159.75662776258108,23.330367624103722,3.4044056032089709,0,0,0,0,0,0,0,0,0,194.48366270045497,0,180.47105731358502,0,0,0,0,0,0,0,0,0,0,0,0,0,0,0,0,0,0,0,0,0,0,0,0,0,0,15.991416143735378,0,0,0,0,0,0,0,0,0,0,0,0,0,0,0,0,0,0,0,0,0,0,0,0,0,0,0,0]
[0,null,"> 500 kV   ; < = 2000 MVA",0,0,0,0,0,0,0,0,0,0,0,0,0,0,0,0,0,0,0,0,0,0,0,0,0,0,0,0,0,0,0,0,0,0,0,0,0,0,0,0,0,0,0,0,0,0,0,0,0,0,0,0,0,0,0,0,0,0,0,0,0,0,0,0,0,0,0,0,0,0,0,0,0,0,0,0,0,0,0,0,0,0,0,0,0,0,0,0,0,0,0,0,0,0,0,0,0,0,0,0,0,0,0,0,0,0,0,0,0]
[0,null,"> 500 kV   ; > 2000 MVA & < = 3000 MVA",0,0,0,0,0,0,0,0,0,0,0,0,0,0,0,0,0,0,0,0,0,0,0,0,0,0,0,0,0,0,0,0,0,0,0,0,0,0,0,0,0,0,0,0,0,0,0,0,0,0,0,0,0,0,0,0,0,0,0,0,0,0,0,0,0,0,0,0,0,0,0,0,0,0,0,0,0,0,0,0,0,0,0,0,0,0,0,0,0,0,0,0,0,0,0,0,0,0,0,0,0,0,0,0,0,0,0,0,0]
[0,null,"> 500 kV   ; > 3000 MVA",0,0,0,0,0,0,0,0,0,0,0,0,0,0,0,0,0,0,0,0,0,0,0,0,0,0,0,0,0,0,0,0,0,0,0,0,0,0,0,0,0,0,0,0,0,0,0,0,0,0,0,0,0,0,0,0,0,0,0,0,0,0,0,0,0,0,0,0,0,0,0,0,0,0,0,0,0,0,0,0,0,0,0,0,0,0,0,0,0,0,0,0,0,0,0,0,0,0,0,0,0,0,0,0,0,0,0,0,0]
[5504.9181619999954,null,"Other",60,15,1.9632620000000003,0.37002000000000002,0,0,0,0,1.1928999999999998,2.1841999999999997,2.9500900000000003,28.670699999999993,0,1.4128000000000001,1.3233999999999999,1.9278,0,0,15.7478,0,0,2.1577999999999999,0,0,0,0,7.2996999999999996,1.48044,0,2.0680999999999998,0.31159999999999999,3.1345999999999998,161.71199999999999,0,56.724599999999974,243.86950000000002,73.792839999999956,58.857999999999997,53.9529,675.23479999999893,173.28791999999981,118.91839999999996,5.2545999999999982,0,61.882600000000004,2.8000000000000001E-2,6.8225999999999996,24.899500000000007,281.73107000000022,41.558500000000009,11.758250000000002,488.52259999999876,171.80108999999996,824.11879999999735,586.25697999999886,284.79679999999968,68.765069999999994,2.3880000000000003,414.78779999999972,133.22508000000028,0,0,92.209800000000001,226.01956999999996,27.521480000000004,0,0,45.22590000000001,0,0,14.5959,0,0.05,0,0.152,0,0,0,0,0,0,0,0,0,0,0,0,0,0,0,0,0,0,0,0,0,0,0,0,0,0,0,0,0,0,0,0,0,0]
[0,"TRANSMISSION CABLES BY: \nHighest operating voltage; Insulation type","< = 33 kV; Oil Filled",0,0,0,0,0,0,0,0,0,0,0,0,0,0,0,0,0,0,0,0,0,0,0,0,0,0,0,0,0,0,0,0,0,0,0,0,0,0,0,0,0,0,0,0,0,0,0,0,0,0,0,0,0,0,0,0,0,0,0,0,0,0,0,0,0,0,0,0,0,0,0,0,0,0,0,0,0,0,0,0,0,0,0,0,0,0,0,0,0,0,0,0,0,0,0,0,0,0,0,0,0,0,0,0,0,0,0,0,0]
[0,null,"> 33 kV & < = 66 kV ; Oil Filled",0,0,0,0,0,0,0,0,0,0,0,0,0,0,0,0,0,0,0,0,0,0,0,0,0,0,0,0,0,0,0,0,0,0,0,0,0,0,0,0,0,0,0,0,0,0,0,0,0,0,0,0,0,0,0,0,0,0,0,0,0,0,0,0,0,0,0,0,0,0,0,0,0,0,0,0,0,0,0,0,0,0,0,0,0,0,0,0,0,0,0,0,0,0,0,0,0,0,0,0,0,0,0,0,0,0,0,0,0]
[0,null,"> 66 kV & < = 132 kV ; Oil Filled",0,0,0,0,0,0,0,0,0,0,0,0,0,0,0,0,0,0,0,0,0,0,0,0,0,0,0,0,0,0,0,0,0,0,0,0,0,0,0,0,0,0,0,0,0,0,0,0,0,0,0,0,0,0,0,0,0,0,0,0,0,0,0,0,0,0,0,0,0,0,0,0,0,0,0,0,0,0,0,0,0,0,0,0,0,0,0,0,0,0,0,0,0,0,0,0,0,0,0,0,0,0,0,0,0,0,0,0,0]
[1.4117792399107145,null,"> 132 kV & < = 275 kV ; Oil Filled",60,15,0,0,0,0,0,0,0,0.9762708952380954,0,0,0,0,0,0,0,0,0,0,0,0,0,0,0,0,0,0,0,0,0,0,0,0,0,0,0,0,0,0,0,0,0,0,0,0.43550834467261912,0,0,0,0,0,0,0,0,0,0,0,0,0,0,0,0,0,0,0,0,0,0,0,0,0,0,0,0,0,0,0,0,0,0,0,0,0,0,0,0,0,0,0,0,0,0,0,0,0,0,0,0,0,0,0,0,0,0,0,0,0,0,0]
[0,null,"> 275 kV & < = 330 kV ; Oil Filled",0,0,0,0,0,0,0,0,0,0,0,0,0,0,0,0,0,0,0,0,0,0,0,0,0,0,0,0,0,0,0,0,0,0,0,0,0,0,0,0,0,0,0,0,0,0,0,0,0,0,0,0,0,0,0,0,0,0,0,0,0,0,0,0,0,0,0,0,0,0,0,0,0,0,0,0,0,0,0,0,0,0,0,0,0,0,0,0,0,0,0,0,0,0,0,0,0,0,0,0,0,0,0,0,0,0,0,0,0]
[0,null,"> 330 kV & < = 500 kV  ; Oil Filled",0,0,0,0,0,0,0,0,0,0,0,0,0,0,0,0,0,0,0,0,0,0,0,0,0,0,0,0,0,0,0,0,0,0,0,0,0,0,0,0,0,0,0,0,0,0,0,0,0,0,0,0,0,0,0,0,0,0,0,0,0,0,0,0,0,0,0,0,0,0,0,0,0,0,0,0,0,0,0,0,0,0,0,0,0,0,0,0,0,0,0,0,0,0,0,0,0,0,0,0,0,0,0,0,0,0,0,0,0]
[0,null,"> 500 kV  ; Oil Filled",0,0,0,0,0,0,0,0,0,0,0,0,0,0,0,0,0,0,0,0,0,0,0,0,0,0,0,0,0,0,0,0,0,0,0,0,0,0,0,0,0,0,0,0,0,0,0,0,0,0,0,0,0,0,0,0,0,0,0,0,0,0,0,0,0,0,0,0,0,0,0,0,0,0,0,0,0,0,0,0,0,0,0,0,0,0,0,0,0,0,0,0,0,0,0,0,0,0,0,0,0,0,0,0,0,0,0,0,0]
[0,null,"< = 33 kV; XLPE Insulated",0,0,0,0,0,0,0,0,0,0,0,0,0,0,0,0,0,0,0,0,0,0,0,0,0,0,0,0,0,0,0,0,0,0,0,0,0,0,0,0,0,0,0,0,0,0,0,0,0,0,0,0,0,0,0,0,0,0,0,0,0,0,0,0,0,0,0,0,0,0,0,0,0,0,0,0,0,0,0,0,0,0,0,0,0,0,0,0,0,0,0,0,0,0,0,0,0,0,0,0,0,0,0,0,0,0,0,0,0]
[0,null,"> 33 kV & < = 66 kV ; XLPE Insulated",0,0,0,0,0,0,0,0,0,0,0,0,0,0,0,0,0,0,0,0,0,0,0,0,0,0,0,0,0,0,0,0,0,0,0,0,0,0,0,0,0,0,0,0,0,0,0,0,0,0,0,0,0,0,0,0,0,0,0,0,0,0,0,0,0,0,0,0,0,0,0,0,0,0,0,0,0,0,0,0,0,0,0,0,0,0,0,0,0,0,0,0,0,0,0,0,0,0,0,0,0,0,0,0,0,0,0,0,0]
[0,null,"> 66 kV & < = 132 kV ; XLPE Insulated",0,0,0,0,0,0,0,0,0,0,0,0,0,0,0,0,0,0,0,0,0,0,0,0,0,0,0,0,0,0,0,0,0,0,0,0,0,0,0,0,0,0,0,0,0,0,0,0,0,0,0,0,0,0,0,0,0,0,0,0,0,0,0,0,0,0,0,0,0,0,0,0,0,0,0,0,0,0,0,0,0,0,0,0,0,0,0,0,0,0,0,0,0,0,0,0,0,0,0,0,0,0,0,0,0,0,0,0,0]
[7.1282207600892837,null,"> 132 kV & < = 275 kV ; XLPE Insulated",60,15,0,0,0,0,0,0.14491521101190477,0.10296607098214287,0,0,0,0,5.7203372767857141E-2,0,0,0,0,0,0,0,0,0,0,0,0,0,0,6.6310149712499999,0,0,0,0,0,0,0,0,0,0,0,0,0,0,0,0,0,0,0,0,0,0,0,0,0,0,0,0.19212113407737885,0,0,0,0,0,0,0,0,0,0,0,0,0,0,0,0,0,0,0,0,0,0,0,0,0,0,0,0,0,0,0,0,0,0,0,0,0,0,0,0,0,0,0,0,0,0,0,0,0,0,0,0]
[0,null,"> 275 kV & < = 330 kV ; XLPE Insulated",0,0,0,0,0,0,0,0,0,0,0,0,0,0,0,0,0,0,0,0,0,0,0,0,0,0,0,0,0,0,0,0,0,0,0,0,0,0,0,0,0,0,0,0,0,0,0,0,0,0,0,0,0,0,0,0,0,0,0,0,0,0,0,0,0,0,0,0,0,0,0,0,0,0,0,0,0,0,0,0,0,0,0,0,0,0,0,0,0,0,0,0,0,0,0,0,0,0,0,0,0,0,0,0,0,0,0,0,0]
[0,null,"> 330 kV & < = 500 kV  ; XLPE Insulated",0,0,0,0,0,0,0,0,0,0,0,0,0,0,0,0,0,0,0,0,0,0,0,0,0,0,0,0,0,0,0,0,0,0,0,0,0,0,0,0,0,0,0,0,0,0,0,0,0,0,0,0,0,0,0,0,0,0,0,0,0,0,0,0,0,0,0,0,0,0,0,0,0,0,0,0,0,0,0,0,0,0,0,0,0,0,0,0,0,0,0,0,0,0,0,0,0,0,0,0,0,0,0,0,0,0,0,0,0]
[{"$f":"SUM(F76:DH76)","v":0},null,"> 500 kV  ; XLPE Insulated",0,0,0,0,0,0,0,0,0,0,0,0,0,0,0,0,0,0,0,0,0,0,0,0,0,0,0,0,0,0,0,0,0,0,0,0,0,0,0,0,0,0,0,0,0,0,0,0,0,0,0,0,0,0,0,0,0,0,0,0,0,0,0,0,0,0,0,0,0,0,0,0,0,0,0,0,0,0,0,0,0,0,0,0,0,0,0,0,0,0,0,0,0,0,0,0,0,0,0,0,0,0,0,0,0,0,0,0,0]
[0,null,"< = 33 kV; Other Insulated",0,0,0,0,0,0,0,0,0,0,0,0,0,0,0,0,0,0,0,0,0,0,0,0,0,0,0,0,0,0,0,0,0,0,0,0,0,0,0,0,0,0,0,0,0,0,0,0,0,0,0,0,0,0,0,0,0,0,0,0,0,0,0,0,0,0,0,0,0,0,0,0,0,0,0,0,0,0,0,0,0,0,0,0,0,0,0,0,0,0,0,0,0,0,0,0,0,0,0,0,0,0,0,0,0,0,0,0,0]
[0,null,"> 33 kV & < = 66 kV ; Other Insulated",0,0,0,0,0,0,0,0,0,0,0,0,0,0,0,0,0,0,0,0,0,0,0,0,0,0,0,0,0,0,0,0,0,0,0,0,0,0,0,0,0,0,0,0,0,0,0,0,0,0,0,0,0,0,0,0,0,0,0,0,0,0,0,0,0,0,0,0,0,0,0,0,0,0,0,0,0,0,0,0,0,0,0,0,0,0,0,0,0,0,0,0,0,0,0,0,0,0,0,0,0,0,0,0,0,0,0,0,0]
[0,null,"> 66 kV & < = 132 kV ; Other Insulated",0,0,0,0,0,0,0,0,0,0,0,0,0,0,0,0,0,0,0,0,0,0,0,0,0,0,0,0,0,0,0,0,0,0,0,0,0,0,0,0,0,0,0,0,0,0,0,0,0,0,0,0,0,0,0,0,0,0,0,0,0,0,0,0,0,0,0,0,0,0,0,0,0,0,0,0,0,0,0,0,0,0,0,0,0,0,0,0,0,0,0,0,0,0,0,0,0,0,0,0,0,0,0,0,0,0,0,0,0]
[0,null,"> 132 kV & < = 275 kV ; Other Insulated",0,0,0,0,0,0,0,0,0,0,0,0,0,0,0,0,0,0,0,0,0,0,0,0,0,0,0,0,0,0,0,0,0,0,0,0,0,0,0,0,0,0,0,0,0,0,0,0,0,0,0,0,0,0,0,0,0,0,0,0,0,0,0,0,0,0,0,0,0,0,0,0,0,0,0,0,0,0,0,0,0,0,0,0,0,0,0,0,0,0,0,0,0,0,0,0,0,0,0,0,0,0,0,0,0,0,0,0,0]
[0,null,"> 275 kV & < = 330 kV ; Other Insulated",0,0,0,0,0,0,0,0,0,0,0,0,0,0,0,0,0,0,0,0,0,0,0,0,0,0,0,0,0,0,0,0,0,0,0,0,0,0,0,0,0,0,0,0,0,0,0,0,0,0,0,0,0,0,0,0,0,0,0,0,0,0,0,0,0,0,0,0,0,0,0,0,0,0,0,0,0,0,0,0,0,0,0,0,0,0,0,0,0,0,0,0,0,0,0,0,0,0,0,0,0,0,0,0,0,0,0,0,0]
[0,null,"> 330 kV & < = 500 kV  ; Other Insulated",0,0,0,0,0,0,0,0,0,0,0,0,0,0,0,0,0,0,0,0,0,0,0,0,0,0,0,0,0,0,0,0,0,0,0,0,0,0,0,0,0,0,0,0,0,0,0,0,0,0,0,0,0,0,0,0,0,0,0,0,0,0,0,0,0,0,0,0,0,0,0,0,0,0,0,0,0,0,0,0,0,0,0,0,0,0,0,0,0,0,0,0,0,0,0,0,0,0,0,0,0,0,0,0,0,0,0,0,0]
[0,null,"> 500 kV  ; Other Insulated",0,0,0,0,0,0,0,0,0,0,0,0,0,0,0,0,0,0,0,0,0,0,0,0,0,0,0,0,0,0,0,0,0,0,0,0,0,0,0,0,0,0,0,0,0,0,0,0,0,0,0,0,0,0,0,0,0,0,0,0,0,0,0,0,0,0,0,0,0,0,0,0,0,0,0,0,0,0,0,0,0,0,0,0,0,0,0,0,0,0,0,0,0,0,0,0,0,0,0,0,0,0,0,0,0,0,0,0,0]
[0,null,"Other",0,0,0,0,0,0,0,0,0,0,0,0,0,0,0,0,0,0,0,0,0,0,0,0,0,0,0,0,0,0,0,0,0,0,0,0,0,0,0,0,0,0,0,0,0,0,0,0,0,0,0,0,0,0,0,0,0,0,0,0,0,0,0,0,0,0,0,0,0,0,0,0,0,0,0,0,0,0,0,0,0,0,0,0,0,0,0,0,0,0,0,0,0,0,0,0,0,0,0,0,0,0,0,0,0,0,0,0,0]
[95,"SUBSTATION SWITCHBAYS BY: \nHighest operating voltage; Switch type","< = 33 kV; Air Insulated circuit Breaker",45,5,1,0,0,0,5,4,5,3,0,0,0,11,21,2,6,0,0,0,0,0,0,0,0,0,0,0,0,0,0,0,0,0,2,0,0,0,4,0,2,0,0,0,0,0,0,0,0,2,2,0,1,8,0,5,9,0,0,0,0,0,0,1,0,0,0,0,0,0,0,0,0,1,0,0,0,0,0,0,0,0,0,0,0,0,0,0,0,0,0,0,0,0,0,0,0,0,0,0,0,0,0,0,0,0,0,0,0]
[494,null,"> 33 kV & < = 66 kV ; Air Insulated circuit Breaker",45,5,15,18,15,4,2,20,16,18,9,11,19,30,43,9,32,9,6,3,12,1,2,9,0,6,0,0,0,1,2,0,0,3,8,10,6,7,17,2,6,4,0,1,0,0,0,2,2,8,21,8,27,9,27,5,5,0,1,3,0,0,0,0,0,0,0,0,0,0,0,0,0,0,0,0,0,0,0,0,0,0,0,0,0,0,0,0,0,0,0,0,0,0,0,0,0,0,0,0,0,0,0,0,0,0,0,0,0]
[0,null,"> 66 kV & < = 132 kV ; Air Insulated circuit Breaker",0,0,0,0,0,0,0,0,0,0,0,0,0,0,0,0,0,0,0,0,0,0,0,0,0,0,0,0,0,0,0,0,0,0,0,0,0,0,0,0,0,0,0,0,0,0,0,0,0,0,0,0,0,0,0,0,0,0,0,0,0,0,0,0,0,0,0,0,0,0,0,0,0,0,0,0,0,0,0,0,0,0,0,0,0,0,0,0,0,0,0,0,0,0,0,0,0,0,0,0,0,0,0,0,0,0,0,0,0]
[396,null,"> 132 kV & < = 275 kV ; Air Insulated circuit Breaker",45,5,4,16,13,6,13,18,19,17,20,18,13,20,62,16,29,2,3,6,11,1,4,5,1,0,1,0,0,0,0,0,0,0,0,11,0,18,4,0,4,0,0,15,2,3,0,0,0,1,3,2,4,5,5,0,0,0,0,0,0,0,1,0,0,0,0,0,0,0,0,0,0,0,0,0,0,0,0,0,0,0,0,0,0,0,0,0,0,0,0,0,0,0,0,0,0,0,0,0,0,0,0,0,0,0,0,0,0]
[28,null,"> 275 kV & < = 330 kV ; Air Insulated circuit Breaker",45,5,2,0,0,1,0,0,0,0,0,0,0,0,0,0,0,0,2,0,6,1,7,0,1,0,0,0,0,0,0,0,0,2,4,0,0,0,1,0,1,0,0,0,0,0,0,0,0,0,0,0,0,0,0,0,0,0,0,0,0,0,0,0,0,0,0,0,0,0,0,0,0,0,0,0,0,0,0,0,0,0,0,0,0,0,0,0,0,0,0,0,0,0,0,0,0,0,0,0,0,0,0,0,0,0,0,0,0]
[52,null,"> 330 kV & < = 500 kV  ; Air Insulated circuit Breaker",45,5,0,0,0,0,0,0,0,0,13,1,0,0,0,2,0,0,1,2,0,0,0,0,0,0,2,0,1,3,0,0,0,2,0,3,3,12,2,0,5,0,0,0,0,0,0,0,0,0,0,0,0,0,0,0,0,0,0,0,0,0,0,0,0,0,0,0,0,0,0,0,0,0,0,0,0,0,0,0,0,0,0,0,0,0,0,0,0,0,0,0,0,0,0,0,0,0,0,0,0,0,0,0,0,0,0,0,0]
[0,null,"> 500 kV  ; Air Insulated circuit Breaker",0,0,0,0,0,0,0,0,0,0,0,0,0,0,0,0,0,0,0,0,0,0,0,0,0,0,0,0,0,0,0,0,0,0,0,0,0,0,0,0,0,0,0,0,0,0,0,0,0,0,0,0,0,0,0,0,0,0,0,0,0,0,0,0,0,0,0,0,0,0,0,0,0,0,0,0,0,0,0,0,0,0,0,0,0,0,0,0,0,0,0,0,0,0,0,0,0,0,0,0,0,0,0,0,0,0,0,0,0]
[443,null,"< = 33 kV; Air Insulated Isolators / Earth Switch",45,5,4,28,7,4,0,18,5,21,7,1,1,30,34,7,13,0,2,3,3,2,2,1,0,0,0,0,0,2,2,2,3,3,4,0,16,13,8,4,3,2,4,1,0,0,0,0,2,3,22,13,15,17,19,7,12,5,31,9,0,0,24,0,0,4,0,0,0,0,0,0,0,0,0,0,0,0,0,0,0,0,0,0,0,0,0,0,0,0,0,0,0,0,0,0,0,0,0,0,0,0,0,0,0,0,0,0,0]
[1182,null,"> 33 kV & < = 66 kV ; Air Insulated Isolators / Earth Switch",45,5,22,74,29,7,4,36,31,30,13,28,27,44,70,11,46,24,3,35,28,2,4,0,4,0,1,0,0,2,22,1,2,0,6,3,37,28,24,22,35,10,4,3,0,0,0,4,6,1,17,44,118,57,55,32,39,5,21,11,0,0,0,0,0,0,0,0,0,0,0,0,0,0,0,0,0,0,0,0,0,0,0,0,0,0,0,0,0,0,0,0,0,0,0,0,0,0,0,0,0,0,0,0,0,0,0,0,0]
[0,null,"> 66 kV & < = 132 kV ; Air Insulated Isolators / Earth Switch",0,0,0,0,0,0,0,0,0,0,0,0,0,0,0,0,0,0,0,0,0,0,0,0,0,0,0,0,0,0,0,0,0,0,0,0,0,0,0,0,0,0,0,0,0,0,0,0,0,0,0,0,0,0,0,0,0,0,0,0,0,0,0,0,0,0,0,0,0,0,0,0,0,0,0,0,0,0,0,0,0,0,0,0,0,0,0,0,0,0,0,0,0,0,0,0,0,0,0,0,0,0,0,0,0,0,0,0,0]
[1969,null,"> 132 kV & < = 275 kV ; Air Insulated Isolators / Earth Switch",45,5,37,43,20,6,77,74,124,97,93,97,104,115,219,73,117,24,6,19,5,1,21,6,0,2,2,0,0,0,9,0,0,0,0,29,49,45,0,79,36,33,3,52,15,0,4,2,5,1,9,73,12,15,86,2,25,0,0,2,0,0,0,1,0,0,0,0,0,0,0,0,0,0,0,0,0,0,0,0,0,0,0,0,0,0,0,0,0,0,0,0,0,0,0,0,0,0,0,0,0,0,0,0,0,0,0,0,0]
[114,null,"> 275 kV & < = 330 kV ; Air Insulated Isolators / Earth Switch",45,5,0,0,0,4,0,0,0,0,0,0,0,0,0,0,0,0,21,0,0,0,0,0,0,0,0,0,0,0,0,0,0,0,0,2,24,0,3,4,0,3,0,0,0,0,0,0,0,0,0,0,15,11,6,4,13,0,0,1,0,0,0,0,0,0,0,0,0,0,0,0,0,0,0,0,0,0,0,0,0,0,0,0,0,0,0,0,0,0,0,0,0,0,0,0,0,0,0,0,0,0,0,0,0,0,0,0,3]
[377,null,"> 330 kV & < = 500 kV  ; Air Insulated Isolators / Earth Switch",45,5,0,0,0,1,0,0,0,0,0,0,0,0,5,9,18,0,0,5,0,0,0,0,0,0,0,29,0,2,0,0,6,3,40,12,26,97,33,3,1,4,1,0,1,0,0,0,0,0,33,0,5,32,0,0,0,0,0,0,0,0,0,0,0,0,0,0,0,0,0,0,0,0,0,0,0,0,0,0,0,0,0,0,0,0,0,0,0,0,0,0,0,0,0,0,0,0,0,0,0,0,0,0,0,0,0,0,11]
[0,null,"> 500 kV  ; Air Insulated Isolators / Earth Switch",0,0,0,0,0,0,0,0,0,0,0,0,0,0,0,0,0,0,0,0,0,0,0,0,0,0,0,0,0,0,0,0,0,0,0,0,0,0,0,0,0,0,0,0,0,0,0,0,0,0,0,0,0,0,0,0,0,0,0,0,0,0,0,0,0,0,0,0,0,0,0,0,0,0,0,0,0,0,0,0,0,0,0,0,0,0,0,0,0,0,0,0,0,0,0,0,0,0,0,0,0,0,0,0,0,0,0,0,0]
[219,null,"< = 33 kV; VT",40,6,0,6,12,3,0,34,10,11,12,0,3,11,7,1,1,0,1,0,1,0,0,6,4,0,0,0,0,3,0,0,0,0,9,5,3,10,3,0,0,1,0,0,0,0,0,0,0,1,0,0,9,14,15,0,14,1,5,1,0,0,0,0,2,0,0,0,0,0,0,0,0,0,0,0,0,0,0,0,0,0,0,0,0,0,0,0,0,0,0,0,0,0,0,0,0,0,0,0,0,0,0,0,0,0,0,0,0]
[406,null,"> 33 kV & < = 66 kV ; VT",40,6,13,10,19,0,6,27,13,18,6,15,24,18,27,3,24,3,1,17,7,0,2,0,0,0,0,0,0,0,4,3,0,0,0,16,21,3,0,31,0,6,0,0,0,0,0,0,0,1,2,5,26,13,11,1,2,0,2,6,0,0,0,0,0,0,0,0,0,0,0,0,0,0,0,0,0,0,0,0,0,0,0,0,0,0,0,0,0,0,0,0,0,0,0,0,0,0,0,0,0,0,0,0,0,0,0,0,0]
[0,null,"> 66 kV & < = 132 kV ; VT",0,0,0,0,0,0,0,0,0,0,0,0,0,0,0,0,0,0,0,0,0,0,0,0,0,0,0,0,0,0,0,0,0,0,0,0,0,0,0,0,0,0,0,0,0,0,0,0,0,0,0,0,0,0,0,0,0,0,0,0,0,0,0,0,0,0,0,0,0,0,0,0,0,0,0,0,0,0,0,0,0,0,0,0,0,0,0,0,0,0,0,0,0,0,0,0,0,0,0,0,0,0,0,0,0,0,0,0,0]
[608,null,"> 132 kV & < = 275 kV ; VT",40,6,7,13,4,5,37,22,52,26,23,38,46,50,49,16,50,6,5,7,4,0,0,0,0,0,0,0,0,0,0,0,0,8,0,4,15,3,0,6,23,0,0,14,1,24,0,0,0,0,9,0,2,0,8,4,12,15,0,0,0,0,0,0,0,0,0,0,0,0,0,0,0,0,0,0,0,0,0,0,0,0,0,0,0,0,0,0,0,0,0,0,0,0,0,0,0,0,0,0,0,0,0,0,0,0,0,0,0]
[41,null,"> 275 kV & < = 330 kV ; VT",40,6,1,0,0,0,0,0,0,14,4,3,6,0,0,0,0,0,0,0,0,0,0,0,0,0,0,0,0,0,0,0,0,0,0,0,3,0,0,0,2,0,0,0,0,0,0,0,0,0,0,0,0,0,0,8,0,0,0,0,0,0,0,0,0,0,0,0,0,0,0,0,0,0,0,0,0,0,0,0,0,0,0,0,0,0,0,0,0,0,0,0,0,0,0,0,0,0,0,0,0,0,0,0,0,0,0,0,0]
[131,null,"> 330 kV & < = 500 kV  ; VT",40,6,0,3,0,1,0,1,10,0,28,6,1,0,1,6,0,0,0,3,0,0,0,0,0,0,0,0,0,5,0,0,0,8,0,0,3,0,3,24,0,20,0,0,0,0,0,0,0,0,0,0,8,0,0,0,0,0,0,0,0,0,0,0,0,0,0,0,0,0,0,0,0,0,0,0,0,0,0,0,0,0,0,0,0,0,0,0,0,0,0,0,0,0,0,0,0,0,0,0,0,0,0,0,0,0,0,0,0]
[0,null,"> 500 kV  ; VT",0,0,0,0,0,0,0,0,0,0,0,0,0,0,0,0,0,0,0,0,0,0,0,0,0,0,0,0,0,0,0,0,0,0,0,0,0,0,0,0,0,0,0,0,0,0,0,0,0,0,0,0,0,0,0,0,0,0,0,0,0,0,0,0,0,0,0,0,0,0,0,0,0,0,0,0,0,0,0,0,0,0,0,0,0,0,0,0,0,0,0,0,0,0,0,0,0,0,0,0,0,0,0,0,0,0,0,0,0]
[343,null,"< = 33 kV; CT",40,6,1,0,0,5,1,21,30,10,1,17,2,16,39,10,32,0,3,2,2,0,0,0,3,0,0,0,0,0,0,0,0,0,45,0,0,28,0,0,2,0,6,4,0,0,2,0,3,1,0,0,7,24,6,3,6,0,7,3,0,0,0,0,0,1,0,0,0,0,0,0,0,0,0,0,0,0,0,0,0,0,0,0,0,0,0,0,0,0,0,0,0,0,0,0,0,0,0,0,0,0,0,0,0,0,0,0,0]
[610,null,"> 33 kV & < = 66 kV ; CT",40,6,12,31,3,4,0,3,21,3,30,15,25,19,56,27,30,18,11,16,57,4,9,3,15,9,0,6,15,9,28,1,6,1,29,12,12,25,12,14,15,1,0,3,0,0,0,0,0,0,0,0,0,0,0,0,0,0,0,0,0,0,0,0,0,0,0,0,0,0,0,0,0,0,0,0,0,0,0,0,0,0,0,0,0,0,0,0,0,0,0,0,0,0,0,0,0,0,0,0,0,0,0,0,0,0,0,0,0]
[0,null,"> 66 kV & < = 132 kV ; CT",0,0,0,0,0,0,0,0,0,0,0,0,0,0,0,0,0,0,0,0,0,0,0,0,0,0,0,0,0,0,0,0,0,0,0,0,0,0,0,0,0,0,0,0,0,0,0,0,0,0,0,0,0,0,0,0,0,0,0,0,0,0,0,0,0,0,0,0,0,0,0,0,0,0,0,0,0,0,0,0,0,0,0,0,0,0,0,0,0,0,0,0,0,0,0,0,0,0,0,0,0,0,0,0,0,0,0,0,0]
[482,null,"> 132 kV & < = 275 kV ; CT",40,6,4,3,14,0,6,3,20,6,10,58,86,34,6,28,18,0,3,48,9,3,21,13,0,5,0,0,0,0,3,0,0,0,0,9,3,0,9,2,2,6,12,6,0,3,0,6,0,0,0,0,1,12,4,2,4,0,0,0,0,0,0,0,0,0,0,0,0,0,0,0,0,0,0,0,0,0,0,0,0,0,0,0,0,0,0,0,0,0,0,0,0,0,0,0,0,0,0,0,0,0,0,0,0,0,0,0,0]
[76,null,"> 275 kV & < = 330 kV ; CT",40,6,0,0,0,0,0,0,0,6,3,27,3,9,9,6,0,0,9,0,0,0,0,0,0,0,0,0,0,0,0,0,0,0,0,3,0,0,0,0,0,0,0,0,0,0,0,0,0,0,0,0,0,0,1,0,0,0,0,0,0,0,0,0,0,0,0,0,0,0,0,0,0,0,0,0,0,0,0,0,0,0,0,0,0,0,0,0,0,0,0,0,0,0,0,0,0,0,0,0,0,0,0,0,0,0,0,0,0]
[209,null,"> 330 kV & < = 500 kV  ; CT",40,6,6,0,0,0,0,0,0,0,51,9,0,3,1,18,3,3,0,12,0,0,0,0,0,0,0,0,0,3,0,0,0,3,6,9,26,15,17,0,24,0,0,0,0,0,0,0,0,0,0,0,0,0,0,0,0,0,0,0,0,0,0,0,0,0,0,0,0,0,0,0,0,0,0,0,0,0,0,0,0,0,0,0,0,0,0,0,0,0,0,0,0,0,0,0,0,0,0,0,0,0,0,0,0,0,0,0,0]
[1,null,"> 500 kV  ; CT",40,6,0,0,0,0,1,0,0,0,0,0,0,0,0,0,0,0,0,0,0,0,0,0,0,0,0,0,0,0,0,0,0,0,0,0,0,0,0,0,0,0,0,0,0,0,0,0,0,0,0,0,0,0,0,0,0,0,0,0,0,0,0,0,0,0,0,0,0,0,0,0,0,0,0,0,0,0,0,0,0,0,0,0,0,0,0,0,0,0,0,0,0,0,0,0,0,0,0,0,0,0,0,0,0,0,0,0,0]
[6,null,"< = 33 kV; GIS Module",50,5,0,0,0,0,0,0,3,3,0,0,0,0,0,0,0,0,0,0,0,0,0,0,0,0,0,0,0,0,0,0,0,0,0,0,0,0,0,0,0,0,0,0,0,0,0,0,0,0,0,0,0,0,0,0,0,0,0,0,0,0,0,0,0,0,0,0,0,0,0,0,0,0,0,0,0,0,0,0,0,0,0,0,0,0,0,0,0,0,0,0,0,0,0,0,0,0,0,0,0,0,0,0,0,0,0,0,0]
[6,null,"> 33 kV & < = 66 kV ; GIS Module",50,5,0,0,0,0,0,0,0,0,0,0,0,0,0,0,1,0,0,5,0,0,0,0,0,0,0,0,0,0,0,0,0,0,0,0,0,0,0,0,0,0,0,0,0,0,0,0,0,0,0,0,0,0,0,0,0,0,0,0,0,0,0,0,0,0,0,0,0,0,0,0,0,0,0,0,0,0,0,0,0,0,0,0,0,0,0,0,0,0,0,0,0,0,0,0,0,0,0,0,0,0,0,0,0,0,0,0,0]
[0,null,"> 66 kV & < = 132 kV ; GIS Module",0,0,0,0,0,0,0,0,0,0,0,0,0,0,0,0,0,0,0,0,0,0,0,0,0,0,0,0,0,0,0,0,0,0,0,0,0,0,0,0,0,0,0,0,0,0,0,0,0,0,0,0,0,0,0,0,0,0,0,0,0,0,0,0,0,0,0,0,0,0,0,0,0,0,0,0,0,0,0,0,0,0,0,0,0,0,0,0,0,0,0,0,0,0,0,0,0,0,0,0,0,0,0,0,0,0,0,0,0]
[14,null,"> 132 kV & < = 275 kV ; GIS Module",50,5,1,1,0,0,0,0,0,0,0,0,0,0,0,0,0,0,0,0,0,0,0,0,0,0,0,0,0,0,0,0,0,0,0,0,0,0,0,0,0,0,6,0,0,6,0,0,0,0,0,0,0,0,0,0,0,0,0,0,0,0,0,0,0,0,0,0,0,0,0,0,0,0,0,0,0,0,0,0,0,0,0,0,0,0,0,0,0,0,0,0,0,0,0,0,0,0,0,0,0,0,0,0,0,0,0,0,0]
[0,null,"> 275 kV & < = 330 kV ; GIS Module",0,0,0,0,0,0,0,0,0,0,0,0,0,0,0,0,0,0,0,0,0,0,0,0,0,0,0,0,0,0,0,0,0,0,0,0,0,0,0,0,0,0,0,0,0,0,0,0,0,0,0,0,0,0,0,0,0,0,0,0,0,0,0,0,0,0,0,0,0,0,0,0,0,0,0,0,0,0,0,0,0,0,0,0,0,0,0,0,0,0,0,0,0,0,0,0,0,0,0,0,0,0,0,0,0,0,0,0,0]
[26,null,"> 330 kV & < = 500 kV  ; GIS Module",40,5,0,0,0,0,0,0,0,0,0,0,0,0,0,0,0,0,0,0,0,0,0,0,0,0,0,0,0,0,0,0,0,0,3,0,1,7,9,6,0,0,0,0,0,0,0,0,0,0,0,0,0,0,0,0,0,0,0,0,0,0,0,0,0,0,0,0,0,0,0,0,0,0,0,0,0,0,0,0,0,0,0,0,0,0,0,0,0,0,0,0,0,0,0,0,0,0,0,0,0,0,0,0,0,0,0,0,0]
[0,null,"> 500 kV  ; GIS Module",0,0,0,0,0,0,0,0,0,0,0,0,0,0,0,0,0,0,0,0,0,0,0,0,0,0,0,0,0,0,0,0,0,0,0,0,0,0,0,0,0,0,0,0,0,0,0,0,0,0,0,0,0,0,0,0,0,0,0,0,0,0,0,0,0,0,0,0,0,0,0,0,0,0,0,0,0,0,0,0,0,0,0,0,0,0,0,0,0,0,0,0,0,0,0,0,0,0,0,0,0,0,0,0,0,0,0,0,0]
[683,null,"Other",40,5,18,2,373,48,0,4,0,3,5,0,0,0,0,0,8,12,0,0,0,0,0,0,0,0,0,0,0,0,0,0,0,5,0,0,0,8,2,0,0,0,0,0,0,6,0,0,0,6,0,0,12,10,23,11,18,8,0,20,18,0,24,26,0,0,0,0,0,0,0,0,8,0,0,0,0,0,0,0,5,0,0,0,0,0,0,0,0,0,0,0,0,0,0,0,0,0,0,0,0,0,0,0,0,0,0,0,0]
[0,"SUBSTATION POWER TRANSFORMERS BY: \nHighest operating voltage;  Ampere rating","< = 33 kV ; < = 10 MVA",0,0,0,0,0,0,0,0,0,0,0,0,0,0,0,0,0,0,0,0,0,0,0,0,0,0,0,0,0,0,0,0,0,0,0,0,0,0,0,0,0,0,0,0,0,0,0,0,0,0,0,0,0,0,0,0,0,0,0,0,0,0,0,0,0,0,0,0,0,0,0,0,0,0,0,0,0,0,0,0,0,0,0,0,0,0,0,0,0,0,0,0,0,0,0,0,0,0,0,0,0,0,0,0,0,0,0,0,0]
[0,null,"< = 33 kV ; > 10 MVA & < =  30 MVA",0,0,0,0,0,0,0,0,0,0,0,0,0,0,0,0,0,0,0,0,0,0,0,0,0,0,0,0,0,0,0,0,0,0,0,0,0,0,0,0,0,0,0,0,0,0,0,0,0,0,0,0,0,0,0,0,0,0,0,0,0,0,0,0,0,0,0,0,0,0,0,0,0,0,0,0,0,0,0,0,0,0,0,0,0,0,0,0,0,0,0,0,0,0,0,0,0,0,0,0,0,0,0,0,0,0,0,0,0]
[0,null,"< = 33 kV ; > 30 MVA",0,0,0,0,0,0,0,0,0,0,0,0,0,0,0,0,0,0,0,0,0,0,0,0,0,0,0,0,0,0,0,0,0,0,0,0,0,0,0,0,0,0,0,0,0,0,0,0,0,0,0,0,0,0,0,0,0,0,0,0,0,0,0,0,0,0,0,0,0,0,0,0,0,0,0,0,0,0,0,0,0,0,0,0,0,0,0,0,0,0,0,0,0,0,0,0,0,0,0,0,0,0,0,0,0,0,0,0,0]
[0,null,"> 33 kV & < = 66 kV  ; < = 10 MVA",0,0,0,0,0,0,0,0,0,0,0,0,0,0,0,0,0,0,0,0,0,0,0,0,0,0,0,0,0,0,0,0,0,0,0,0,0,0,0,0,0,0,0,0,0,0,0,0,0,0,0,0,0,0,0,0,0,0,0,0,0,0,0,0,0,0,0,0,0,0,0,0,0,0,0,0,0,0,0,0,0,0,0,0,0,0,0,0,0,0,0,0,0,0,0,0,0,0,0,0,0,0,0,0,0,0,0,0,0]
[0,null,"> 33 kV & < = 66 kV  ; > 10 MVA & < =  30 MVA",0,0,0,0,0,0,0,0,0,0,0,0,0,0,0,0,0,0,0,0,0,0,0,0,0,0,0,0,0,0,0,0,0,0,0,0,0,0,0,0,0,0,0,0,0,0,0,0,0,0,0,0,0,0,0,0,0,0,0,0,0,0,0,0,0,0,0,0,0,0,0,0,0,0,0,0,0,0,0,0,0,0,0,0,0,0,0,0,0,0,0,0,0,0,0,0,0,0,0,0,0,0,0,0,0,0,0,0,0]
[6,null,"> 33 kV & < = 66 kV  ; > 30 MVA",50,10,0,0,0,0,0,0,0,0,0,0,0,2,1,0,0,0,0,0,0,0,0,0,0,0,0,0,0,0,0,0,0,0,0,0,0,1,2,0,0,0,0,0,0,0,0,0,0,0,0,0,0,0,0,0,0,0,0,0,0,0,0,0,0,0,0,0,0,0,0,0,0,0,0,0,0,0,0,0,0,0,0,0,0,0,0,0,0,0,0,0,0,0,0,0,0,0,0,0,0,0,0,0,0,0,0,0,0]
[0,null,"> 66 kV & < = 132 kV  ; < = 30 MVA",0,0,0,0,0,0,0,0,0,0,0,0,0,0,0,0,0,0,0,0,0,0,0,0,0,0,0,0,0,0,0,0,0,0,0,0,0,0,0,0,0,0,0,0,0,0,0,0,0,0,0,0,0,0,0,0,0,0,0,0,0,0,0,0,0,0,0,0,0,0,0,0,0,0,0,0,0,0,0,0,0,0,0,0,0,0,0,0,0,0,0,0,0,0,0,0,0,0,0,0,0,0,0,0,0,0,0,0,0]
[0,null,"> 66 kV & < = 132 kV  ; > 30 MVA & < =  60 MVA",0,0,0,0,0,0,0,0,0,0,0,0,0,0,0,0,0,0,0,0,0,0,0,0,0,0,0,0,0,0,0,0,0,0,0,0,0,0,0,0,0,0,0,0,0,0,0,0,0,0,0,0,0,0,0,0,0,0,0,0,0,0,0,0,0,0,0,0,0,0,0,0,0,0,0,0,0,0,0,0,0,0,0,0,0,0,0,0,0,0,0,0,0,0,0,0,0,0,0,0,0,0,0,0,0,0,0,0,0]
[0,null,"> 66 kV & < = 132 kV  ; > 60 MVA",0,0,0,0,0,0,0,0,0,0,0,0,0,0,0,0,0,0,0,0,0,0,0,0,0,0,0,0,0,0,0,0,0,0,0,0,0,0,0,0,0,0,0,0,0,0,0,0,0,0,0,0,0,0,0,0,0,0,0,0,0,0,0,0,0,0,0,0,0,0,0,0,0,0,0,0,0,0,0,0,0,0,0,0,0,0,0,0,0,0,0,0,0,0,0,0,0,0,0,0,0,0,0,0,0,0,0,0,0]
[11,null,"> 132 kV & < = 220 kV  ; < = 50 MVA",50,10,0,0,0,0,0,0,0,0,0,0,0,0,0,2,3,0,0,0,0,0,0,0,0,0,0,0,0,0,0,0,0,0,1,0,1,0,0,0,0,0,0,0,0,0,0,0,0,0,0,0,0,0,0,0,0,0,4,0,0,0,0,0,0,0,0,0,0,0,0,0,0,0,0,0,0,0,0,0,0,0,0,0,0,0,0,0,0,0,0,0,0,0,0,0,0,0,0,0,0,0,0,0,0,0,0,0,0]
[22,null,"> 132 kV & < = 220 kV  ; > 50 MVA & < =  100 MVA",50,10,0,0,3,0,0,3,3,2,0,0,0,1,3,1,0,0,0,0,0,0,0,0,0,0,0,0,0,0,0,0,0,1,0,0,0,0,2,0,0,0,0,0,0,0,1,0,0,0,0,0,0,0,0,0,0,0,0,0,0,0,0,0,0,1,0,0,0,0,1,0,0,0,0,0,0,0,0,0,0,0,0,0,0,0,0,0,0,0,0,0,0,0,0,0,0,0,0,0,0,0,0,0,0,0,0,0,0]
[79,null,"> 132 kV & < = 220 kV  ; > 100 MVA",50,10,5,2,4,1,1,7,4,2,3,4,1,6,1,0,3,1,0,2,1,0,2,0,0,0,0,0,0,1,0,1,0,0,0,2,2,1,0,2,0,0,1,0,0,0,0,0,0,1,5,1,2,5,2,1,2,0,0,0,0,0,0,0,0,0,0,0,0,0,0,0,0,0,0,0,0,0,0,0,0,0,0,0,0,0,0,0,0,0,0,0,0,0,0,0,0,0,0,0,0,0,0,0,0,0,0,0,0]
[0,null,"> 220 kV & < = 275 kV  ; < = 50 MVA",0,0,0,0,0,0,0,0,0,0,0,0,0,0,0,0,0,0,0,0,0,0,0,0,0,0,0,0,0,0,0,0,0,0,0,0,0,0,0,0,0,0,0,0,0,0,0,0,0,0,0,0,0,0,0,0,0,0,0,0,0,0,0,0,0,0,0,0,0,0,0,0,0,0,0,0,0,0,0,0,0,0,0,0,0,0,0,0,0,0,0,0,0,0,0,0,0,0,0,0,0,0,0,0,0,0,0,0,0]
[0,null,"> 220 kV & < = 275 kV  ; > 50 MVA & < =  100 MVA",0,0,0,0,0,0,0,0,0,0,0,0,0,0,0,0,0,0,0,0,0,0,0,0,0,0,0,0,0,0,0,0,0,0,0,0,0,0,0,0,0,0,0,0,0,0,0,0,0,0,0,0,0,0,0,0,0,0,0,0,0,0,0,0,0,0,0,0,0,0,0,0,0,0,0,0,0,0,0,0,0,0,0,0,0,0,0,0,0,0,0,0,0,0,0,0,0,0,0,0,0,0,0,0,0,0,0,0,0]
[0,null,"> 220 kV & < = 275 kV  ; > 100 MVA",0,0,0,0,0,0,0,0,0,0,0,0,0,0,0,0,0,0,0,0,0,0,0,0,0,0,0,0,0,0,0,0,0,0,0,0,0,0,0,0,0,0,0,0,0,0,0,0,0,0,0,0,0,0,0,0,0,0,0,0,0,0,0,0,0,0,0,0,0,0,0,0,0,0,0,0,0,0,0,0,0,0,0,0,0,0,0,0,0,0,0,0,0,0,0,0,0,0,0,0,0,0,0,0,0,0,0,0,0]
[7,null,"> 275 kV & < = 330 kV  ; < = 100 MVA",50,10,0,0,0,0,0,0,0,0,0,0,0,0,0,0,0,0,0,0,0,0,0,0,0,0,0,0,0,0,0,0,0,0,2,0,0,0,0,0,0,0,0,0,0,0,0,0,0,0,0,0,0,0,0,0,0,1,0,0,0,4,0,0,0,0,0,0,0,0,0,0,0,0,0,0,0,0,0,0,0,0,0,0,0,0,0,0,0,0,0,0,0,0,0,0,0,0,0,0,0,0,0,0,0,0,0,0,0]
[8,null,"> 275 kV & < = 330 kV  ; > 100 MVA & < =  250 MVA",50,10,0,0,0,0,0,0,0,0,0,0,0,0,0,0,0,0,1,0,0,0,0,0,0,0,0,0,0,0,0,0,0,0,0,0,0,0,0,0,0,1,0,0,0,0,0,0,0,0,0,0,3,3,0,0,0,0,0,0,0,0,0,0,0,0,0,0,0,0,0,0,0,0,0,0,0,0,0,0,0,0,0,0,0,0,0,0,0,0,0,0,0,0,0,0,0,0,0,0,0,0,0,0,0,0,0,0,0]
[0,null,"> 275 kV & < = 330 kV  ; > 250 MVA",50,10,0,0,0,0,0,0,0,0,0,0,0,0,0,0,0,0,0,0,0,0,0,0,0,0,0,0,0,0,0,0,0,0,0,0,0,0,0,0,0,0,0,0,0,0,0,0,0,0,0,0,0,0,0,0,0,0,0,0,0,0,0,0,0,0,0,0,0,0,0,0,0,0,0,0,0,0,0,0,0,0,0,0,0,0,0,0,0,0,0,0,0,0,0,0,0,0,0,0,0,0,0,0,0,0,0,0,0]
[0,null,"> 330 kV & < = 500 kV   ; < = 150 MVA",50,10,0,0,0,0,0,0,0,0,0,0,0,0,0,0,0,0,0,0,0,0,0,0,0,0,0,0,0,0,0,0,0,0,0,0,0,0,0,0,0,0,0,0,0,0,0,0,0,0,0,0,0,0,0,0,0,0,0,0,0,0,0,0,0,0,0,0,0,0,0,0,0,0,0,0,0,0,0,0,0,0,0,0,0,0,0,0,0,0,0,0,0,0,0,0,0,0,0,0,0,0,0,0,0,0,0,0,0]
[{"$f":"SUM(F140:DH140)","v":20},null,"> 330 kV & < = 500 kV   ; > 150 MVA & < =  300 MVA",50,10,0,0,0,0,0,0,0,0,0,0,0,0,0,0,0,0,0,0,0,0,0,0,0,0,0,0,0,0,0,0,0,0,0,0,0,0,0,0,0,0,0,0,0,0,0,0,0,4,15,0,1,0,0,0,0,0,0,0,0,0,0,0,0,0,0,0,0,0,0,0,0,0,0,0,0,0,0,0,0,0,0,0,0,0,0,0,0,0,0,0,0,0,0,0,0,0,0,0,0,0,0,0,0,0,0,0,0]
[11,null,"> 330 kV & < = 500 kV   ; > 300 MVA",50,10,0,0,0,0,0,0,0,0,0,0,0,0,0,1,0,0,0,0,0,0,0,0,0,0,0,0,0,0,0,2,0,0,0,0,0,3,4,0,0,1,0,0,0,0,0,0,0,0,0,0,0,0,0,0,0,0,0,0,0,0,0,0,0,0,0,0,0,0,0,0,0,0,0,0,0,0,0,0,0,0,0,0,0,0,0,0,0,0,0,0,0,0,0,0,0,0,0,0,0,0,0,0,0,0,0,0,0]
[0,null,"> 500 kV   ; < = 1000 MVA",50,10,0,0,0,0,0,0,0,0,0,0,0,0,0,0,0,0,0,0,0,0,0,0,0,0,0,0,0,0,0,0,0,0,0,0,0,0,0,0,0,0,0,0,0,0,0,0,0,0,0,0,0,0,0,0,0,0,0,0,0,0,0,0,0,0,0,0,0,0,0,0,0,0,0,0,0,0,0,0,0,0,0,0,0,0,0,0,0,0,0,0,0,0,0,0,0,0,0,0,0,0,0,0,0,0,0,0,0]
[0,null,"> 500 kV   ; > 1000 MVA & < =  1500 MVA",0,0,0,0,0,0,0,0,0,0,0,0,0,0,0,0,0,0,0,0,0,0,0,0,0,0,0,0,0,0,0,0,0,0,0,0,0,0,0,0,0,0,0,0,0,0,0,0,0,0,0,0,0,0,0,0,0,0,0,0,0,0,0,0,0,0,0,0,0,0,0,0,0,0,0,0,0,0,0,0,0,0,0,0,0,0,0,0,0,0,0,0,0,0,0,0,0,0,0,0,0,0,0,0,0,0,0,0,0]
[0,null,"> 500 kV   ; > 1500 MVA",0,0,0,0,0,0,0,0,0,0,0,0,0,0,0,0,0,0,0,0,0,0,0,0,0,0,0,0,0,0,0,0,0,0,0,0,0,0,0,0,0,0,0,0,0,0,0,0,0,0,0,0,0,0,0,0,0,0,0,0,0,0,0,0,0,0,0,0,0,0,0,0,0,0,0,0,0,0,0,0,0,0,0,0,0,0,0,0,0,0,0,0,0,0,0,0,0,0,0,0,0,0,0,0,0,0,0,0,0]
[1,null,"Other",50,10,0,0,0,1,0,0,0,0,0,0,0,0,0,0,0,0,0,0,0,0,0,0,0,0,0,0,0,0,0,0,0,0,0,0,0,0,0,0,0,0,0,0,0,0,0,0,0,0,0,0,0,0,0,0,0,0,0,0,0,0,0,0,0,0,0,0,0,0,0,0,0,0,0,0,0,0,0,0,0,0,0,0,0,0,0,0,0,0,0,0,0,0,0,0,0,0,0,0,0,0,0,0,0,0,0,0,0]
[0,"SUBSTATION REACTIVE PLANT BY: \nHighest operating voltage; Function","< = 33 kV;  SVCS",0,0,0,0,0,0,0,0,0,0,0,0,0,0,0,0,0,0,0,0,0,0,0,0,0,0,0,0,0,0,0,0,0,0,0,0,0,0,0,0,0,0,0,0,0,0,0,0,0,0,0,0,0,0,0,0,0,0,0,0,0,0,0,0,0,0,0,0,0,0,0,0,0,0,0,0,0,0,0,0,0,0,0,0,0,0,0,0,0,0,0,0,0,0,0,0,0,0,0,0,0,0,0,0,0,0,0,0,0]
[0,null,"> 33 kV & < = 66 kV ;  SVCS",0,0,0,0,0,0,0,0,0,0,0,0,0,0,0,0,0,0,0,0,0,0,0,0,0,0,0,0,0,0,0,0,0,0,0,0,0,0,0,0,0,0,0,0,0,0,0,0,0,0,0,0,0,0,0,0,0,0,0,0,0,0,0,0,0,0,0,0,0,0,0,0,0,0,0,0,0,0,0,0,0,0,0,0,0,0,0,0,0,0,0,0,0,0,0,0,0,0,0,0,0,0,0,0,0,0,0,0,0]
[0,null,"> 66 kV & < = 132 kV ;  SVCS",0,0,0,0,0,0,0,0,0,0,0,0,0,0,0,0,0,0,0,0,0,0,0,0,0,0,0,0,0,0,0,0,0,0,0,0,0,0,0,0,0,0,0,0,0,0,0,0,0,0,0,0,0,0,0,0,0,0,0,0,0,0,0,0,0,0,0,0,0,0,0,0,0,0,0,0,0,0,0,0,0,0,0,0,0,0,0,0,0,0,0,0,0,0,0,0,0,0,0,0,0,0,0,0,0,0,0,0,0]
[4,null,"> 132 kV & < = 275 kV ;  SVCS",40,5,0,0,0,0,0,0,0,0,0,0,0,0,0,0,0,0,0,0,0,0,0,0,0,0,0,0,0,0,0,0,0,0,2,0,0,2,0,0,0,0,0,0,0,0,0,0,0,0,0,0,0,0,0,0,0,0,0,0,0,0,0,0,0,0,0,0,0,0,0,0,0,0,0,0,0,0,0,0,0,0,0,0,0,0,0,0,0,0,0,0,0,0,0,0,0,0,0,0,0,0,0,0,0,0,0,0,0]
[0,null,"> 275 kV & < = 330 kV ;  SVCS",0,0,0,0,0,0,0,0,0,0,0,0,0,0,0,0,0,0,0,0,0,0,0,0,0,0,0,0,0,0,0,0,0,0,0,0,0,0,0,0,0,0,0,0,0,0,0,0,0,0,0,0,0,0,0,0,0,0,0,0,0,0,0,0,0,0,0,0,0,0,0,0,0,0,0,0,0,0,0,0,0,0,0,0,0,0,0,0,0,0,0,0,0,0,0,0,0,0,0,0,0,0,0,0,0,0,0,0,0]
[0,null,"> 330 kV & < = 500 kV  ;  SVCS",0,0,0,0,0,0,0,0,0,0,0,0,0,0,0,0,0,0,0,0,0,0,0,0,0,0,0,0,0,0,0,0,0,0,0,0,0,0,0,0,0,0,0,0,0,0,0,0,0,0,0,0,0,0,0,0,0,0,0,0,0,0,0,0,0,0,0,0,0,0,0,0,0,0,0,0,0,0,0,0,0,0,0,0,0,0,0,0,0,0,0,0,0,0,0,0,0,0,0,0,0,0,0,0,0,0,0,0,0]
[0,null,"> 500 kV  ;  SVCS",0,0,0,0,0,0,0,0,0,0,0,0,0,0,0,0,0,0,0,0,0,0,0,0,0,0,0,0,0,0,0,0,0,0,0,0,0,0,0,0,0,0,0,0,0,0,0,0,0,0,0,0,0,0,0,0,0,0,0,0,0,0,0,0,0,0,0,0,0,0,0,0,0,0,0,0,0,0,0,0,0,0,0,0,0,0,0,0,0,0,0,0,0,0,0,0,0,0,0,0,0,0,0,0,0,0,0,0,0]
[5,null,"< = 33 kV;  Capacitors",40,5,0,0,0,0,0,0,0,0,0,0,0,0,0,0,0,2,0,0,0,0,0,0,0,0,0,0,0,0,0,0,0,0,0,0,0,0,0,0,0,2,0,1,0,0,0,0,0,0,0,0,0,0,0,0,0,0,0,0,0,0,0,0,0,0,0,0,0,0,0,0,0,0,0,0,0,0,0,0,0,0,0,0,0,0,0,0,0,0,0,0,0,0,0,0,0,0,0,0,0,0,0,0,0,0,0,0,0]
[41,null,"> 33 kV & < = 66 kV ;  Capacitors",40,5,0,0,0,0,1,0,0,0,0,3,0,0,0,7,0,0,0,2,1,6,0,0,3,6,0,1,0,0,1,7,0,0,0,0,0,0,2,0,0,0,1,0,0,0,0,0,0,0,0,0,0,0,0,0,0,0,0,0,0,0,0,0,0,0,0,0,0,0,0,0,0,0,0,0,0,0,0,0,0,0,0,0,0,0,0,0,0,0,0,0,0,0,0,0,0,0,0,0,0,0,0,0,0,0,0,0,0]
[0,null,"> 66 kV & < = 132 kV ;  Capacitors",0,0,0,0,0,0,0,0,0,0,0,0,0,0,0,0,0,0,0,0,0,0,0,0,0,0,0,0,0,0,0,0,0,0,0,0,0,0,0,0,0,0,0,0,0,0,0,0,0,0,0,0,0,0,0,0,0,0,0,0,0,0,0,0,0,0,0,0,0,0,0,0,0,0,0,0,0,0,0,0,0,0,0,0,0,0,0,0,0,0,0,0,0,0,0,0,0,0,0,0,0,0,0,0,0,0,0,0,0]
[13,null,"> 132 kV & < = 275 kV ;  Capacitors",40,5,0,0,0,0,0,0,0,0,0,0,0,0,0,3,0,0,0,0,1,2,1,3,1,0,2,0,0,0,0,0,0,0,0,0,0,0,0,0,0,0,0,0,0,0,0,0,0,0,0,0,0,0,0,0,0,0,0,0,0,0,0,0,0,0,0,0,0,0,0,0,0,0,0,0,0,0,0,0,0,0,0,0,0,0,0,0,0,0,0,0,0,0,0,0,0,0,0,0,0,0,0,0,0,0,0,0,0]
[0,null,"> 275 kV & < = 330 kV ;  Capacitors",40,5,0,0,0,0,0,0,0,0,0,0,0,0,0,0,0,0,0,0,0,0,0,0,0,0,0,0,0,0,0,0,0,0,0,0,0,0,0,0,0,0,0,0,0,0,0,0,0,0,0,0,0,0,0,0,0,0,0,0,0,0,0,0,0,0,0,0,0,0,0,0,0,0,0,0,0,0,0,0,0,0,0,0,0,0,0,0,0,0,0,0,0,0,0,0,0,0,0,0,0,0,0,0,0,0,0,0,0]
[0,null,"> 330 kV & < = 500 kV  ;  Capacitors",0,0,0,0,0,0,0,0,0,0,0,0,0,0,0,0,0,0,0,0,0,0,0,0,0,0,0,0,0,0,0,0,0,0,0,0,0,0,0,0,0,0,0,0,0,0,0,0,0,0,0,0,0,0,0,0,0,0,0,0,0,0,0,0,0,0,0,0,0,0,0,0,0,0,0,0,0,0,0,0,0,0,0,0,0,0,0,0,0,0,0,0,0,0,0,0,0,0,0,0,0,0,0,0,0,0,0,0,0]
[0,null,"> 500 kV  ;  Capacitors",0,0,0,0,0,0,0,0,0,0,0,0,0,0,0,0,0,0,0,0,0,0,0,0,0,0,0,0,0,0,0,0,0,0,0,0,0,0,0,0,0,0,0,0,0,0,0,0,0,0,0,0,0,0,0,0,0,0,0,0,0,0,0,0,0,0,0,0,0,0,0,0,0,0,0,0,0,0,0,0,0,0,0,0,0,0,0,0,0,0,0,0,0,0,0,0,0,0,0,0,0,0,0,0,0,0,0,0,0]
[2,null,"< = 33 kV;  Oil Filled Reactors",40,5,0,0,0,0,0,0,0,0,0,0,0,0,0,0,0,0,0,0,0,0,0,0,0,0,0,0,0,0,0,0,0,0,0,0,0,2,0,0,0,0,0,0,0,0,0,0,0,0,0,0,0,0,0,0,0,0,0,0,0,0,0,0,0,0,0,0,0,0,0,0,0,0,0,0,0,0,0,0,0,0,0,0,0,0,0,0,0,0,0,0,0,0,0,0,0,0,0,0,0,0,0,0,0,0,0,0,0]
[6,null,"> 33 kV & < = 66 kV ;  Oil Filled Reactors",40,5,0,0,0,0,0,0,0,0,0,1,0,0,0,0,2,1,0,0,0,0,0,0,0,0,0,0,0,0,0,0,0,0,0,0,0,0,0,0,0,0,0,0,0,0,0,0,0,0,0,0,0,0,0,2,0,0,0,0,0,0,0,0,0,0,0,0,0,0,0,0,0,0,0,0,0,0,0,0,0,0,0,0,0,0,0,0,0,0,0,0,0,0,0,0,0,0,0,0,0,0,0,0,0,0,0,0,0]
[0,null,"> 66 kV & < = 132 kV ;  Oil Filled Reactors",0,0,0,0,0,0,0,0,0,0,0,0,0,0,0,0,0,0,0,0,0,0,0,0,0,0,0,0,0,0,0,0,0,0,0,0,0,0,0,0,0,0,0,0,0,0,0,0,0,0,0,0,0,0,0,0,0,0,0,0,0,0,0,0,0,0,0,0,0,0,0,0,0,0,0,0,0,0,0,0,0,0,0,0,0,0,0,0,0,0,0,0,0,0,0,0,0,0,0,0,0,0,0,0,0,0,0,0,0]
[1,null,"> 132 kV & < = 275 kV ;  Oil Filled Reactors",40,5,0,0,0,0,0,0,0,0,0,0,0,0,0,0,0,0,0,0,0,0,0,0,0,0,0,0,0,0,0,0,0,0,0,0,0,1,0,0,0,0,0,0,0,0,0,0,0,0,0,0,0,0,0,0,0,0,0,0,0,0,0,0,0,0,0,0,0,0,0,0,0,0,0,0,0,0,0,0,0,0,0,0,0,0,0,0,0,0,0,0,0,0,0,0,0,0,0,0,0,0,0,0,0,0,0,0,0]
[0,null,"> 275 kV & < = 330 kV ;  Oil Filled Reactors",40,5,0,0,0,0,0,0,0,0,0,0,0,0,0,0,0,0,0,0,0,0,0,0,0,0,0,0,0,0,0,0,0,0,0,0,0,0,0,0,0,0,0,0,0,0,0,0,0,0,0,0,0,0,0,0,0,0,0,0,0,0,0,0,0,0,0,0,0,0,0,0,0,0,0,0,0,0,0,0,0,0,0,0,0,0,0,0,0,0,0,0,0,0,0,0,0,0,0,0,0,0,0,0,0,0,0,0,0]
[2,null,"> 330 kV & < = 500 kV  ;  Oil Filled Reactors",40,5,0,0,0,0,0,0,0,0,0,0,0,0,0,0,0,0,0,0,0,0,0,0,0,0,0,0,0,0,0,0,0,0,0,0,0,2,0,0,0,0,0,0,0,0,0,0,0,0,0,0,0,0,0,0,0,0,0,0,0,0,0,0,0,0,0,0,0,0,0,0,0,0,0,0,0,0,0,0,0,0,0,0,0,0,0,0,0,0,0,0,0,0,0,0,0,0,0,0,0,0,0,0,0,0,0,0,0]
[0,null,"> 500 kV  ;  Oil Filled Reactors",0,0,0,0,0,0,0,0,0,0,0,0,0,0,0,0,0,0,0,0,0,0,0,0,0,0,0,0,0,0,0,0,0,0,0,0,0,0,0,0,0,0,0,0,0,0,0,0,0,0,0,0,0,0,0,0,0,0,0,0,0,0,0,0,0,0,0,0,0,0,0,0,0,0,0,0,0,0,0,0,0,0,0,0,0,0,0,0,0,0,0,0,0,0,0,0,0,0,0,0,0,0,0,0,0,0,0,0,0]
[394,null,"Other",34,2,4,4,20,9,1,7,11,8,8,17,8,2,4,46,0,6,2,7,12,24,3,6,3,12,12,3,0,0,3,22,0,1,20,0,2,24,14,0,0,2,0,3,0,0,0,0,1,6,3,1,3,3,11,3,10,0,0,4,2,0,7,2,0,0,0,0,0,0,6,0,0,0,0,0,0,0,0,0,2,0,0,0,0,0,0,0,0,0,0,0,0,0,0,0,0,0,0,0,0,0,0,0,0,0,0,0,0]
[12346.000000000002,"SCADA, NETWORK CONTROL AND PROTECTION SYSTEMS BY:\nFunction","Communications Network Assets",24,5,81,48,61.155984625011172,9.82864038616251,61.155984625011172,187.83623849110575,378.94869044426565,146.33753463841958,1288.6439617413068,608.28363278805762,224.96665772771968,91.733976937516758,556.95628854920892,2449.5155984625012,174.73138464288905,120.12782694198623,33.854205774559759,9.82864038616251,4556.1208545633326,10.920711540180566,13.104853848216679,18.565209618306962,8.7365692321444541,87.365692321444527,5.4603557700902829,8.7365692321444541,0,2.1841423080361135,263.18914811835168,12.012782694198624,9.82864038616251,6.5524269241083397,0,26.209707696433359,2.1841423080361135,4.3682846160722271,20.749351926343078,6.5524269241083397,423.72360775900597,6.5524269241083397,8.7365692321444541,3.2762134620541699,1.0920711540180568,2.1841423080361135,0,5.4603557700902829,0,10.920711540180566,15.288996156252793,5.4603557700902829,16.381067310270851,5.4603557700902829,9.82864038616251,112.48332886385984,15.288996156252793,2.1841423080361135,1.0920711540180568,18.565209618306962,6.5524269241083397,0,4.3682846160722271,28.393850004469474,0,0,0,0,2.1841423080361135,0,0,0,2.1841423080361135,2.1841423080361135,0,0,0,0,0,0,40.406632698668098,0,0,0,0,0,0,0,0,0,0,0,0,0,0,0,0,0,0,0,0,0,0,0,0,0,0,0,0]
[0,null,"Master Station Assets",0,0,0,0,0,0,0,0,0,0,0,0,0,0,0,0,0,0,0,0,0,0,0,0,0,0,0,0,0,0,0,0,0,0,0,0,0,0,0,0,0,0,0,0,0,0,0,0,0,0,0,0,0,0,0,0,0,0,0,0,0,0,0,0,0,0,0,0,0,0,0,0,0,0,0,0,0,0,0,0,0,0,0,0,0,0,0,0,0,0,0,0,0,0,0,0,0,0,0,0,0,0,0,0,0,0,0,0,0]
[840,null,"Control equipment / systems",20,5,4,23,18.384422110552762,1.0213567839195981,16.341708542713569,28.597989949748744,30.640703517587941,16.341708542713569,1.0213567839195981,3.0640703517587942,23.491206030150753,20.427135678391959,25.53391959798995,34.726130653266331,13.277638190954773,8.1708542713567844,27.576633165829147,7.1494974874371859,40.854271356783919,2.0427135678391961,0,11.234924623115578,1.0213567839195981,16.341708542713569,0,22.469849246231156,76.60175879396985,144.01130653266333,40.854271356783919,62.302763819095475,22.469849246231156,0,0,28.597989949748744,9.1922110552763812,42.896984924623112,0,0,2.0427135678391961,0,0,0,0,13.277638190954773,0,0,0,0,0,0,0,0,0,0,0,0,0,1.0213567839195981,0,0,0,0,0,0,0,0,0,0,0,0,0,0,0,0,0,0,0,0,0,0,0,0,0,0,0,0,0,0,0,0,0,0,0,0,0,0,0,0,0,0,0,0,0,0,0,0,0]
[925,null,"Infrastructure: protection and control",20,5,26,11,49.67832167832168,96.251748251748253,65.2027972027972,44.503496503496507,21.734265734265733,17.594405594405593,49.67832167832168,8.27972027972028,41.3986013986014,48.64335664335664,40.363636363636367,34.153846153846153,28.97902097902098,12.41958041958042,13.454545454545455,6.20979020979021,17.594405594405593,10.34965034965035,4.13986013986014,6.20979020979021,4.13986013986014,10.34965034965035,3.104895104895105,7.244755244755245,0,4.13986013986014,3.104895104895105,4.13986013986014,1.034965034965035,6.20979020979021,0,0,0,4.13986013986014,19.664335664335663,5.174825174825175,11.384615384615385,1.034965034965035,1.034965034965035,1.034965034965035,2.06993006993007,2.06993006993007,0,11.384615384615385,2.06993006993007,6.20979020979021,9.314685314685315,3.104895104895105,23.804195804195803,5.174825174825175,5.174825174825175,28.97902097902098,13.454545454545455,0,3.104895104895105,13.454545454545455,17.594405594405593,0,3.104895104895105,20.6993006993007,0,0,0,0,0,0,4.13986013986014,0,8.27972027972028,0,0,0,0,0,0,0,1.034965034965035,0,0,0,0,0,0,0,0,0,0,0,0,0,0,0,0,0,0,0,0,0,0,0,0,0,0,0,0]
[898.99999999999977,null,"Metering systems",20,5,2,0,19.021205357142858,0,7.0078125,11.012276785714286,27.030133928571427,21.0234375,4.0044642857142856,300.33482142857144,126.140625,4.0044642857142856,2.0022321428571428,17.018973214285715,1.0011160714285714,0,0,0,0,0,0,0,0,0,0,42.046875,19.021205357142858,26.029017857142858,16.017857142857142,2.0022321428571428,1.0011160714285714,17.018973214285715,0,5.0055803571428568,0,0,3.0033482142857144,0,6.0066964285714288,0,0,0,0,2.0022321428571428,0,3.0033482142857144,0,2.0022321428571428,5.0055803571428568,4.0044642857142856,9.0100446428571423,4.0044642857142856,7.0078125,7.0078125,9.0100446428571423,3.0033482142857144,1.0011160714285714,56.0625,45.050223214285715,0,12.013392857142858,39.043526785714285,0,0,0,0,2.0022321428571428,0,3.0033482142857144,0,6.0066964285714288,1.0011160714285714,0,0,0,0,0,0,0,0,0,0,0,0,0,0,0,0,0,0,0,0,0,0,0,0,0,0,0,0,0,0,0,0,0,0,0]
[1906.1175899999987,null,"OPGW",35,6.5,11,0.37002000000000002,38.717959999999991,0.54210000000000003,0,0,1.4838,0.75670000000000015,0,16.029699999999998,0,37.54581000000001,0,0,4.2999999999999997E-2,0,4.3752000000000004,0,0,0,0,0.63080000000000003,0,0,0.43369999999999997,0.1925,0,0,0.31159999999999999,5.0334000000000003,1.3542000000000001,7.7040000000000006,19.171500000000002,12.823899999999998,61.543649999999992,42.11119999999999,12.462299999999999,371.63354999999967,208.6846000000001,63.756639999999983,0.629,0,23.229599999999991,2.8000000000000001E-2,1.0626,11.522300000000005,0.78069999999999995,5.2837199999999998,0.79049999999999998,17.723500000000005,12.988189999999998,10.135199999999999,6.2534000000000001,35.835099999999997,92.941159999999982,8.5199999999999998E-2,160.27541000000008,14.462900000000001,14.787799999999997,0,101.40689999999998,171.43549999999991,0,0,2.5000000000000001E-2,75.135499999999965,0,0,230.58857999999927,0,0,0,0,0,0,0,0,0,0,0,0,0,0,0,0,0,0,0,0,0,0,0,0,0,0,0,0,0,0,0,0,0,0,0,0,0,0]
[6566.0000000000009,null,"Protection schemes / systems",25,5,135,125,571.14022319262494,147.88452207666182,299.84861717612807,304.94808345463366,542.58321203299374,331.46530810286271,168.28238719068415,100.96943231441048,258.03299369238232,414.07666181465311,376.34061135371178,332.48520135856381,203.97865114022321,58.133915574963609,69.352741387675891,111.16836487142164,62.213488597768077,36.716157205240172,0,0,0,0,0,117.28772440562834,339.62445414847161,794.49684619116931,329.42552159146044,199.89907811741872,75.472100921882586,0,0,0,0,0,1.019893255701116,0,0,0,0,0,0,0,0,0,0,0,0,0,0,0,0,0,0,0,0,0,0,0,0,0,0,0,0,0,0,0,0,0,0,0,0,0,0,0,0,0,59.153808830664723,0,0,0,0,0,0,0,0,0,0,0,0,0,0,0,0,0,0,0,0,0,0,0,0,0,0,0,0]
[62,null,"Site establishment",0,0,0,0,0,0,0,0,2.0327868852459017,0,0,0,0,0,14.229508196721312,0,0,0,0,0,0,0,0,0,0,0,0,0,0,0,0,1.0163934426229508,0,2.0327868852459017,1.0163934426229508,0,0,2.0327868852459017,4.0655737704918034,0,0,0,0,0,0,0,0,0,0,0,0,0,2.0327868852459017,0,0,7.1147540983606561,9.1475409836065573,0,0,5.081967213114754,0,0,5.081967213114754,2.0327868852459017,0,0,0,0,0,0,3.0491803278688523,0,0,2.0327868852459017,0,0,0,0,0,0,0,0,0,0,0,0,0,0,0,0,0,0,0,0,0,0,0,0,0,0,0,0,0,0,0,0,0,0,0]
[67,null,"Station SCADA and control systems",12,2.5,0,1,2,0,0,0,1,1,1,2,1,1,0,1,10,0,10,1,1,0,0,0,0,13,0,0,0,0,0,0,0,0,0,14,0,0,0,0,1,0,0,0,0,6,0,0,0,0,0,0,0,0,0,0,0,0,0,0,0,0,0,0,0,0,0,0,0,0,0,0,0,0,0,0,0,0,0,0,0,0,0,0,0,0,0,0,0,0,0,0,0,0,0,0,0,0,0,0,0,0,0,0,0,0,0,0,0]
[0,null,"Telecommunications Network / Systems",0,0,0,0,0,0,0,0,0,0,0,0,0,0,0,0,0,0,0,0,0,0,0,0,0,0,0,0,0,0,0,0,0,0,0,0,0,0,0,0,0,0,0,0,0,0,0,0,0,0,0,0,0,0,0,0,0,0,0,0,0,0,0,0,0,0,0,0,0,0,0,0,0,0,0,0,0,0,0,0,0,0,0,0,0,0,0,0,0,0,0,0,0,0,0,0,0,0,0,0,0,0,0,0,0,0,0,0,0]
[59,null,"Total secondary systems",20,5,0,0,0,0,0,2,0,4,0,0,0,2,0,2,0,0,0,0,0,0,0,0,0,0,0,4,6,21,9,5,4,0,0,0,0,0,0,0,0,0,0,0,0,0,0,0,0,0,0,0,0,0,0,0,0,0,0,0,0,0,0,0,0,0,0,0,0,0,0,0,0,0,0,0,0,0,0,0,0,0,0,0,0,0,0,0,0,0,0,0,0,0,0,0,0,0,0,0,0,0,0,0,0,0,0,0,0]
[0,null,"Other",20,5,0,0,0,0,0,0,0,0,0,0,0,0,0,0,0,0,0,0,0,0,0,0,0,0,0,0,0,0,0,0,0,0,0,0,0,0,0,0,0,0,0,0,0,0,0,0,0,0,0,0,0,0,0,0,0,0,0,0,0,0,0,0,0,0,0,0,0,0,0,0,0,0,0,0,0,0,0,0,0,0,0,0,0,0,0,0,0,0,0,0,0,0,0,0,0,0,0,0,0,0,0,0,0,0,0,0,0]
[45,"OTHER BY: \nTNSP defined","GENERATORS AND MOTORS",20,5,3,0,1,2,2,2,4,1,0,0,1,1,0,2,0,0,0,0,0,0,0,0,0,0,0,0,0,0,0,1,0,1,2,0,0,0,1,0,0,0,0,0,0,0,0,1,0,0,2,0,1,2,0,7,1,0,2,1,0,0,0,0,0,0,0,0,0,0,1,0,0,0,0,0,0,0,0,0,3,0,0,0,0,0,0,0,0,0,0,0,0,0,0,0,0,0,0,0,0,0,0,0,0,0,0,0,0]
[29,null,"INFRASTRUCTURE : COMPRESSOR",20,5,0,0,0,0,0,0,0,0,0,2,0,0,0,0,0,0,0,0,0,0,0,0,0,0,0,0,0,0,0,2,0,0,2,0,0,0,2,0,0,0,0,0,0,0,0,0,0,3,0,0,6,1,2,0,2,0,0,0,0,0,0,0,0,0,0,0,0,0,0,0,0,0,0,0,0,0,0,0,7,0,0,0,0,0,0,0,0,0,0,0,0,0,0,0,0,0,0,0,0,0,0,0,0,0,0,0,0]
[50,null,"INFRASTRUCTURE : Earth Grid",60,18,3,0,1,0,0,0,2,1,0,0,1,0,0,1,1,0,0,0,0,0,0,0,0,0,0,1,0,0,0,1,0,1,0,1,0,0,2,0,2,0,0,0,0,0,0,1,0,1,1,1,3,1,2,3,3,1,1,3,1,0,2,3,0,0,0,0,2,0,1,0,1,1,0,0,0,0,0,0,0,0,0,0,0,0,0,0,0,0,0,0,0,0,0,0,0,0,0,0,0,0,0,0,0,0,0,0,0]
[14,null,"OTHER: NEUTRAL EARTH COMPENSATORS/RESISTORS",20,5,0,0,0,0,0,2,1,1,0,1,0,0,1,0,2,0,0,0,0,0,0,0,0,0,0,0,0,0,0,0,0,0,2,0,0,0,0,1,0,0,0,0,0,0,0,0,0,0,0,0,0,0,0,0,0,0,3,0,0,0,0,0,0,0,0,0,0,0,0,0,0,0,0,0,0,0,0,0,0,0,0,0,0,0,0,0,0,0,0,0,0,0,0,0,0,0,0,0,0,0,0,0,0,0,0,0,0]
[144,null,"OTHER : SURGE DIVERTERS < = 33 kV  ;",40,5,6,0,3,0,0,6,15,60,6,0,2,0,3,0,7,0,0,0,0,0,0,0,0,0,0,3,0,0,0,0,0,0,9,0,2,0,0,3,0,0,0,0,0,0,0,0,0,0,0,0,0,0,0,0,3,0,7,9,0,0,0,0,0,0,0,0,0,0,0,0,0,0,0,0,0,0,0,0,0,0,0,0,0,0,0,0,0,0,0,0,0,0,0,0,0,0,0,0,0,0,0,0,0,0,0,0,0]
[1141,null,"OTHER : SURGE DIVERTERS > 33 kV & < = 66 kV  ;",40,5,21,9,21,9,0,30,36,107,108,126,65,95,72,45,48,15,9,12,6,3,10,0,0,0,0,0,18,3,0,3,0,22,14,18,0,9,0,0,0,0,0,0,4,0,3,3,0,16,3,30,6,7,9,15,15,24,6,3,0,0,21,24,0,0,0,0,0,0,0,0,18,0,0,0,0,0,0,0,0,0,0,0,0,0,0,0,0,0,0,0,0,0,0,0,0,0,0,0,0,0,0,0,0,0,0,0,0]
[0,null,"OTHER : SURGE DIVERTERS > 66 kV & < = 132 kV  ;",0,0,0,0,0,0,0,0,0,0,0,0,0,0,0,0,0,0,0,0,0,0,0,0,0,0,0,0,0,0,0,0,0,0,0,0,0,0,0,0,0,0,0,0,0,0,0,0,0,0,0,0,0,0,0,0,0,0,0,0,0,0,0,0,0,0,0,0,0,0,0,0,0,0,0,0,0,0,0,0,0,0,0,0,0,0,0,0,0,0,0,0,0,0,0,0,0,0,0,0,0,0,0,0,0,0,0,0,0]
[788,null,"OTHER : SURGE DIVERTERS > 132 kV & < = 275 kV  ;",40,5,45,30,21,31,42,54,54,33,72,30,47,24,54,75,39,0,3,12,3,3,6,0,0,0,0,3,3,3,0,9,0,0,6,6,21,6,3,0,0,3,4,0,0,0,0,0,0,6,11,0,3,1,2,0,6,2,6,0,0,0,0,3,0,0,0,0,0,0,0,0,0,0,0,0,0,0,0,0,3,0,0,0,0,0,0,0,0,0,0,0,0,0,0,0,0,0,0,0,0,0,0,0,0,0,0,0,0]
[45,null,"OTHER : SURGE DIVERTERS > 275 kV & < = 330 kV  ;",40,5,3,0,0,3,0,0,0,6,0,0,3,6,6,6,3,0,3,0,0,0,0,0,0,0,0,0,0,0,0,0,0,0,0,0,0,0,0,0,0,0,0,0,0,0,0,0,0,0,0,0,6,0,0,0,0,0,0,0,0,0,0,0,0,0,0,0,0,0,0,0,0,0,0,0,0,0,0,0,0,0,0,0,0,0,0,0,0,0,0,0,0,0,0,0,0,0,0,0,0,0,0,0,0,0,0,0,0]
[125,null,"OTHER : SURGE DIVERTERS > 330 kV & < = 500 kV  ;",40,5,0,0,0,0,0,0,0,6,19,8,0,0,0,21,29,18,0,0,2,0,0,0,0,0,0,0,0,3,0,9,0,0,0,0,0,0,4,0,3,0,0,0,0,0,0,0,0,0,0,0,0,0,0,0,0,0,0,0,0,0,0,0,0,0,0,0,0,0,0,0,0,0,0,0,0,0,0,0,3,0,0,0,0,0,0,0,0,0,0,0,0,0,0,0,0,0,0,0,0,0,0,0,0,0,0,0,0]
[120,null,"OTHER: < = 33 kV ; BUS",40,5,0,0,0,1,2,2,1,1,0,1,0,31,6,5,0,0,0,0,0,0,0,0,0,0,0,0,0,0,0,0,0,0,0,0,0,0,2,0,0,0,0,0,0,0,0,0,0,5,5,0,16,3,1,9,9,0,0,2,0,0,1,17,0,0,0,0,0,0,0,0,0,0,0,0,0,0,0,0,0,0,0,0,0,0,0,0,0,0,0,0,0,0,0,0,0,0,0,0,0,0,0,0,0,0,0,0,0]
[115,null,"OTHER: > 33 kV & < = 66 kV  ; BUS",40,5,0,4,0,0,0,1,4,2,0,0,3,6,4,0,4,2,0,0,2,0,0,0,0,0,0,1,0,0,0,0,0,2,0,2,0,4,0,0,0,0,0,0,0,0,0,0,0,4,0,4,2,5,6,9,9,3,0,5,3,0,6,12,0,0,0,0,1,0,1,0,4,0,0,0,0,0,0,0,0,0,0,0,0,0,0,0,0,0,0,0,0,0,0,0,0,0,0,0,0,0,0,0,0,0,0,0,0]
[0,null,"OTHER: > 66 kV & < = 132 kV  ; BUS",0,0,0,0,0,0,0,0,0,0,0,0,0,0,0,0,0,0,0,0,0,0,0,0,0,0,0,0,0,0,0,0,0,0,0,0,0,0,0,0,0,0,0,0,0,0,0,0,0,0,0,0,0,0,0,0,0,0,0,0,0,0,0,0,0,0,0,0,0,0,0,0,0,0,0,0,0,0,0,0,0,0,0,0,0,0,0,0,0,0,0,0,0,0,0,0,0,0,0,0,0,0,0,0,0,0,0,0,0]
[108,null,"OTHER: > 132 kV & < = 275 kV  ; BUS",40,5,2,0,0,0,1,1,2,4,0,2,5,8,10,4,6,0,0,1,0,0,0,0,0,0,0,1,0,0,0,1,0,0,5,4,0,0,2,2,0,0,0,0,0,0,0,0,0,3,2,0,8,4,4,5,10,0,0,2,0,0,4,5,0,0,0,0,0,0,0,0,0,0,0,0,0,0,0,0,0,0,0,0,0,0,0,0,0,0,0,0,0,0,0,0,0,0,0,0,0,0,0,0,0,0,0,0,0]
[6,null,"OTHER: > 275 kV & < = 330 kV  ; BUS",40,5,0,0,0,0,0,0,0,0,0,0,0,0,0,0,0,0,0,0,0,0,0,0,0,0,0,0,0,0,0,0,0,2,0,0,0,0,0,0,0,0,0,0,0,0,0,0,0,0,0,0,2,0,0,0,0,0,0,2,0,0,0,0,0,0,0,0,0,0,0,0,0,0,0,0,0,0,0,0,0,0,0,0,0,0,0,0,0,0,0,0,0,0,0,0,0,0,0,0,0,0,0,0,0,0,0,0,0]
[20,null,"OTHER: > 330 kV & < = 500 kV  ; BUS",40,5,1,0,0,0,0,0,0,0,0,0,0,0,3,0,0,0,0,0,0,0,0,0,0,0,0,0,0,0,0,2,0,0,0,0,0,2,8,0,4,0,0,0,0,0,0,0,0,0,0,0,0,0,0,0,0,0,0,0,0,0,0,0,0,0,0,0,0,0,0,0,0,0,0,0,0,0,0,0,0,0,0,0,0,0,0,0,0,0,0,0,0,0,0,0,0,0,0,0,0,0,0,0,0,0,0,0,0]
[460,null,"Station Property & Civil Infrastructure",45,5,9,9,9,4,8,2,34,7,12,0,1,1,40,1,0,0,0,0,0,0,0,0,0,0,0,3,0,0,0,10,0,8,1,5,0,6,23,0,11,0,0,0,0,4,0,14,0,5,10,4,20,5,13,26,30,8,5,35,15,0,30,23,0,0,0,0,9,0,0,0,0,0,0,0,0,0,0,0,0,0,0,0,0,0,0,0,0,0,0,0,0,0,0,0,0,0,0,0,0,0,0,0,0,0,0,0,0]
[16,null,"Other - Bus Gas Ins & Surge Diverter Ins",40,5,0,0,16,0,0,0,0,0,0,0,0,0,0,0,0,0,0,0,0,0,0,0,0,0,0,0,0,0,0,0,0,0,0,0,0,0,0,0,0,0,0,0,0,0,0,0,0,0,0,0,0,0,0,0,0,0,0,0,0,0,0,0,0,0,0,0,0,0,0,0,0,0,0,0,0,0,0,0,0,0,0,0,0,0,0,0,0,0,0,0,0,0,0,0,0,0,0,0,0,0,0,0,0,0,0,0,0]
[139,null,"Other - Station Transformer <=33kV",50,10,8,0,2,4,0,7,3,4,5,4,1,6,0,2,1,0,7,0,0,0,0,0,1,0,0,2,1,0,0,1,0,1,2,2,0,8,9,0,4,1,0,0,0,0,0,1,0,7,17,3,5,4,3,4,1,0,2,4,0,0,0,1,0,0,0,0,0,0,1,0,0,0,0,0,0,0,0,0,0,0,0,0,0,0,0,0,0,0,0,0,0,0,0,0,0,0,0,0,0,0,0,0,0,0,0,0,0]
[0]
[0]
[0]
[0]
[0]
[{"$f":"SUM(F204:DH204)","v":0}]
[0]

{"sheet":"5.3 MD - Network level","index":16,"n_rows":15,"n_cols":4,"rows_kept":15,"cut":false,"hidden":false,"merged":[]}
[null,"REGULATORY REPORTING STATEMENT"]
[null,{"$f":"INDEX(dms_TradingNameFull_List,MATCH(dms_TradingName,dms_TradingName_List))","v":"AusNet (T)"}]
[null,{"$f":"CONCATENATE((LOOKUP(dms_Model,dms_Model_List,dms_Worksheet_List))&\" \"&CRY)","v":"CATEGORY ANALYSIS 2018-19"}]
[null,"5.3 MAXIMUM DEMAND AT NETWORK LEVEL"]
[]
[]
[null,"5.3.1 - RAW AND WEATHER CORRECTED COINCIDENT MD AT NETWORK LEVEL \n(Summed at transmission connection point)"]
[null,null,"UNIT",{"$f":"CRY","v":"2018-19"}]
[null,"Raw network coincident MD","MW"]
[null,"Date MD occurred"]
[null,"Half hour time period MD occurred"]
[null,"Winter/summer peaking"]
[null,"Embedded generation","MW"]
[null,"Weather corrected (10% POE) network coincident MD","MW"]
[null,"Weather corrected (50% POE) network coincident MD","MW"]

{"sheet":"5.4 MD & utilisation-Spatial","index":17,"n_rows":4431,"n_cols":6,"rows_kept":4431,"cut":false,"hidden":false,"merged":[[5,1,5,2],[4425,2,4426,2],[4425,3,4426,3],[4427,2,4428,2],[4427,3,4428,3],[4429,2,4430,2],[4429,3,4430,3],[4419,2,4420,2],[4419,3,4420,3],[4421,2,4422,2],[4421,3,4422,3],[4423,2,4424,2],[4423,3,4424,3],[4413,2,4414,2],[4413,3,4414,3],[4415,2,4416,2],[4415,3,4416,3],[4417,2,4418,2],[4417,3,4418,3],[4407,2,4408,2],[4407,3,4408,3],[4409,2,4410,2],[4409,3,4410,3],[4411,2,4412,2],[4411,3,4412,3],[4401,2,4402,2],[4401,3,4402,3],[4403,2,4404,2],[4403,3,4404,3],[4405,2,4406,2],[4405,3,4406,3],[4395,2,4396,2],[4395,3,4396,3],[4397,2,4398,2],[4397,3,4398,3],[4399,2,4400,2],[4399,3,4400,3],[4389,2,4390,2],[4389,3,4390,3],[4391,2,4392,2],[4391,3,4392,3],[4393,2,4394,2],[4393,3,4394,3],[4383,2,4384,2],[4383,3,4384,3],[4385,2,4386,2],[4385,3,4386,3],[4387,2,4388,2],[4387,3,4388,3],[4377,2,4378,2],[4377,3,4378,3],[4379,2,4380,2],[4379,3,4380,3],[4381,2,4382,2],[4381,3,4382,3],[4371,2,4372,2],[4371,3,4372,3],[4373,2,4374,2],[4373,3,4374,3],[4375,2,4376,2],[4375,3,4376,3],[4365,2,4366,2],[4365,3,4366,3],[4367,2,4368,2],[4367,3,4368,3],[4369,2,4370,2],[4369,3,4370,3],[4359,2,4360,2],[4359,3,4360,3],[4361,2,4362,2],[4361,3,4362,3],[4363,2,4364,2],[4363,3,4364,3],[4353,2,4354,2],[4353,3,4354,3],[4355,2,4356,2],[4355,3,4356,3],[4357,2,4358,2],[4357,3,4358,3],[4347,2,4348,2],[4347,3,4348,3],[4349,2,4350,2],[4349,3,4350,3],[4351,2,4352,2],[4351,3,4352,3],[4341,2,4342,2],[4341,3,4342,3],[4343,2,4344,2],[4343,3,4344,3],[4345,2,4346,2],[4345,3,4346,3],[4335,2,4336,2],[4335,3,4336,3],[4337,2,4338,2],[4337,3,4338,3],[4339,2,4340,2],[4339,3,4340,3],[4329,2,4330,2],[4329,3,4330,3],[4331,2,4332,2],[4331,3,4332,3],[4333,2,4334,2],[4333,3,4334,3],[4323,2,4324,2],[4323,3,4324,3],[4325,2,4326,2],[4325,3,4326,3],[4327,2,4328,2],[4327,3,4328,3],[4317,2,4318,2],[4317,3,4318,3],[4319,2,4320,2],[4319,3,4320,3],[4321,2,4322,2],[4321,3,4322,3],[4311,2,4312,2],[4311,3,4312,3],[4313,2,4314,2],[4313,3,4314,3],[4315,2,4316,2],[4315,3,4316,3],[4305,2,4306,2],[4305,3,4306,3],[4307,2,4308,2],[4307,3,4308,3],[4309,2,4310,2],[4309,3,4310,3],[4299,2,4300,2],[4299,3,4300,3],[4301,2,4302,2],[4301,3,4302,3],[4303,2,4304,2],[4303,3,4304,3],[4293,2,4294,2],[4293,3,4294,3],[4295,2,4296,2],[4295,3,4296,3],[4297,2,4298,2],[4297,3,4298,3],[4287,2,4288,2],[4287,3,4288,3],[4289,2,4290,2],[4289,3,4290,3],[4291,2,4292,2],[4291,3,4292,3],[4281,2,4282,2],[4281,3,4282,3],[4283,2,4284,2],[4283,3,4284,3],[4285,2,4286,2],[4285,3,4286,3],[4275,2,4276,2],[4275,3,4276,3],[4277,2,4278,2],[4277,3,4278,3],[4279,2,4280,2],[4279,3,4280,3],[4269,2,4270,2],[4269,3,4270,3],[4271,2,4272,2],[4271,3,4272,3],[4273,2,4274,2],[4273,3,4274,3],[4263,2,4264,2],[4263,3,4264,3],[4265,2,4266,2],[4265,3,4266,3],[4267,2,4268,2],[4267,3,4268,3],[4257,2,4258,2],[4257,3,4258,3],[4259,2,4260,2],[4259,3,4260,3],[4261,2,4262,2],[4261,3,4262,3],[4251,2,4252,2],[4251,3,4252,3],[4253,2,4254,2],[4253,3,4254,3],[4255,2,4256,2],[4255,3,4256,3],[4245,2,4246,2],[4245,3,4246,3],[4247,2,4248,2],[4247,3,4248,3],[4249,2,4250,2],[4249,3,4250,3],[4239,2,4240,2],[4239,3,4240,3],[4241,2,4242,2],[4241,3,4242,3],[4243,2,4244,2],[4243,3,4244,3],[4233,2,4234,2],[4233,3,4234,3],[4235,2,4236,2],[4235,3,4236,3],[4237,2,4238,2],[4237,3,4238,3],[4227,2,4228,2],[4227,3,4228,3],[4229,2,4230,2],[4229,3,4230,3],[4231,2,4232,2],[4231,3,4232,3],[4221,2,4222,2],[4221,3,4222,3],[4223,2,4224,2],[4223,3,4224,3],[4225,2,4226,2],[4225,3,4226,3],[4215,2,4216,2],[4215,3,4216,3],[4217,2,4218,2],[4217,3,4218,3],[4219,2,4220,2],[4219,3,4220,3],[4209,2,4210,2],[4209,3,4210,3],[4211,2,4212,2],[4211,3,4212,3],[4213,2,4214,2],[4213,3,4214,3],[4203,2,4204,2],[4203,3,4204,3],[4205,2,4206,2],[4205,3,4206,3],[4207,2,4208,2],[4207,3,4208,3],[4197,2,4198,2],[4197,3,4198,3],[4199,2,4200,2],[4199,3,4200,3],[4201,2,4202,2],[4201,3,4202,3],[4191,2,4192,2],[4191,3,4192,3],[4193,2,4194,2],[4193,3,4194,3],[4195,2,4196,2],[4195,3,4196,3],[4185,2,4186,2],[4185,3,4186,3],[4187,2,4188,2],[4187,3,4188,3],[4189,2,4190,2],[4189,3,4190,3],[4179,2,4180,2],[4179,3,4180,3],[4181,2,4182,2],[4181,3,4182,3],[4183,2,4184,2],[4183,3,4184,3],[4173,2,4174,2],[4173,3,4174,3],[4175,2,4176,2],[4175,3,4176,3],[4177,2,4178,2],[4177,3,4178,3],[4167,2,4168,2],[4167,3,4168,3],[4169,2,4170,2],[4169,3,4170,3],[4171,2,4172,2],[4171,3,4172,3],[4161,2,4162,2],[4161,3,4162,3],[4163,2,4164,2],[4163,3,4164,3],[4165,2,4166,2],[4165,3,4166,3],[4155,2,4156,2],[4155,3,4156,3],[4157,2,4158,2],[4157,3,4158,3],[4159,2,4160,2],[4159,3,4160,3],[4149,2,4150,2],[4149,3,4150,3],[4151,2,4152,2],[4151,3,4152,3],[4153,2,4154,2],[4153,3,4154,3],[4143,2,4144,2],[4143,3,4144,3],[4145,2,4146,2],[4145,3,4146,3],[4147,2,4148,2],[4147,3,4148,3],[4137,2,4138,2],[4137,3,4138,3],[4139,2,4140,2],[4139,3,4140,3],[4141,2,4142,2],[4141,3,4142,3],[4131,2,4132,2],[4131,3,4132,3],[4133,2,4134,2],[4133,3,4134,3],[4135,2,4136,2],[4135,3,4136,3],[4125,2,4126,2],[4125,3,4126,3],[4127,2,4128,2],[4127,3,4128,3],[4129,2,4130,2],[4129,3,4130,3],[4119,2,4120,2],[4119,3,4120,3],[4121,2,4122,2],[4121,3,4122,3],[4123,2,4124,2],[4123,3,4124,3],[4113,2,4114,2],[4113,3,4114,3],[4115,2,4116,2],[4115,3,4116,3],[4117,2,4118,2],[4117,3,4118,3],[4107,2,4108,2],[4107,3,4108,3],[4109,2,4110,2],[4109,3,4110,3],[4111,2,4112,2],[4111,3,4112,3],[4101,2,4102,2],[4101,3,4102,3],[4103,2,4104,2],[4103,3,4104,3],[4105,2,4106,2],[4105,3,4106,3],[4095,2,4096,2],[4095,3,4096,3],[4097,2,4098,2],[4097,3,4098,3],[4099,2,4100,2],[4099,3,4100,3],[4089,2,4090,2],[4089,3,4090,3],[4091,2,4092,2],[4091,3,4092,3],[4093,2,4094,2],[4093,3,4094,3],[4083,2,4084,2],[4083,3,4084,3],[4085,2,4086,2],[4085,3,4086,3],[4087,2,4088,2],[4087,3,4088,3],[4077,2,4078,2],[4077,3,4078,3],[4079,2,4080,2],[4079,3,4080,3],[4081,2,4082,2],[4081,3,4082,3],[4071,2,4072,2],[4071,3,4072,3],[4073,2,4074,2],[4073,3,4074,3],[4075,2,4076,2],[4075,3,4076,3],[4065,2,4066,2],[4065,3,4066,3],[4067,2,4068,2],[4067,3,4068,3],[4069,2,4070,2],[4069,3,4070,3],[4059,2,4060,2],[4059,3,4060,3],[4061,2,4062,2],[4061,3,4062,3],[4063,2,4064,2],[4063,3,4064,3],[4053,2,4054,2],[4053,3,4054,3],[4055,2,4056,2],[4055,3,4056,3],[4057,2,4058,2],[4057,3,4058,3],[4047,2,4048,2],[4047,3,4048,3],[4049,2,4050,2],[4049,3,4050,3],[4051,2,4052,2],[4051,3,4052,3],[4041,2,4042,2],[4041,3,4042,3],[4043,2,4044,2],[4043,3,4044,3],[4045,2,4046,2],[4045,3,4046,3],[4035,2,4036,2],[4035,3,4036,3],[4037,2,4038,2],[4037,3,4038,3],[4039,2,4040,2],[4039,3,4040,3],[4029,2,4030,2],[4029,3,4030,3],[4031,2,4032,2],[4031,3,4032,3],[4033,2,4034,2],[4033,3,4034,3],[4023,2,4024,2],[4023,3,4024,3],[4025,2,4026,2],[4025,3,4026,3],[4027,2,4028,2],[4027,3,4028,3],[4017,2,4018,2],[4017,3,4018,3],[4019,2,4020,2],[4019,3,4020,3],[4021,2,4022,2],[4021,3,4022,3],[4011,2,4012,2],[4011,3,4012,3],[4013,2,4014,2],[4013,3,4014,3],[4015,2,4016,2],[4015,3,4016,3],[4005,2,4006,2],[4005,3,4006,3],[4007,2,4008,2],[4007,3,4008,3],[4009,2,4010,2],[4009,3,4010,3],[3999,2,4000,2],[3999,3,4000,3],[4001,2,4002,2],[4001,3,4002,3],[4003,2,4004,2],[4003,3,4004,3],[3993,2,3994,2],[3993,3,3994,3],[3995,2,3996,2],[3995,3,3996,3],[3997,2,3998,2],[3997,3,3998,3],[3987,2,3988,2],[3987,3,3988,3],[3989,2,3990,2],[3989,3,3990,3],[3991,2,3992,2],[3991,3,3992,3],[3981,2,3982,2],[3981,3,3982,3],[3983,2,3984,2],[3983,3,3984,3],[3985,2,3986,2],[3985,3,3986,3],[3975,2,3976,2],[3975,3,3976,3],[3977,2,3978,2],[3977,3,3978,3],[3979,2,3980,2],[3979,3,3980,3],[3969,2,3970,2],[3969,3,3970,3],[3971,2,3972,2],[3971,3,3972,3],[3973,2,3974,2],[3973,3,3974,3],[3963,2,3964,2],[3963,3,3964,3],[3965,2,3966,2],[3965,3,3966,3],[3967,2,3968,2],[3967,3,3968,3],[3957,2,3958,2],[3957,3,3958,3],[3959,2,3960,2],[3959,3,3960,3],[3961,2,3962,2],[3961,3,3962,3],[3951,2,3952,2],[3951,3,3952,3],[3953,2,3954,2],[3953,3,3954,3],[3955,2,3956,2],[3955,3,3956,3],[3945,2,3946,2],[3945,3,3946,3],[3947,2,3948,2],[3947,3,3948,3],[3949,2,3950,2],[3949,3,3950,3],[3939,2,3940,2],[3939,3,3940,3],[3941,2,3942,2],[3941,3,3942,3],[3943,2,3944,2],[3943,3,3944,3],[3933,2,3934,2],[3933,3,3934,3],[3935,2,3936,2],[3935,3,3936,3],[3937,2,3938,2],[3937,3,3938,3],[3927,2,3928,2],[3927,3,3928,3],[3929,2,3930,2],[3929,3,3930,3],[3931,2,3932,2],[3931,3,3932,3],[3921,2,3922,2],[3921,3,3922,3],[3923,2,3924,2],[3923,3,3924,3],[3925,2,3926,2],[3925,3,3926,3],[3915,2,3916,2],[3915,3,3916,3],[3917,2,3918,2],[3917,3,3918,3],[3919,2,3920,2],[3919,3,3920,3],[3909,2,3910,2],[3909,3,3910,3],[3911,2,3912,2],[3911,3,3912,3],[3913,2,3914,2],[3913,3,3914,3],[3903,2,3904,2],[3903,3,3904,3],[3905,2,3906,2],[3905,3,3906,3],[3907,2,3908,2],[3907,3,3908,3],[3897,2,3898,2],[3897,3,3898,3],[3899,2,3900,2],[3899,3,3900,3],[3901,2,3902,2],[3901,3,3902,3],[3891,2,3892,2],[3891,3,3892,3],[3893,2,3894,2],[3893,3,3894,3],[3895,2,3896,2],[3895,3,3896,3],[3885,2,3886,2],[3885,3,3886,3],[3887,2,3888,2],[3887,3,3888,3],[3889,2,3890,2],[3889,3,3890,3],[3879,2,3880,2],[3879,3,3880,3],[3881,2,3882,2],[3881,3,3882,3],[3883,2,3884,2],[3883,3,3884,3],[3873,2,3874,2],[3873,3,3874,3],[3875,2,3876,2],[3875,3,3876,3],[3877,2,3878,2],[3877,3,3878,3],[3867,2,3868,2],[3867,3,3868,3],[3869,2,3870,2],[3869,3,3870,3],[3871,2,3872,2],[3871,3,3872,3],[3861,2,3862,2],[3861,3,3862,3],[3863,2,3864,2],[3863,3,3864,3],[3865,2,3866,2],[3865,3,3866,3],[3855,2,3856,2],[3855,3,3856,3],[3857,2,3858,2],[3857,3,3858,3],[3859,2,3860,2],[3859,3,3860,3],[3849,2,3850,2],[3849,3,3850,3],[3851,2,3852,2],[3851,3,3852,3],[3853,2,3854,2],[3853,3,3854,3],[3843,2,3844,2],[3843,3,3844,3],[3845,2,3846,2],[3845,3,3846,3],[3847,2,3848,2],[3847,3,3848,3],[3837,2,3838,2],[3837,3,3838,3],[3839,2,3840,2],[3839,3,3840,3],[3841,2,3842,2],[3841,3,3842,3],[3831,2,3832,2],[3831,3,3832,3],[3833,2,3834,2],[3833,3,3834,3],[3835,2,3836,2],[3835,3,3836,3],[3825,2,3826,2],[3825,3,3826,3],[3827,2,3828,2],[3827,3,3828,3],[3829,2,3830,2],[3829,3,3830,3],[3819,2,3820,2],[3819,3,3820,3],[3821,2,3822,2],[3821,3,3822,3],[3823,2,3824,2],[3823,3,3824,3],[3813,2,3814,2],[3813,3,3814,3],[3815,2,3816,2],[3815,3,3816,3],[3817,2,3818,2],[3817,3,3818,3],[3807,2,3808,2],[3807,3,3808,3],[3809,2,3810,2],[3809,3,3810,3],[3811,2,3812,2],[3811,3,3812,3],[3801,2,3802,2],[3801,3,3802,3],[3803,2,3804,2],[3803,3,3804,3],[3805,2,3806,2],[3805,3,3806,3],[3795,2,3796,2],[3795,3,3796,3],[3797,2,3798,2],[3797,3,3798,3],[3799,2,3800,2],[3799,3,3800,3],[3789,2,3790,2],[3789,3,3790,3],[3791,2,3792,2],[3791,3,3792,3],[3793,2,3794,2],[3793,3,3794,3],[3783,2,3784,2],[3783,3,3784,3],[3785,2,3786,2],[3785,3,3786,3],[3787,2,3788,2],[3787,3,3788,3],[3777,2,3778,2],[3777,3,3778,3],[3779,2,3780,2],[3779,3,3780,3],[3781,2,3782,2],[3781,3,3782,3],[3771,2,3772,2],[3771,3,3772,3],[3773,2,3774,2],[3773,3,3774,3],[3775,2,3776,2],[3775,3,3776,3],[3765,2,3766,2],[3765,3,3766,3],[3767,2,3768,2],[3767,3,3768,3],[3769,2,3770,2],[3769,3,3770,3],[3759,2,3760,2],[3759,3,3760,3],[3761,2,3762,2],[3761,3,3762,3],[3763,2,3764,2],[3763,3,3764,3],[3753,2,3754,2],[3753,3,3754,3],[3755,2,3756,2],[3755,3,3756,3],[3757,2,3758,2],[3757,3,3758,3],[3747,2,3748,2],[3747,3,3748,3],[3749,2,3750,2],[3749,3,3750,3],[3751,2,3752,2],[3751,3,3752,3],[3741,2,3742,2],[3741,3,3742,3],[3743,2,3744,2],[3743,3,3744,3],[3745,2,3746,2],[3745,3,3746,3],[3735,2,3736,2],[3735,3,3736,3],[3737,2,3738,2],[3737,3,3738,3],[3739,2,3740,2],[3739,3,3740,3],[3729,2,3730,2],[3729,3,3730,3],[3731,2,3732,2],[3731,3,3732,3],[3733,2,3734,2],[3733,3,3734,3],[3723,2,3724,2],[3723,3,3724,3],[3725,2,3726,2],[3725,3,3726,3],[3727,2,3728,2],[3727,3,3728,3],[3717,2,3718,2],[3717,3,3718,3],[3719,2,3720,2],[3719,3,3720,3],[3721,2,3722,2],[3721,3,3722,3],[3711,2,3712,2],[3711,3,3712,3],[3713,2,3714,2],[3713,3,3714,3],[3715,2,3716,2],[3715,3,3716,3],[3705,2,3706,2],[3705,3,3706,3],[3707,2,3708,2],[3707,3,3708,3],[3709,2,3710,2],[3709,3,3710,3],[3699,2,3700,2],[3699,3,3700,3],[3701,2,3702,2],[3701,3,3702,3],[3703,2,3704,2],[3703,3,3704,3],[3693,2,3694,2],[3693,3,3694,3],[3695,2,3696,2],[3695,3,3696,3],[3697,2,3698,2],[3697,3,3698,3],[3687,2,3688,2],[3687,3,3688,3],[3689,2,3690,2],[3689,3,3690,3],[3691,2,3692,2],[3691,3,3692,3],[3681,2,3682,2],[3681,3,3682,3],[3683,2,3684,2],[3683,3,3684,3],[3685,2,3686,2],[3685,3,3686,3],[3675,2,3676,2],[3675,3,3676,3],[3677,2,3678,2],[3677,3,3678,3],[3679,2,3680,2],[3679,3,3680,3],[3669,2,3670,2],[3669,3,3670,3],[3671,2,3672,2],[3671,3,3672,3],[3673,2,3674,2],[3673,3,3674,3],[3663,2,3664,2],[3663,3,3664,3],[3665,2,3666,2],[3665,3,3666,3],[3667,2,3668,2],[3667,3,3668,3],[3657,2,3658,2],[3657,3,3658,3],[3659,2,3660,2],[3659,3,3660,3],[3661,2,3662,2],[3661,3,3662,3],[3651,2,3652,2],[3651,3,3652,3],[3653,2,3654,2],[3653,3,3654,3],[3655,2,3656,2],[3655,3,3656,3],[3645,2,3646,2],[3645,3,3646,3],[3647,2,3648,2],[3647,3,3648,3],[3649,2,3650,2],[3649,3,3650,3],[3639,2,3640,2],[3639,3,3640,3],[3641,2,3642,2],[3641,3,3642,3],[3643,2,3644,2],[3643,3,3644,3],[3633,2,3634,2],[3633,3,3634,3],[3635,2,3636,2],[3635,3,3636,3],[3637,2,3638,2],[3637,3,3638,3],[3627,2,3628,2],[3627,3,3628,3],[3629,2,3630,2],[3629,3,3630,3],[3631,2,3632,2],[3631,3,3632,3],[3621,2,3622,2],[3621,3,3622,3],[3623,2,3624,2],[3623,3,3624,3],[3625,2,3626,2],[3625,3,3626,3],[3615,2,3616,2],[3615,3,3616,3],[3617,2,3618,2],[3617,3,3618,3],[3619,2,3620,2],[3619,3,3620,3],[3609,2,3610,2],[3609,3,3610,3],[3611,2,3612,2],[3611,3,3612,3],[3613,2,3614,2],[3613,3,3614,3],[3603,2,3604,2],[3603,3,3604,3],[3605,2,3606,2],[3605,3,3606,3],[3607,2,3608,2],[3607,3,3608,3],[3597,2,3598,2],[3597,3,3598,3],[3599,2,3600,2],[3599,3,3600,3],[3601,2,3602,2],[3601,3,3602,3],[3591,2,3592,2],[3591,3,3592,3],[3593,2,3594,2],[3593,3,3594,3],[3595,2,3596,2],[3595,3,3596,3],[3585,2,3586,2],[3585,3,3586,3],[3587,2,3588,2],[3587,3,3588,3],[3589,2,3590,2],[3589,3,3590,3],[3579,2,3580,2],[3579,3,3580,3],[3581,2,3582,2],[3581,3,3582,3],[3583,2,3584,2],[3583,3,3584,3],[3573,2,3574,2],[3573,3,3574,3],[3575,2,3576,2],[3575,3,3576,3],[3577,2,3578,2],[3577,3,3578,3],[3567,2,3568,2],[3567,3,3568,3],[3569,2,3570,2],[3569,3,3570,3],[3571,2,3572,2],[3571,3,3572,3],[3561,2,3562,2],[3561,3,3562,3],[3563,2,3564,2],[3563,3,3564,3],[3565,2,3566,2],[3565,3,3566,3],[3555,2,3556,2],[3555,3,3556,3],[3557,2,3558,2],[3557,3,3558,3],[3559,2,3560,2],[3559,3,3560,3],[3549,2,3550,2],[3549,3,3550,3],[3551,2,3552,2],[3551,3,3552,3],[3553,2,3554,2],[3553,3,3554,3],[3543,2,3544,2],[3543,3,3544,3],[3545,2,3546,2],[3545,3,3546,3],[3547,2,3548,2],[3547,3,3548,3],[3537,2,3538,2],[3537,3,3538,3],[3539,2,3540,2],[3539,3,3540,3],[3541,2,3542,2],[3541,3,3542,3],[3531,2,3532,2],[3531,3,3532,3],[3533,2,3534,2],[3533,3,3534,3],[3535,2,3536,2],[3535,3,3536,3],[3525,2,3526,2],[3525,3,3526,3],[3527,2,3528,2],[3527,3,3528,3],[3529,2,3530,2],[3529,3,3530,3],[3519,2,3520,2],[3519,3,3520,3],[3521,2,3522,2],[3521,3,3522,3],[3523,2,3524,2],[3523,3,3524,3],[3513,2,3514,2],[3513,3,3514,3],[3515,2,3516,2],[3515,3,3516,3],[3517,2,3518,2],[3517,3,3518,3],[3507,2,3508,2],[3507,3,3508,3],[3509,2,3510,2],[3509,3,3510,3],[3511,2,3512,2],[3511,3,3512,3],[3501,2,3502,2],[3501,3,3502,3],[3503,2,3504,2],[3503,3,3504,3],[3505,2,3506,2],[3505,3,3506,3],[3495,2,3496,2],[3495,3,3496,3],[3497,2,3498,2],[3497,3,3498,3],[3499,2,3500,2],[3499,3,3500,3],[3489,2,3490,2],[3489,3,3490,3],[3491,2,3492,2],[3491,3,3492,3],[3493,2,3494,2],[3493,3,3494,3],[3483,2,3484,2],[3483,3,3484,3],[3485,2,3486,2],[3485,3,3486,3],[3487,2,3488,2],[3487,3,3488,3],[3477,2,3478,2],[3477,3,3478,3],[3479,2,3480,2],[3479,3,3480,3],[3481,2,3482,2],[3481,3,3482,3],[3471,2,3472,2],[3471,3,3472,3],[3473,2,3474,2],[3473,3,3474,3],[3475,2,3476,2],[3475,3,3476,3],[3465,2,3466,2],[3465,3,3466,3],[3467,2,3468,2],[3467,3,3468,3],[3469,2,3470,2],[3469,3,3470,3],[3459,2,3460,2],[3459,3,3460,3],[3461,2,3462,2],[3461,3,3462,3],[3463,2,3464,2],[3463,3,3464,3],[3453,2,3454,2],[3453,3,3454,3],[3455,2,3456,2],[3455,3,3456,3],[3457,2,3458,2],[3457,3,3458,3],[3447,2,3448,2],[3447,3,3448,3],[3449,2,3450,2],[3449,3,3450,3],[3451,2,3452,2],[3451,3,3452,3],[3441,2,3442,2],[3441,3,3442,3],[3443,2,3444,2],[3443,3,3444,3],[3445,2,3446,2],[3445,3,3446,3],[3435,2,3436,2],[3435,3,3436,3],[3437,2,3438,2],[3437,3,3438,3],[3439,2,3440,2],[3439,3,3440,3],[3429,2,3430,2],[3429,3,3430,3],[3431,2,3432,2]],"merged_total":4624,"flags":["merged_cut"]}
[null,"REGULATORY REPORTING STATEMENT"]
[null,{"$f":"INDEX(dms_TradingNameFull_List,MATCH(dms_TradingName,dms_TradingName_List))","v":"AusNet (T)"}]
[null,{"$f":"CONCATENATE((LOOKUP(dms_Model,dms_Model_List,dms_Worksheet_List))&\" \"&CRY)","v":"CATEGORY ANALYSIS 2018-19"}]
[null,"5.4 MAXIMUM DEMAND AND UTILISATION AT SPATIAL LEVEL"]
[]
[null,"There is ONE table on this worksheet. It has been sub-grouped into blocks of approximately 1000 rows for ease of navigation. See the Instructions sheet on how to group or ungroup data."]
[]
[null,"TABLE 5.4.1 NON-COINCIDENT & COINCIDENT MAXIMUM DEMAND"]
[null,"CONNECTION POINT","FORECASTING ELEMENTS","UNIT","MAX DEMAND",{"$f":"CRY","v":"2018-19"}]
[null,"<Enter connection point name>","Connection Point Rating","MVA","Non-Coincident"]
[null,null,null,null,"Coincident"]
[null,null,"Raw Adjusted MD","MW","Non-Coincident"]
[null,null,null,null,"Coincident"]
[null,null,"Raw Adjusted MD","MVA","Non-Coincident"]
[null,null,null,null,"Coincident"]
[null,null,"Date MD occurred",null,"Non-Coincident"]
[null,null,null,null,"Coincident"]
[null,null,"Half hour time period MD occurred",null,"Non-Coincident"]
[null,null,null,null,"Coincident"]
[null,null,"Winter/Summer Peaking",null,"Non-Coincident"]
[null,null,null,null,"Coincident"]
[null,null,"Adjustments - Embedded generation","MW","Non-Coincident"]
[null,null,null,null,"Coincident"]
[null,null,"Weather Corrected MD 10% POE","MW","Non-Coincident"]
[null,null,null,null,"Coincident"]
[null,null,"Weather Corrected MD 10% POE","MVA","Non-Coincident"]
[null,null,null,null,"Coincident"]
[null,null,"Weather Corrected MD 50% POE","MW","Non-Coincident"]
[null,null,null,null,"Coincident"]
[null,null,"Weather Corrected MD 50% POE","MVA","Non-Coincident"]
[null,null,null,null,"Coincident"]
[null,"<Enter connection point name>","Connection Point Rating","MVA","Non-Coincident"]
[null,null,null,null,"Coincident"]
[null,null,"Raw Adjusted MD","MW","Non-Coincident"]
[null,null,null,null,"Coincident"]
[null,null,"Raw Adjusted MD","MVA","Non-Coincident"]
[null,null,null,null,"Coincident"]
[null,null,"Date MD occurred",null,"Non-Coincident"]
[null,null,null,null,"Coincident"]
[null,null,"Half hour time period MD occurred",null,"Non-Coincident"]
[null,null,null,null,"Coincident"]
[null,null,"Winter/Summer Peaking",null,"Non-Coincident"]
[null,null,null,null,"Coincident"]
[null,null,"Adjustments - Embedded generation","MW","Non-Coincident"]
[null,null,null,null,"Coincident"]
[null,null,"Weather Corrected MD 10% POE","MW","Non-Coincident"]
[null,null,null,null,"Coincident"]
[null,null,"Weather Corrected MD 10% POE","MVA","Non-Coincident"]
[null,null,null,null,"Coincident"]
[null,null,"Weather Corrected MD 50% POE","MW","Non-Coincident"]
[null,null,null,null,"Coincident"]
[null,null,"Weather Corrected MD 50% POE","MVA","Non-Coincident"]
[null,null,null,null,"Coincident"]
[null,"<Enter connection point name>","Connection Point Rating","MVA","Non-Coincident"]
[null,null,null,null,"Coincident"]
[null,null,"Raw Adjusted MD","MW","Non-Coincident"]
[null,null,null,null,"Coincident"]
[null,null,"Raw Adjusted MD","MVA","Non-Coincident"]
[null,null,null,null,"Coincident"]
[null,null,"Date MD occurred",null,"Non-Coincident"]
[null,null,null,null,"Coincident"]
[null,null,"Half hour time period MD occurred",null,"Non-Coincident"]
[null,null,null,null,"Coincident"]
[null,null,"Winter/Summer Peaking",null,"Non-Coincident"]
[null,null,null,null,"Coincident"]
[null,null,"Adjustments - Embedded generation","MW","Non-Coincident"]
[null,null,null,null,"Coincident"]
[null,null,"Weather Corrected MD 10% POE","MW","Non-Coincident"]
[null,null,null,null,"Coincident"]
[null,null,"Weather Corrected MD 10% POE","MVA","Non-Coincident"]
[null,null,null,null,"Coincident"]
[null,null,"Weather Corrected MD 50% POE","MW","Non-Coincident"]
[null,null,null,null,"Coincident"]
[null,null,"Weather Corrected MD 50% POE","MVA","Non-Coincident"]
[null,null,null,null,"Coincident"]
[null,"<Enter connection point name>","Connection Point Rating","MVA","Non-Coincident"]
[null,null,null,null,"Coincident"]
[null,null,"Raw Adjusted MD","MW","Non-Coincident"]
[null,null,null,null,"Coincident"]
[null,null,"Raw Adjusted MD","MVA","Non-Coincident"]
[null,null,null,null,"Coincident"]
[null,null,"Date MD occurred",null,"Non-Coincident"]
[null,null,null,null,"Coincident"]
[null,null,"Half hour time period MD occurred",null,"Non-Coincident"]
[null,null,null,null,"Coincident"]
[null,null,"Winter/Summer Peaking",null,"Non-Coincident"]
[null,null,null,null,"Coincident"]
[null,null,"Adjustments - Embedded generation","MW","Non-Coincident"]
[null,null,null,null,"Coincident"]
[null,null,"Weather Corrected MD 10% POE","MW","Non-Coincident"]
[null,null,null,null,"Coincident"]
[null,null,"Weather Corrected MD 10% POE","MVA","Non-Coincident"]
[null,null,null,null,"Coincident"]
[null,null,"Weather Corrected MD 50% POE","MW","Non-Coincident"]
[null,null,null,null,"Coincident"]
[null,null,"Weather Corrected MD 50% POE","MVA","Non-Coincident"]
[null,null,null,null,"Coincident"]
[null,"<Enter connection point name>","Connection Point Rating","MVA","Non-Coincident"]
[null,null,null,null,"Coincident"]
[null,null,"Raw Adjusted MD","MW","Non-Coincident"]
[null,null,null,null,"Coincident"]
[null,null,"Raw Adjusted MD","MVA","Non-Coincident"]
[null,null,null,null,"Coincident"]
[null,null,"Date MD occurred",null,"Non-Coincident"]
[null,null,null,null,"Coincident"]
[null,null,"Half hour time period MD occurred",null,"Non-Coincident"]
[null,null,null,null,"Coincident"]
[null,null,"Winter/Summer Peaking",null,"Non-Coincident"]
[null,null,null,null,"Coincident"]
[null,null,"Adjustments - Embedded generation","MW","Non-Coincident"]
[null,null,null,null,"Coincident"]
[null,null,"Weather Corrected MD 10% POE","MW","Non-Coincident"]
[null,null,null,null,"Coincident"]
[null,null,"Weather Corrected MD 10% POE","MVA","Non-Coincident"]
[null,null,null,null,"Coincident"]
[null,null,"Weather Corrected MD 50% POE","MW","Non-Coincident"]
[null,null,null,null,"Coincident"]
[null,null,"Weather Corrected MD 50% POE","MVA","Non-Coincident"]
[null,null,null,null,"Coincident"]
[null,"<Enter connection point name>","Connection Point Rating","MVA","Non-Coincident"]
[null,null,null,null,"Coincident"]
[null,null,"Raw Adjusted MD","MW","Non-Coincident"]
[null,null,null,null,"Coincident"]
[null,null,"Raw Adjusted MD","MVA","Non-Coincident"]
[null,null,null,null,"Coincident"]
[null,null,"Date MD occurred",null,"Non-Coincident"]
[null,null,null,null,"Coincident"]
[null,null,"Half hour time period MD occurred",null,"Non-Coincident"]
[null,null,null,null,"Coincident"]
[null,null,"Winter/Summer Peaking",null,"Non-Coincident"]
[null,null,null,null,"Coincident"]
[null,null,"Adjustments - Embedded generation","MW","Non-Coincident"]
[null,null,null,null,"Coincident"]
[null,null,"Weather Corrected MD 10% POE","MW","Non-Coincident"]
[null,null,null,null,"Coincident"]
[null,null,"Weather Corrected MD 10% POE","MVA","Non-Coincident"]
[null,null,null,null,"Coincident"]
[null,null,"Weather Corrected MD 50% POE","MW","Non-Coincident"]
[null,null,null,null,"Coincident"]
[null,null,"Weather Corrected MD 50% POE","MVA","Non-Coincident"]
[null,null,null,null,"Coincident"]
[null,"<Enter connection point name>","Connection Point Rating","MVA","Non-Coincident"]
[null,null,null,null,"Coincident"]
[null,null,"Raw Adjusted MD","MW","Non-Coincident"]
[null,null,null,null,"Coincident"]
[null,null,"Raw Adjusted MD","MVA","Non-Coincident"]
[null,null,null,null,"Coincident"]
[null,null,"Date MD occurred",null,"Non-Coincident"]
[null,null,null,null,"Coincident"]
[null,null,"Half hour time period MD occurred",null,"Non-Coincident"]
[null,null,null,null,"Coincident"]
[null,null,"Winter/Summer Peaking",null,"Non-Coincident"]
[null,null,null,null,"Coincident"]
[null,null,"Adjustments - Embedded generation","MW","Non-Coincident"]
[null,null,null,null,"Coincident"]
[null,null,"Weather Corrected MD 10% POE","MW","Non-Coincident"]
[null,null,null,null,"Coincident"]
[null,null,"Weather Corrected MD 10% POE","MVA","Non-Coincident"]
[null,null,null,null,"Coincident"]
[null,null,"Weather Corrected MD 50% POE","MW","Non-Coincident"]
[null,null,null,null,"Coincident"]
[null,null,"Weather Corrected MD 50% POE","MVA","Non-Coincident"]
[null,null,null,null,"Coincident"]
[null,"<Enter connection point name>","Connection Point Rating","MVA","Non-Coincident"]
[null,null,null,null,"Coincident"]
[null,null,"Raw Adjusted MD","MW","Non-Coincident"]
[null,null,null,null,"Coincident"]
[null,null,"Raw Adjusted MD","MVA","Non-Coincident"]
[null,null,null,null,"Coincident"]
[null,null,"Date MD occurred",null,"Non-Coincident"]
[null,null,null,null,"Coincident"]
[null,null,"Half hour time period MD occurred",null,"Non-Coincident"]
[null,null,null,null,"Coincident"]
[null,null,"Winter/Summer Peaking",null,"Non-Coincident"]
[null,null,null,null,"Coincident"]
[null,null,"Adjustments - Embedded generation","MW","Non-Coincident"]
[null,null,null,null,"Coincident"]
[null,null,"Weather Corrected MD 10% POE","MW","Non-Coincident"]
[null,null,null,null,"Coincident"]
[null,null,"Weather Corrected MD 10% POE","MVA","Non-Coincident"]
[null,null,null,null,"Coincident"]
[null,null,"Weather Corrected MD 50% POE","MW","Non-Coincident"]
[null,null,null,null,"Coincident"]
[null,null,"Weather Corrected MD 50% POE","MVA","Non-Coincident"]
[null,null,null,null,"Coincident"]
[null,"<Enter connection point name>","Connection Point Rating","MVA","Non-Coincident"]
[null,null,null,null,"Coincident"]
[null,null,"Raw Adjusted MD","MW","Non-Coincident"]
[null,null,null,null,"Coincident"]
[null,null,"Raw Adjusted MD","MVA","Non-Coincident"]
[null,null,null,null,"Coincident"]
[null,null,"Date MD occurred",null,"Non-Coincident"]
[null,null,null,null,"Coincident"]
[null,null,"Half hour time period MD occurred",null,"Non-Coincident"]
[null,null,null,null,"Coincident"]
[null,null,"Winter/Summer Peaking",null,"Non-Coincident"]
[null,null,null,null,"Coincident"]
[null,null,"Adjustments - Embedded generation","MW","Non-Coincident"]
[null,null,null,null,"Coincident"]
[null,null,"Weather Corrected MD 10% POE","MW","Non-Coincident"]
[null,null,null,null,"Coincident"]
[null,null,"Weather Corrected MD 10% POE","MVA","Non-Coincident"]
[null,null,null,null,"Coincident"]
[null,null,"Weather Corrected MD 50% POE","MW","Non-Coincident"]
[null,null,null,null,"Coincident"]
[null,null,"Weather Corrected MD 50% POE","MVA","Non-Coincident"]
[null,null,null,null,"Coincident"]
[null,"<Enter connection point name>","Connection Point Rating","MVA","Non-Coincident"]
[null,null,null,null,"Coincident"]
[null,null,"Raw Adjusted MD","MW","Non-Coincident"]
[null,null,null,null,"Coincident"]
[null,null,"Raw Adjusted MD","MVA","Non-Coincident"]
[null,null,null,null,"Coincident"]
[null,null,"Date MD occurred",null,"Non-Coincident"]
[null,null,null,null,"Coincident"]
[null,null,"Half hour time period MD occurred",null,"Non-Coincident"]
[null,null,null,null,"Coincident"]
[null,null,"Winter/Summer Peaking",null,"Non-Coincident"]
[null,null,null,null,"Coincident"]
[null,null,"Adjustments - Embedded generation","MW","Non-Coincident"]
[null,null,null,null,"Coincident"]
[null,null,"Weather Corrected MD 10% POE","MW","Non-Coincident"]
[null,null,null,null,"Coincident"]
[null,null,"Weather Corrected MD 10% POE","MVA","Non-Coincident"]
[null,null,null,null,"Coincident"]
[null,null,"Weather Corrected MD 50% POE","MW","Non-Coincident"]
[null,null,null,null,"Coincident"]
[null,null,"Weather Corrected MD 50% POE","MVA","Non-Coincident"]
[null,null,null,null,"Coincident"]
[null,"<Enter connection point name>","Connection Point Rating","MVA","Non-Coincident"]
[null,null,null,null,"Coincident"]
[null,null,"Raw Adjusted MD","MW","Non-Coincident"]
[null,null,null,null,"Coincident"]
[null,null,"Raw Adjusted MD","MVA","Non-Coincident"]
[null,null,null,null,"Coincident"]
[null,null,"Date MD occurred",null,"Non-Coincident"]
[null,null,null,null,"Coincident"]
[null,null,"Half hour time period MD occurred",null,"Non-Coincident"]
[null,null,null,null,"Coincident"]
[null,null,"Winter/Summer Peaking",null,"Non-Coincident"]
[null,null,null,null,"Coincident"]
[null,null,"Adjustments - Embedded generation","MW","Non-Coincident"]
[null,null,null,null,"Coincident"]
[null,null,"Weather Corrected MD 10% POE","MW","Non-Coincident"]
[null,null,null,null,"Coincident"]
[null,null,"Weather Corrected MD 10% POE","MVA","Non-Coincident"]
[null,null,null,null,"Coincident"]
[null,null,"Weather Corrected MD 50% POE","MW","Non-Coincident"]
[null,null,null,null,"Coincident"]
[null,null,"Weather Corrected MD 50% POE","MVA","Non-Coincident"]
[null,null,null,null,"Coincident"]
[null,"<Enter connection point name>","Connection Point Rating","MVA","Non-Coincident"]
[null,null,null,null,"Coincident"]
[null,null,"Raw Adjusted MD","MW","Non-Coincident"]
[null,null,null,null,"Coincident"]
[null,null,"Raw Adjusted MD","MVA","Non-Coincident"]
[null,null,null,null,"Coincident"]
[null,null,"Date MD occurred",null,"Non-Coincident"]
[null,null,null,null,"Coincident"]
[null,null,"Half hour time period MD occurred",null,"Non-Coincident"]
[null,null,null,null,"Coincident"]
[null,null,"Winter/Summer Peaking",null,"Non-Coincident"]
[null,null,null,null,"Coincident"]
[null,null,"Adjustments - Embedded generation","MW","Non-Coincident"]
[null,null,null,null,"Coincident"]
[null,null,"Weather Corrected MD 10% POE","MW","Non-Coincident"]
[null,null,null,null,"Coincident"]
[null,null,"Weather Corrected MD 10% POE","MVA","Non-Coincident"]
[null,null,null,null,"Coincident"]
[null,null,"Weather Corrected MD 50% POE","MW","Non-Coincident"]
[null,null,null,null,"Coincident"]
[null,null,"Weather Corrected MD 50% POE","MVA","Non-Coincident"]
[null,null,null,null,"Coincident"]
[null,"<Enter connection point name>","Connection Point Rating","MVA","Non-Coincident"]
[null,null,null,null,"Coincident"]
[null,null,"Raw Adjusted MD","MW","Non-Coincident"]
[null,null,null,null,"Coincident"]
[null,null,"Raw Adjusted MD","MVA","Non-Coincident"]
[null,null,null,null,"Coincident"]
[null,null,"Date MD occurred",null,"Non-Coincident"]
[null,null,null,null,"Coincident"]
[null,null,"Half hour time period MD occurred",null,"Non-Coincident"]
[null,null,null,null,"Coincident"]
[null,null,"Winter/Summer Peaking",null,"Non-Coincident"]
[null,null,null,null,"Coincident"]
[null,null,"Adjustments - Embedded generation","MW","Non-Coincident"]
[null,null,null,null,"Coincident"]
[null,null,"Weather Corrected MD 10% POE","MW","Non-Coincident"]
[null,null,null,null,"Coincident"]
[null,null,"Weather Corrected MD 10% POE","MVA","Non-Coincident"]
[null,null,null,null,"Coincident"]
[null,null,"Weather Corrected MD 50% POE","MW","Non-Coincident"]
[null,null,null,null,"Coincident"]
[null,null,"Weather Corrected MD 50% POE","MVA","Non-Coincident"]
[null,null,null,null,"Coincident"]
[null,"<Enter connection point name>","Connection Point Rating","MVA","Non-Coincident"]
[null,null,null,null,"Coincident"]
[null,null,"Raw Adjusted MD","MW","Non-Coincident"]
[null,null,null,null,"Coincident"]
[null,null,"Raw Adjusted MD","MVA","Non-Coincident"]
[null,null,null,null,"Coincident"]
[null,null,"Date MD occurred",null,"Non-Coincident"]
[null,null,null,null,"Coincident"]
[null,null,"Half hour time period MD occurred",null,"Non-Coincident"]
[null,null,null,null,"Coincident"]
[null,null,"Winter/Summer Peaking",null,"Non-Coincident"]
[null,null,null,null,"Coincident"]
[null,null,"Adjustments - Embedded generation","MW","Non-Coincident"]
[null,null,null,null,"Coincident"]
[null,null,"Weather Corrected MD 10% POE","MW","Non-Coincident"]
[null,null,null,null,"Coincident"]
[null,null,"Weather Corrected MD 10% POE","MVA","Non-Coincident"]
[null,null,null,null,"Coincident"]
[null,null,"Weather Corrected MD 50% POE","MW","Non-Coincident"]
[null,null,null,null,"Coincident"]
[null,null,"Weather Corrected MD 50% POE","MVA","Non-Coincident"]
[null,null,null,null,"Coincident"]
[null,"<Enter connection point name>","Connection Point Rating","MVA","Non-Coincident"]
[null,null,null,null,"Coincident"]
[null,null,"Raw Adjusted MD","MW","Non-Coincident"]
[null,null,null,null,"Coincident"]
[null,null,"Raw Adjusted MD","MVA","Non-Coincident"]
[null,null,null,null,"Coincident"]
[null,null,"Date MD occurred",null,"Non-Coincident"]
[null,null,null,null,"Coincident"]
[null,null,"Half hour time period MD occurred",null,"Non-Coincident"]
[null,null,null,null,"Coincident"]
[null,null,"Winter/Summer Peaking",null,"Non-Coincident"]
[null,null,null,null,"Coincident"]
[null,null,"Adjustments - Embedded generation","MW","Non-Coincident"]
[null,null,null,null,"Coincident"]
[null,null,"Weather Corrected MD 10% POE","MW","Non-Coincident"]
[null,null,null,null,"Coincident"]
[null,null,"Weather Corrected MD 10% POE","MVA","Non-Coincident"]
[null,null,null,null,"Coincident"]
[null,null,"Weather Corrected MD 50% POE","MW","Non-Coincident"]
[null,null,null,null,"Coincident"]
[null,null,"Weather Corrected MD 50% POE","MVA","Non-Coincident"]
[null,null,null,null,"Coincident"]
[null,"<Enter connection point name>","Connection Point Rating","MVA","Non-Coincident"]
[null,null,null,null,"Coincident"]
[null,null,"Raw Adjusted MD","MW","Non-Coincident"]
[null,null,null,null,"Coincident"]
[null,null,"Raw Adjusted MD","MVA","Non-Coincident"]
[null,null,null,null,"Coincident"]
[null,null,"Date MD occurred",null,"Non-Coincident"]
[null,null,null,null,"Coincident"]
[null,null,"Half hour time period MD occurred",null,"Non-Coincident"]
[null,null,null,null,"Coincident"]
[null,null,"Winter/Summer Peaking",null,"Non-Coincident"]
[null,null,null,null,"Coincident"]
[null,null,"Adjustments - Embedded generation","MW","Non-Coincident"]
[null,null,null,null,"Coincident"]
[null,null,"Weather Corrected MD 10% POE","MW","Non-Coincident"]
[null,null,null,null,"Coincident"]
[null,null,"Weather Corrected MD 10% POE","MVA","Non-Coincident"]
[null,null,null,null,"Coincident"]
[null,null,"Weather Corrected MD 50% POE","MW","Non-Coincident"]
[null,null,null,null,"Coincident"]
[null,null,"Weather Corrected MD 50% POE","MVA","Non-Coincident"]
[null,null,null,null,"Coincident"]
[null,"<Enter connection point name>","Connection Point Rating","MVA","Non-Coincident"]
[null,null,null,null,"Coincident"]
[null,null,"Raw Adjusted MD","MW","Non-Coincident"]
[null,null,null,null,"Coincident"]
[null,null,"Raw Adjusted MD","MVA","Non-Coincident"]
[null,null,null,null,"Coincident"]
[null,null,"Date MD occurred",null,"Non-Coincident"]
[null,null,null,null,"Coincident"]
[null,null,"Half hour time period MD occurred",null,"Non-Coincident"]
[null,null,null,null,"Coincident"]
[null,null,"Winter/Summer Peaking",null,"Non-Coincident"]
[null,null,null,null,"Coincident"]
[null,null,"Adjustments - Embedded generation","MW","Non-Coincident"]
[null,null,null,null,"Coincident"]
[null,null,"Weather Corrected MD 10% POE","MW","Non-Coincident"]
[null,null,null,null,"Coincident"]
[null,null,"Weather Corrected MD 10% POE","MVA","Non-Coincident"]
[null,null,null,null,"Coincident"]
[null,null,"Weather Corrected MD 50% POE","MW","Non-Coincident"]
[null,null,null,null,"Coincident"]
[null,null,"Weather Corrected MD 50% POE","MVA","Non-Coincident"]
[null,null,null,null,"Coincident"]
[null,"<Enter connection point name>","Connection Point Rating","MVA","Non-Coincident"]
[null,null,null,null,"Coincident"]
[null,null,"Raw Adjusted MD","MW","Non-Coincident"]
[null,null,null,null,"Coincident"]
[null,null,"Raw Adjusted MD","MVA","Non-Coincident"]
[null,null,null,null,"Coincident"]
[null,null,"Date MD occurred",null,"Non-Coincident"]
[null,null,null,null,"Coincident"]
[null,null,"Half hour time period MD occurred",null,"Non-Coincident"]
[null,null,null,null,"Coincident"]
[null,null,"Winter/Summer Peaking",null,"Non-Coincident"]
[null,null,null,null,"Coincident"]
[null,null,"Adjustments - Embedded generation","MW","Non-Coincident"]
[null,null,null,null,"Coincident"]
[null,null,"Weather Corrected MD 10% POE","MW","Non-Coincident"]
[null,null,null,null,"Coincident"]
[null,null,"Weather Corrected MD 10% POE","MVA","Non-Coincident"]
[null,null,null,null,"Coincident"]
[null,null,"Weather Corrected MD 50% POE","MW","Non-Coincident"]
[null,null,null,null,"Coincident"]
[null,null,"Weather Corrected MD 50% POE","MVA","Non-Coincident"]
[null,null,null,null,"Coincident"]
[null,"<Enter connection point name>","Connection Point Rating","MVA","Non-Coincident"]
[null,null,null,null,"Coincident"]
[null,null,"Raw Adjusted MD","MW","Non-Coincident"]
[null,null,null,null,"Coincident"]
[null,null,"Raw Adjusted MD","MVA","Non-Coincident"]
[null,null,null,null,"Coincident"]
[null,null,"Date MD occurred",null,"Non-Coincident"]
[null,null,null,null,"Coincident"]
[null,null,"Half hour time period MD occurred",null,"Non-Coincident"]
[null,null,null,null,"Coincident"]
[null,null,"Winter/Summer Peaking",null,"Non-Coincident"]
[null,null,null,null,"Coincident"]
[null,null,"Adjustments - Embedded generation","MW","Non-Coincident"]
[null,null,null,null,"Coincident"]
[null,null,"Weather Corrected MD 10% POE","MW","Non-Coincident"]
[null,null,null,null,"Coincident"]
[null,null,"Weather Corrected MD 10% POE","MVA","Non-Coincident"]
[null,null,null,null,"Coincident"]
[null,null,"Weather Corrected MD 50% POE","MW","Non-Coincident"]
[null,null,null,null,"Coincident"]
[null,null,"Weather Corrected MD 50% POE","MVA","Non-Coincident"]
[null,null,null,null,"Coincident"]
[null,"<Enter connection point name>","Connection Point Rating","MVA","Non-Coincident"]
[null,null,null,null,"Coincident"]
[null,null,"Raw Adjusted MD","MW","Non-Coincident"]
[null,null,null,null,"Coincident"]
[null,null,"Raw Adjusted MD","MVA","Non-Coincident"]
[null,null,null,null,"Coincident"]
[null,null,"Date MD occurred",null,"Non-Coincident"]
[null,null,null,null,"Coincident"]
[null,null,"Half hour time period MD occurred",null,"Non-Coincident"]
[null,null,null,null,"Coincident"]
[null,null,"Winter/Summer Peaking",null,"Non-Coincident"]
[null,null,null,null,"Coincident"]
[null,null,"Adjustments - Embedded generation","MW","Non-Coincident"]
[null,null,null,null,"Coincident"]
[null,null,"Weather Corrected MD 10% POE","MW","Non-Coincident"]
[null,null,null,null,"Coincident"]
[null,null,"Weather Corrected MD 10% POE","MVA","Non-Coincident"]
[null,null,null,null,"Coincident"]
[null,null,"Weather Corrected MD 50% POE","MW","Non-Coincident"]
[null,null,null,null,"Coincident"]
[null,null,"Weather Corrected MD 50% POE","MVA","Non-Coincident"]
[null,null,null,null,"Coincident"]
[null,"<Enter connection point name>","Connection Point Rating","MVA","Non-Coincident"]
[null,null,null,null,"Coincident"]
[null,null,"Raw Adjusted MD","MW","Non-Coincident"]
[null,null,null,null,"Coincident"]
[null,null,"Raw Adjusted MD","MVA","Non-Coincident"]
[null,null,null,null,"Coincident"]
[null,null,"Date MD occurred",null,"Non-Coincident"]
[null,null,null,null,"Coincident"]
[null,null,"Half hour time period MD occurred",null,"Non-Coincident"]
[null,null,null,null,"Coincident"]
[null,null,"Winter/Summer Peaking",null,"Non-Coincident"]
[null,null,null,null,"Coincident"]
[null,null,"Adjustments - Embedded generation","MW","Non-Coincident"]
[null,null,null,null,"Coincident"]
[null,null,"Weather Corrected MD 10% POE","MW","Non-Coincident"]
[null,null,null,null,"Coincident"]
[null,null,"Weather Corrected MD 10% POE","MVA","Non-Coincident"]
[null,null,null,null,"Coincident"]
[null,null,"Weather Corrected MD 50% POE","MW","Non-Coincident"]
[null,null,null,null,"Coincident"]
[null,null,"Weather Corrected MD 50% POE","MVA","Non-Coincident"]
[null,null,null,null,"Coincident"]
[null,"<Enter connection point name>","Connection Point Rating","MVA","Non-Coincident"]
[null,null,null,null,"Coincident"]
[null,null,"Raw Adjusted MD","MW","Non-Coincident"]
[null,null,null,null,"Coincident"]
[null,null,"Raw Adjusted MD","MVA","Non-Coincident"]
[null,null,null,null,"Coincident"]
[null,null,"Date MD occurred",null,"Non-Coincident"]
[null,null,null,null,"Coincident"]
[null,null,"Half hour time period MD occurred",null,"Non-Coincident"]
[null,null,null,null,"Coincident"]
[null,null,"Winter/Summer Peaking",null,"Non-Coincident"]
[null,null,null,null,"Coincident"]
[null,null,"Adjustments - Embedded generation","MW","Non-Coincident"]
[null,null,null,null,"Coincident"]
[null,null,"Weather Corrected MD 10% POE","MW","Non-Coincident"]
[null,null,null,null,"Coincident"]
[null,null,"Weather Corrected MD 10% POE","MVA","Non-Coincident"]
[null,null,null,null,"Coincident"]
[null,null,"Weather Corrected MD 50% POE","MW","Non-Coincident"]
[null,null,null,null,"Coincident"]
[null,null,"Weather Corrected MD 50% POE","MVA","Non-Coincident"]
[null,null,null,null,"Coincident"]
[null,"<Enter connection point name>","Connection Point Rating","MVA","Non-Coincident"]
[null,null,null,null,"Coincident"]
[null,null,"Raw Adjusted MD","MW","Non-Coincident"]
[null,null,null,null,"Coincident"]
[null,null,"Raw Adjusted MD","MVA","Non-Coincident"]
[null,null,null,null,"Coincident"]
[null,null,"Date MD occurred",null,"Non-Coincident"]
[null,null,null,null,"Coincident"]
[null,null,"Half hour time period MD occurred",null,"Non-Coincident"]
[null,null,null,null,"Coincident"]
[null,null,"Winter/Summer Peaking",null,"Non-Coincident"]
[null,null,null,null,"Coincident"]
[null,null,"Adjustments - Embedded generation","MW","Non-Coincident"]
[null,null,null,null,"Coincident"]
[null,null,"Weather Corrected MD 10% POE","MW","Non-Coincident"]
[null,null,null,null,"Coincident"]
[null,null,"Weather Corrected MD 10% POE","MVA","Non-Coincident"]
[null,null,null,null,"Coincident"]
[null,null,"Weather Corrected MD 50% POE","MW","Non-Coincident"]
[null,null,null,null,"Coincident"]
[null,null,"Weather Corrected MD 50% POE","MVA","Non-Coincident"]
[null,null,null,null,"Coincident"]
[null,"<Enter connection point name>","Connection Point Rating","MVA","Non-Coincident"]
[null,null,null,null,"Coincident"]
[null,null,"Raw Adjusted MD","MW","Non-Coincident"]
[null,null,null,null,"Coincident"]
[null,null,"Raw Adjusted MD","MVA","Non-Coincident"]
[null,null,null,null,"Coincident"]
[null,null,"Date MD occurred",null,"Non-Coincident"]
[null,null,null,null,"Coincident"]
[null,null,"Half hour time period MD occurred",null,"Non-Coincident"]
[null,null,null,null,"Coincident"]
[null,null,"Winter/Summer Peaking",null,"Non-Coincident"]
[null,null,null,null,"Coincident"]
[null,null,"Adjustments - Embedded generation","MW","Non-Coincident"]
[null,null,null,null,"Coincident"]
[null,null,"Weather Corrected MD 10% POE","MW","Non-Coincident"]
[null,null,null,null,"Coincident"]
[null,null,"Weather Corrected MD 10% POE","MVA","Non-Coincident"]
[null,null,null,null,"Coincident"]
[null,null,"Weather Corrected MD 50% POE","MW","Non-Coincident"]
[null,null,null,null,"Coincident"]
[null,null,"Weather Corrected MD 50% POE","MVA","Non-Coincident"]
[null,null,null,null,"Coincident"]
[null,"<Enter connection point name>","Connection Point Rating","MVA","Non-Coincident"]
[null,null,null,null,"Coincident"]
[null,null,"Raw Adjusted MD","MW","Non-Coincident"]
[null,null,null,null,"Coincident"]
[null,null,"Raw Adjusted MD","MVA","Non-Coincident"]
[null,null,null,null,"Coincident"]
[null,null,"Date MD occurred",null,"Non-Coincident"]
[null,null,null,null,"Coincident"]
[null,null,"Half hour time period MD occurred",null,"Non-Coincident"]
[null,null,null,null,"Coincident"]
[null,null,"Winter/Summer Peaking",null,"Non-Coincident"]
[null,null,null,null,"Coincident"]
[null,null,"Adjustments - Embedded generation","MW","Non-Coincident"]
[null,null,null,null,"Coincident"]
[null,null,"Weather Corrected MD 10% POE","MW","Non-Coincident"]
[null,null,null,null,"Coincident"]
[null,null,"Weather Corrected MD 10% POE","MVA","Non-Coincident"]
[null,null,null,null,"Coincident"]
[null,null,"Weather Corrected MD 50% POE","MW","Non-Coincident"]
[null,null,null,null,"Coincident"]
[null,null,"Weather Corrected MD 50% POE","MVA","Non-Coincident"]
[null,null,null,null,"Coincident"]
[null,"<Enter connection point name>","Connection Point Rating","MVA","Non-Coincident"]
[null,null,null,null,"Coincident"]
[null,null,"Raw Adjusted MD","MW","Non-Coincident"]
[null,null,null,null,"Coincident"]
[null,null,"Raw Adjusted MD","MVA","Non-Coincident"]
[null,null,null,null,"Coincident"]
[null,null,"Date MD occurred",null,"Non-Coincident"]
[null,null,null,null,"Coincident"]
[null,null,"Half hour time period MD occurred",null,"Non-Coincident"]
[null,null,null,null,"Coincident"]
[null,null,"Winter/Summer Peaking",null,"Non-Coincident"]
[null,null,null,null,"Coincident"]
[null,null,"Adjustments - Embedded generation","MW","Non-Coincident"]
[null,null,null,null,"Coincident"]
[null,null,"Weather Corrected MD 10% POE","MW","Non-Coincident"]
[null,null,null,null,"Coincident"]
[null,null,"Weather Corrected MD 10% POE","MVA","Non-Coincident"]
[null,null,null,null,"Coincident"]
[null,null,"Weather Corrected MD 50% POE","MW","Non-Coincident"]
[null,null,null,null,"Coincident"]
[null,null,"Weather Corrected MD 50% POE","MVA","Non-Coincident"]
[null,null,null,null,"Coincident"]
[null,"<Enter connection point name>","Connection Point Rating","MVA","Non-Coincident"]
[null,null,null,null,"Coincident"]
[null,null,"Raw Adjusted MD","MW","Non-Coincident"]
[null,null,null,null,"Coincident"]
[null,null,"Raw Adjusted MD","MVA","Non-Coincident"]
[null,null,null,null,"Coincident"]
[null,null,"Date MD occurred",null,"Non-Coincident"]
[null,null,null,null,"Coincident"]
[null,null,"Half hour time period MD occurred",null,"Non-Coincident"]
[null,null,null,null,"Coincident"]
[null,null,"Winter/Summer Peaking",null,"Non-Coincident"]
[null,null,null,null,"Coincident"]
[null,null,"Adjustments - Embedded generation","MW","Non-Coincident"]
[null,null,null,null,"Coincident"]
[null,null,"Weather Corrected MD 10% POE","MW","Non-Coincident"]
[null,null,null,null,"Coincident"]
[null,null,"Weather Corrected MD 10% POE","MVA","Non-Coincident"]
[null,null,null,null,"Coincident"]
[null,null,"Weather Corrected MD 50% POE","MW","Non-Coincident"]
[null,null,null,null,"Coincident"]
[null,null,"Weather Corrected MD 50% POE","MVA","Non-Coincident"]
[null,null,null,null,"Coincident"]
[null,"<Enter connection point name>","Connection Point Rating","MVA","Non-Coincident"]
[null,null,null,null,"Coincident"]
[null,null,"Raw Adjusted MD","MW","Non-Coincident"]
[null,null,null,null,"Coincident"]
[null,null,"Raw Adjusted MD","MVA","Non-Coincident"]
[null,null,null,null,"Coincident"]
[null,null,"Date MD occurred",null,"Non-Coincident"]
[null,null,null,null,"Coincident"]
[null,null,"Half hour time period MD occurred",null,"Non-Coincident"]
[null,null,null,null,"Coincident"]
[null,null,"Winter/Summer Peaking",null,"Non-Coincident"]
[null,null,null,null,"Coincident"]
[null,null,"Adjustments - Embedded generation","MW","Non-Coincident"]
[null,null,null,null,"Coincident"]
[null,null,"Weather Corrected MD 10% POE","MW","Non-Coincident"]
[null,null,null,null,"Coincident"]
[null,null,"Weather Corrected MD 10% POE","MVA","Non-Coincident"]
[null,null,null,null,"Coincident"]
[null,null,"Weather Corrected MD 50% POE","MW","Non-Coincident"]
[null,null,null,null,"Coincident"]
[null,null,"Weather Corrected MD 50% POE","MVA","Non-Coincident"]
[null,null,null,null,"Coincident"]
[null,"<Enter connection point name>","Connection Point Rating","MVA","Non-Coincident"]
[null,null,null,null,"Coincident"]
[null,null,"Raw Adjusted MD","MW","Non-Coincident"]
[null,null,null,null,"Coincident"]
[null,null,"Raw Adjusted MD","MVA","Non-Coincident"]
[null,null,null,null,"Coincident"]
[null,null,"Date MD occurred",null,"Non-Coincident"]
[null,null,null,null,"Coincident"]
[null,null,"Half hour time period MD occurred",null,"Non-Coincident"]
[null,null,null,null,"Coincident"]
[null,null,"Winter/Summer Peaking",null,"Non-Coincident"]
[null,null,null,null,"Coincident"]
[null,null,"Adjustments - Embedded generation","MW","Non-Coincident"]
[null,null,null,null,"Coincident"]
[null,null,"Weather Corrected MD 10% POE","MW","Non-Coincident"]
[null,null,null,null,"Coincident"]
[null,null,"Weather Corrected MD 10% POE","MVA","Non-Coincident"]
[null,null,null,null,"Coincident"]
[null,null,"Weather Corrected MD 50% POE","MW","Non-Coincident"]
[null,null,null,null,"Coincident"]
[null,null,"Weather Corrected MD 50% POE","MVA","Non-Coincident"]
[null,null,null,null,"Coincident"]
[null,"<Enter connection point name>","Connection Point Rating","MVA","Non-Coincident"]
[null,null,null,null,"Coincident"]
[null,null,"Raw Adjusted MD","MW","Non-Coincident"]
[null,null,null,null,"Coincident"]
[null,null,"Raw Adjusted MD","MVA","Non-Coincident"]
[null,null,null,null,"Coincident"]
[null,null,"Date MD occurred",null,"Non-Coincident"]
[null,null,null,null,"Coincident"]
[null,null,"Half hour time period MD occurred",null,"Non-Coincident"]
[null,null,null,null,"Coincident"]
[null,null,"Winter/Summer Peaking",null,"Non-Coincident"]
[null,null,null,null,"Coincident"]
[null,null,"Adjustments - Embedded generation","MW","Non-Coincident"]
[null,null,null,null,"Coincident"]
[null,null,"Weather Corrected MD 10% POE","MW","Non-Coincident"]
[null,null,null,null,"Coincident"]
[null,null,"Weather Corrected MD 10% POE","MVA","Non-Coincident"]
[null,null,null,null,"Coincident"]
[null,null,"Weather Corrected MD 50% POE","MW","Non-Coincident"]
[null,null,null,null,"Coincident"]
[null,null,"Weather Corrected MD 50% POE","MVA","Non-Coincident"]
[null,null,null,null,"Coincident"]
[null,"<Enter connection point name>","Connection Point Rating","MVA","Non-Coincident"]
[null,null,null,null,"Coincident"]
[null,null,"Raw Adjusted MD","MW","Non-Coincident"]
[null,null,null,null,"Coincident"]
[null,null,"Raw Adjusted MD","MVA","Non-Coincident"]
[null,null,null,null,"Coincident"]
[null,null,"Date MD occurred",null,"Non-Coincident"]
[null,null,null,null,"Coincident"]
[null,null,"Half hour time period MD occurred",null,"Non-Coincident"]
[null,null,null,null,"Coincident"]
[null,null,"Winter/Summer Peaking",null,"Non-Coincident"]
[null,null,null,null,"Coincident"]
[null,null,"Adjustments - Embedded generation","MW","Non-Coincident"]
[null,null,null,null,"Coincident"]
[null,null,"Weather Corrected MD 10% POE","MW","Non-Coincident"]
[null,null,null,null,"Coincident"]
[null,null,"Weather Corrected MD 10% POE","MVA","Non-Coincident"]
[null,null,null,null,"Coincident"]
[null,null,"Weather Corrected MD 50% POE","MW","Non-Coincident"]
[null,null,null,null,"Coincident"]
[null,null,"Weather Corrected MD 50% POE","MVA","Non-Coincident"]
[null,null,null,null,"Coincident"]
[null,"<Enter connection point name>","Connection Point Rating","MVA","Non-Coincident"]
[null,null,null,null,"Coincident"]
[null,null,"Raw Adjusted MD","MW","Non-Coincident"]
[null,null,null,null,"Coincident"]
[null,null,"Raw Adjusted MD","MVA","Non-Coincident"]
[null,null,null,null,"Coincident"]
[null,null,"Date MD occurred",null,"Non-Coincident"]
[null,null,null,null,"Coincident"]
[null,null,"Half hour time period MD occurred",null,"Non-Coincident"]
[null,null,null,null,"Coincident"]
[null,null,"Winter/Summer Peaking",null,"Non-Coincident"]
[null,null,null,null,"Coincident"]
[null,null,"Adjustments - Embedded generation","MW","Non-Coincident"]
[null,null,null,null,"Coincident"]
[null,null,"Weather Corrected MD 10% POE","MW","Non-Coincident"]
[null,null,null,null,"Coincident"]
[null,null,"Weather Corrected MD 10% POE","MVA","Non-Coincident"]
[null,null,null,null,"Coincident"]
[null,null,"Weather Corrected MD 50% POE","MW","Non-Coincident"]
[null,null,null,null,"Coincident"]
[null,null,"Weather Corrected MD 50% POE","MVA","Non-Coincident"]
[null,null,null,null,"Coincident"]
[null,"<Enter connection point name>","Connection Point Rating","MVA","Non-Coincident"]
[null,null,null,null,"Coincident"]
[null,null,"Raw Adjusted MD","MW","Non-Coincident"]
[null,null,null,null,"Coincident"]
[null,null,"Raw Adjusted MD","MVA","Non-Coincident"]
[null,null,null,null,"Coincident"]
[null,null,"Date MD occurred",null,"Non-Coincident"]
[null,null,null,null,"Coincident"]
[null,null,"Half hour time period MD occurred",null,"Non-Coincident"]
[null,null,null,null,"Coincident"]
[null,null,"Winter/Summer Peaking",null,"Non-Coincident"]
[null,null,null,null,"Coincident"]
[null,null,"Adjustments - Embedded generation","MW","Non-Coincident"]
[null,null,null,null,"Coincident"]
[null,null,"Weather Corrected MD 10% POE","MW","Non-Coincident"]
[null,null,null,null,"Coincident"]
[null,null,"Weather Corrected MD 10% POE","MVA","Non-Coincident"]
[null,null,null,null,"Coincident"]
[null,null,"Weather Corrected MD 50% POE","MW","Non-Coincident"]
[null,null,null,null,"Coincident"]
[null,null,"Weather Corrected MD 50% POE","MVA","Non-Coincident"]
[null,null,null,null,"Coincident"]
[null,"<Enter connection point name>","Connection Point Rating","MVA","Non-Coincident"]
[null,null,null,null,"Coincident"]
[null,null,"Raw Adjusted MD","MW","Non-Coincident"]
[null,null,null,null,"Coincident"]
[null,null,"Raw Adjusted MD","MVA","Non-Coincident"]
[null,null,null,null,"Coincident"]
[null,null,"Date MD occurred",null,"Non-Coincident"]
[null,null,null,null,"Coincident"]
[null,null,"Half hour time period MD occurred",null,"Non-Coincident"]
[null,null,null,null,"Coincident"]
[null,null,"Winter/Summer Peaking",null,"Non-Coincident"]
[null,null,null,null,"Coincident"]
[null,null,"Adjustments - Embedded generation","MW","Non-Coincident"]
[null,null,null,null,"Coincident"]
[null,null,"Weather Corrected MD 10% POE","MW","Non-Coincident"]
[null,null,null,null,"Coincident"]
[null,null,"Weather Corrected MD 10% POE","MVA","Non-Coincident"]
[null,null,null,null,"Coincident"]
[null,null,"Weather Corrected MD 50% POE","MW","Non-Coincident"]
[null,null,null,null,"Coincident"]
[null,null,"Weather Corrected MD 50% POE","MVA","Non-Coincident"]
[null,null,null,null,"Coincident"]
[null,"<Enter connection point name>","Connection Point Rating","MVA","Non-Coincident"]
[null,null,null,null,"Coincident"]
[null,null,"Raw Adjusted MD","MW","Non-Coincident"]
[null,null,null,null,"Coincident"]
[null,null,"Raw Adjusted MD","MVA","Non-Coincident"]
[null,null,null,null,"Coincident"]
[null,null,"Date MD occurred",null,"Non-Coincident"]
[null,null,null,null,"Coincident"]
[null,null,"Half hour time period MD occurred",null,"Non-Coincident"]
[null,null,null,null,"Coincident"]
[null,null,"Winter/Summer Peaking",null,"Non-Coincident"]
[null,null,null,null,"Coincident"]
[null,null,"Adjustments - Embedded generation","MW","Non-Coincident"]
[null,null,null,null,"Coincident"]
[null,null,"Weather Corrected MD 10% POE","MW","Non-Coincident"]
[null,null,null,null,"Coincident"]
[null,null,"Weather Corrected MD 10% POE","MVA","Non-Coincident"]
[null,null,null,null,"Coincident"]
[null,null,"Weather Corrected MD 50% POE","MW","Non-Coincident"]
[null,null,null,null,"Coincident"]
[null,null,"Weather Corrected MD 50% POE","MVA","Non-Coincident"]
[null,null,null,null,"Coincident"]
[null,"<Enter connection point name>","Connection Point Rating","MVA","Non-Coincident"]
[null,null,null,null,"Coincident"]
[null,null,"Raw Adjusted MD","MW","Non-Coincident"]
[null,null,null,null,"Coincident"]
[null,null,"Raw Adjusted MD","MVA","Non-Coincident"]
[null,null,null,null,"Coincident"]
[null,null,"Date MD occurred",null,"Non-Coincident"]
[null,null,null,null,"Coincident"]
[null,null,"Half hour time period MD occurred",null,"Non-Coincident"]
[null,null,null,null,"Coincident"]
[null,null,"Winter/Summer Peaking",null,"Non-Coincident"]
[null,null,null,null,"Coincident"]
[null,null,"Adjustments - Embedded generation","MW","Non-Coincident"]
[null,null,null,null,"Coincident"]
[null,null,"Weather Corrected MD 10% POE","MW","Non-Coincident"]
[null,null,null,null,"Coincident"]
[null,null,"Weather Corrected MD 10% POE","MVA","Non-Coincident"]
[null,null,null,null,"Coincident"]
[null,null,"Weather Corrected MD 50% POE","MW","Non-Coincident"]
[null,null,null,null,"Coincident"]
[null,null,"Weather Corrected MD 50% POE","MVA","Non-Coincident"]
[null,null,null,null,"Coincident"]
[null,"<Enter connection point name>","Connection Point Rating","MVA","Non-Coincident"]
[null,null,null,null,"Coincident"]
[null,null,"Raw Adjusted MD","MW","Non-Coincident"]
[null,null,null,null,"Coincident"]
[null,null,"Raw Adjusted MD","MVA","Non-Coincident"]
[null,null,null,null,"Coincident"]
[null,null,"Date MD occurred",null,"Non-Coincident"]
[null,null,null,null,"Coincident"]
[null,null,"Half hour time period MD occurred",null,"Non-Coincident"]
[null,null,null,null,"Coincident"]
[null,null,"Winter/Summer Peaking",null,"Non-Coincident"]
[null,null,null,null,"Coincident"]
[null,null,"Adjustments - Embedded generation","MW","Non-Coincident"]
[null,null,null,null,"Coincident"]
[null,null,"Weather Corrected MD 10% POE","MW","Non-Coincident"]
[null,null,null,null,"Coincident"]
[null,null,"Weather Corrected MD 10% POE","MVA","Non-Coincident"]
[null,null,null,null,"Coincident"]
[null,null,"Weather Corrected MD 50% POE","MW","Non-Coincident"]
[null,null,null,null,"Coincident"]
[null,null,"Weather Corrected MD 50% POE","MVA","Non-Coincident"]
[null,null,null,null,"Coincident"]
[null,"<Enter connection point name>","Connection Point Rating","MVA","Non-Coincident"]
[null,null,null,null,"Coincident"]
[null,null,"Raw Adjusted MD","MW","Non-Coincident"]
[null,null,null,null,"Coincident"]
[null,null,"Raw Adjusted MD","MVA","Non-Coincident"]
[null,null,null,null,"Coincident"]
[null,null,"Date MD occurred",null,"Non-Coincident"]
[null,null,null,null,"Coincident"]
[null,null,"Half hour time period MD occurred",null,"Non-Coincident"]
[null,null,null,null,"Coincident"]
[null,null,"Winter/Summer Peaking",null,"Non-Coincident"]
[null,null,null,null,"Coincident"]
[null,null,"Adjustments - Embedded generation","MW","Non-Coincident"]
[null,null,null,null,"Coincident"]
[null,null,"Weather Corrected MD 10% POE","MW","Non-Coincident"]
[null,null,null,null,"Coincident"]
[null,null,"Weather Corrected MD 10% POE","MVA","Non-Coincident"]
[null,null,null,null,"Coincident"]
[null,null,"Weather Corrected MD 50% POE","MW","Non-Coincident"]
[null,null,null,null,"Coincident"]
[null,null,"Weather Corrected MD 50% POE","MVA","Non-Coincident"]
[null,null,null,null,"Coincident"]
[null,"<Enter connection point name>","Connection Point Rating","MVA","Non-Coincident"]
[null,null,null,null,"Coincident"]
[null,null,"Raw Adjusted MD","MW","Non-Coincident"]
[null,null,null,null,"Coincident"]
[null,null,"Raw Adjusted MD","MVA","Non-Coincident"]
[null,null,null,null,"Coincident"]
[null,null,"Date MD occurred",null,"Non-Coincident"]
[null,null,null,null,"Coincident"]
[null,null,"Half hour time period MD occurred",null,"Non-Coincident"]
[null,null,null,null,"Coincident"]
[null,null,"Winter/Summer Peaking",null,"Non-Coincident"]
[null,null,null,null,"Coincident"]
[null,null,"Adjustments - Embedded generation","MW","Non-Coincident"]
[null,null,null,null,"Coincident"]
[null,null,"Weather Corrected MD 10% POE","MW","Non-Coincident"]
[null,null,null,null,"Coincident"]
[null,null,"Weather Corrected MD 10% POE","MVA","Non-Coincident"]
[null,null,null,null,"Coincident"]
[null,null,"Weather Corrected MD 50% POE","MW","Non-Coincident"]
[null,null,null,null,"Coincident"]
[null,null,"Weather Corrected MD 50% POE","MVA","Non-Coincident"]
[null,null,null,null,"Coincident"]
[null,"<Enter connection point name>","Connection Point Rating","MVA","Non-Coincident"]
[null,null,null,null,"Coincident"]
[null,null,"Raw Adjusted MD","MW","Non-Coincident"]
[null,null,null,null,"Coincident"]
[null,null,"Raw Adjusted MD","MVA","Non-Coincident"]
[null,null,null,null,"Coincident"]
[null,null,"Date MD occurred",null,"Non-Coincident"]
[null,null,null,null,"Coincident"]
[null,null,"Half hour time period MD occurred",null,"Non-Coincident"]
[null,null,null,null,"Coincident"]
[null,null,"Winter/Summer Peaking",null,"Non-Coincident"]
[null,null,null,null,"Coincident"]
[null,null,"Adjustments - Embedded generation","MW","Non-Coincident"]
[null,null,null,null,"Coincident"]
[null,null,"Weather Corrected MD 10% POE","MW","Non-Coincident"]
[null,null,null,null,"Coincident"]
[null,null,"Weather Corrected MD 10% POE","MVA","Non-Coincident"]
[null,null,null,null,"Coincident"]
[null,null,"Weather Corrected MD 50% POE","MW","Non-Coincident"]
[null,null,null,null,"Coincident"]
[null,null,"Weather Corrected MD 50% POE","MVA","Non-Coincident"]
[null,null,null,null,"Coincident"]
[null,"<Enter connection point name>","Connection Point Rating","MVA","Non-Coincident"]
[null,null,null,null,"Coincident"]
[null,null,"Raw Adjusted MD","MW","Non-Coincident"]
[null,null,null,null,"Coincident"]
[null,null,"Raw Adjusted MD","MVA","Non-Coincident"]
[null,null,null,null,"Coincident"]
[null,null,"Date MD occurred",null,"Non-Coincident"]
[null,null,null,null,"Coincident"]
[null,null,"Half hour time period MD occurred",null,"Non-Coincident"]
[null,null,null,null,"Coincident"]
[null,null,"Winter/Summer Peaking",null,"Non-Coincident"]
[null,null,null,null,"Coincident"]
[null,null,"Adjustments - Embedded generation","MW","Non-Coincident"]
[null,null,null,null,"Coincident"]
[null,null,"Weather Corrected MD 10% POE","MW","Non-Coincident"]
[null,null,null,null,"Coincident"]
[null,null,"Weather Corrected MD 10% POE","MVA","Non-Coincident"]
[null,null,null,null,"Coincident"]
[null,null,"Weather Corrected MD 50% POE","MW","Non-Coincident"]
[null,null,null,null,"Coincident"]
[null,null,"Weather Corrected MD 50% POE","MVA","Non-Coincident"]
[null,null,null,null,"Coincident"]
[null,"<Enter connection point name>","Connection Point Rating","MVA","Non-Coincident"]
[null,null,null,null,"Coincident"]
[null,null,"Raw Adjusted MD","MW","Non-Coincident"]
[null,null,null,null,"Coincident"]
[null,null,"Raw Adjusted MD","MVA","Non-Coincident"]
[null,null,null,null,"Coincident"]
[null,null,"Date MD occurred",null,"Non-Coincident"]
[null,null,null,null,"Coincident"]
[null,null,"Half hour time period MD occurred",null,"Non-Coincident"]
[null,null,null,null,"Coincident"]
[null,null,"Winter/Summer Peaking",null,"Non-Coincident"]
[null,null,null,null,"Coincident"]
[null,null,"Adjustments - Embedded generation","MW","Non-Coincident"]
[null,null,null,null,"Coincident"]
[null,null,"Weather Corrected MD 10% POE","MW","Non-Coincident"]
[null,null,null,null,"Coincident"]
[null,null,"Weather Corrected MD 10% POE","MVA","Non-Coincident"]
[null,null,null,null,"Coincident"]
[null,null,"Weather Corrected MD 50% POE","MW","Non-Coincident"]
[null,null,null,null,"Coincident"]
[null,null,"Weather Corrected MD 50% POE","MVA","Non-Coincident"]
[null,null,null,null,"Coincident"]
[null,"<Enter connection point name>","Connection Point Rating","MVA","Non-Coincident"]
[null,null,null,null,"Coincident"]
[null,null,"Raw Adjusted MD","MW","Non-Coincident"]
[null,null,null,null,"Coincident"]
[null,null,"Raw Adjusted MD","MVA","Non-Coincident"]
[null,null,null,null,"Coincident"]
[null,null,"Date MD occurred",null,"Non-Coincident"]
[null,null,null,null,"Coincident"]
[null,null,"Half hour time period MD occurred",null,"Non-Coincident"]
[null,null,null,null,"Coincident"]
[null,null,"Winter/Summer Peaking",null,"Non-Coincident"]
[null,null,null,null,"Coincident"]
[null,null,"Adjustments - Embedded generation","MW","Non-Coincident"]
[null,null,null,null,"Coincident"]
[null,null,"Weather Corrected MD 10% POE","MW","Non-Coincident"]
[null,null,null,null,"Coincident"]
[null,null,"Weather Corrected MD 10% POE","MVA","Non-Coincident"]
[null,null,null,null,"Coincident"]
[null,null,"Weather Corrected MD 50% POE","MW","Non-Coincident"]
[null,null,null,null,"Coincident"]
[null,null,"Weather Corrected MD 50% POE","MVA","Non-Coincident"]
[null,null,null,null,"Coincident"]
[null,"<Enter connection point name>","Connection Point Rating","MVA","Non-Coincident"]
[null,null,null,null,"Coincident"]
[null,null,"Raw Adjusted MD","MW","Non-Coincident"]
[null,null,null,null,"Coincident"]
[null,null,"Raw Adjusted MD","MVA","Non-Coincident"]
[null,null,null,null,"Coincident"]
[null,null,"Date MD occurred",null,"Non-Coincident"]
[null,null,null,null,"Coincident"]
[null,null,"Half hour time period MD occurred",null,"Non-Coincident"]
[null,null,null,null,"Coincident"]
[null,null,"Winter/Summer Peaking",null,"Non-Coincident"]
[null,null,null,null,"Coincident"]
[null,null,"Adjustments - Embedded generation","MW","Non-Coincident"]
[null,null,null,null,"Coincident"]
[null,null,"Weather Corrected MD 10% POE","MW","Non-Coincident"]
[null,null,null,null,"Coincident"]
[null,null,"Weather Corrected MD 10% POE","MVA","Non-Coincident"]
[null,null,null,null,"Coincident"]
[null,null,"Weather Corrected MD 50% POE","MW","Non-Coincident"]
[null,null,null,null,"Coincident"]
[null,null,"Weather Corrected MD 50% POE","MVA","Non-Coincident"]
[null,null,null,null,"Coincident"]
[null,"<Enter connection point name>","Connection Point Rating","MVA","Non-Coincident"]
[null,null,null,null,"Coincident"]
[null,null,"Raw Adjusted MD","MW","Non-Coincident"]
[null,null,null,null,"Coincident"]
[null,null,"Raw Adjusted MD","MVA","Non-Coincident"]
[null,null,null,null,"Coincident"]
[null,null,"Date MD occurred",null,"Non-Coincident"]
[null,null,null,null,"Coincident"]
[null,null,"Half hour time period MD occurred",null,"Non-Coincident"]
[null,null,null,null,"Coincident"]
[null,null,"Winter/Summer Peaking",null,"Non-Coincident"]
[null,null,null,null,"Coincident"]
[null,null,"Adjustments - Embedded generation","MW","Non-Coincident"]
[null,null,null,null,"Coincident"]
[null,null,"Weather Corrected MD 10% POE","MW","Non-Coincident"]
[null,null,null,null,"Coincident"]
[null,null,"Weather Corrected MD 10% POE","MVA","Non-Coincident"]
[null,null,null,null,"Coincident"]
[null,null,"Weather Corrected MD 50% POE","MW","Non-Coincident"]
[null,null,null,null,"Coincident"]
[null,null,"Weather Corrected MD 50% POE","MVA","Non-Coincident"]
[null,null,null,null,"Coincident"]
[null,"<Enter connection point name>","Connection Point Rating","MVA","Non-Coincident"]
[null,null,null,null,"Coincident"]
[null,null,"Raw Adjusted MD","MW","Non-Coincident"]
[null,null,null,null,"Coincident"]
[null,null,"Raw Adjusted MD","MVA","Non-Coincident"]
[null,null,null,null,"Coincident"]
[null,null,"Date MD occurred",null,"Non-Coincident"]
[null,null,null,null,"Coincident"]
[null,null,"Half hour time period MD occurred",null,"Non-Coincident"]
[null,null,null,null,"Coincident"]
[null,null,"Winter/Summer Peaking",null,"Non-Coincident"]
[null,null,null,null,"Coincident"]
[null,null,"Adjustments - Embedded generation","MW","Non-Coincident"]
[null,null,null,null,"Coincident"]
[null,null,"Weather Corrected MD 10% POE","MW","Non-Coincident"]
[null,null,null,null,"Coincident"]
[null,null,"Weather Corrected MD 10% POE","MVA","Non-Coincident"]
[null,null,null,null,"Coincident"]
[null,null,"Weather Corrected MD 50% POE","MW","Non-Coincident"]
[null,null,null,null,"Coincident"]
[null,null,"Weather Corrected MD 50% POE","MVA","Non-Coincident"]
[null,null,null,null,"Coincident"]
[null,"<Enter connection point name>","Connection Point Rating","MVA","Non-Coincident"]
[null,null,null,null,"Coincident"]
[null,null,"Raw Adjusted MD","MW","Non-Coincident"]
[null,null,null,null,"Coincident"]
[null,null,"Raw Adjusted MD","MVA","Non-Coincident"]
[null,null,null,null,"Coincident"]
[null,null,"Date MD occurred",null,"Non-Coincident"]
[null,null,null,null,"Coincident"]
[null,null,"Half hour time period MD occurred",null,"Non-Coincident"]
[null,null,null,null,"Coincident"]
[null,null,"Winter/Summer Peaking",null,"Non-Coincident"]
[null,null,null,null,"Coincident"]
[null,null,"Adjustments - Embedded generation","MW","Non-Coincident"]
[null,null,null,null,"Coincident"]
[null,null,"Weather Corrected MD 10% POE","MW","Non-Coincident"]
[null,null,null,null,"Coincident"]
[null,null,"Weather Corrected MD 10% POE","MVA","Non-Coincident"]
[null,null,null,null,"Coincident"]
[null,null,"Weather Corrected MD 50% POE","MW","Non-Coincident"]
[null,null,null,null,"Coincident"]
[null,null,"Weather Corrected MD 50% POE","MVA","Non-Coincident"]
[null,null,null,null,"Coincident"]
[null,"<Enter connection point name>","Connection Point Rating","MVA","Non-Coincident"]
[null,null,null,null,"Coincident"]
[null,null,"Raw Adjusted MD","MW","Non-Coincident"]
[null,null,null,null,"Coincident"]
[null,null,"Raw Adjusted MD","MVA","Non-Coincident"]
[null,null,null,null,"Coincident"]
[null,null,"Date MD occurred",null,"Non-Coincident"]
[null,null,null,null,"Coincident"]
[null,null,"Half hour time period MD occurred",null,"Non-Coincident"]
[null,null,null,null,"Coincident"]
[null,null,"Winter/Summer Peaking",null,"Non-Coincident"]
[null,null,null,null,"Coincident"]
[null,null,"Adjustments - Embedded generation","MW","Non-Coincident"]
[null,null,null,null,"Coincident"]
[null,null,"Weather Corrected MD 10% POE","MW","Non-Coincident"]
[null,null,null,null,"Coincident"]
[null,null,"Weather Corrected MD 10% POE","MVA","Non-Coincident"]
[null,null,null,null,"Coincident"]
[null,null,"Weather Corrected MD 50% POE","MW","Non-Coincident"]
[null,null,null,null,"Coincident"]
[null,null,"Weather Corrected MD 50% POE","MVA","Non-Coincident"]
[null,null,null,null,"Coincident"]
[null,"<Enter connection point name>","Connection Point Rating","MVA","Non-Coincident"]
[null,null,null,null,"Coincident"]
[null,null,"Raw Adjusted MD","MW","Non-Coincident"]
[null,null,null,null,"Coincident"]
[null,null,"Raw Adjusted MD","MVA","Non-Coincident"]
[null,null,null,null,"Coincident"]
[null,null,"Date MD occurred",null,"Non-Coincident"]
[null,null,null,null,"Coincident"]
[null,null,"Half hour time period MD occurred",null,"Non-Coincident"]
[null,null,null,null,"Coincident"]
[null,null,"Winter/Summer Peaking",null,"Non-Coincident"]
[null,null,null,null,"Coincident"]
[null,null,"Adjustments - Embedded generation","MW","Non-Coincident"]
[null,null,null,null,"Coincident"]
[null,null,"Weather Corrected MD 10% POE","MW","Non-Coincident"]
[null,null,null,null,"Coincident"]
[null,null,"Weather Corrected MD 10% POE","MVA","Non-Coincident"]
[null,null,null,null,"Coincident"]
[null,null,"Weather Corrected MD 50% POE","MW","Non-Coincident"]
[null,null,null,null,"Coincident"]
[null,null,"Weather Corrected MD 50% POE","MVA","Non-Coincident"]
[null,null,null,null,"Coincident"]
[null,"<Enter connection point name>","Connection Point Rating","MVA","Non-Coincident"]
[null,null,null,null,"Coincident"]
[null,null,"Raw Adjusted MD","MW","Non-Coincident"]
[null,null,null,null,"Coincident"]
[null,null,"Raw Adjusted MD","MVA","Non-Coincident"]
[null,null,null,null,"Coincident"]
[null,null,"Date MD occurred",null,"Non-Coincident"]
[null,null,null,null,"Coincident"]
[null,null,"Half hour time period MD occurred",null,"Non-Coincident"]
[null,null,null,null,"Coincident"]
[null,null,"Winter/Summer Peaking",null,"Non-Coincident"]
[null,null,null,null,"Coincident"]
[null,null,"Adjustments - Embedded generation","MW","Non-Coincident"]
[null,null,null,null,"Coincident"]
[null,null,"Weather Corrected MD 10% POE","MW","Non-Coincident"]
[null,null,null,null,"Coincident"]
[null,null,"Weather Corrected MD 10% POE","MVA","Non-Coincident"]
[null,null,null,null,"Coincident"]
[null,null,"Weather Corrected MD 50% POE","MW","Non-Coincident"]
[null,null,null,null,"Coincident"]
[null,null,"Weather Corrected MD 50% POE","MVA","Non-Coincident"]
[null,null,null,null,"Coincident"]
[null,"<Enter connection point name>","Connection Point Rating","MVA","Non-Coincident"]
[null,null,null,null,"Coincident"]
[null,null,"Raw Adjusted MD","MW","Non-Coincident"]
[null,null,null,null,"Coincident"]
[null,null,"Raw Adjusted MD","MVA","Non-Coincident"]
[null,null,null,null,"Coincident"]
[null,null,"Date MD occurred",null,"Non-Coincident"]
[null,null,null,null,"Coincident"]
[null,null,"Half hour time period MD occurred",null,"Non-Coincident"]
[null,null,null,null,"Coincident"]
[null,null,"Winter/Summer Peaking",null,"Non-Coincident"]
[null,null,null,null,"Coincident"]
[null,null,"Adjustments - Embedded generation","MW","Non-Coincident"]
[null,null,null,null,"Coincident"]
[null,null,"Weather Corrected MD 10% POE","MW","Non-Coincident"]
[null,null,null,null,"Coincident"]
[null,null,"Weather Corrected MD 10% POE","MVA","Non-Coincident"]
[null,null,null,null,"Coincident"]
[null,null,"Weather Corrected MD 50% POE","MW","Non-Coincident"]
[null,null,null,null,"Coincident"]
[null,null,"Weather Corrected MD 50% POE","MVA","Non-Coincident"]
[null,null,null,null,"Coincident"]
[null,"<Enter connection point name>","Connection Point Rating","MVA","Non-Coincident"]
[null,null,null,null,"Coincident"]
[null,null,"Raw Adjusted MD","MW","Non-Coincident"]
[null,null,null,null,"Coincident"]
[null,null,"Raw Adjusted MD","MVA","Non-Coincident"]
[null,null,null,null,"Coincident"]
[null,null,"Date MD occurred",null,"Non-Coincident"]
[null,null,null,null,"Coincident"]
[null,null,"Half hour time period MD occurred",null,"Non-Coincident"]
[null,null,null,null,"Coincident"]
[null,null,"Winter/Summer Peaking",null,"Non-Coincident"]
[null,null,null,null,"Coincident"]
[null,null,"Adjustments - Embedded generation","MW","Non-Coincident"]
[null,null,null,null,"Coincident"]
[null,null,"Weather Corrected MD 10% POE","MW","Non-Coincident"]
[null,null,null,null,"Coincident"]
[null,null,"Weather Corrected MD 10% POE","MVA","Non-Coincident"]
[null,null,null,null,"Coincident"]
[null,null,"Weather Corrected MD 50% POE","MW","Non-Coincident"]
[null,null,null,null,"Coincident"]
[null,null,"Weather Corrected MD 50% POE","MVA","Non-Coincident"]
[null,null,null,null,"Coincident"]
[null,"<Enter connection point name>","Connection Point Rating","MVA","Non-Coincident"]
[null,null,null,null,"Coincident"]
[null,null,"Raw Adjusted MD","MW","Non-Coincident"]
[null,null,null,null,"Coincident"]
[null,null,"Raw Adjusted MD","MVA","Non-Coincident"]
[null,null,null,null,"Coincident"]
[null,null,"Date MD occurred",null,"Non-Coincident"]
[null,null,null,null,"Coincident"]
[null,null,"Half hour time period MD occurred",null,"Non-Coincident"]
[null,null,null,null,"Coincident"]
[null,null,"Winter/Summer Peaking",null,"Non-Coincident"]
[null,null,null,null,"Coincident"]
[null,null,"Adjustments - Embedded generation","MW","Non-Coincident"]
[null,null,null,null,"Coincident"]
[null,null,"Weather Corrected MD 10% POE","MW","Non-Coincident"]
[null,null,null,null,"Coincident"]
[null,null,"Weather Corrected MD 10% POE","MVA","Non-Coincident"]
[null,null,null,null,"Coincident"]
[null,null,"Weather Corrected MD 50% POE","MW","Non-Coincident"]
[null,null,null,null,"Coincident"]
[null,null,"Weather Corrected MD 50% POE","MVA","Non-Coincident"]
[null,null,null,null,"Coincident"]
[null,"<Enter connection point name>","Connection Point Rating","MVA","Non-Coincident"]
[null,null,null,null,"Coincident"]
[null,null,"Raw Adjusted MD","MW","Non-Coincident"]
[null,null,null,null,"Coincident"]
[null,null,"Raw Adjusted MD","MVA","Non-Coincident"]
[null,null,null,null,"Coincident"]
[null,null,"Date MD occurred",null,"Non-Coincident"]
[null,null,null,null,"Coincident"]
[null,null,"Half hour time period MD occurred",null,"Non-Coincident"]
[null,null,null,null,"Coincident"]
[null,null,"Winter/Summer Peaking",null,"Non-Coincident"]
[null,null,null,null,"Coincident"]
[null,null,"Adjustments - Embedded generation","MW","Non-Coincident"]
[null,null,null,null,"Coincident"]
[null,null,"Weather Corrected MD 10% POE","MW","Non-Coincident"]
[null,null,null,null,"Coincident"]
[null,null,"Weather Corrected MD 10% POE","MVA","Non-Coincident"]
[null,null,null,null,"Coincident"]
[null,null,"Weather Corrected MD 50% POE","MW","Non-Coincident"]
[null,null,null,null,"Coincident"]
[null,null,"Weather Corrected MD 50% POE","MVA","Non-Coincident"]
[null,null,null,null,"Coincident"]
[null,"<Enter connection point name>","Connection Point Rating","MVA","Non-Coincident"]
[null,null,null,null,"Coincident"]
[null,null,"Raw Adjusted MD","MW","Non-Coincident"]
[null,null,null,null,"Coincident"]
[null,null,"Raw Adjusted MD","MVA","Non-Coincident"]
[null,null,null,null,"Coincident"]
[null,null,"Date MD occurred",null,"Non-Coincident"]
[null,null,null,null,"Coincident"]
[null,null,"Half hour time period MD occurred",null,"Non-Coincident"]
[null,null,null,null,"Coincident"]
[null,null,"Winter/Summer Peaking",null,"Non-Coincident"]
[null,null,null,null,"Coincident"]
[null,null,"Adjustments - Embedded generation","MW","Non-Coincident"]
[null,null,null,null,"Coincident"]
[null,null,"Weather Corrected MD 10% POE","MW","Non-Coincident"]
[null,null,null,null,"Coincident"]
[null,null,"Weather Corrected MD 10% POE","MVA","Non-Coincident"]
[null,null,null,null,"Coincident"]
[null,null,"Weather Corrected MD 50% POE","MW","Non-Coincident"]
[null,null,null,null,"Coincident"]
[null,null,"Weather Corrected MD 50% POE","MVA","Non-Coincident"]
[null,null,null,null,"Coincident"]
[null,"<Enter connection point name>","Connection Point Rating","MVA","Non-Coincident"]
[null,null,null,null,"Coincident"]
[null,null,"Raw Adjusted MD","MW","Non-Coincident"]
[null,null,null,null,"Coincident"]
[null,null,"Raw Adjusted MD","MVA","Non-Coincident"]
[null,null,null,null,"Coincident"]
[null,null,"Date MD occurred",null,"Non-Coincident"]
[null,null,null,null,"Coincident"]
[null,null,"Half hour time period MD occurred",null,"Non-Coincident"]
[null,null,null,null,"Coincident"]
[null,null,"Winter/Summer Peaking",null,"Non-Coincident"]
[null,null,null,null,"Coincident"]
[null,null,"Adjustments - Embedded generation","MW","Non-Coincident"]
[null,null,null,null,"Coincident"]
[null,null,"Weather Corrected MD 10% POE","MW","Non-Coincident"]
[null,null,null,null,"Coincident"]
[null,null,"Weather Corrected MD 10% POE","MVA","Non-Coincident"]
[null,null,null,null,"Coincident"]
[null,null,"Weather Corrected MD 50% POE","MW","Non-Coincident"]
[null,null,null,null,"Coincident"]
[null,null,"Weather Corrected MD 50% POE","MVA","Non-Coincident"]
[null,null,null,null,"Coincident"]
[null,"<Enter connection point name>","Connection Point Rating","MVA","Non-Coincident"]
[null,null,null,null,"Coincident"]
[null,null,"Raw Adjusted MD","MW","Non-Coincident"]
[null,null,null,null,"Coincident"]
[null,null,"Raw Adjusted MD","MVA","Non-Coincident"]
[null,null,null,null,"Coincident"]
[null,null,"Date MD occurred",null,"Non-Coincident"]
[null,null,null,null,"Coincident"]
[null,null,"Half hour time period MD occurred",null,"Non-Coincident"]
[null,null,null,null,"Coincident"]
[null,null,"Winter/Summer Peaking",null,"Non-Coincident"]
[null,null,null,null,"Coincident"]
[null,null,"Adjustments - Embedded generation","MW","Non-Coincident"]
[null,null,null,null,"Coincident"]
[null,null,"Weather Corrected MD 10% POE","MW","Non-Coincident"]
[null,null,null,null,"Coincident"]
[null,null,"Weather Corrected MD 10% POE","MVA","Non-Coincident"]
[null,null,null,null,"Coincident"]
[null,null,"Weather Corrected MD 50% POE","MW","Non-Coincident"]
[null,null,null,null,"Coincident"]
[null,null,"Weather Corrected MD 50% POE","MVA","Non-Coincident"]
[null,null,null,null,"Coincident"]
[null,"<Enter connection point name>","Connection Point Rating","MVA","Non-Coincident"]
[null,null,null,null,"Coincident"]
[null,null,"Raw Adjusted MD","MW","Non-Coincident"]
[null,null,null,null,"Coincident"]
[null,null,"Raw Adjusted MD","MVA","Non-Coincident"]
[null,null,null,null,"Coincident"]
[null,null,"Date MD occurred",null,"Non-Coincident"]
[null,null,null,null,"Coincident"]
[null,null,"Half hour time period MD occurred",null,"Non-Coincident"]
[null,null,null,null,"Coincident"]
[null,null,"Winter/Summer Peaking",null,"Non-Coincident"]
[null,null,null,null,"Coincident"]
[null,null,"Adjustments - Embedded generation","MW","Non-Coincident"]
[null,null,null,null,"Coincident"]
[null,null,"Weather Corrected MD 10% POE","MW","Non-Coincident"]
[null,null,null,null,"Coincident"]
[null,null,"Weather Corrected MD 10% POE","MVA","Non-Coincident"]
[null,null,null,null,"Coincident"]
[null,null,"Weather Corrected MD 50% POE","MW","Non-Coincident"]
[null,null,null,null,"Coincident"]
[null,null,"Weather Corrected MD 50% POE","MVA","Non-Coincident"]
[null,null,null,null,"Coincident"]
[null,"<Enter connection point name>","Connection Point Rating","MVA","Non-Coincident"]
[null,null,null,null,"Coincident"]
[null,null,"Raw Adjusted MD","MW","Non-Coincident"]
[null,null,null,null,"Coincident"]
[null,null,"Raw Adjusted MD","MVA","Non-Coincident"]
[null,null,null,null,"Coincident"]
[null,null,"Date MD occurred",null,"Non-Coincident"]
[null,null,null,null,"Coincident"]
[null,null,"Half hour time period MD occurred",null,"Non-Coincident"]
[null,null,null,null,"Coincident"]
[null,null,"Winter/Summer Peaking",null,"Non-Coincident"]
[null,null,null,null,"Coincident"]
[null,null,"Adjustments - Embedded generation","MW","Non-Coincident"]
[null,null,null,null,"Coincident"]
[null,null,"Weather Corrected MD 10% POE","MW","Non-Coincident"]
[null,null,null,null,"Coincident"]
[null,null,"Weather Corrected MD 10% POE","MVA","Non-Coincident"]
[null,null,null,null,"Coincident"]
[null,null,"Weather Corrected MD 50% POE","MW","Non-Coincident"]
[null,null,null,null,"Coincident"]
[null,null,"Weather Corrected MD 50% POE","MVA","Non-Coincident"]
[null,null,null,null,"Coincident"]
[null,"<Enter connection point name>","Connection Point Rating","MVA","Non-Coincident"]
[null,null,null,null,"Coincident"]
[null,null,"Raw Adjusted MD","MW","Non-Coincident"]
[null,null,null,null,"Coincident"]
[null,null,"Raw Adjusted MD","MVA","Non-Coincident"]
[null,null,null,null,"Coincident"]
[null,null,"Date MD occurred",null,"Non-Coincident"]
[null,null,null,null,"Coincident"]
[null,null,"Half hour time period MD occurred",null,"Non-Coincident"]
[null,null,null,null,"Coincident"]
[null,null,"Winter/Summer Peaking",null,"Non-Coincident"]
[null,null,null,null,"Coincident"]
[null,null,"Adjustments - Embedded generation","MW","Non-Coincident"]
[null,null,null,null,"Coincident"]
[null,null,"Weather Corrected MD 10% POE","MW","Non-Coincident"]
[null,null,null,null,"Coincident"]
[null,null,"Weather Corrected MD 10% POE","MVA","Non-Coincident"]
[null,null,null,null,"Coincident"]
[null,null,"Weather Corrected MD 50% POE","MW","Non-Coincident"]
[null,null,null,null,"Coincident"]
[null,null,"Weather Corrected MD 50% POE","MVA","Non-Coincident"]
[null,null,null,null,"Coincident"]
[null,"<Enter connection point name>","Connection Point Rating","MVA","Non-Coincident"]
[null,null,null,null,"Coincident"]
[null,null,"Raw Adjusted MD","MW","Non-Coincident"]
[null,null,null,null,"Coincident"]
[null,null,"Raw Adjusted MD","MVA","Non-Coincident"]
[null,null,null,null,"Coincident"]
[null,null,"Date MD occurred",null,"Non-Coincident"]
[null,null,null,null,"Coincident"]
[null,null,"Half hour time period MD occurred",null,"Non-Coincident"]
[null,null,null,null,"Coincident"]
[null,null,"Winter/Summer Peaking",null,"Non-Coincident"]
[null,null,null,null,"Coincident"]
[null,null,"Adjustments - Embedded generation","MW","Non-Coincident"]
[null,null,null,null,"Coincident"]
[null,null,"Weather Corrected MD 10% POE","MW","Non-Coincident"]
[null,null,null,null,"Coincident"]
[null,null,"Weather Corrected MD 10% POE","MVA","Non-Coincident"]
[null,null,null,null,"Coincident"]
[null,null,"Weather Corrected MD 50% POE","MW","Non-Coincident"]
[null,null,null,null,"Coincident"]
[null,null,"Weather Corrected MD 50% POE","MVA","Non-Coincident"]
[null,null,null,null,"Coincident"]
[null,"<Enter connection point name>","Connection Point Rating","MVA","Non-Coincident"]
[null,null,null,null,"Coincident"]
[null,null,"Raw Adjusted MD","MW","Non-Coincident"]
[null,null,null,null,"Coincident"]
[null,null,"Raw Adjusted MD","MVA","Non-Coincident"]
[null,null,null,null,"Coincident"]
[null,null,"Date MD occurred",null,"Non-Coincident"]
[null,null,null,null,"Coincident"]
[null,null,"Half hour time period MD occurred",null,"Non-Coincident"]
[null,null,null,null,"Coincident"]
[null,null,"Winter/Summer Peaking",null,"Non-Coincident"]
[null,null,null,null,"Coincident"]
[null,null,"Adjustments - Embedded generation","MW","Non-Coincident"]
[null,null,null,null,"Coincident"]
[null,null,"Weather Corrected MD 10% POE","MW","Non-Coincident"]
[null,null,null,null,"Coincident"]
[null,null,"Weather Corrected MD 10% POE","MVA","Non-Coincident"]
[null,null,null,null,"Coincident"]
[null,null,"Weather Corrected MD 50% POE","MW","Non-Coincident"]
[null,null,null,null,"Coincident"]
[null,null,"Weather Corrected MD 50% POE","MVA","Non-Coincident"]
[null,null,null,null,"Coincident"]
[null,"<Enter connection point name>","Connection Point Rating","MVA","Non-Coincident"]
[null,null,null,null,"Coincident"]
[null,null,"Raw Adjusted MD","MW","Non-Coincident"]
[null,null,null,null,"Coincident"]
[null,null,"Raw Adjusted MD","MVA","Non-Coincident"]
[null,null,null,null,"Coincident"]
[null,null,"Date MD occurred",null,"Non-Coincident"]
[null,null,null,null,"Coincident"]
[null,null,"Half hour time period MD occurred",null,"Non-Coincident"]
[null,null,null,null,"Coincident"]
[null,null,"Winter/Summer Peaking",null,"Non-Coincident"]
[null,null,null,null,"Coincident"]
[null,null,"Adjustments - Embedded generation","MW","Non-Coincident"]
[null,null,null,null,"Coincident"]
[null,null,"Weather Corrected MD 10% POE","MW","Non-Coincident"]
[null,null,null,null,"Coincident"]
[null,null,"Weather Corrected MD 10% POE","MVA","Non-Coincident"]
[null,null,null,null,"Coincident"]
[null,null,"Weather Corrected MD 50% POE","MW","Non-Coincident"]
[null,null,null,null,"Coincident"]
[null,null,"Weather Corrected MD 50% POE","MVA","Non-Coincident"]
[null,null,null,null,"Coincident"]
[null,"<Enter connection point name>","Connection Point Rating","MVA","Non-Coincident"]
[null,null,null,null,"Coincident"]
[null,null,"Raw Adjusted MD","MW","Non-Coincident"]
[null,null,null,null,"Coincident"]
[null,null,"Raw Adjusted MD","MVA","Non-Coincident"]
[null,null,null,null,"Coincident"]
[null,null,"Date MD occurred",null,"Non-Coincident"]
[null,null,null,null,"Coincident"]
[null,null,"Half hour time period MD occurred",null,"Non-Coincident"]
[null,null,null,null,"Coincident"]
[null,null,"Winter/Summer Peaking",null,"Non-Coincident"]
[null,null,null,null,"Coincident"]
[null,null,"Adjustments - Embedded generation","MW","Non-Coincident"]
[null,null,null,null,"Coincident"]
[null,null,"Weather Corrected MD 10% POE","MW","Non-Coincident"]
[null,null,null,null,"Coincident"]
[null,null,"Weather Corrected MD 10% POE","MVA","Non-Coincident"]
[null,null,null,null,"Coincident"]
[null,null,"Weather Corrected MD 50% POE","MW","Non-Coincident"]
[null,null,null,null,"Coincident"]
[null,null,"Weather Corrected MD 50% POE","MVA","Non-Coincident"]
[null,null,null,null,"Coincident"]
[null,"<Enter connection point name>","Connection Point Rating","MVA","Non-Coincident"]
[null,null,null,null,"Coincident"]
[null,null,"Raw Adjusted MD","MW","Non-Coincident"]
[null,null,null,null,"Coincident"]
[null,null,"Raw Adjusted MD","MVA","Non-Coincident"]
[null,null,null,null,"Coincident"]
[null,null,"Date MD occurred",null,"Non-Coincident"]
[null,null,null,null,"Coincident"]
[null,null,"Half hour time period MD occurred",null,"Non-Coincident"]
[null,null,null,null,"Coincident"]
[null,null,"Winter/Summer Peaking",null,"Non-Coincident"]
[null,null,null,null,"Coincident"]
[null,null,"Adjustments - Embedded generation","MW","Non-Coincident"]
[null,null,null,null,"Coincident"]
[null,null,"Weather Corrected MD 10% POE","MW","Non-Coincident"]
[null,null,null,null,"Coincident"]
[null,null,"Weather Corrected MD 10% POE","MVA","Non-Coincident"]
[null,null,null,null,"Coincident"]
[null,null,"Weather Corrected MD 50% POE","MW","Non-Coincident"]
[null,null,null,null,"Coincident"]
[null,null,"Weather Corrected MD 50% POE","MVA","Non-Coincident"]
[null,null,null,null,"Coincident"]
[null,"<Enter connection point name>","Connection Point Rating","MVA","Non-Coincident"]
[null,null,null,null,"Coincident"]
[null,null,"Raw Adjusted MD","MW","Non-Coincident"]
[null,null,null,null,"Coincident"]
[null,null,"Raw Adjusted MD","MVA","Non-Coincident"]
[null,null,null,null,"Coincident"]
[null,null,"Date MD occurred",null,"Non-Coincident"]
[null,null,null,null,"Coincident"]
[null,null,"Half hour time period MD occurred",null,"Non-Coincident"]
[null,null,null,null,"Coincident"]
[null,null,"Winter/Summer Peaking",null,"Non-Coincident"]
[null,null,null,null,"Coincident"]
[null,null,"Adjustments - Embedded generation","MW","Non-Coincident"]
[null,null,null,null,"Coincident"]
[null,null,"Weather Corrected MD 10% POE","MW","Non-Coincident"]
[null,null,null,null,"Coincident"]
[null,null,"Weather Corrected MD 10% POE","MVA","Non-Coincident"]
[null,null,null,null,"Coincident"]
[null,null,"Weather Corrected MD 50% POE","MW","Non-Coincident"]
[null,null,null,null,"Coincident"]
[null,null,"Weather Corrected MD 50% POE","MVA","Non-Coincident"]
[null,null,null,null,"Coincident"]
[null,"<Enter connection point name>","Connection Point Rating","MVA","Non-Coincident"]
[null,null,null,null,"Coincident"]
[null,null,"Raw Adjusted MD","MW","Non-Coincident"]
[null,null,null,null,"Coincident"]
[null,null,"Raw Adjusted MD","MVA","Non-Coincident"]
[null,null,null,null,"Coincident"]
[null,null,"Date MD occurred",null,"Non-Coincident"]
[null,null,null,null,"Coincident"]
[null,null,"Half hour time period MD occurred",null,"Non-Coincident"]
[null,null,null,null,"Coincident"]
[null,null,"Winter/Summer Peaking",null,"Non-Coincident"]
[null,null,null,null,"Coincident"]
[null,null,"Adjustments - Embedded generation","MW","Non-Coincident"]
[null,null,null,null,"Coincident"]
[null,null,"Weather Corrected MD 10% POE","MW","Non-Coincident"]
[null,null,null,null,"Coincident"]
[null,null,"Weather Corrected MD 10% POE","MVA","Non-Coincident"]
[null,null,null,null,"Coincident"]
[null,null,"Weather Corrected MD 50% POE","MW","Non-Coincident"]
[null,null,null,null,"Coincident"]
[null,null,"Weather Corrected MD 50% POE","MVA","Non-Coincident"]
[null,null,null,null,"Coincident"]
[null,"<Enter connection point name>","Connection Point Rating","MVA","Non-Coincident"]
[null,null,null,null,"Coincident"]
[null,null,"Raw Adjusted MD","MW","Non-Coincident"]
[null,null,null,null,"Coincident"]
[null,null,"Raw Adjusted MD","MVA","Non-Coincident"]
[null,null,null,null,"Coincident"]
[null,null,"Date MD occurred",null,"Non-Coincident"]
[null,null,null,null,"Coincident"]
[null,null,"Half hour time period MD occurred",null,"Non-Coincident"]
[null,null,null,null,"Coincident"]
[null,null,"Winter/Summer Peaking",null,"Non-Coincident"]
[null,null,null,null,"Coincident"]
[null,null,"Adjustments - Embedded generation","MW","Non-Coincident"]
[null,null,null,null,"Coincident"]
[null,null,"Weather Corrected MD 10% POE","MW","Non-Coincident"]
[null,null,null,null,"Coincident"]
[null,null,"Weather Corrected MD 10% POE","MVA","Non-Coincident"]
[null,null,null,null,"Coincident"]
[null,null,"Weather Corrected MD 50% POE","MW","Non-Coincident"]
[null,null,null,null,"Coincident"]
[null,null,"Weather Corrected MD 50% POE","MVA","Non-Coincident"]
[null,null,null,null,"Coincident"]
[null,"<Enter connection point name>","Connection Point Rating","MVA","Non-Coincident"]
[null,null,null,null,"Coincident"]
[null,null,"Raw Adjusted MD","MW","Non-Coincident"]
[null,null,null,null,"Coincident"]
[null,null,"Raw Adjusted MD","MVA","Non-Coincident"]
[null,null,null,null,"Coincident"]
[null,null,"Date MD occurred",null,"Non-Coincident"]
[null,null,null,null,"Coincident"]
[null,null,"Half hour time period MD occurred",null,"Non-Coincident"]
[null,null,null,null,"Coincident"]
[null,null,"Winter/Summer Peaking",null,"Non-Coincident"]
[null,null,null,null,"Coincident"]
[null,null,"Adjustments - Embedded generation","MW","Non-Coincident"]
[null,null,null,null,"Coincident"]
[null,null,"Weather Corrected MD 10% POE","MW","Non-Coincident"]
[null,null,null,null,"Coincident"]
[null,null,"Weather Corrected MD 10% POE","MVA","Non-Coincident"]
[null,null,null,null,"Coincident"]
[null,null,"Weather Corrected MD 50% POE","MW","Non-Coincident"]
[null,null,null,null,"Coincident"]
[null,null,"Weather Corrected MD 50% POE","MVA","Non-Coincident"]
[null,null,null,null,"Coincident"]
[null,"<Enter connection point name>","Connection Point Rating","MVA","Non-Coincident"]
[null,null,null,null,"Coincident"]
[null,null,"Raw Adjusted MD","MW","Non-Coincident"]
[null,null,null,null,"Coincident"]
[null,null,"Raw Adjusted MD","MVA","Non-Coincident"]
[null,null,null,null,"Coincident"]
[null,null,"Date MD occurred",null,"Non-Coincident"]
[null,null,null,null,"Coincident"]
[null,null,"Half hour time period MD occurred",null,"Non-Coincident"]
[null,null,null,null,"Coincident"]
[null,null,"Winter/Summer Peaking",null,"Non-Coincident"]
[null,null,null,null,"Coincident"]
[null,null,"Adjustments - Embedded generation","MW","Non-Coincident"]
[null,null,null,null,"Coincident"]
[null,null,"Weather Corrected MD 10% POE","MW","Non-Coincident"]
[null,null,null,null,"Coincident"]
[null,null,"Weather Corrected MD 10% POE","MVA","Non-Coincident"]
[null,null,null,null,"Coincident"]
[null,null,"Weather Corrected MD 50% POE","MW","Non-Coincident"]
[null,null,null,null,"Coincident"]
[null,null,"Weather Corrected MD 50% POE","MVA","Non-Coincident"]
[null,null,null,null,"Coincident"]
[null,"<Enter connection point name>","Connection Point Rating","MVA","Non-Coincident"]
[null,null,null,null,"Coincident"]
[null,null,"Raw Adjusted MD","MW","Non-Coincident"]
[null,null,null,null,"Coincident"]
[null,null,"Raw Adjusted MD","MVA","Non-Coincident"]
[null,null,null,null,"Coincident"]
[null,null,"Date MD occurred",null,"Non-Coincident"]
[null,null,null,null,"Coincident"]
[null,null,"Half hour time period MD occurred",null,"Non-Coincident"]
[null,null,null,null,"Coincident"]
[null,null,"Winter/Summer Peaking",null,"Non-Coincident"]
[null,null,null,null,"Coincident"]
[null,null,"Adjustments - Embedded generation","MW","Non-Coincident"]
[null,null,null,null,"Coincident"]
[null,null,"Weather Corrected MD 10% POE","MW","Non-Coincident"]
[null,null,null,null,"Coincident"]
[null,null,"Weather Corrected MD 10% POE","MVA","Non-Coincident"]
[null,null,null,null,"Coincident"]
[null,null,"Weather Corrected MD 50% POE","MW","Non-Coincident"]
[null,null,null,null,"Coincident"]
[null,null,"Weather Corrected MD 50% POE","MVA","Non-Coincident"]
[null,null,null,null,"Coincident"]
[null,"<Enter connection point name>","Connection Point Rating","MVA","Non-Coincident"]
[null,null,null,null,"Coincident"]
[null,null,"Raw Adjusted MD","MW","Non-Coincident"]
[null,null,null,null,"Coincident"]
[null,null,"Raw Adjusted MD","MVA","Non-Coincident"]
[null,null,null,null,"Coincident"]
[null,null,"Date MD occurred",null,"Non-Coincident"]
[null,null,null,null,"Coincident"]
[null,null,"Half hour time period MD occurred",null,"Non-Coincident"]
[null,null,null,null,"Coincident"]
[null,null,"Winter/Summer Peaking",null,"Non-Coincident"]
[null,null,null,null,"Coincident"]
[null,null,"Adjustments - Embedded generation","MW","Non-Coincident"]
[null,null,null,null,"Coincident"]
[null,null,"Weather Corrected MD 10% POE","MW","Non-Coincident"]
[null,null,null,null,"Coincident"]
[null,null,"Weather Corrected MD 10% POE","MVA","Non-Coincident"]
[null,null,null,null,"Coincident"]
[null,null,"Weather Corrected MD 50% POE","MW","Non-Coincident"]
[null,null,null,null,"Coincident"]
[null,null,"Weather Corrected MD 50% POE","MVA","Non-Coincident"]
[null,null,null,null,"Coincident"]
[null,"<Enter connection point name>","Connection Point Rating","MVA","Non-Coincident"]
[null,null,null,null,"Coincident"]
[null,null,"Raw Adjusted MD","MW","Non-Coincident"]
[null,null,null,null,"Coincident"]
[null,null,"Raw Adjusted MD","MVA","Non-Coincident"]
[null,null,null,null,"Coincident"]
[null,null,"Date MD occurred",null,"Non-Coincident"]
[null,null,null,null,"Coincident"]
[null,null,"Half hour time period MD occurred",null,"Non-Coincident"]
[null,null,null,null,"Coincident"]
[null,null,"Winter/Summer Peaking",null,"Non-Coincident"]
[null,null,null,null,"Coincident"]
[null,null,"Adjustments - Embedded generation","MW","Non-Coincident"]
[null,null,null,null,"Coincident"]
[null,null,"Weather Corrected MD 10% POE","MW","Non-Coincident"]
[null,null,null,null,"Coincident"]
[null,null,"Weather Corrected MD 10% POE","MVA","Non-Coincident"]
[null,null,null,null,"Coincident"]
[null,null,"Weather Corrected MD 50% POE","MW","Non-Coincident"]
[null,null,null,null,"Coincident"]
[null,null,"Weather Corrected MD 50% POE","MVA","Non-Coincident"]
[null,null,null,null,"Coincident"]
[null,"<Enter connection point name>","Connection Point Rating","MVA","Non-Coincident"]
[null,null,null,null,"Coincident"]
[null,null,"Raw Adjusted MD","MW","Non-Coincident"]
[null,null,null,null,"Coincident"]
[null,null,"Raw Adjusted MD","MVA","Non-Coincident"]
[null,null,null,null,"Coincident"]
[null,null,"Date MD occurred",null,"Non-Coincident"]
[null,null,null,null,"Coincident"]
[null,null,"Half hour time period MD occurred",null,"Non-Coincident"]
[null,null,null,null,"Coincident"]
[null,null,"Winter/Summer Peaking",null,"Non-Coincident"]
[null,null,null,null,"Coincident"]
[null,null,"Adjustments - Embedded generation","MW","Non-Coincident"]
[null,null,null,null,"Coincident"]
[null,null,"Weather Corrected MD 10% POE","MW","Non-Coincident"]
[null,null,null,null,"Coincident"]
[null,null,"Weather Corrected MD 10% POE","MVA","Non-Coincident"]
[null,null,null,null,"Coincident"]
[null,null,"Weather Corrected MD 50% POE","MW","Non-Coincident"]
[null,null,null,null,"Coincident"]
[null,null,"Weather Corrected MD 50% POE","MVA","Non-Coincident"]
[null,null,null,null,"Coincident"]
[null,"<Enter connection point name>","Connection Point Rating","MVA","Non-Coincident"]
[null,null,null,null,"Coincident"]
[null,null,"Raw Adjusted MD","MW","Non-Coincident"]
[null,null,null,null,"Coincident"]
[null,null,"Raw Adjusted MD","MVA","Non-Coincident"]
[null,null,null,null,"Coincident"]
[null,null,"Date MD occurred",null,"Non-Coincident"]
[null,null,null,null,"Coincident"]
[null,null,"Half hour time period MD occurred",null,"Non-Coincident"]
[null,null,null,null,"Coincident"]
[null,null,"Winter/Summer Peaking",null,"Non-Coincident"]
[null,null,null,null,"Coincident"]
[null,null,"Adjustments - Embedded generation","MW","Non-Coincident"]
[null,null,null,null,"Coincident"]
[null,null,"Weather Corrected MD 10% POE","MW","Non-Coincident"]
[null,null,null,null,"Coincident"]
[null,null,"Weather Corrected MD 10% POE","MVA","Non-Coincident"]
[null,null,null,null,"Coincident"]
[null,null,"Weather Corrected MD 50% POE","MW","Non-Coincident"]
[null,null,null,null,"Coincident"]
[null,null,"Weather Corrected MD 50% POE","MVA","Non-Coincident"]
[null,null,null,null,"Coincident"]
[null,"<Enter connection point name>","Connection Point Rating","MVA","Non-Coincident"]
[null,null,null,null,"Coincident"]
[null,null,"Raw Adjusted MD","MW","Non-Coincident"]
[null,null,null,null,"Coincident"]
[null,null,"Raw Adjusted MD","MVA","Non-Coincident"]
[null,null,null,null,"Coincident"]
[null,null,"Date MD occurred",null,"Non-Coincident"]
[null,null,null,null,"Coincident"]
[null,null,"Half hour time period MD occurred",null,"Non-Coincident"]
[null,null,null,null,"Coincident"]
[null,null,"Winter/Summer Peaking",null,"Non-Coincident"]
[null,null,null,null,"Coincident"]
[null,null,"Adjustments - Embedded generation","MW","Non-Coincident"]
[null,null,null,null,"Coincident"]
[null,null,"Weather Corrected MD 10% POE","MW","Non-Coincident"]
[null,null,null,null,"Coincident"]
[null,null,"Weather Corrected MD 10% POE","MVA","Non-Coincident"]
[null,null,null,null,"Coincident"]
[null,null,"Weather Corrected MD 50% POE","MW","Non-Coincident"]
[null,null,null,null,"Coincident"]
[null,null,"Weather Corrected MD 50% POE","MVA","Non-Coincident"]
[null,null,null,null,"Coincident"]
[null,"<Enter connection point name>","Connection Point Rating","MVA","Non-Coincident"]
[null,null,null,null,"Coincident"]
[null,null,"Raw Adjusted MD","MW","Non-Coincident"]
[null,null,null,null,"Coincident"]
[null,null,"Raw Adjusted MD","MVA","Non-Coincident"]
[null,null,null,null,"Coincident"]
[null,null,"Date MD occurred",null,"Non-Coincident"]
[null,null,null,null,"Coincident"]
[null,null,"Half hour time period MD occurred",null,"Non-Coincident"]
[null,null,null,null,"Coincident"]
[null,null,"Winter/Summer Peaking",null,"Non-Coincident"]
[null,null,null,null,"Coincident"]
[null,null,"Adjustments - Embedded generation","MW","Non-Coincident"]
[null,null,null,null,"Coincident"]
[null,null,"Weather Corrected MD 10% POE","MW","Non-Coincident"]
[null,null,null,null,"Coincident"]
[null,null,"Weather Corrected MD 10% POE","MVA","Non-Coincident"]
[null,null,null,null,"Coincident"]
[null,null,"Weather Corrected MD 50% POE","MW","Non-Coincident"]
[null,null,null,null,"Coincident"]
[null,null,"Weather Corrected MD 50% POE","MVA","Non-Coincident"]
[null,null,null,null,"Coincident"]
[null,"<Enter connection point name>","Connection Point Rating","MVA","Non-Coincident"]
[null,null,null,null,"Coincident"]
[null,null,"Raw Adjusted MD","MW","Non-Coincident"]
[null,null,null,null,"Coincident"]
[null,null,"Raw Adjusted MD","MVA","Non-Coincident"]
[null,null,null,null,"Coincident"]
[null,null,"Date MD occurred",null,"Non-Coincident"]
[null,null,null,null,"Coincident"]
[null,null,"Half hour time period MD occurred",null,"Non-Coincident"]
[null,null,null,null,"Coincident"]
[null,null,"Winter/Summer Peaking",null,"Non-Coincident"]
[null,null,null,null,"Coincident"]
[null,null,"Adjustments - Embedded generation","MW","Non-Coincident"]
[null,null,null,null,"Coincident"]
[null,null,"Weather Corrected MD 10% POE","MW","Non-Coincident"]
[null,null,null,null,"Coincident"]
[null,null,"Weather Corrected MD 10% POE","MVA","Non-Coincident"]
[null,null,null,null,"Coincident"]
[null,null,"Weather Corrected MD 50% POE","MW","Non-Coincident"]
[null,null,null,null,"Coincident"]
[null,null,"Weather Corrected MD 50% POE","MVA","Non-Coincident"]
[null,null,null,null,"Coincident"]
[null,"<Enter connection point name>","Connection Point Rating","MVA","Non-Coincident"]
[null,null,null,null,"Coincident"]
[null,null,"Raw Adjusted MD","MW","Non-Coincident"]
[null,null,null,null,"Coincident"]
[null,null,"Raw Adjusted MD","MVA","Non-Coincident"]
[null,null,null,null,"Coincident"]
[null,null,"Date MD occurred",null,"Non-Coincident"]
[null,null,null,null,"Coincident"]
[null,null,"Half hour time period MD occurred",null,"Non-Coincident"]
[null,null,null,null,"Coincident"]
[null,null,"Winter/Summer Peaking",null,"Non-Coincident"]
[null,null,null,null,"Coincident"]
[null,null,"Adjustments - Embedded generation","MW","Non-Coincident"]
[null,null,null,null,"Coincident"]
[null,null,"Weather Corrected MD 10% POE","MW","Non-Coincident"]
[null,null,null,null,"Coincident"]
[null,null,"Weather Corrected MD 10% POE","MVA","Non-Coincident"]
[null,null,null,null,"Coincident"]
[null,null,"Weather Corrected MD 50% POE","MW","Non-Coincident"]
[null,null,null,null,"Coincident"]
[null,null,"Weather Corrected MD 50% POE","MVA","Non-Coincident"]
[null,null,null,null,"Coincident"]
[null,"<Enter connection point name>","Connection Point Rating","MVA","Non-Coincident"]
[null,null,null,null,"Coincident"]
[null,null,"Raw Adjusted MD","MW","Non-Coincident"]
[null,null,null,null,"Coincident"]
[null,null,"Raw Adjusted MD","MVA","Non-Coincident"]
[null,null,null,null,"Coincident"]
[null,null,"Date MD occurred",null,"Non-Coincident"]
[null,null,null,null,"Coincident"]
[null,null,"Half hour time period MD occurred",null,"Non-Coincident"]
[null,null,null,null,"Coincident"]
[null,null,"Winter/Summer Peaking",null,"Non-Coincident"]
[null,null,null,null,"Coincident"]
[null,null,"Adjustments - Embedded generation","MW","Non-Coincident"]
[null,null,null,null,"Coincident"]
[null,null,"Weather Corrected MD 10% POE","MW","Non-Coincident"]
[null,null,null,null,"Coincident"]
[null,null,"Weather Corrected MD 10% POE","MVA","Non-Coincident"]
[null,null,null,null,"Coincident"]
[null,null,"Weather Corrected MD 50% POE","MW","Non-Coincident"]
[null,null,null,null,"Coincident"]
[null,null,"Weather Corrected MD 50% POE","MVA","Non-Coincident"]
[null,null,null,null,"Coincident"]
[null,"<Enter connection point name>","Connection Point Rating","MVA","Non-Coincident"]
[null,null,null,null,"Coincident"]
[null,null,"Raw Adjusted MD","MW","Non-Coincident"]
[null,null,null,null,"Coincident"]
[null,null,"Raw Adjusted MD","MVA","Non-Coincident"]
[null,null,null,null,"Coincident"]
[null,null,"Date MD occurred",null,"Non-Coincident"]
[null,null,null,null,"Coincident"]
[null,null,"Half hour time period MD occurred",null,"Non-Coincident"]
[null,null,null,null,"Coincident"]
[null,null,"Winter/Summer Peaking",null,"Non-Coincident"]
[null,null,null,null,"Coincident"]
[null,null,"Adjustments - Embedded generation","MW","Non-Coincident"]
[null,null,null,null,"Coincident"]
[null,null,"Weather Corrected MD 10% POE","MW","Non-Coincident"]
[null,null,null,null,"Coincident"]
[null,null,"Weather Corrected MD 10% POE","MVA","Non-Coincident"]
[null,null,null,null,"Coincident"]
[null,null,"Weather Corrected MD 50% POE","MW","Non-Coincident"]
[null,null,null,null,"Coincident"]
[null,null,"Weather Corrected MD 50% POE","MVA","Non-Coincident"]
[null,null,null,null,"Coincident"]
[null,"<Enter connection point name>","Connection Point Rating","MVA","Non-Coincident"]
[null,null,null,null,"Coincident"]
[null,null,"Raw Adjusted MD","MW","Non-Coincident"]
[null,null,null,null,"Coincident"]
[null,null,"Raw Adjusted MD","MVA","Non-Coincident"]
[null,null,null,null,"Coincident"]
[null,null,"Date MD occurred",null,"Non-Coincident"]
[null,null,null,null,"Coincident"]
[null,null,"Half hour time period MD occurred",null,"Non-Coincident"]
[null,null,null,null,"Coincident"]
[null,null,"Winter/Summer Peaking",null,"Non-Coincident"]
[null,null,null,null,"Coincident"]
[null,null,"Adjustments - Embedded generation","MW","Non-Coincident"]
[null,null,null,null,"Coincident"]
[null,null,"Weather Corrected MD 10% POE","MW","Non-Coincident"]
[null,null,null,null,"Coincident"]
[null,null,"Weather Corrected MD 10% POE","MVA","Non-Coincident"]
[null,null,null,null,"Coincident"]
[null,null,"Weather Corrected MD 50% POE","MW","Non-Coincident"]
[null,null,null,null,"Coincident"]
[null,null,"Weather Corrected MD 50% POE","MVA","Non-Coincident"]
[null,null,null,null,"Coincident"]
[null,"<Enter connection point name>","Connection Point Rating","MVA","Non-Coincident"]
[null,null,null,null,"Coincident"]
[null,null,"Raw Adjusted MD","MW","Non-Coincident"]
[null,null,null,null,"Coincident"]
[null,null,"Raw Adjusted MD","MVA","Non-Coincident"]
[null,null,null,null,"Coincident"]
[null,null,"Date MD occurred",null,"Non-Coincident"]
[null,null,null,null,"Coincident"]
[null,null,"Half hour time period MD occurred",null,"Non-Coincident"]
[null,null,null,null,"Coincident"]
[null,null,"Winter/Summer Peaking",null,"Non-Coincident"]
[null,null,null,null,"Coincident"]
[null,null,"Adjustments - Embedded generation","MW","Non-Coincident"]
[null,null,null,null,"Coincident"]
[null,null,"Weather Corrected MD 10% POE","MW","Non-Coincident"]
[null,null,null,null,"Coincident"]
[null,null,"Weather Corrected MD 10% POE","MVA","Non-Coincident"]
[null,null,null,null,"Coincident"]
[null,null,"Weather Corrected MD 50% POE","MW","Non-Coincident"]
[null,null,null,null,"Coincident"]
[null,null,"Weather Corrected MD 50% POE","MVA","Non-Coincident"]
[null,null,null,null,"Coincident"]
[null,"<Enter connection point name>","Connection Point Rating","MVA","Non-Coincident"]
[null,null,null,null,"Coincident"]
[null,null,"Raw Adjusted MD","MW","Non-Coincident"]
[null,null,null,null,"Coincident"]
[null,null,"Raw Adjusted MD","MVA","Non-Coincident"]
[null,null,null,null,"Coincident"]
[null,null,"Date MD occurred",null,"Non-Coincident"]
[null,null,null,null,"Coincident"]
[null,null,"Half hour time period MD occurred",null,"Non-Coincident"]
[null,null,null,null,"Coincident"]
[null,null,"Winter/Summer Peaking",null,"Non-Coincident"]
[null,null,null,null,"Coincident"]
[null,null,"Adjustments - Embedded generation","MW","Non-Coincident"]
[null,null,null,null,"Coincident"]
[null,null,"Weather Corrected MD 10% POE","MW","Non-Coincident"]
[null,null,null,null,"Coincident"]
[null,null,"Weather Corrected MD 10% POE","MVA","Non-Coincident"]
[null,null,null,null,"Coincident"]
[null,null,"Weather Corrected MD 50% POE","MW","Non-Coincident"]
[null,null,null,null,"Coincident"]
[null,null,"Weather Corrected MD 50% POE","MVA","Non-Coincident"]
[null,null,null,null,"Coincident"]
[null,"<Enter connection point name>","Connection Point Rating","MVA","Non-Coincident"]
[null,null,null,null,"Coincident"]
[null,null,"Raw Adjusted MD","MW","Non-Coincident"]
[null,null,null,null,"Coincident"]
[null,null,"Raw Adjusted MD","MVA","Non-Coincident"]
[null,null,null,null,"Coincident"]
[null,null,"Date MD occurred",null,"Non-Coincident"]
[null,null,null,null,"Coincident"]
[null,null,"Half hour time period MD occurred",null,"Non-Coincident"]
[null,null,null,null,"Coincident"]
[null,null,"Winter/Summer Peaking",null,"Non-Coincident"]
[null,null,null,null,"Coincident"]
[null,null,"Adjustments - Embedded generation","MW","Non-Coincident"]
[null,null,null,null,"Coincident"]
[null,null,"Weather Corrected MD 10% POE","MW","Non-Coincident"]
[null,null,null,null,"Coincident"]
[null,null,"Weather Corrected MD 10% POE","MVA","Non-Coincident"]
[null,null,null,null,"Coincident"]
[null,null,"Weather Corrected MD 50% POE","MW","Non-Coincident"]
[null,null,null,null,"Coincident"]
[null,null,"Weather Corrected MD 50% POE","MVA","Non-Coincident"]
[null,null,null,null,"Coincident"]
[null,"<Enter connection point name>","Connection Point Rating","MVA","Non-Coincident"]
[null,null,null,null,"Coincident"]
[null,null,"Raw Adjusted MD","MW","Non-Coincident"]
[null,null,null,null,"Coincident"]
[null,null,"Raw Adjusted MD","MVA","Non-Coincident"]
[null,null,null,null,"Coincident"]
[null,null,"Date MD occurred",null,"Non-Coincident"]
[null,null,null,null,"Coincident"]
[null,null,"Half hour time period MD occurred",null,"Non-Coincident"]
[null,null,null,null,"Coincident"]
[null,null,"Winter/Summer Peaking",null,"Non-Coincident"]
[null,null,null,null,"Coincident"]
[null,null,"Adjustments - Embedded generation","MW","Non-Coincident"]
[null,null,null,null,"Coincident"]
[null,null,"Weather Corrected MD 10% POE","MW","Non-Coincident"]
[null,null,null,null,"Coincident"]
[null,null,"Weather Corrected MD 10% POE","MVA","Non-Coincident"]
[null,null,null,null,"Coincident"]
[null,null,"Weather Corrected MD 50% POE","MW","Non-Coincident"]
[null,null,null,null,"Coincident"]
[null,null,"Weather Corrected MD 50% POE","MVA","Non-Coincident"]
[null,null,null,null,"Coincident"]
[null,"<Enter connection point name>","Connection Point Rating","MVA","Non-Coincident"]
[null,null,null,null,"Coincident"]
[null,null,"Raw Adjusted MD","MW","Non-Coincident"]
[null,null,null,null,"Coincident"]
[null,null,"Raw Adjusted MD","MVA","Non-Coincident"]
[null,null,null,null,"Coincident"]
[null,null,"Date MD occurred",null,"Non-Coincident"]
[null,null,null,null,"Coincident"]
[null,null,"Half hour time period MD occurred",null,"Non-Coincident"]
[null,null,null,null,"Coincident"]
[null,null,"Winter/Summer Peaking",null,"Non-Coincident"]
[null,null,null,null,"Coincident"]
[null,null,"Adjustments - Embedded generation","MW","Non-Coincident"]
[null,null,null,null,"Coincident"]
[null,null,"Weather Corrected MD 10% POE","MW","Non-Coincident"]
[null,null,null,null,"Coincident"]
[null,null,"Weather Corrected MD 10% POE","MVA","Non-Coincident"]
[null,null,null,null,"Coincident"]
[null,null,"Weather Corrected MD 50% POE","MW","Non-Coincident"]
[null,null,null,null,"Coincident"]
[null,null,"Weather Corrected MD 50% POE","MVA","Non-Coincident"]
[null,null,null,null,"Coincident"]
[null,"<Enter connection point name>","Connection Point Rating","MVA","Non-Coincident"]
[null,null,null,null,"Coincident"]
[null,null,"Raw Adjusted MD","MW","Non-Coincident"]
[null,null,null,null,"Coincident"]
[null,null,"Raw Adjusted MD","MVA","Non-Coincident"]
[null,null,null,null,"Coincident"]
[null,null,"Date MD occurred",null,"Non-Coincident"]
[null,null,null,null,"Coincident"]
[null,null,"Half hour time period MD occurred",null,"Non-Coincident"]
[null,null,null,null,"Coincident"]
[null,null,"Winter/Summer Peaking",null,"Non-Coincident"]
[null,null,null,null,"Coincident"]
[null,null,"Adjustments - Embedded generation","MW","Non-Coincident"]
[null,null,null,null,"Coincident"]
[null,null,"Weather Corrected MD 10% POE","MW","Non-Coincident"]
[null,null,null,null,"Coincident"]
[null,null,"Weather Corrected MD 10% POE","MVA","Non-Coincident"]
[null,null,null,null,"Coincident"]
[null,null,"Weather Corrected MD 50% POE","MW","Non-Coincident"]
[null,null,null,null,"Coincident"]
[null,null,"Weather Corrected MD 50% POE","MVA","Non-Coincident"]
[null,null,null,null,"Coincident"]
[null,"<Enter connection point name>","Connection Point Rating","MVA","Non-Coincident"]
[null,null,null,null,"Coincident"]
[null,null,"Raw Adjusted MD","MW","Non-Coincident"]
[null,null,null,null,"Coincident"]
[null,null,"Raw Adjusted MD","MVA","Non-Coincident"]
[null,null,null,null,"Coincident"]
[null,null,"Date MD occurred",null,"Non-Coincident"]
[null,null,null,null,"Coincident"]
[null,null,"Half hour time period MD occurred",null,"Non-Coincident"]
[null,null,null,null,"Coincident"]
[null,null,"Winter/Summer Peaking",null,"Non-Coincident"]
[null,null,null,null,"Coincident"]
[null,null,"Adjustments - Embedded generation","MW","Non-Coincident"]
[null,null,null,null,"Coincident"]
[null,null,"Weather Corrected MD 10% POE","MW","Non-Coincident"]
[null,null,null,null,"Coincident"]
[null,null,"Weather Corrected MD 10% POE","MVA","Non-Coincident"]
[null,null,null,null,"Coincident"]
[null,null,"Weather Corrected MD 50% POE","MW","Non-Coincident"]
[null,null,null,null,"Coincident"]
[null,null,"Weather Corrected MD 50% POE","MVA","Non-Coincident"]
[null,null,null,null,"Coincident"]
[null,"<Enter connection point name>","Connection Point Rating","MVA","Non-Coincident"]
[null,null,null,null,"Coincident"]
[null,null,"Raw Adjusted MD","MW","Non-Coincident"]
[null,null,null,null,"Coincident"]
[null,null,"Raw Adjusted MD","MVA","Non-Coincident"]
[null,null,null,null,"Coincident"]
[null,null,"Date MD occurred",null,"Non-Coincident"]
[null,null,null,null,"Coincident"]
[null,null,"Half hour time period MD occurred",null,"Non-Coincident"]
[null,null,null,null,"Coincident"]
[null,null,"Winter/Summer Peaking",null,"Non-Coincident"]
[null,null,null,null,"Coincident"]
[null,null,"Adjustments - Embedded generation","MW","Non-Coincident"]
[null,null,null,null,"Coincident"]
[null,null,"Weather Corrected MD 10% POE","MW","Non-Coincident"]
[null,null,null,null,"Coincident"]
[null,null,"Weather Corrected MD 10% POE","MVA","Non-Coincident"]
[null,null,null,null,"Coincident"]
[null,null,"Weather Corrected MD 50% POE","MW","Non-Coincident"]
[null,null,null,null,"Coincident"]
[null,null,"Weather Corrected MD 50% POE","MVA","Non-Coincident"]
[null,null,null,null,"Coincident"]
[null,"<Enter connection point name>","Connection Point Rating","MVA","Non-Coincident"]
[null,null,null,null,"Coincident"]
[null,null,"Raw Adjusted MD","MW","Non-Coincident"]
[null,null,null,null,"Coincident"]
[null,null,"Raw Adjusted MD","MVA","Non-Coincident"]
[null,null,null,null,"Coincident"]
[null,null,"Date MD occurred",null,"Non-Coincident"]
[null,null,null,null,"Coincident"]
[null,null,"Half hour time period MD occurred",null,"Non-Coincident"]
[null,null,null,null,"Coincident"]
[null,null,"Winter/Summer Peaking",null,"Non-Coincident"]
[null,null,null,null,"Coincident"]
[null,null,"Adjustments - Embedded generation","MW","Non-Coincident"]
[null,null,null,null,"Coincident"]
[null,null,"Weather Corrected MD 10% POE","MW","Non-Coincident"]
[null,null,null,null,"Coincident"]
[null,null,"Weather Corrected MD 10% POE","MVA","Non-Coincident"]
[null,null,null,null,"Coincident"]
[null,null,"Weather Corrected MD 50% POE","MW","Non-Coincident"]
[null,null,null,null,"Coincident"]
[null,null,"Weather Corrected MD 50% POE","MVA","Non-Coincident"]
[null,null,null,null,"Coincident"]
[null,"<Enter connection point name>","Connection Point Rating","MVA","Non-Coincident"]
[null,null,null,null,"Coincident"]
[null,null,"Raw Adjusted MD","MW","Non-Coincident"]
[null,null,null,null,"Coincident"]
[null,null,"Raw Adjusted MD","MVA","Non-Coincident"]
[null,null,null,null,"Coincident"]
[null,null,"Date MD occurred",null,"Non-Coincident"]
[null,null,null,null,"Coincident"]
[null,null,"Half hour time period MD occurred",null,"Non-Coincident"]
[null,null,null,null,"Coincident"]
[null,null,"Winter/Summer Peaking",null,"Non-Coincident"]
[null,null,null,null,"Coincident"]
[null,null,"Adjustments - Embedded generation","MW","Non-Coincident"]
[null,null,null,null,"Coincident"]
[null,null,"Weather Corrected MD 10% POE","MW","Non-Coincident"]
[null,null,null,null,"Coincident"]
[null,null,"Weather Corrected MD 10% POE","MVA","Non-Coincident"]
[null,null,null,null,"Coincident"]
[null,null,"Weather Corrected MD 50% POE","MW","Non-Coincident"]
[null,null,null,null,"Coincident"]
[null,null,"Weather Corrected MD 50% POE","MVA","Non-Coincident"]
[null,null,null,null,"Coincident"]
[null,"<Enter connection point name>","Connection Point Rating","MVA","Non-Coincident"]
[null,null,null,null,"Coincident"]
[null,null,"Raw Adjusted MD","MW","Non-Coincident"]
[null,null,null,null,"Coincident"]
[null,null,"Raw Adjusted MD","MVA","Non-Coincident"]
[null,null,null,null,"Coincident"]
[null,null,"Date MD occurred",null,"Non-Coincident"]
[null,null,null,null,"Coincident"]
[null,null,"Half hour time period MD occurred",null,"Non-Coincident"]
[null,null,null,null,"Coincident"]
[null,null,"Winter/Summer Peaking",null,"Non-Coincident"]
[null,null,null,null,"Coincident"]
[null,null,"Adjustments - Embedded generation","MW","Non-Coincident"]
[null,null,null,null,"Coincident"]
[null,null,"Weather Corrected MD 10% POE","MW","Non-Coincident"]
[null,null,null,null,"Coincident"]
[null,null,"Weather Corrected MD 10% POE","MVA","Non-Coincident"]
[null,null,null,null,"Coincident"]
[null,null,"Weather Corrected MD 50% POE","MW","Non-Coincident"]
[null,null,null,null,"Coincident"]
[null,null,"Weather Corrected MD 50% POE","MVA","Non-Coincident"]
[null,null,null,null,"Coincident"]
[null,"<Enter connection point name>","Connection Point Rating","MVA","Non-Coincident"]
[null,null,null,null,"Coincident"]
[null,null,"Raw Adjusted MD","MW","Non-Coincident"]
[null,null,null,null,"Coincident"]
[null,null,"Raw Adjusted MD","MVA","Non-Coincident"]
[null,null,null,null,"Coincident"]
[null,null,"Date MD occurred",null,"Non-Coincident"]
[null,null,null,null,"Coincident"]
[null,null,"Half hour time period MD occurred",null,"Non-Coincident"]
[null,null,null,null,"Coincident"]
[null,null,"Winter/Summer Peaking",null,"Non-Coincident"]
[null,null,null,null,"Coincident"]
[null,null,"Adjustments - Embedded generation","MW","Non-Coincident"]
[null,null,null,null,"Coincident"]
[null,null,"Weather Corrected MD 10% POE","MW","Non-Coincident"]
[null,null,null,null,"Coincident"]
[null,null,"Weather Corrected MD 10% POE","MVA","Non-Coincident"]
[null,null,null,null,"Coincident"]
[null,null,"Weather Corrected MD 50% POE","MW","Non-Coincident"]
[null,null,null,null,"Coincident"]
[null,null,"Weather Corrected MD 50% POE","MVA","Non-Coincident"]
[null,null,null,null,"Coincident"]
[null,"<Enter connection point name>","Connection Point Rating","MVA","Non-Coincident"]
[null,null,null,null,"Coincident"]
[null,null,"Raw Adjusted MD","MW","Non-Coincident"]
[null,null,null,null,"Coincident"]
[null,null,"Raw Adjusted MD","MVA","Non-Coincident"]
[null,null,null,null,"Coincident"]
[null,null,"Date MD occurred",null,"Non-Coincident"]
[null,null,null,null,"Coincident"]
[null,null,"Half hour time period MD occurred",null,"Non-Coincident"]
[null,null,null,null,"Coincident"]
[null,null,"Winter/Summer Peaking",null,"Non-Coincident"]
[null,null,null,null,"Coincident"]
[null,null,"Adjustments - Embedded generation","MW","Non-Coincident"]
[null,null,null,null,"Coincident"]
[null,null,"Weather Corrected MD 10% POE","MW","Non-Coincident"]
[null,null,null,null,"Coincident"]
[null,null,"Weather Corrected MD 10% POE","MVA","Non-Coincident"]
[null,null,null,null,"Coincident"]
[null,null,"Weather Corrected MD 50% POE","MW","Non-Coincident"]
[null,null,null,null,"Coincident"]
[null,null,"Weather Corrected MD 50% POE","MVA","Non-Coincident"]
[null,null,null,null,"Coincident"]
[null,"<Enter connection point name>","Connection Point Rating","MVA","Non-Coincident"]
[null,null,null,null,"Coincident"]
[null,null,"Raw Adjusted MD","MW","Non-Coincident"]
[null,null,null,null,"Coincident"]
[null,null,"Raw Adjusted MD","MVA","Non-Coincident"]
[null,null,null,null,"Coincident"]
[null,null,"Date MD occurred",null,"Non-Coincident"]
[null,null,null,null,"Coincident"]
[null,null,"Half hour time period MD occurred",null,"Non-Coincident"]
[null,null,null,null,"Coincident"]
[null,null,"Winter/Summer Peaking",null,"Non-Coincident"]
[null,null,null,null,"Coincident"]
[null,null,"Adjustments - Embedded generation","MW","Non-Coincident"]
[null,null,null,null,"Coincident"]
[null,null,"Weather Corrected MD 10% POE","MW","Non-Coincident"]
[null,null,null,null,"Coincident"]
[null,null,"Weather Corrected MD 10% POE","MVA","Non-Coincident"]
[null,null,null,null,"Coincident"]
[null,null,"Weather Corrected MD 50% POE","MW","Non-Coincident"]
[null,null,null,null,"Coincident"]
[null,null,"Weather Corrected MD 50% POE","MVA","Non-Coincident"]
[null,null,null,null,"Coincident"]
[null,"<Enter connection point name>","Connection Point Rating","MVA","Non-Coincident"]
[null,null,null,null,"Coincident"]
[null,null,"Raw Adjusted MD","MW","Non-Coincident"]
[null,null,null,null,"Coincident"]
[null,null,"Raw Adjusted MD","MVA","Non-Coincident"]
[null,null,null,null,"Coincident"]
[null,null,"Date MD occurred",null,"Non-Coincident"]
[null,null,null,null,"Coincident"]
[null,null,"Half hour time period MD occurred",null,"Non-Coincident"]
[null,null,null,null,"Coincident"]
[null,null,"Winter/Summer Peaking",null,"Non-Coincident"]
[null,null,null,null,"Coincident"]
[null,null,"Adjustments - Embedded generation","MW","Non-Coincident"]
[null,null,null,null,"Coincident"]
[null,null,"Weather Corrected MD 10% POE","MW","Non-Coincident"]
[null,null,null,null,"Coincident"]
[null,null,"Weather Corrected MD 10% POE","MVA","Non-Coincident"]
[null,null,null,null,"Coincident"]
[null,null,"Weather Corrected MD 50% POE","MW","Non-Coincident"]
[null,null,null,null,"Coincident"]
[null,null,"Weather Corrected MD 50% POE","MVA","Non-Coincident"]
[null,null,null,null,"Coincident"]
[null,"<Enter connection point name>","Connection Point Rating","MVA","Non-Coincident"]
[null,null,null,null,"Coincident"]
[null,null,"Raw Adjusted MD","MW","Non-Coincident"]
[null,null,null,null,"Coincident"]
[null,null,"Raw Adjusted MD","MVA","Non-Coincident"]
[null,null,null,null,"Coincident"]
[null,null,"Date MD occurred",null,"Non-Coincident"]
[null,null,null,null,"Coincident"]
[null,null,"Half hour time period MD occurred",null,"Non-Coincident"]
[null,null,null,null,"Coincident"]
[null,null,"Winter/Summer Peaking",null,"Non-Coincident"]
[null,null,null,null,"Coincident"]
[null,null,"Adjustments - Embedded generation","MW","Non-Coincident"]
[null,null,null,null,"Coincident"]
[null,null,"Weather Corrected MD 10% POE","MW","Non-Coincident"]
[null,null,null,null,"Coincident"]
[null,null,"Weather Corrected MD 10% POE","MVA","Non-Coincident"]
[null,null,null,null,"Coincident"]
[null,null,"Weather Corrected MD 50% POE","MW","Non-Coincident"]
[null,null,null,null,"Coincident"]
[null,null,"Weather Corrected MD 50% POE","MVA","Non-Coincident"]
[null,null,null,null,"Coincident"]
[null,"<Enter connection point name>","Connection Point Rating","MVA","Non-Coincident"]
[null,null,null,null,"Coincident"]
[null,null,"Raw Adjusted MD","MW","Non-Coincident"]
[null,null,null,null,"Coincident"]
[null,null,"Raw Adjusted MD","MVA","Non-Coincident"]
[null,null,null,null,"Coincident"]
[null,null,"Date MD occurred",null,"Non-Coincident"]
[null,null,null,null,"Coincident"]
[null,null,"Half hour time period MD occurred",null,"Non-Coincident"]
[null,null,null,null,"Coincident"]
[null,null,"Winter/Summer Peaking",null,"Non-Coincident"]
[null,null,null,null,"Coincident"]
[null,null,"Adjustments - Embedded generation","MW","Non-Coincident"]
[null,null,null,null,"Coincident"]
[null,null,"Weather Corrected MD 10% POE","MW","Non-Coincident"]
[null,null,null,null,"Coincident"]
[null,null,"Weather Corrected MD 10% POE","MVA","Non-Coincident"]
[null,null,null,null,"Coincident"]
[null,null,"Weather Corrected MD 50% POE","MW","Non-Coincident"]
[null,null,null,null,"Coincident"]
[null,null,"Weather Corrected MD 50% POE","MVA","Non-Coincident"]
[null,null,null,null,"Coincident"]
[null,"<Enter connection point name>","Connection Point Rating","MVA","Non-Coincident"]
[null,null,null,null,"Coincident"]
[null,null,"Raw Adjusted MD","MW","Non-Coincident"]
[null,null,null,null,"Coincident"]
[null,null,"Raw Adjusted MD","MVA","Non-Coincident"]
[null,null,null,null,"Coincident"]
[null,null,"Date MD occurred",null,"Non-Coincident"]
[null,null,null,null,"Coincident"]
[null,null,"Half hour time period MD occurred",null,"Non-Coincident"]
[null,null,null,null,"Coincident"]
[null,null,"Winter/Summer Peaking",null,"Non-Coincident"]
[null,null,null,null,"Coincident"]
[null,null,"Adjustments - Embedded generation","MW","Non-Coincident"]
[null,null,null,null,"Coincident"]
[null,null,"Weather Corrected MD 10% POE","MW","Non-Coincident"]
[null,null,null,null,"Coincident"]
[null,null,"Weather Corrected MD 10% POE","MVA","Non-Coincident"]
[null,null,null,null,"Coincident"]
[null,null,"Weather Corrected MD 50% POE","MW","Non-Coincident"]
[null,null,null,null,"Coincident"]
[null,null,"Weather Corrected MD 50% POE","MVA","Non-Coincident"]
[null,null,null,null,"Coincident"]
[null,"<Enter connection point name>","Connection Point Rating","MVA","Non-Coincident"]
[null,null,null,null,"Coincident"]
[null,null,"Raw Adjusted MD","MW","Non-Coincident"]
[null,null,null,null,"Coincident"]
[null,null,"Raw Adjusted MD","MVA","Non-Coincident"]
[null,null,null,null,"Coincident"]
[null,null,"Date MD occurred",null,"Non-Coincident"]
[null,null,null,null,"Coincident"]
[null,null,"Half hour time period MD occurred",null,"Non-Coincident"]
[null,null,null,null,"Coincident"]
[null,null,"Winter/Summer Peaking",null,"Non-Coincident"]
[null,null,null,null,"Coincident"]
[null,null,"Adjustments - Embedded generation","MW","Non-Coincident"]
[null,null,null,null,"Coincident"]
[null,null,"Weather Corrected MD 10% POE","MW","Non-Coincident"]
[null,null,null,null,"Coincident"]
[null,null,"Weather Corrected MD 10% POE","MVA","Non-Coincident"]
[null,null,null,null,"Coincident"]
[null,null,"Weather Corrected MD 50% POE","MW","Non-Coincident"]
[null,null,null,null,"Coincident"]
[null,null,"Weather Corrected MD 50% POE","MVA","Non-Coincident"]
[null,null,null,null,"Coincident"]
[null,"<Enter connection point name>","Connection Point Rating","MVA","Non-Coincident"]
[null,null,null,null,"Coincident"]
[null,null,"Raw Adjusted MD","MW","Non-Coincident"]
[null,null,null,null,"Coincident"]
[null,null,"Raw Adjusted MD","MVA","Non-Coincident"]
[null,null,null,null,"Coincident"]
[null,null,"Date MD occurred",null,"Non-Coincident"]
[null,null,null,null,"Coincident"]
[null,null,"Half hour time period MD occurred",null,"Non-Coincident"]
[null,null,null,null,"Coincident"]
[null,null,"Winter/Summer Peaking",null,"Non-Coincident"]
[null,null,null,null,"Coincident"]
[null,null,"Adjustments - Embedded generation","MW","Non-Coincident"]
[null,null,null,null,"Coincident"]
[null,null,"Weather Corrected MD 10% POE","MW","Non-Coincident"]
[null,null,null,null,"Coincident"]
[null,null,"Weather Corrected MD 10% POE","MVA","Non-Coincident"]
[null,null,null,null,"Coincident"]
[null,null,"Weather Corrected MD 50% POE","MW","Non-Coincident"]
[null,null,null,null,"Coincident"]
[null,null,"Weather Corrected MD 50% POE","MVA","Non-Coincident"]
[null,null,null,null,"Coincident"]
[null,"<Enter connection point name>","Connection Point Rating","MVA","Non-Coincident"]
[null,null,null,null,"Coincident"]
[null,null,"Raw Adjusted MD","MW","Non-Coincident"]
[null,null,null,null,"Coincident"]
[null,null,"Raw Adjusted MD","MVA","Non-Coincident"]
[null,null,null,null,"Coincident"]
[null,null,"Date MD occurred",null,"Non-Coincident"]
[null,null,null,null,"Coincident"]
[null,null,"Half hour time period MD occurred",null,"Non-Coincident"]
[null,null,null,null,"Coincident"]
[null,null,"Winter/Summer Peaking",null,"Non-Coincident"]
[null,null,null,null,"Coincident"]
[null,null,"Adjustments - Embedded generation","MW","Non-Coincident"]
[null,null,null,null,"Coincident"]
[null,null,"Weather Corrected MD 10% POE","MW","Non-Coincident"]
[null,null,null,null,"Coincident"]
[null,null,"Weather Corrected MD 10% POE","MVA","Non-Coincident"]
[null,null,null,null,"Coincident"]
[null,null,"Weather Corrected MD 50% POE","MW","Non-Coincident"]
[null,null,null,null,"Coincident"]
[null,null,"Weather Corrected MD 50% POE","MVA","Non-Coincident"]
[null,null,null,null,"Coincident"]
[null,"<Enter connection point name>","Connection Point Rating","MVA","Non-Coincident"]
[null,null,null,null,"Coincident"]
[null,null,"Raw Adjusted MD","MW","Non-Coincident"]
[null,null,null,null,"Coincident"]
[null,null,"Raw Adjusted MD","MVA","Non-Coincident"]
[null,null,null,null,"Coincident"]
[null,null,"Date MD occurred",null,"Non-Coincident"]
[null,null,null,null,"Coincident"]
[null,null,"Half hour time period MD occurred",null,"Non-Coincident"]
[null,null,null,null,"Coincident"]
[null,null,"Winter/Summer Peaking",null,"Non-Coincident"]
[null,null,null,null,"Coincident"]
[null,null,"Adjustments - Embedded generation","MW","Non-Coincident"]
[null,null,null,null,"Coincident"]
[null,null,"Weather Corrected MD 10% POE","MW","Non-Coincident"]
[null,null,null,null,"Coincident"]
[null,null,"Weather Corrected MD 10% POE","MVA","Non-Coincident"]
[null,null,null,null,"Coincident"]
[null,null,"Weather Corrected MD 50% POE","MW","Non-Coincident"]
[null,null,null,null,"Coincident"]
[null,null,"Weather Corrected MD 50% POE","MVA","Non-Coincident"]
[null,null,null,null,"Coincident"]
[null,"<Enter connection point name>","Connection Point Rating","MVA","Non-Coincident"]
[null,null,null,null,"Coincident"]
[null,null,"Raw Adjusted MD","MW","Non-Coincident"]
[null,null,null,null,"Coincident"]
[null,null,"Raw Adjusted MD","MVA","Non-Coincident"]
[null,null,null,null,"Coincident"]
[null,null,"Date MD occurred",null,"Non-Coincident"]
[null,null,null,null,"Coincident"]
[null,null,"Half hour time period MD occurred",null,"Non-Coincident"]
[null,null,null,null,"Coincident"]
[null,null,"Winter/Summer Peaking",null,"Non-Coincident"]
[null,null,null,null,"Coincident"]
[null,null,"Adjustments - Embedded generation","MW","Non-Coincident"]
[null,null,null,null,"Coincident"]
[null,null,"Weather Corrected MD 10% POE","MW","Non-Coincident"]
[null,null,null,null,"Coincident"]
[null,null,"Weather Corrected MD 10% POE","MVA","Non-Coincident"]
[null,null,null,null,"Coincident"]
[null,null,"Weather Corrected MD 50% POE","MW","Non-Coincident"]
[null,null,null,null,"Coincident"]
[null,null,"Weather Corrected MD 50% POE","MVA","Non-Coincident"]
[null,null,null,null,"Coincident"]
[null,"<Enter connection point name>","Connection Point Rating","MVA","Non-Coincident"]
[null,null,null,null,"Coincident"]
[null,null,"Raw Adjusted MD","MW","Non-Coincident"]
[null,null,null,null,"Coincident"]
[null,null,"Raw Adjusted MD","MVA","Non-Coincident"]
[null,null,null,null,"Coincident"]
[null,null,"Date MD occurred",null,"Non-Coincident"]
[null,null,null,null,"Coincident"]
[null,null,"Half hour time period MD occurred",null,"Non-Coincident"]
[null,null,null,null,"Coincident"]
[null,null,"Winter/Summer Peaking",null,"Non-Coincident"]
[null,null,null,null,"Coincident"]
[null,null,"Adjustments - Embedded generation","MW","Non-Coincident"]
[null,null,null,null,"Coincident"]
[null,null,"Weather Corrected MD 10% POE","MW","Non-Coincident"]
[null,null,null,null,"Coincident"]
[null,null,"Weather Corrected MD 10% POE","MVA","Non-Coincident"]
[null,null,null,null,"Coincident"]
[null,null,"Weather Corrected MD 50% POE","MW","Non-Coincident"]
[null,null,null,null,"Coincident"]
[null,null,"Weather Corrected MD 50% POE","MVA","Non-Coincident"]
[null,null,null,null,"Coincident"]
[null,"<Enter connection point name>","Connection Point Rating","MVA","Non-Coincident"]
[null,null,null,null,"Coincident"]
[null,null,"Raw Adjusted MD","MW","Non-Coincident"]
[null,null,null,null,"Coincident"]
[null,null,"Raw Adjusted MD","MVA","Non-Coincident"]
[null,null,null,null,"Coincident"]
[null,null,"Date MD occurred",null,"Non-Coincident"]
[null,null,null,null,"Coincident"]
[null,null,"Half hour time period MD occurred",null,"Non-Coincident"]
[null,null,null,null,"Coincident"]
[null,null,"Winter/Summer Peaking",null,"Non-Coincident"]
[null,null,null,null,"Coincident"]
[null,null,"Adjustments - Embedded generation","MW","Non-Coincident"]
[null,null,null,null,"Coincident"]
[null,null,"Weather Corrected MD 10% POE","MW","Non-Coincident"]
[null,null,null,null,"Coincident"]
[null,null,"Weather Corrected MD 10% POE","MVA","Non-Coincident"]
[null,null,null,null,"Coincident"]
[null,null,"Weather Corrected MD 50% POE","MW","Non-Coincident"]
[null,null,null,null,"Coincident"]
[null,null,"Weather Corrected MD 50% POE","MVA","Non-Coincident"]
[null,null,null,null,"Coincident"]
[null,"<Enter connection point name>","Connection Point Rating","MVA","Non-Coincident"]
[null,null,null,null,"Coincident"]
[null,null,"Raw Adjusted MD","MW","Non-Coincident"]
[null,null,null,null,"Coincident"]
[null,null,"Raw Adjusted MD","MVA","Non-Coincident"]
[null,null,null,null,"Coincident"]
[null,null,"Date MD occurred",null,"Non-Coincident"]
[null,null,null,null,"Coincident"]
[null,null,"Half hour time period MD occurred",null,"Non-Coincident"]
[null,null,null,null,"Coincident"]
[null,null,"Winter/Summer Peaking",null,"Non-Coincident"]
[null,null,null,null,"Coincident"]
[null,null,"Adjustments - Embedded generation","MW","Non-Coincident"]
[null,null,null,null,"Coincident"]
[null,null,"Weather Corrected MD 10% POE","MW","Non-Coincident"]
[null,null,null,null,"Coincident"]
[null,null,"Weather Corrected MD 10% POE","MVA","Non-Coincident"]
[null,null,null,null,"Coincident"]
[null,null,"Weather Corrected MD 50% POE","MW","Non-Coincident"]
[null,null,null,null,"Coincident"]
[null,null,"Weather Corrected MD 50% POE","MVA","Non-Coincident"]
[null,null,null,null,"Coincident"]
[null,"<Enter connection point name>","Connection Point Rating","MVA","Non-Coincident"]
[null,null,null,null,"Coincident"]
[null,null,"Raw Adjusted MD","MW","Non-Coincident"]
[null,null,null,null,"Coincident"]
[null,null,"Raw Adjusted MD","MVA","Non-Coincident"]
[null,null,null,null,"Coincident"]
[null,null,"Date MD occurred",null,"Non-Coincident"]
[null,null,null,null,"Coincident"]
[null,null,"Half hour time period MD occurred",null,"Non-Coincident"]
[null,null,null,null,"Coincident"]
[null,null,"Winter/Summer Peaking",null,"Non-Coincident"]
[null,null,null,null,"Coincident"]
[null,null,"Adjustments - Embedded generation","MW","Non-Coincident"]
[null,null,null,null,"Coincident"]
[null,null,"Weather Corrected MD 10% POE","MW","Non-Coincident"]
[null,null,null,null,"Coincident"]
[null,null,"Weather Corrected MD 10% POE","MVA","Non-Coincident"]
[null,null,null,null,"Coincident"]
[null,null,"Weather Corrected MD 50% POE","MW","Non-Coincident"]
[null,null,null,null,"Coincident"]
[null,null,"Weather Corrected MD 50% POE","MVA","Non-Coincident"]
[null,null,null,null,"Coincident"]
[null,"<Enter connection point name>","Connection Point Rating","MVA","Non-Coincident"]
[null,null,null,null,"Coincident"]
[null,null,"Raw Adjusted MD","MW","Non-Coincident"]
[null,null,null,null,"Coincident"]
[null,null,"Raw Adjusted MD","MVA","Non-Coincident"]
[null,null,null,null,"Coincident"]
[null,null,"Date MD occurred",null,"Non-Coincident"]
[null,null,null,null,"Coincident"]
[null,null,"Half hour time period MD occurred",null,"Non-Coincident"]
[null,null,null,null,"Coincident"]
[null,null,"Winter/Summer Peaking",null,"Non-Coincident"]
[null,null,null,null,"Coincident"]
[null,null,"Adjustments - Embedded generation","MW","Non-Coincident"]
[null,null,null,null,"Coincident"]
[null,null,"Weather Corrected MD 10% POE","MW","Non-Coincident"]
[null,null,null,null,"Coincident"]
[null,null,"Weather Corrected MD 10% POE","MVA","Non-Coincident"]
[null,null,null,null,"Coincident"]
[null,null,"Weather Corrected MD 50% POE","MW","Non-Coincident"]
[null,null,null,null,"Coincident"]
[null,null,"Weather Corrected MD 50% POE","MVA","Non-Coincident"]
[null,null,null,null,"Coincident"]
[null,"<Enter connection point name>","Connection Point Rating","MVA","Non-Coincident"]
[null,null,null,null,"Coincident"]
[null,null,"Raw Adjusted MD","MW","Non-Coincident"]
[null,null,null,null,"Coincident"]
[null,null,"Raw Adjusted MD","MVA","Non-Coincident"]
[null,null,null,null,"Coincident"]
[null,null,"Date MD occurred",null,"Non-Coincident"]
[null,null,null,null,"Coincident"]
[null,null,"Half hour time period MD occurred",null,"Non-Coincident"]
[null,null,null,null,"Coincident"]
[null,null,"Winter/Summer Peaking",null,"Non-Coincident"]
[null,null,null,null,"Coincident"]
[null,null,"Adjustments - Embedded generation","MW","Non-Coincident"]
[null,null,null,null,"Coincident"]
[null,null,"Weather Corrected MD 10% POE","MW","Non-Coincident"]
[null,null,null,null,"Coincident"]
[null,null,"Weather Corrected MD 10% POE","MVA","Non-Coincident"]
[null,null,null,null,"Coincident"]
[null,null,"Weather Corrected MD 50% POE","MW","Non-Coincident"]
[null,null,null,null,"Coincident"]
[null,null,"Weather Corrected MD 50% POE","MVA","Non-Coincident"]
[null,null,null,null,"Coincident"]
[null,"<Enter connection point name>","Connection Point Rating","MVA","Non-Coincident"]
[null,null,null,null,"Coincident"]
[null,null,"Raw Adjusted MD","MW","Non-Coincident"]
[null,null,null,null,"Coincident"]
[null,null,"Raw Adjusted MD","MVA","Non-Coincident"]
[null,null,null,null,"Coincident"]
[null,null,"Date MD occurred",null,"Non-Coincident"]
[null,null,null,null,"Coincident"]
[null,null,"Half hour time period MD occurred",null,"Non-Coincident"]
[null,null,null,null,"Coincident"]
[null,null,"Winter/Summer Peaking",null,"Non-Coincident"]
[null,null,null,null,"Coincident"]
[null,null,"Adjustments - Embedded generation","MW","Non-Coincident"]
[null,null,null,null,"Coincident"]
[null,null,"Weather Corrected MD 10% POE","MW","Non-Coincident"]
[null,null,null,null,"Coincident"]
[null,null,"Weather Corrected MD 10% POE","MVA","Non-Coincident"]
[null,null,null,null,"Coincident"]
[null,null,"Weather Corrected MD 50% POE","MW","Non-Coincident"]
[null,null,null,null,"Coincident"]
[null,null,"Weather Corrected MD 50% POE","MVA","Non-Coincident"]
[null,null,null,null,"Coincident"]
[null,"<Enter connection point name>","Connection Point Rating","MVA","Non-Coincident"]
[null,null,null,null,"Coincident"]
[null,null,"Raw Adjusted MD","MW","Non-Coincident"]
[null,null,null,null,"Coincident"]
[null,null,"Raw Adjusted MD","MVA","Non-Coincident"]
[null,null,null,null,"Coincident"]
[null,null,"Date MD occurred",null,"Non-Coincident"]
[null,null,null,null,"Coincident"]
[null,null,"Half hour time period MD occurred",null,"Non-Coincident"]
[null,null,null,null,"Coincident"]
[null,null,"Winter/Summer Peaking",null,"Non-Coincident"]
[null,null,null,null,"Coincident"]
[null,null,"Adjustments - Embedded generation","MW","Non-Coincident"]
[null,null,null,null,"Coincident"]
[null,null,"Weather Corrected MD 10% POE","MW","Non-Coincident"]
[null,null,null,null,"Coincident"]
[null,null,"Weather Corrected MD 10% POE","MVA","Non-Coincident"]
[null,null,null,null,"Coincident"]
[null,null,"Weather Corrected MD 50% POE","MW","Non-Coincident"]
[null,null,null,null,"Coincident"]
[null,null,"Weather Corrected MD 50% POE","MVA","Non-Coincident"]
[null,null,null,null,"Coincident"]
[null,"<Enter connection point name>","Connection Point Rating","MVA","Non-Coincident"]
[null,null,null,null,"Coincident"]
[null,null,"Raw Adjusted MD","MW","Non-Coincident"]
[null,null,null,null,"Coincident"]
[null,null,"Raw Adjusted MD","MVA","Non-Coincident"]
[null,null,null,null,"Coincident"]
[null,null,"Date MD occurred",null,"Non-Coincident"]
[null,null,null,null,"Coincident"]
[null,null,"Half hour time period MD occurred",null,"Non-Coincident"]
[null,null,null,null,"Coincident"]
[null,null,"Winter/Summer Peaking",null,"Non-Coincident"]
[null,null,null,null,"Coincident"]
[null,null,"Adjustments - Embedded generation","MW","Non-Coincident"]
[null,null,null,null,"Coincident"]
[null,null,"Weather Corrected MD 10% POE","MW","Non-Coincident"]
[null,null,null,null,"Coincident"]
[null,null,"Weather Corrected MD 10% POE","MVA","Non-Coincident"]
[null,null,null,null,"Coincident"]
[null,null,"Weather Corrected MD 50% POE","MW","Non-Coincident"]
[null,null,null,null,"Coincident"]
[null,null,"Weather Corrected MD 50% POE","MVA","Non-Coincident"]
[null,null,null,null,"Coincident"]
[null,"<Enter connection point name>","Connection Point Rating","MVA","Non-Coincident"]
[null,null,null,null,"Coincident"]
[null,null,"Raw Adjusted MD","MW","Non-Coincident"]
[null,null,null,null,"Coincident"]
[null,null,"Raw Adjusted MD","MVA","Non-Coincident"]
[null,null,null,null,"Coincident"]
[null,null,"Date MD occurred",null,"Non-Coincident"]
[null,null,null,null,"Coincident"]
[null,null,"Half hour time period MD occurred",null,"Non-Coincident"]
[null,null,null,null,"Coincident"]
[null,null,"Winter/Summer Peaking",null,"Non-Coincident"]
[null,null,null,null,"Coincident"]
[null,null,"Adjustments - Embedded generation","MW","Non-Coincident"]
[null,null,null,null,"Coincident"]
[null,null,"Weather Corrected MD 10% POE","MW","Non-Coincident"]
[null,null,null,null,"Coincident"]
[null,null,"Weather Corrected MD 10% POE","MVA","Non-Coincident"]
[null,null,null,null,"Coincident"]
[null,null,"Weather Corrected MD 50% POE","MW","Non-Coincident"]
[null,null,null,null,"Coincident"]
[null,null,"Weather Corrected MD 50% POE","MVA","Non-Coincident"]
[null,null,null,null,"Coincident"]
[null,"<Enter connection point name>","Connection Point Rating","MVA","Non-Coincident"]
[null,null,null,null,"Coincident"]
[null,null,"Raw Adjusted MD","MW","Non-Coincident"]
[null,null,null,null,"Coincident"]
[null,null,"Raw Adjusted MD","MVA","Non-Coincident"]
[null,null,null,null,"Coincident"]
[null,null,"Date MD occurred",null,"Non-Coincident"]
[null,null,null,null,"Coincident"]
[null,null,"Half hour time period MD occurred",null,"Non-Coincident"]
[null,null,null,null,"Coincident"]
[null,null,"Winter/Summer Peaking",null,"Non-Coincident"]
[null,null,null,null,"Coincident"]
[null,null,"Adjustments - Embedded generation","MW","Non-Coincident"]
[null,null,null,null,"Coincident"]
[null,null,"Weather Corrected MD 10% POE","MW","Non-Coincident"]
[null,null,null,null,"Coincident"]
[null,null,"Weather Corrected MD 10% POE","MVA","Non-Coincident"]
[null,null,null,null,"Coincident"]
[null,null,"Weather Corrected MD 50% POE","MW","Non-Coincident"]
[null,null,null,null,"Coincident"]
[null,null,"Weather Corrected MD 50% POE","MVA","Non-Coincident"]
[null,null,null,null,"Coincident"]
[null,"<Enter connection point name>","Connection Point Rating","MVA","Non-Coincident"]
[null,null,null,null,"Coincident"]
[null,null,"Raw Adjusted MD","MW","Non-Coincident"]
[null,null,null,null,"Coincident"]
[null,null,"Raw Adjusted MD","MVA","Non-Coincident"]
[null,null,null,null,"Coincident"]
[null,null,"Date MD occurred",null,"Non-Coincident"]
[null,null,null,null,"Coincident"]
[null,null,"Half hour time period MD occurred",null,"Non-Coincident"]
[null,null,null,null,"Coincident"]
[null,null,"Winter/Summer Peaking",null,"Non-Coincident"]
[null,null,null,null,"Coincident"]
[null,null,"Adjustments - Embedded generation","MW","Non-Coincident"]
[null,null,null,null,"Coincident"]
[null,null,"Weather Corrected MD 10% POE","MW","Non-Coincident"]
[null,null,null,null,"Coincident"]
[null,null,"Weather Corrected MD 10% POE","MVA","Non-Coincident"]
[null,null,null,null,"Coincident"]
[null,null,"Weather Corrected MD 50% POE","MW","Non-Coincident"]
[null,null,null,null,"Coincident"]
[null,null,"Weather Corrected MD 50% POE","MVA","Non-Coincident"]
[null,null,null,null,"Coincident"]
[null,"<Enter connection point name>","Connection Point Rating","MVA","Non-Coincident"]
[null,null,null,null,"Coincident"]
[null,null,"Raw Adjusted MD","MW","Non-Coincident"]
[null,null,null,null,"Coincident"]
[null,null,"Raw Adjusted MD","MVA","Non-Coincident"]
[null,null,null,null,"Coincident"]
[null,null,"Date MD occurred",null,"Non-Coincident"]
[null,null,null,null,"Coincident"]
[null,null,"Half hour time period MD occurred",null,"Non-Coincident"]
[null,null,null,null,"Coincident"]
[null,null,"Winter/Summer Peaking",null,"Non-Coincident"]
[null,null,null,null,"Coincident"]
[null,null,"Adjustments - Embedded generation","MW","Non-Coincident"]
[null,null,null,null,"Coincident"]
[null,null,"Weather Corrected MD 10% POE","MW","Non-Coincident"]
[null,null,null,null,"Coincident"]
[null,null,"Weather Corrected MD 10% POE","MVA","Non-Coincident"]
[null,null,null,null,"Coincident"]
[null,null,"Weather Corrected MD 50% POE","MW","Non-Coincident"]
[null,null,null,null,"Coincident"]
[null,null,"Weather Corrected MD 50% POE","MVA","Non-Coincident"]
[null,null,null,null,"Coincident"]
[null,"<Enter connection point name>","Connection Point Rating","MVA","Non-Coincident"]
[null,null,null,null,"Coincident"]
[null,null,"Raw Adjusted MD","MW","Non-Coincident"]
[null,null,null,null,"Coincident"]
[null,null,"Raw Adjusted MD","MVA","Non-Coincident"]
[null,null,null,null,"Coincident"]
[null,null,"Date MD occurred",null,"Non-Coincident"]
[null,null,null,null,"Coincident"]
[null,null,"Half hour time period MD occurred",null,"Non-Coincident"]
[null,null,null,null,"Coincident"]
[null,null,"Winter/Summer Peaking",null,"Non-Coincident"]
[null,null,null,null,"Coincident"]
[null,null,"Adjustments - Embedded generation","MW","Non-Coincident"]
[null,null,null,null,"Coincident"]
[null,null,"Weather Corrected MD 10% POE","MW","Non-Coincident"]
[null,null,null,null,"Coincident"]
[null,null,"Weather Corrected MD 10% POE","MVA","Non-Coincident"]
[null,null,null,null,"Coincident"]
[null,null,"Weather Corrected MD 50% POE","MW","Non-Coincident"]
[null,null,null,null,"Coincident"]
[null,null,"Weather Corrected MD 50% POE","MVA","Non-Coincident"]
[null,null,null,null,"Coincident"]
[null,"<Enter connection point name>","Connection Point Rating","MVA","Non-Coincident"]
[null,null,null,null,"Coincident"]
[null,null,"Raw Adjusted MD","MW","Non-Coincident"]
[null,null,null,null,"Coincident"]
[null,null,"Raw Adjusted MD","MVA","Non-Coincident"]
[null,null,null,null,"Coincident"]
[null,null,"Date MD occurred",null,"Non-Coincident"]
[null,null,null,null,"Coincident"]
[null,null,"Half hour time period MD occurred",null,"Non-Coincident"]
[null,null,null,null,"Coincident"]
[null,null,"Winter/Summer Peaking",null,"Non-Coincident"]
[null,null,null,null,"Coincident"]
[null,null,"Adjustments - Embedded generation","MW","Non-Coincident"]
[null,null,null,null,"Coincident"]
[null,null,"Weather Corrected MD 10% POE","MW","Non-Coincident"]
[null,null,null,null,"Coincident"]
[null,null,"Weather Corrected MD 10% POE","MVA","Non-Coincident"]
[null,null,null,null,"Coincident"]
[null,null,"Weather Corrected MD 50% POE","MW","Non-Coincident"]
[null,null,null,null,"Coincident"]
[null,null,"Weather Corrected MD 50% POE","MVA","Non-Coincident"]
[null,null,null,null,"Coincident"]
[null,"<Enter connection point name>","Connection Point Rating","MVA","Non-Coincident"]
[null,null,null,null,"Coincident"]
[null,null,"Raw Adjusted MD","MW","Non-Coincident"]
[null,null,null,null,"Coincident"]
[null,null,"Raw Adjusted MD","MVA","Non-Coincident"]
[null,null,null,null,"Coincident"]
[null,null,"Date MD occurred",null,"Non-Coincident"]
[null,null,null,null,"Coincident"]
[null,null,"Half hour time period MD occurred",null,"Non-Coincident"]
[null,null,null,null,"Coincident"]
[null,null,"Winter/Summer Peaking",null,"Non-Coincident"]
[null,null,null,null,"Coincident"]
[null,null,"Adjustments - Embedded generation","MW","Non-Coincident"]
[null,null,null,null,"Coincident"]
[null,null,"Weather Corrected MD 10% POE","MW","Non-Coincident"]
[null,null,null,null,"Coincident"]
[null,null,"Weather Corrected MD 10% POE","MVA","Non-Coincident"]
[null,null,null,null,"Coincident"]
[null,null,"Weather Corrected MD 50% POE","MW","Non-Coincident"]
[null,null,null,null,"Coincident"]
[null,null,"Weather Corrected MD 50% POE","MVA","Non-Coincident"]
[null,null,null,null,"Coincident"]
[null,"<Enter connection point name>","Connection Point Rating","MVA","Non-Coincident"]
[null,null,null,null,"Coincident"]
[null,null,"Raw Adjusted MD","MW","Non-Coincident"]
[null,null,null,null,"Coincident"]
[null,null,"Raw Adjusted MD","MVA","Non-Coincident"]
[null,null,null,null,"Coincident"]
[null,null,"Date MD occurred",null,"Non-Coincident"]
[null,null,null,null,"Coincident"]
[null,null,"Half hour time period MD occurred",null,"Non-Coincident"]
[null,null,null,null,"Coincident"]
[null,null,"Winter/Summer Peaking",null,"Non-Coincident"]
[null,null,null,null,"Coincident"]
[null,null,"Adjustments - Embedded generation","MW","Non-Coincident"]
[null,null,null,null,"Coincident"]
[null,null,"Weather Corrected MD 10% POE","MW","Non-Coincident"]
[null,null,null,null,"Coincident"]
[null,null,"Weather Corrected MD 10% POE","MVA","Non-Coincident"]
[null,null,null,null,"Coincident"]
[null,null,"Weather Corrected MD 50% POE","MW","Non-Coincident"]
[null,null,null,null,"Coincident"]
[null,null,"Weather Corrected MD 50% POE","MVA","Non-Coincident"]
[null,null,null,null,"Coincident"]
[null,"<Enter connection point name>","Connection Point Rating","MVA","Non-Coincident"]
[null,null,null,null,"Coincident"]
[null,null,"Raw Adjusted MD","MW","Non-Coincident"]
[null,null,null,null,"Coincident"]
[null,null,"Raw Adjusted MD","MVA","Non-Coincident"]
[null,null,null,null,"Coincident"]
[null,null,"Date MD occurred",null,"Non-Coincident"]
[null,null,null,null,"Coincident"]
[null,null,"Half hour time period MD occurred",null,"Non-Coincident"]
[null,null,null,null,"Coincident"]
[null,null,"Winter/Summer Peaking",null,"Non-Coincident"]
[null,null,null,null,"Coincident"]
[null,null,"Adjustments - Embedded generation","MW","Non-Coincident"]
[null,null,null,null,"Coincident"]
[null,null,"Weather Corrected MD 10% POE","MW","Non-Coincident"]
[null,null,null,null,"Coincident"]
[null,null,"Weather Corrected MD 10% POE","MVA","Non-Coincident"]
[null,null,null,null,"Coincident"]
[null,null,"Weather Corrected MD 50% POE","MW","Non-Coincident"]
[null,null,null,null,"Coincident"]
[null,null,"Weather Corrected MD 50% POE","MVA","Non-Coincident"]
[null,null,null,null,"Coincident"]
[null,"<Enter connection point name>","Connection Point Rating","MVA","Non-Coincident"]
[null,null,null,null,"Coincident"]
[null,null,"Raw Adjusted MD","MW","Non-Coincident"]
[null,null,null,null,"Coincident"]
[null,null,"Raw Adjusted MD","MVA","Non-Coincident"]
[null,null,null,null,"Coincident"]
[null,null,"Date MD occurred",null,"Non-Coincident"]
[null,null,null,null,"Coincident"]
[null,null,"Half hour time period MD occurred",null,"Non-Coincident"]
[null,null,null,null,"Coincident"]
[null,null,"Winter/Summer Peaking",null,"Non-Coincident"]
[null,null,null,null,"Coincident"]
[null,null,"Adjustments - Embedded generation","MW","Non-Coincident"]
[null,null,null,null,"Coincident"]
[null,null,"Weather Corrected MD 10% POE","MW","Non-Coincident"]
[null,null,null,null,"Coincident"]
[null,null,"Weather Corrected MD 10% POE","MVA","Non-Coincident"]
[null,null,null,null,"Coincident"]
[null,null,"Weather Corrected MD 50% POE","MW","Non-Coincident"]
[null,null,null,null,"Coincident"]
[null,null,"Weather Corrected MD 50% POE","MVA","Non-Coincident"]
[null,null,null,null,"Coincident"]
[null,"<Enter connection point name>","Connection Point Rating","MVA","Non-Coincident"]
[null,null,null,null,"Coincident"]
[null,null,"Raw Adjusted MD","MW","Non-Coincident"]
[null,null,null,null,"Coincident"]
[null,null,"Raw Adjusted MD","MVA","Non-Coincident"]
[null,null,null,null,"Coincident"]
[null,null,"Date MD occurred",null,"Non-Coincident"]
[null,null,null,null,"Coincident"]
[null,null,"Half hour time period MD occurred",null,"Non-Coincident"]
[null,null,null,null,"Coincident"]
[null,null,"Winter/Summer Peaking",null,"Non-Coincident"]
[null,null,null,null,"Coincident"]
[null,null,"Adjustments - Embedded generation","MW","Non-Coincident"]
[null,null,null,null,"Coincident"]
[null,null,"Weather Corrected MD 10% POE","MW","Non-Coincident"]
[null,null,null,null,"Coincident"]
[null,null,"Weather Corrected MD 10% POE","MVA","Non-Coincident"]
[null,null,null,null,"Coincident"]
[null,null,"Weather Corrected MD 50% POE","MW","Non-Coincident"]
[null,null,null,null,"Coincident"]
[null,null,"Weather Corrected MD 50% POE","MVA","Non-Coincident"]
[null,null,null,null,"Coincident"]
[null,"<Enter connection point name>","Connection Point Rating","MVA","Non-Coincident"]
[null,null,null,null,"Coincident"]
[null,null,"Raw Adjusted MD","MW","Non-Coincident"]
[null,null,null,null,"Coincident"]
[null,null,"Raw Adjusted MD","MVA","Non-Coincident"]
[null,null,null,null,"Coincident"]
[null,null,"Date MD occurred",null,"Non-Coincident"]
[null,null,null,null,"Coincident"]
[null,null,"Half hour time period MD occurred",null,"Non-Coincident"]
[null,null,null,null,"Coincident"]
[null,null,"Winter/Summer Peaking",null,"Non-Coincident"]
[null,null,null,null,"Coincident"]
[null,null,"Adjustments - Embedded generation","MW","Non-Coincident"]
[null,null,null,null,"Coincident"]
[null,null,"Weather Corrected MD 10% POE","MW","Non-Coincident"]
[null,null,null,null,"Coincident"]
[null,null,"Weather Corrected MD 10% POE","MVA","Non-Coincident"]
[null,null,null,null,"Coincident"]
[null,null,"Weather Corrected MD 50% POE","MW","Non-Coincident"]
[null,null,null,null,"Coincident"]
[null,null,"Weather Corrected MD 50% POE","MVA","Non-Coincident"]
[null,null,null,null,"Coincident"]
[null,"<Enter connection point name>","Connection Point Rating","MVA","Non-Coincident"]
[null,null,null,null,"Coincident"]
[null,null,"Raw Adjusted MD","MW","Non-Coincident"]
[null,null,null,null,"Coincident"]
[null,null,"Raw Adjusted MD","MVA","Non-Coincident"]
[null,null,null,null,"Coincident"]
[null,null,"Date MD occurred",null,"Non-Coincident"]
[null,null,null,null,"Coincident"]
[null,null,"Half hour time period MD occurred",null,"Non-Coincident"]
[null,null,null,null,"Coincident"]
[null,null,"Winter/Summer Peaking",null,"Non-Coincident"]
[null,null,null,null,"Coincident"]
[null,null,"Adjustments - Embedded generation","MW","Non-Coincident"]
[null,null,null,null,"Coincident"]
[null,null,"Weather Corrected MD 10% POE","MW","Non-Coincident"]
[null,null,null,null,"Coincident"]
[null,null,"Weather Corrected MD 10% POE","MVA","Non-Coincident"]
[null,null,null,null,"Coincident"]
[null,null,"Weather Corrected MD 50% POE","MW","Non-Coincident"]
[null,null,null,null,"Coincident"]
[null,null,"Weather Corrected MD 50% POE","MVA","Non-Coincident"]
[null,null,null,null,"Coincident"]
[null,"<Enter connection point name>","Connection Point Rating","MVA","Non-Coincident"]
[null,null,null,null,"Coincident"]
[null,null,"Raw Adjusted MD","MW","Non-Coincident"]
[null,null,null,null,"Coincident"]
[null,null,"Raw Adjusted MD","MVA","Non-Coincident"]
[null,null,null,null,"Coincident"]
[null,null,"Date MD occurred",null,"Non-Coincident"]
[null,null,null,null,"Coincident"]
[null,null,"Half hour time period MD occurred",null,"Non-Coincident"]
[null,null,null,null,"Coincident"]
[null,null,"Winter/Summer Peaking",null,"Non-Coincident"]
[null,null,null,null,"Coincident"]
[null,null,"Adjustments - Embedded generation","MW","Non-Coincident"]
[null,null,null,null,"Coincident"]
[null,null,"Weather Corrected MD 10% POE","MW","Non-Coincident"]
[null,null,null,null,"Coincident"]
[null,null,"Weather Corrected MD 10% POE","MVA","Non-Coincident"]
[null,null,null,null,"Coincident"]
[null,null,"Weather Corrected MD 50% POE","MW","Non-Coincident"]
[null,null,null,null,"Coincident"]
[null,null,"Weather Corrected MD 50% POE","MVA","Non-Coincident"]
[null,null,null,null,"Coincident"]
[null,"<Enter connection point name>","Connection Point Rating","MVA","Non-Coincident"]
[null,null,null,null,"Coincident"]
[null,null,"Raw Adjusted MD","MW","Non-Coincident"]
[null,null,null,null,"Coincident"]
[null,null,"Raw Adjusted MD","MVA","Non-Coincident"]
[null,null,null,null,"Coincident"]
[null,null,"Date MD occurred",null,"Non-Coincident"]
[null,null,null,null,"Coincident"]
[null,null,"Half hour time period MD occurred",null,"Non-Coincident"]
[null,null,null,null,"Coincident"]
[null,null,"Winter/Summer Peaking",null,"Non-Coincident"]
[null,null,null,null,"Coincident"]
[null,null,"Adjustments - Embedded generation","MW","Non-Coincident"]
[null,null,null,null,"Coincident"]
[null,null,"Weather Corrected MD 10% POE","MW","Non-Coincident"]
[null,null,null,null,"Coincident"]
[null,null,"Weather Corrected MD 10% POE","MVA","Non-Coincident"]
[null,null,null,null,"Coincident"]
[null,null,"Weather Corrected MD 50% POE","MW","Non-Coincident"]
[null,null,null,null,"Coincident"]
[null,null,"Weather Corrected MD 50% POE","MVA","Non-Coincident"]
[null,null,null,null,"Coincident"]
[null,"<Enter connection point name>","Connection Point Rating","MVA","Non-Coincident"]
[null,null,null,null,"Coincident"]
[null,null,"Raw Adjusted MD","MW","Non-Coincident"]
[null,null,null,null,"Coincident"]
[null,null,"Raw Adjusted MD","MVA","Non-Coincident"]
[null,null,null,null,"Coincident"]
[null,null,"Date MD occurred",null,"Non-Coincident"]
[null,null,null,null,"Coincident"]
[null,null,"Half hour time period MD occurred",null,"Non-Coincident"]
[null,null,null,null,"Coincident"]
[null,null,"Winter/Summer Peaking",null,"Non-Coincident"]
[null,null,null,null,"Coincident"]
[null,null,"Adjustments - Embedded generation","MW","Non-Coincident"]
[null,null,null,null,"Coincident"]
[null,null,"Weather Corrected MD 10% POE","MW","Non-Coincident"]
[null,null,null,null,"Coincident"]
[null,null,"Weather Corrected MD 10% POE","MVA","Non-Coincident"]
[null,null,null,null,"Coincident"]
[null,null,"Weather Corrected MD 50% POE","MW","Non-Coincident"]
[null,null,null,null,"Coincident"]
[null,null,"Weather Corrected MD 50% POE","MVA","Non-Coincident"]
[null,null,null,null,"Coincident"]
[null,"<Enter connection point name>","Connection Point Rating","MVA","Non-Coincident"]
[null,null,null,null,"Coincident"]
[null,null,"Raw Adjusted MD","MW","Non-Coincident"]
[null,null,null,null,"Coincident"]
[null,null,"Raw Adjusted MD","MVA","Non-Coincident"]
[null,null,null,null,"Coincident"]
[null,null,"Date MD occurred",null,"Non-Coincident"]
[null,null,null,null,"Coincident"]
[null,null,"Half hour time period MD occurred",null,"Non-Coincident"]
[null,null,null,null,"Coincident"]
[null,null,"Winter/Summer Peaking",null,"Non-Coincident"]
[null,null,null,null,"Coincident"]
[null,null,"Adjustments - Embedded generation","MW","Non-Coincident"]
[null,null,null,null,"Coincident"]
[null,null,"Weather Corrected MD 10% POE","MW","Non-Coincident"]
[null,null,null,null,"Coincident"]
[null,null,"Weather Corrected MD 10% POE","MVA","Non-Coincident"]
[null,null,null,null,"Coincident"]
[null,null,"Weather Corrected MD 50% POE","MW","Non-Coincident"]
[null,null,null,null,"Coincident"]
[null,null,"Weather Corrected MD 50% POE","MVA","Non-Coincident"]
[null,null,null,null,"Coincident"]
[null,"<Enter connection point name>","Connection Point Rating","MVA","Non-Coincident"]
[null,null,null,null,"Coincident"]
[null,null,"Raw Adjusted MD","MW","Non-Coincident"]
[null,null,null,null,"Coincident"]
[null,null,"Raw Adjusted MD","MVA","Non-Coincident"]
[null,null,null,null,"Coincident"]
[null,null,"Date MD occurred",null,"Non-Coincident"]
[null,null,null,null,"Coincident"]
[null,null,"Half hour time period MD occurred",null,"Non-Coincident"]
[null,null,null,null,"Coincident"]
[null,null,"Winter/Summer Peaking",null,"Non-Coincident"]
[null,null,null,null,"Coincident"]
[null,null,"Adjustments - Embedded generation","MW","Non-Coincident"]
[null,null,null,null,"Coincident"]
[null,null,"Weather Corrected MD 10% POE","MW","Non-Coincident"]
[null,null,null,null,"Coincident"]
[null,null,"Weather Corrected MD 10% POE","MVA","Non-Coincident"]
[null,null,null,null,"Coincident"]
[null,null,"Weather Corrected MD 50% POE","MW","Non-Coincident"]
[null,null,null,null,"Coincident"]
[null,null,"Weather Corrected MD 50% POE","MVA","Non-Coincident"]
[null,null,null,null,"Coincident"]
[null,"<Enter connection point name>","Connection Point Rating","MVA","Non-Coincident"]
[null,null,null,null,"Coincident"]
[null,null,"Raw Adjusted MD","MW","Non-Coincident"]
[null,null,null,null,"Coincident"]
[null,null,"Raw Adjusted MD","MVA","Non-Coincident"]
[null,null,null,null,"Coincident"]
[null,null,"Date MD occurred",null,"Non-Coincident"]
[null,null,null,null,"Coincident"]
[null,null,"Half hour time period MD occurred",null,"Non-Coincident"]
[null,null,null,null,"Coincident"]
[null,null,"Winter/Summer Peaking",null,"Non-Coincident"]
[null,null,null,null,"Coincident"]
[null,null,"Adjustments - Embedded generation","MW","Non-Coincident"]
[null,null,null,null,"Coincident"]
[null,null,"Weather Corrected MD 10% POE","MW","Non-Coincident"]
[null,null,null,null,"Coincident"]
[null,null,"Weather Corrected MD 10% POE","MVA","Non-Coincident"]
[null,null,null,null,"Coincident"]
[null,null,"Weather Corrected MD 50% POE","MW","Non-Coincident"]
[null,null,null,null,"Coincident"]
[null,null,"Weather Corrected MD 50% POE","MVA","Non-Coincident"]
[null,null,null,null,"Coincident"]
[null,"<Enter connection point name>","Connection Point Rating","MVA","Non-Coincident"]
[null,null,null,null,"Coincident"]
[null,null,"Raw Adjusted MD","MW","Non-Coincident"]
[null,null,null,null,"Coincident"]
[null,null,"Raw Adjusted MD","MVA","Non-Coincident"]
[null,null,null,null,"Coincident"]
[null,null,"Date MD occurred",null,"Non-Coincident"]
[null,null,null,null,"Coincident"]
[null,null,"Half hour time period MD occurred",null,"Non-Coincident"]
[null,null,null,null,"Coincident"]
[null,null,"Winter/Summer Peaking",null,"Non-Coincident"]
[null,null,null,null,"Coincident"]
[null,null,"Adjustments - Embedded generation","MW","Non-Coincident"]
[null,null,null,null,"Coincident"]
[null,null,"Weather Corrected MD 10% POE","MW","Non-Coincident"]
[null,null,null,null,"Coincident"]
[null,null,"Weather Corrected MD 10% POE","MVA","Non-Coincident"]
[null,null,null,null,"Coincident"]
[null,null,"Weather Corrected MD 50% POE","MW","Non-Coincident"]
[null,null,null,null,"Coincident"]
[null,null,"Weather Corrected MD 50% POE","MVA","Non-Coincident"]
[null,null,null,null,"Coincident"]
[null,"<Enter connection point name>","Connection Point Rating","MVA","Non-Coincident"]
[null,null,null,null,"Coincident"]
[null,null,"Raw Adjusted MD","MW","Non-Coincident"]
[null,null,null,null,"Coincident"]
[null,null,"Raw Adjusted MD","MVA","Non-Coincident"]
[null,null,null,null,"Coincident"]
[null,null,"Date MD occurred",null,"Non-Coincident"]
[null,null,null,null,"Coincident"]
[null,null,"Half hour time period MD occurred",null,"Non-Coincident"]
[null,null,null,null,"Coincident"]
[null,null,"Winter/Summer Peaking",null,"Non-Coincident"]
[null,null,null,null,"Coincident"]
[null,null,"Adjustments - Embedded generation","MW","Non-Coincident"]
[null,null,null,null,"Coincident"]
[null,null,"Weather Corrected MD 10% POE","MW","Non-Coincident"]
[null,null,null,null,"Coincident"]
[null,null,"Weather Corrected MD 10% POE","MVA","Non-Coincident"]
[null,null,null,null,"Coincident"]
[null,null,"Weather Corrected MD 50% POE","MW","Non-Coincident"]
[null,null,null,null,"Coincident"]
[null,null,"Weather Corrected MD 50% POE","MVA","Non-Coincident"]
[null,null,null,null,"Coincident"]
[null,"<Enter connection point name>","Connection Point Rating","MVA","Non-Coincident"]
[null,null,null,null,"Coincident"]
[null,null,"Raw Adjusted MD","MW","Non-Coincident"]
[null,null,null,null,"Coincident"]
[null,null,"Raw Adjusted MD","MVA","Non-Coincident"]
[null,null,null,null,"Coincident"]
[null,null,"Date MD occurred",null,"Non-Coincident"]
[null,null,null,null,"Coincident"]
[null,null,"Half hour time period MD occurred",null,"Non-Coincident"]
[null,null,null,null,"Coincident"]
[null,null,"Winter/Summer Peaking",null,"Non-Coincident"]
[null,null,null,null,"Coincident"]
[null,null,"Adjustments - Embedded generation","MW","Non-Coincident"]
[null,null,null,null,"Coincident"]
[null,null,"Weather Corrected MD 10% POE","MW","Non-Coincident"]
[null,null,null,null,"Coincident"]
[null,null,"Weather Corrected MD 10% POE","MVA","Non-Coincident"]
[null,null,null,null,"Coincident"]
[null,null,"Weather Corrected MD 50% POE","MW","Non-Coincident"]
[null,null,null,null,"Coincident"]
[null,null,"Weather Corrected MD 50% POE","MVA","Non-Coincident"]
[null,null,null,null,"Coincident"]
[null,"<Enter connection point name>","Connection Point Rating","MVA","Non-Coincident"]
[null,null,null,null,"Coincident"]
[null,null,"Raw Adjusted MD","MW","Non-Coincident"]
[null,null,null,null,"Coincident"]
[null,null,"Raw Adjusted MD","MVA","Non-Coincident"]
[null,null,null,null,"Coincident"]
[null,null,"Date MD occurred",null,"Non-Coincident"]
[null,null,null,null,"Coincident"]
[null,null,"Half hour time period MD occurred",null,"Non-Coincident"]
[null,null,null,null,"Coincident"]
[null,null,"Winter/Summer Peaking",null,"Non-Coincident"]
[null,null,null,null,"Coincident"]
[null,null,"Adjustments - Embedded generation","MW","Non-Coincident"]
[null,null,null,null,"Coincident"]
[null,null,"Weather Corrected MD 10% POE","MW","Non-Coincident"]
[null,null,null,null,"Coincident"]
[null,null,"Weather Corrected MD 10% POE","MVA","Non-Coincident"]
[null,null,null,null,"Coincident"]
[null,null,"Weather Corrected MD 50% POE","MW","Non-Coincident"]
[null,null,null,null,"Coincident"]
[null,null,"Weather Corrected MD 50% POE","MVA","Non-Coincident"]
[null,null,null,null,"Coincident"]
[null,"<Enter connection point name>","Connection Point Rating","MVA","Non-Coincident"]
[null,null,null,null,"Coincident"]
[null,null,"Raw Adjusted MD","MW","Non-Coincident"]
[null,null,null,null,"Coincident"]
[null,null,"Raw Adjusted MD","MVA","Non-Coincident"]
[null,null,null,null,"Coincident"]
[null,null,"Date MD occurred",null,"Non-Coincident"]
[null,null,null,null,"Coincident"]
[null,null,"Half hour time period MD occurred",null,"Non-Coincident"]
[null,null,null,null,"Coincident"]
[null,null,"Winter/Summer Peaking",null,"Non-Coincident"]
[null,null,null,null,"Coincident"]
[null,null,"Adjustments - Embedded generation","MW","Non-Coincident"]
[null,null,null,null,"Coincident"]
[null,null,"Weather Corrected MD 10% POE","MW","Non-Coincident"]
[null,null,null,null,"Coincident"]
[null,null,"Weather Corrected MD 10% POE","MVA","Non-Coincident"]
[null,null,null,null,"Coincident"]
[null,null,"Weather Corrected MD 50% POE","MW","Non-Coincident"]
[null,null,null,null,"Coincident"]
[null,null,"Weather Corrected MD 50% POE","MVA","Non-Coincident"]
[null,null,null,null,"Coincident"]
[null,"<Enter connection point name>","Connection Point Rating","MVA","Non-Coincident"]
[null,null,null,null,"Coincident"]
[null,null,"Raw Adjusted MD","MW","Non-Coincident"]
[null,null,null,null,"Coincident"]
[null,null,"Raw Adjusted MD","MVA","Non-Coincident"]
[null,null,null,null,"Coincident"]
[null,null,"Date MD occurred",null,"Non-Coincident"]
[null,null,null,null,"Coincident"]
[null,null,"Half hour time period MD occurred",null,"Non-Coincident"]
[null,null,null,null,"Coincident"]
[null,null,"Winter/Summer Peaking",null,"Non-Coincident"]
[null,null,null,null,"Coincident"]
[null,null,"Adjustments - Embedded generation","MW","Non-Coincident"]
[null,null,null,null,"Coincident"]
[null,null,"Weather Corrected MD 10% POE","MW","Non-Coincident"]
[null,null,null,null,"Coincident"]
[null,null,"Weather Corrected MD 10% POE","MVA","Non-Coincident"]
[null,null,null,null,"Coincident"]
[null,null,"Weather Corrected MD 50% POE","MW","Non-Coincident"]
[null,null,null,null,"Coincident"]
[null,null,"Weather Corrected MD 50% POE","MVA","Non-Coincident"]
[null,null,null,null,"Coincident"]
[null,"<Enter connection point name>","Connection Point Rating","MVA","Non-Coincident"]
[null,null,null,null,"Coincident"]
[null,null,"Raw Adjusted MD","MW","Non-Coincident"]
[null,null,null,null,"Coincident"]
[null,null,"Raw Adjusted MD","MVA","Non-Coincident"]
[null,null,null,null,"Coincident"]
[null,null,"Date MD occurred",null,"Non-Coincident"]
[null,null,null,null,"Coincident"]
[null,null,"Half hour time period MD occurred",null,"Non-Coincident"]
[null,null,null,null,"Coincident"]
[null,null,"Winter/Summer Peaking",null,"Non-Coincident"]
[null,null,null,null,"Coincident"]
[null,null,"Adjustments - Embedded generation","MW","Non-Coincident"]
[null,null,null,null,"Coincident"]
[null,null,"Weather Corrected MD 10% POE","MW","Non-Coincident"]
[null,null,null,null,"Coincident"]
[null,null,"Weather Corrected MD 10% POE","MVA","Non-Coincident"]
[null,null,null,null,"Coincident"]
[null,null,"Weather Corrected MD 50% POE","MW","Non-Coincident"]
[null,null,null,null,"Coincident"]
[null,null,"Weather Corrected MD 50% POE","MVA","Non-Coincident"]
[null,null,null,null,"Coincident"]
[null,"<Enter connection point name>","Connection Point Rating","MVA","Non-Coincident"]
[null,null,null,null,"Coincident"]
[null,null,"Raw Adjusted MD","MW","Non-Coincident"]
[null,null,null,null,"Coincident"]
[null,null,"Raw Adjusted MD","MVA","Non-Coincident"]
[null,null,null,null,"Coincident"]
[null,null,"Date MD occurred",null,"Non-Coincident"]
[null,null,null,null,"Coincident"]
[null,null,"Half hour time period MD occurred",null,"Non-Coincident"]
[null,null,null,null,"Coincident"]
[null,null,"Winter/Summer Peaking",null,"Non-Coincident"]
[null,null,null,null,"Coincident"]
[null,null,"Adjustments - Embedded generation","MW","Non-Coincident"]
[null,null,null,null,"Coincident"]
[null,null,"Weather Corrected MD 10% POE","MW","Non-Coincident"]
[null,null,null,null,"Coincident"]
[null,null,"Weather Corrected MD 10% POE","MVA","Non-Coincident"]
[null,null,null,null,"Coincident"]
[null,null,"Weather Corrected MD 50% POE","MW","Non-Coincident"]
[null,null,null,null,"Coincident"]
[null,null,"Weather Corrected MD 50% POE","MVA","Non-Coincident"]
[null,null,null,null,"Coincident"]
[null,"<Enter connection point name>","Connection Point Rating","MVA","Non-Coincident"]
[null,null,null,null,"Coincident"]
[null,null,"Raw Adjusted MD","MW","Non-Coincident"]
[null,null,null,null,"Coincident"]
[null,null,"Raw Adjusted MD","MVA","Non-Coincident"]
[null,null,null,null,"Coincident"]
[null,null,"Date MD occurred",null,"Non-Coincident"]
[null,null,null,null,"Coincident"]
[null,null,"Half hour time period MD occurred",null,"Non-Coincident"]
[null,null,null,null,"Coincident"]
[null,null,"Winter/Summer Peaking",null,"Non-Coincident"]
[null,null,null,null,"Coincident"]
[null,null,"Adjustments - Embedded generation","MW","Non-Coincident"]
[null,null,null,null,"Coincident"]
[null,null,"Weather Corrected MD 10% POE","MW","Non-Coincident"]
[null,null,null,null,"Coincident"]
[null,null,"Weather Corrected MD 10% POE","MVA","Non-Coincident"]
[null,null,null,null,"Coincident"]
[null,null,"Weather Corrected MD 50% POE","MW","Non-Coincident"]
[null,null,null,null,"Coincident"]
[null,null,"Weather Corrected MD 50% POE","MVA","Non-Coincident"]
[null,null,null,null,"Coincident"]
[null,"<Enter connection point name>","Connection Point Rating","MVA","Non-Coincident"]
[null,null,null,null,"Coincident"]
[null,null,"Raw Adjusted MD","MW","Non-Coincident"]
[null,null,null,null,"Coincident"]
[null,null,"Raw Adjusted MD","MVA","Non-Coincident"]
[null,null,null,null,"Coincident"]
[null,null,"Date MD occurred",null,"Non-Coincident"]
[null,null,null,null,"Coincident"]
[null,null,"Half hour time period MD occurred",null,"Non-Coincident"]
[null,null,null,null,"Coincident"]
[null,null,"Winter/Summer Peaking",null,"Non-Coincident"]
[null,null,null,null,"Coincident"]
[null,null,"Adjustments - Embedded generation","MW","Non-Coincident"]
[null,null,null,null,"Coincident"]
[null,null,"Weather Corrected MD 10% POE","MW","Non-Coincident"]
[null,null,null,null,"Coincident"]
[null,null,"Weather Corrected MD 10% POE","MVA","Non-Coincident"]
[null,null,null,null,"Coincident"]
[null,null,"Weather Corrected MD 50% POE","MW","Non-Coincident"]
[null,null,null,null,"Coincident"]
[null,null,"Weather Corrected MD 50% POE","MVA","Non-Coincident"]
[null,null,null,null,"Coincident"]
[null,"<Enter connection point name>","Connection Point Rating","MVA","Non-Coincident"]
[null,null,null,null,"Coincident"]
[null,null,"Raw Adjusted MD","MW","Non-Coincident"]
[null,null,null,null,"Coincident"]
[null,null,"Raw Adjusted MD","MVA","Non-Coincident"]
[null,null,null,null,"Coincident"]
[null,null,"Date MD occurred",null,"Non-Coincident"]
[null,null,null,null,"Coincident"]
[null,null,"Half hour time period MD occurred",null,"Non-Coincident"]
[null,null,null,null,"Coincident"]
[null,null,"Winter/Summer Peaking",null,"Non-Coincident"]
[null,null,null,null,"Coincident"]
[null,null,"Adjustments - Embedded generation","MW","Non-Coincident"]
[null,null,null,null,"Coincident"]
[null,null,"Weather Corrected MD 10% POE","MW","Non-Coincident"]
[null,null,null,null,"Coincident"]
[null,null,"Weather Corrected MD 10% POE","MVA","Non-Coincident"]
[null,null,null,null,"Coincident"]
[null,null,"Weather Corrected MD 50% POE","MW","Non-Coincident"]
[null,null,null,null,"Coincident"]
[null,null,"Weather Corrected MD 50% POE","MVA","Non-Coincident"]
[null,null,null,null,"Coincident"]
[null,"<Enter connection point name>","Connection Point Rating","MVA","Non-Coincident"]
[null,null,null,null,"Coincident"]
[null,null,"Raw Adjusted MD","MW","Non-Coincident"]
[null,null,null,null,"Coincident"]
[null,null,"Raw Adjusted MD","MVA","Non-Coincident"]
[null,null,null,null,"Coincident"]
[null,null,"Date MD occurred",null,"Non-Coincident"]
[null,null,null,null,"Coincident"]
[null,null,"Half hour time period MD occurred",null,"Non-Coincident"]
[null,null,null,null,"Coincident"]
[null,null,"Winter/Summer Peaking",null,"Non-Coincident"]
[null,null,null,null,"Coincident"]
[null,null,"Adjustments - Embedded generation","MW","Non-Coincident"]
[null,null,null,null,"Coincident"]
[null,null,"Weather Corrected MD 10% POE","MW","Non-Coincident"]
[null,null,null,null,"Coincident"]
[null,null,"Weather Corrected MD 10% POE","MVA","Non-Coincident"]
[null,null,null,null,"Coincident"]
[null,null,"Weather Corrected MD 50% POE","MW","Non-Coincident"]
[null,null,null,null,"Coincident"]
[null,null,"Weather Corrected MD 50% POE","MVA","Non-Coincident"]
[null,null,null,null,"Coincident"]
[null,"<Enter connection point name>","Connection Point Rating","MVA","Non-Coincident"]
[null,null,null,null,"Coincident"]
[null,null,"Raw Adjusted MD","MW","Non-Coincident"]
[null,null,null,null,"Coincident"]
[null,null,"Raw Adjusted MD","MVA","Non-Coincident"]
[null,null,null,null,"Coincident"]
[null,null,"Date MD occurred",null,"Non-Coincident"]
[null,null,null,null,"Coincident"]
[null,null,"Half hour time period MD occurred",null,"Non-Coincident"]
[null,null,null,null,"Coincident"]
[null,null,"Winter/Summer Peaking",null,"Non-Coincident"]
[null,null,null,null,"Coincident"]
[null,null,"Adjustments - Embedded generation","MW","Non-Coincident"]
[null,null,null,null,"Coincident"]
[null,null,"Weather Corrected MD 10% POE","MW","Non-Coincident"]
[null,null,null,null,"Coincident"]
[null,null,"Weather Corrected MD 10% POE","MVA","Non-Coincident"]
[null,null,null,null,"Coincident"]
[null,null,"Weather Corrected MD 50% POE","MW","Non-Coincident"]
[null,null,null,null,"Coincident"]
[null,null,"Weather Corrected MD 50% POE","MVA","Non-Coincident"]
[null,null,null,null,"Coincident"]
[null,"<Enter connection point name>","Connection Point Rating","MVA","Non-Coincident"]
[null,null,null,null,"Coincident"]
[null,null,"Raw Adjusted MD","MW","Non-Coincident"]
[null,null,null,null,"Coincident"]
[null,null,"Raw Adjusted MD","MVA","Non-Coincident"]
[null,null,null,null,"Coincident"]
[null,null,"Date MD occurred",null,"Non-Coincident"]
[null,null,null,null,"Coincident"]
[null,null,"Half hour time period MD occurred",null,"Non-Coincident"]
[null,null,null,null,"Coincident"]
[null,null,"Winter/Summer Peaking",null,"Non-Coincident"]
[null,null,null,null,"Coincident"]
[null,null,"Adjustments - Embedded generation","MW","Non-Coincident"]
[null,null,null,null,"Coincident"]
[null,null,"Weather Corrected MD 10% POE","MW","Non-Coincident"]
[null,null,null,null,"Coincident"]
[null,null,"Weather Corrected MD 10% POE","MVA","Non-Coincident"]
[null,null,null,null,"Coincident"]
[null,null,"Weather Corrected MD 50% POE","MW","Non-Coincident"]
[null,null,null,null,"Coincident"]
[null,null,"Weather Corrected MD 50% POE","MVA","Non-Coincident"]
[null,null,null,null,"Coincident"]
[null,"<Enter connection point name>","Connection Point Rating","MVA","Non-Coincident"]
[null,null,null,null,"Coincident"]
[null,null,"Raw Adjusted MD","MW","Non-Coincident"]
[null,null,null,null,"Coincident"]
[null,null,"Raw Adjusted MD","MVA","Non-Coincident"]
[null,null,null,null,"Coincident"]
[null,null,"Date MD occurred",null,"Non-Coincident"]
[null,null,null,null,"Coincident"]
[null,null,"Half hour time period MD occurred",null,"Non-Coincident"]
[null,null,null,null,"Coincident"]
[null,null,"Winter/Summer Peaking",null,"Non-Coincident"]
[null,null,null,null,"Coincident"]
[null,null,"Adjustments - Embedded generation","MW","Non-Coincident"]
[null,null,null,null,"Coincident"]
[null,null,"Weather Corrected MD 10% POE","MW","Non-Coincident"]
[null,null,null,null,"Coincident"]
[null,null,"Weather Corrected MD 10% POE","MVA","Non-Coincident"]
[null,null,null,null,"Coincident"]
[null,null,"Weather Corrected MD 50% POE","MW","Non-Coincident"]
[null,null,null,null,"Coincident"]
[null,null,"Weather Corrected MD 50% POE","MVA","Non-Coincident"]
[null,null,null,null,"Coincident"]
[null,"<Enter connection point name>","Connection Point Rating","MVA","Non-Coincident"]
[null,null,null,null,"Coincident"]
[null,null,"Raw Adjusted MD","MW","Non-Coincident"]
[null,null,null,null,"Coincident"]
[null,null,"Raw Adjusted MD","MVA","Non-Coincident"]
[null,null,null,null,"Coincident"]
[null,null,"Date MD occurred",null,"Non-Coincident"]
[null,null,null,null,"Coincident"]
[null,null,"Half hour time period MD occurred",null,"Non-Coincident"]
[null,null,null,null,"Coincident"]
[null,null,"Winter/Summer Peaking",null,"Non-Coincident"]
[null,null,null,null,"Coincident"]
[null,null,"Adjustments - Embedded generation","MW","Non-Coincident"]
[null,null,null,null,"Coincident"]
[null,null,"Weather Corrected MD 10% POE","MW","Non-Coincident"]
[null,null,null,null,"Coincident"]
[null,null,"Weather Corrected MD 10% POE","MVA","Non-Coincident"]
[null,null,null,null,"Coincident"]
[null,null,"Weather Corrected MD 50% POE","MW","Non-Coincident"]
[null,null,null,null,"Coincident"]
[null,null,"Weather Corrected MD 50% POE","MVA","Non-Coincident"]
[null,null,null,null,"Coincident"]
[null,"<Enter connection point name>","Connection Point Rating","MVA","Non-Coincident"]
[null,null,null,null,"Coincident"]
[null,null,"Raw Adjusted MD","MW","Non-Coincident"]
[null,null,null,null,"Coincident"]
[null,null,"Raw Adjusted MD","MVA","Non-Coincident"]
[null,null,null,null,"Coincident"]
[null,null,"Date MD occurred",null,"Non-Coincident"]
[null,null,null,null,"Coincident"]
[null,null,"Half hour time period MD occurred",null,"Non-Coincident"]
[null,null,null,null,"Coincident"]
[null,null,"Winter/Summer Peaking",null,"Non-Coincident"]
[null,null,null,null,"Coincident"]
[null,null,"Adjustments - Embedded generation","MW","Non-Coincident"]
[null,null,null,null,"Coincident"]
[null,null,"Weather Corrected MD 10% POE","MW","Non-Coincident"]
[null,null,null,null,"Coincident"]
[null,null,"Weather Corrected MD 10% POE","MVA","Non-Coincident"]
[null,null,null,null,"Coincident"]
[null,null,"Weather Corrected MD 50% POE","MW","Non-Coincident"]
[null,null,null,null,"Coincident"]
[null,null,"Weather Corrected MD 50% POE","MVA","Non-Coincident"]
[null,null,null,null,"Coincident"]
[null,"<Enter connection point name>","Connection Point Rating","MVA","Non-Coincident"]
[null,null,null,null,"Coincident"]
[null,null,"Raw Adjusted MD","MW","Non-Coincident"]
[null,null,null,null,"Coincident"]
[null,null,"Raw Adjusted MD","MVA","Non-Coincident"]
[null,null,null,null,"Coincident"]
[null,null,"Date MD occurred",null,"Non-Coincident"]
[null,null,null,null,"Coincident"]
[null,null,"Half hour time period MD occurred",null,"Non-Coincident"]
[null,null,null,null,"Coincident"]
[null,null,"Winter/Summer Peaking",null,"Non-Coincident"]
[null,null,null,null,"Coincident"]
[null,null,"Adjustments - Embedded generation","MW","Non-Coincident"]
[null,null,null,null,"Coincident"]
[null,null,"Weather Corrected MD 10% POE","MW","Non-Coincident"]
[null,null,null,null,"Coincident"]
[null,null,"Weather Corrected MD 10% POE","MVA","Non-Coincident"]
[null,null,null,null,"Coincident"]
[null,null,"Weather Corrected MD 50% POE","MW","Non-Coincident"]
[null,null,null,null,"Coincident"]
[null,null,"Weather Corrected MD 50% POE","MVA","Non-Coincident"]
[null,null,null,null,"Coincident"]
[null,"<Enter connection point name>","Connection Point Rating","MVA","Non-Coincident"]
[null,null,null,null,"Coincident"]
[null,null,"Raw Adjusted MD","MW","Non-Coincident"]
[null,null,null,null,"Coincident"]
[null,null,"Raw Adjusted MD","MVA","Non-Coincident"]
[null,null,null,null,"Coincident"]
[null,null,"Date MD occurred",null,"Non-Coincident"]
[null,null,null,null,"Coincident"]
[null,null,"Half hour time period MD occurred",null,"Non-Coincident"]
[null,null,null,null,"Coincident"]
[null,null,"Winter/Summer Peaking",null,"Non-Coincident"]
[null,null,null,null,"Coincident"]
[null,null,"Adjustments - Embedded generation","MW","Non-Coincident"]
[null,null,null,null,"Coincident"]
[null,null,"Weather Corrected MD 10% POE","MW","Non-Coincident"]
[null,null,null,null,"Coincident"]
[null,null,"Weather Corrected MD 10% POE","MVA","Non-Coincident"]
[null,null,null,null,"Coincident"]
[null,null,"Weather Corrected MD 50% POE","MW","Non-Coincident"]
[null,null,null,null,"Coincident"]
[null,null,"Weather Corrected MD 50% POE","MVA","Non-Coincident"]
[null,null,null,null,"Coincident"]
[null,"<Enter connection point name>","Connection Point Rating","MVA","Non-Coincident"]
[null,null,null,null,"Coincident"]
[null,null,"Raw Adjusted MD","MW","Non-Coincident"]
[null,null,null,null,"Coincident"]
[null,null,"Raw Adjusted MD","MVA","Non-Coincident"]
[null,null,null,null,"Coincident"]
[null,null,"Date MD occurred",null,"Non-Coincident"]
[null,null,null,null,"Coincident"]
[null,null,"Half hour time period MD occurred",null,"Non-Coincident"]
[null,null,null,null,"Coincident"]
[null,null,"Winter/Summer Peaking",null,"Non-Coincident"]
[null,null,null,null,"Coincident"]
[null,null,"Adjustments - Embedded generation","MW","Non-Coincident"]
[null,null,null,null,"Coincident"]
[null,null,"Weather Corrected MD 10% POE","MW","Non-Coincident"]
[null,null,null,null,"Coincident"]
[null,null,"Weather Corrected MD 10% POE","MVA","Non-Coincident"]
[null,null,null,null,"Coincident"]
[null,null,"Weather Corrected MD 50% POE","MW","Non-Coincident"]
[null,null,null,null,"Coincident"]
[null,null,"Weather Corrected MD 50% POE","MVA","Non-Coincident"]
[null,null,null,null,"Coincident"]
[null,"<Enter connection point name>","Connection Point Rating","MVA","Non-Coincident"]
[null,null,null,null,"Coincident"]
[null,null,"Raw Adjusted MD","MW","Non-Coincident"]
[null,null,null,null,"Coincident"]
[null,null,"Raw Adjusted MD","MVA","Non-Coincident"]
[null,null,null,null,"Coincident"]
[null,null,"Date MD occurred",null,"Non-Coincident"]
[null,null,null,null,"Coincident"]
[null,null,"Half hour time period MD occurred",null,"Non-Coincident"]
[null,null,null,null,"Coincident"]
[null,null,"Winter/Summer Peaking",null,"Non-Coincident"]
[null,null,null,null,"Coincident"]
[null,null,"Adjustments - Embedded generation","MW","Non-Coincident"]
[null,null,null,null,"Coincident"]
[null,null,"Weather Corrected MD 10% POE","MW","Non-Coincident"]
[null,null,null,null,"Coincident"]
[null,null,"Weather Corrected MD 10% POE","MVA","Non-Coincident"]
[null,null,null,null,"Coincident"]
[null,null,"Weather Corrected MD 50% POE","MW","Non-Coincident"]
[null,null,null,null,"Coincident"]
[null,null,"Weather Corrected MD 50% POE","MVA","Non-Coincident"]
[null,null,null,null,"Coincident"]
[null,"<Enter connection point name>","Connection Point Rating","MVA","Non-Coincident"]
[null,null,null,null,"Coincident"]
[null,null,"Raw Adjusted MD","MW","Non-Coincident"]
[null,null,null,null,"Coincident"]
[null,null,"Raw Adjusted MD","MVA","Non-Coincident"]
[null,null,null,null,"Coincident"]
[null,null,"Date MD occurred",null,"Non-Coincident"]
[null,null,null,null,"Coincident"]
[null,null,"Half hour time period MD occurred",null,"Non-Coincident"]
[null,null,null,null,"Coincident"]
[null,null,"Winter/Summer Peaking",null,"Non-Coincident"]
[null,null,null,null,"Coincident"]
[null,null,"Adjustments - Embedded generation","MW","Non-Coincident"]
[null,null,null,null,"Coincident"]
[null,null,"Weather Corrected MD 10% POE","MW","Non-Coincident"]
[null,null,null,null,"Coincident"]
[null,null,"Weather Corrected MD 10% POE","MVA","Non-Coincident"]
[null,null,null,null,"Coincident"]
[null,null,"Weather Corrected MD 50% POE","MW","Non-Coincident"]
[null,null,null,null,"Coincident"]
[null,null,"Weather Corrected MD 50% POE","MVA","Non-Coincident"]
[null,null,null,null,"Coincident"]
[null,"<Enter connection point name>","Connection Point Rating","MVA","Non-Coincident"]
[null,null,null,null,"Coincident"]
[null,null,"Raw Adjusted MD","MW","Non-Coincident"]
[null,null,null,null,"Coincident"]
[null,null,"Raw Adjusted MD","MVA","Non-Coincident"]
[null,null,null,null,"Coincident"]
[null,null,"Date MD occurred",null,"Non-Coincident"]
[null,null,null,null,"Coincident"]
[null,null,"Half hour time period MD occurred",null,"Non-Coincident"]
[null,null,null,null,"Coincident"]
[null,null,"Winter/Summer Peaking",null,"Non-Coincident"]
[null,null,null,null,"Coincident"]
[null,null,"Adjustments - Embedded generation","MW","Non-Coincident"]
[null,null,null,null,"Coincident"]
[null,null,"Weather Corrected MD 10% POE","MW","Non-Coincident"]
[null,null,null,null,"Coincident"]
[null,null,"Weather Corrected MD 10% POE","MVA","Non-Coincident"]
[null,null,null,null,"Coincident"]
[null,null,"Weather Corrected MD 50% POE","MW","Non-Coincident"]
[null,null,null,null,"Coincident"]
[null,null,"Weather Corrected MD 50% POE","MVA","Non-Coincident"]
[null,null,null,null,"Coincident"]
[null,"<Enter connection point name>","Connection Point Rating","MVA","Non-Coincident"]
[null,null,null,null,"Coincident"]
[null,null,"Raw Adjusted MD","MW","Non-Coincident"]
[null,null,null,null,"Coincident"]
[null,null,"Raw Adjusted MD","MVA","Non-Coincident"]
[null,null,null,null,"Coincident"]
[null,null,"Date MD occurred",null,"Non-Coincident"]
[null,null,null,null,"Coincident"]
[null,null,"Half hour time period MD occurred",null,"Non-Coincident"]
[null,null,null,null,"Coincident"]
[null,null,"Winter/Summer Peaking",null,"Non-Coincident"]
[null,null,null,null,"Coincident"]
[null,null,"Adjustments - Embedded generation","MW","Non-Coincident"]
[null,null,null,null,"Coincident"]
[null,null,"Weather Corrected MD 10% POE","MW","Non-Coincident"]
[null,null,null,null,"Coincident"]
[null,null,"Weather Corrected MD 10% POE","MVA","Non-Coincident"]
[null,null,null,null,"Coincident"]
[null,null,"Weather Corrected MD 50% POE","MW","Non-Coincident"]
[null,null,null,null,"Coincident"]
[null,null,"Weather Corrected MD 50% POE","MVA","Non-Coincident"]
[null,null,null,null,"Coincident"]
[null,"<Enter connection point name>","Connection Point Rating","MVA","Non-Coincident"]
[null,null,null,null,"Coincident"]
[null,null,"Raw Adjusted MD","MW","Non-Coincident"]
[null,null,null,null,"Coincident"]
[null,null,"Raw Adjusted MD","MVA","Non-Coincident"]
[null,null,null,null,"Coincident"]
[null,null,"Date MD occurred",null,"Non-Coincident"]
[null,null,null,null,"Coincident"]
[null,null,"Half hour time period MD occurred",null,"Non-Coincident"]
[null,null,null,null,"Coincident"]
[null,null,"Winter/Summer Peaking",null,"Non-Coincident"]
[null,null,null,null,"Coincident"]
[null,null,"Adjustments - Embedded generation","MW","Non-Coincident"]
[null,null,null,null,"Coincident"]
[null,null,"Weather Corrected MD 10% POE","MW","Non-Coincident"]
[null,null,null,null,"Coincident"]
[null,null,"Weather Corrected MD 10% POE","MVA","Non-Coincident"]
[null,null,null,null,"Coincident"]
[null,null,"Weather Corrected MD 50% POE","MW","Non-Coincident"]
[null,null,null,null,"Coincident"]
[null,null,"Weather Corrected MD 50% POE","MVA","Non-Coincident"]
[null,null,null,null,"Coincident"]
[null,"<Enter connection point name>","Connection Point Rating","MVA","Non-Coincident"]
[null,null,null,null,"Coincident"]
[null,null,"Raw Adjusted MD","MW","Non-Coincident"]
[null,null,null,null,"Coincident"]
[null,null,"Raw Adjusted MD","MVA","Non-Coincident"]
[null,null,null,null,"Coincident"]
[null,null,"Date MD occurred",null,"Non-Coincident"]
[null,null,null,null,"Coincident"]
[null,null,"Half hour time period MD occurred",null,"Non-Coincident"]
[null,null,null,null,"Coincident"]
[null,null,"Winter/Summer Peaking",null,"Non-Coincident"]
[null,null,null,null,"Coincident"]
[null,null,"Adjustments - Embedded generation","MW","Non-Coincident"]
[null,null,null,null,"Coincident"]
[null,null,"Weather Corrected MD 10% POE","MW","Non-Coincident"]
[null,null,null,null,"Coincident"]
[null,null,"Weather Corrected MD 10% POE","MVA","Non-Coincident"]
[null,null,null,null,"Coincident"]
[null,null,"Weather Corrected MD 50% POE","MW","Non-Coincident"]
[null,null,null,null,"Coincident"]
[null,null,"Weather Corrected MD 50% POE","MVA","Non-Coincident"]
[null,null,null,null,"Coincident"]
[null,"<Enter connection point name>","Connection Point Rating","MVA","Non-Coincident"]
[null,null,null,null,"Coincident"]
[null,null,"Raw Adjusted MD","MW","Non-Coincident"]
[null,null,null,null,"Coincident"]
[null,null,"Raw Adjusted MD","MVA","Non-Coincident"]
[null,null,null,null,"Coincident"]
[null,null,"Date MD occurred",null,"Non-Coincident"]
[null,null,null,null,"Coincident"]
[null,null,"Half hour time period MD occurred",null,"Non-Coincident"]
[null,null,null,null,"Coincident"]
[null,null,"Winter/Summer Peaking",null,"Non-Coincident"]
[null,null,null,null,"Coincident"]
[null,null,"Adjustments - Embedded generation","MW","Non-Coincident"]
[null,null,null,null,"Coincident"]
[null,null,"Weather Corrected MD 10% POE","MW","Non-Coincident"]
[null,null,null,null,"Coincident"]
[null,null,"Weather Corrected MD 10% POE","MVA","Non-Coincident"]
[null,null,null,null,"Coincident"]
[null,null,"Weather Corrected MD 50% POE","MW","Non-Coincident"]
[null,null,null,null,"Coincident"]
[null,null,"Weather Corrected MD 50% POE","MVA","Non-Coincident"]
[null,null,null,null,"Coincident"]
[null,"<Enter connection point name>","Connection Point Rating","MVA","Non-Coincident"]
[null,null,null,null,"Coincident"]
[null,null,"Raw Adjusted MD","MW","Non-Coincident"]
[null,null,null,null,"Coincident"]
[null,null,"Raw Adjusted MD","MVA","Non-Coincident"]
[null,null,null,null,"Coincident"]
[null,null,"Date MD occurred",null,"Non-Coincident"]
[null,null,null,null,"Coincident"]
[null,null,"Half hour time period MD occurred",null,"Non-Coincident"]
[null,null,null,null,"Coincident"]
[null,null,"Winter/Summer Peaking",null,"Non-Coincident"]
[null,null,null,null,"Coincident"]
[null,null,"Adjustments - Embedded generation","MW","Non-Coincident"]
[null,null,null,null,"Coincident"]
[null,null,"Weather Corrected MD 10% POE","MW","Non-Coincident"]
[null,null,null,null,"Coincident"]
[null,null,"Weather Corrected MD 10% POE","MVA","Non-Coincident"]
[null,null,null,null,"Coincident"]
[null,null,"Weather Corrected MD 50% POE","MW","Non-Coincident"]
[null,null,null,null,"Coincident"]
[null,null,"Weather Corrected MD 50% POE","MVA","Non-Coincident"]
[null,null,null,null,"Coincident"]
[null,"<Enter connection point name>","Connection Point Rating","MVA","Non-Coincident"]
[null,null,null,null,"Coincident"]
[null,null,"Raw Adjusted MD","MW","Non-Coincident"]
[null,null,null,null,"Coincident"]
[null,null,"Raw Adjusted MD","MVA","Non-Coincident"]
[null,null,null,null,"Coincident"]
[null,null,"Date MD occurred",null,"Non-Coincident"]
[null,null,null,null,"Coincident"]
[null,null,"Half hour time period MD occurred",null,"Non-Coincident"]
[null,null,null,null,"Coincident"]
[null,null,"Winter/Summer Peaking",null,"Non-Coincident"]
[null,null,null,null,"Coincident"]
[null,null,"Adjustments - Embedded generation","MW","Non-Coincident"]
[null,null,null,null,"Coincident"]
[null,null,"Weather Corrected MD 10% POE","MW","Non-Coincident"]
[null,null,null,null,"Coincident"]
[null,null,"Weather Corrected MD 10% POE","MVA","Non-Coincident"]
[null,null,null,null,"Coincident"]
[null,null,"Weather Corrected MD 50% POE","MW","Non-Coincident"]
[null,null,null,null,"Coincident"]
[null,null,"Weather Corrected MD 50% POE","MVA","Non-Coincident"]
[null,null,null,null,"Coincident"]
[null,"<Enter connection point name>","Connection Point Rating","MVA","Non-Coincident"]
[null,null,null,null,"Coincident"]
[null,null,"Raw Adjusted MD","MW","Non-Coincident"]
[null,null,null,null,"Coincident"]
[null,null,"Raw Adjusted MD","MVA","Non-Coincident"]
[null,null,null,null,"Coincident"]
[null,null,"Date MD occurred",null,"Non-Coincident"]
[null,null,null,null,"Coincident"]
[null,null,"Half hour time period MD occurred",null,"Non-Coincident"]
[null,null,null,null,"Coincident"]
[null,null,"Winter/Summer Peaking",null,"Non-Coincident"]
[null,null,null,null,"Coincident"]
[null,null,"Adjustments - Embedded generation","MW","Non-Coincident"]
[null,null,null,null,"Coincident"]
[null,null,"Weather Corrected MD 10% POE","MW","Non-Coincident"]
[null,null,null,null,"Coincident"]
[null,null,"Weather Corrected MD 10% POE","MVA","Non-Coincident"]
[null,null,null,null,"Coincident"]
[null,null,"Weather Corrected MD 50% POE","MW","Non-Coincident"]
[null,null,null,null,"Coincident"]
[null,null,"Weather Corrected MD 50% POE","MVA","Non-Coincident"]
[null,null,null,null,"Coincident"]
[null,"<Enter connection point name>","Connection Point Rating","MVA","Non-Coincident"]
[null,null,null,null,"Coincident"]
[null,null,"Raw Adjusted MD","MW","Non-Coincident"]
[null,null,null,null,"Coincident"]
[null,null,"Raw Adjusted MD","MVA","Non-Coincident"]
[null,null,null,null,"Coincident"]
[null,null,"Date MD occurred",null,"Non-Coincident"]
[null,null,null,null,"Coincident"]
[null,null,"Half hour time period MD occurred",null,"Non-Coincident"]
[null,null,null,null,"Coincident"]
[null,null,"Winter/Summer Peaking",null,"Non-Coincident"]
[null,null,null,null,"Coincident"]
[null,null,"Adjustments - Embedded generation","MW","Non-Coincident"]
[null,null,null,null,"Coincident"]
[null,null,"Weather Corrected MD 10% POE","MW","Non-Coincident"]
[null,null,null,null,"Coincident"]
[null,null,"Weather Corrected MD 10% POE","MVA","Non-Coincident"]
[null,null,null,null,"Coincident"]
[null,null,"Weather Corrected MD 50% POE","MW","Non-Coincident"]
[null,null,null,null,"Coincident"]
[null,null,"Weather Corrected MD 50% POE","MVA","Non-Coincident"]
[null,null,null,null,"Coincident"]
[null,"<Enter connection point name>","Connection Point Rating","MVA","Non-Coincident"]
[null,null,null,null,"Coincident"]
[null,null,"Raw Adjusted MD","MW","Non-Coincident"]
[null,null,null,null,"Coincident"]
[null,null,"Raw Adjusted MD","MVA","Non-Coincident"]
[null,null,null,null,"Coincident"]
[null,null,"Date MD occurred",null,"Non-Coincident"]
[null,null,null,null,"Coincident"]
[null,null,"Half hour time period MD occurred",null,"Non-Coincident"]
[null,null,null,null,"Coincident"]
[null,null,"Winter/Summer Peaking",null,"Non-Coincident"]
[null,null,null,null,"Coincident"]
[null,null,"Adjustments - Embedded generation","MW","Non-Coincident"]
[null,null,null,null,"Coincident"]
[null,null,"Weather Corrected MD 10% POE","MW","Non-Coincident"]
[null,null,null,null,"Coincident"]
[null,null,"Weather Corrected MD 10% POE","MVA","Non-Coincident"]
[null,null,null,null,"Coincident"]
[null,null,"Weather Corrected MD 50% POE","MW","Non-Coincident"]
[null,null,null,null,"Coincident"]
[null,null,"Weather Corrected MD 50% POE","MVA","Non-Coincident"]
[null,null,null,null,"Coincident"]
[null,"<Enter connection point name>","Connection Point Rating","MVA","Non-Coincident"]
[null,null,null,null,"Coincident"]
[null,null,"Raw Adjusted MD","MW","Non-Coincident"]
[null,null,null,null,"Coincident"]
[null,null,"Raw Adjusted MD","MVA","Non-Coincident"]
[null,null,null,null,"Coincident"]
[null,null,"Date MD occurred",null,"Non-Coincident"]
[null,null,null,null,"Coincident"]
[null,null,"Half hour time period MD occurred",null,"Non-Coincident"]
[null,null,null,null,"Coincident"]
[null,null,"Winter/Summer Peaking",null,"Non-Coincident"]
[null,null,null,null,"Coincident"]
[null,null,"Adjustments - Embedded generation","MW","Non-Coincident"]
[null,null,null,null,"Coincident"]
[null,null,"Weather Corrected MD 10% POE","MW","Non-Coincident"]
[null,null,null,null,"Coincident"]
[null,null,"Weather Corrected MD 10% POE","MVA","Non-Coincident"]
[null,null,null,null,"Coincident"]
[null,null,"Weather Corrected MD 50% POE","MW","Non-Coincident"]
[null,null,null,null,"Coincident"]
[null,null,"Weather Corrected MD 50% POE","MVA","Non-Coincident"]
[null,null,null,null,"Coincident"]
[null,"<Enter connection point name>","Connection Point Rating","MVA","Non-Coincident"]
[null,null,null,null,"Coincident"]
[null,null,"Raw Adjusted MD","MW","Non-Coincident"]
[null,null,null,null,"Coincident"]
[null,null,"Raw Adjusted MD","MVA","Non-Coincident"]
[null,null,null,null,"Coincident"]
[null,null,"Date MD occurred",null,"Non-Coincident"]
[null,null,null,null,"Coincident"]
[null,null,"Half hour time period MD occurred",null,"Non-Coincident"]
[null,null,null,null,"Coincident"]
[null,null,"Winter/Summer Peaking",null,"Non-Coincident"]
[null,null,null,null,"Coincident"]
[null,null,"Adjustments - Embedded generation","MW","Non-Coincident"]
[null,null,null,null,"Coincident"]
[null,null,"Weather Corrected MD 10% POE","MW","Non-Coincident"]
[null,null,null,null,"Coincident"]
[null,null,"Weather Corrected MD 10% POE","MVA","Non-Coincident"]
[null,null,null,null,"Coincident"]
[null,null,"Weather Corrected MD 50% POE","MW","Non-Coincident"]
[null,null,null,null,"Coincident"]
[null,null,"Weather Corrected MD 50% POE","MVA","Non-Coincident"]
[null,null,null,null,"Coincident"]
[null,"<Enter connection point name>","Connection Point Rating","MVA","Non-Coincident"]
[null,null,null,null,"Coincident"]
[null,null,"Raw Adjusted MD","MW","Non-Coincident"]
[null,null,null,null,"Coincident"]
[null,null,"Raw Adjusted MD","MVA","Non-Coincident"]
[null,null,null,null,"Coincident"]
[null,null,"Date MD occurred",null,"Non-Coincident"]
[null,null,null,null,"Coincident"]
[null,null,"Half hour time period MD occurred",null,"Non-Coincident"]
[null,null,null,null,"Coincident"]
[null,null,"Winter/Summer Peaking",null,"Non-Coincident"]
[null,null,null,null,"Coincident"]
[null,null,"Adjustments - Embedded generation","MW","Non-Coincident"]
[null,null,null,null,"Coincident"]
[null,null,"Weather Corrected MD 10% POE","MW","Non-Coincident"]
[null,null,null,null,"Coincident"]
[null,null,"Weather Corrected MD 10% POE","MVA","Non-Coincident"]
[null,null,null,null,"Coincident"]
[null,null,"Weather Corrected MD 50% POE","MW","Non-Coincident"]
[null,null,null,null,"Coincident"]
[null,null,"Weather Corrected MD 50% POE","MVA","Non-Coincident"]
[null,null,null,null,"Coincident"]
[null,"<Enter connection point name>","Connection Point Rating","MVA","Non-Coincident"]
[null,null,null,null,"Coincident"]
[null,null,"Raw Adjusted MD","MW","Non-Coincident"]
[null,null,null,null,"Coincident"]
[null,null,"Raw Adjusted MD","MVA","Non-Coincident"]
[null,null,null,null,"Coincident"]
[null,null,"Date MD occurred",null,"Non-Coincident"]
[null,null,null,null,"Coincident"]
[null,null,"Half hour time period MD occurred",null,"Non-Coincident"]
[null,null,null,null,"Coincident"]
[null,null,"Winter/Summer Peaking",null,"Non-Coincident"]
[null,null,null,null,"Coincident"]
[null,null,"Adjustments - Embedded generation","MW","Non-Coincident"]
[null,null,null,null,"Coincident"]
[null,null,"Weather Corrected MD 10% POE","MW","Non-Coincident"]
[null,null,null,null,"Coincident"]
[null,null,"Weather Corrected MD 10% POE","MVA","Non-Coincident"]
[null,null,null,null,"Coincident"]
[null,null,"Weather Corrected MD 50% POE","MW","Non-Coincident"]
[null,null,null,null,"Coincident"]
[null,null,"Weather Corrected MD 50% POE","MVA","Non-Coincident"]
[null,null,null,null,"Coincident"]
[null,"<Enter connection point name>","Connection Point Rating","MVA","Non-Coincident"]
[null,null,null,null,"Coincident"]
[null,null,"Raw Adjusted MD","MW","Non-Coincident"]
[null,null,null,null,"Coincident"]
[null,null,"Raw Adjusted MD","MVA","Non-Coincident"]
[null,null,null,null,"Coincident"]
[null,null,"Date MD occurred",null,"Non-Coincident"]
[null,null,null,null,"Coincident"]
[null,null,"Half hour time period MD occurred",null,"Non-Coincident"]
[null,null,null,null,"Coincident"]
[null,null,"Winter/Summer Peaking",null,"Non-Coincident"]
[null,null,null,null,"Coincident"]
[null,null,"Adjustments - Embedded generation","MW","Non-Coincident"]
[null,null,null,null,"Coincident"]
[null,null,"Weather Corrected MD 10% POE","MW","Non-Coincident"]
[null,null,null,null,"Coincident"]
[null,null,"Weather Corrected MD 10% POE","MVA","Non-Coincident"]
[null,null,null,null,"Coincident"]
[null,null,"Weather Corrected MD 50% POE","MW","Non-Coincident"]
[null,null,null,null,"Coincident"]
[null,null,"Weather Corrected MD 50% POE","MVA","Non-Coincident"]
[null,null,null,null,"Coincident"]
[null,"<Enter connection point name>","Connection Point Rating","MVA","Non-Coincident"]
[null,null,null,null,"Coincident"]
[null,null,"Raw Adjusted MD","MW","Non-Coincident"]
[null,null,null,null,"Coincident"]
[null,null,"Raw Adjusted MD","MVA","Non-Coincident"]
[null,null,null,null,"Coincident"]
[null,null,"Date MD occurred",null,"Non-Coincident"]
[null,null,null,null,"Coincident"]
[null,null,"Half hour time period MD occurred",null,"Non-Coincident"]
[null,null,null,null,"Coincident"]
[null,null,"Winter/Summer Peaking",null,"Non-Coincident"]
[null,null,null,null,"Coincident"]
[null,null,"Adjustments - Embedded generation","MW","Non-Coincident"]
[null,null,null,null,"Coincident"]
[null,null,"Weather Corrected MD 10% POE","MW","Non-Coincident"]
[null,null,null,null,"Coincident"]
[null,null,"Weather Corrected MD 10% POE","MVA","Non-Coincident"]
[null,null,null,null,"Coincident"]
[null,null,"Weather Corrected MD 50% POE","MW","Non-Coincident"]
[null,null,null,null,"Coincident"]
[null,null,"Weather Corrected MD 50% POE","MVA","Non-Coincident"]
[null,null,null,null,"Coincident"]
[null,"<Enter connection point name>","Connection Point Rating","MVA","Non-Coincident"]
[null,null,null,null,"Coincident"]
[null,null,"Raw Adjusted MD","MW","Non-Coincident"]
[null,null,null,null,"Coincident"]
[null,null,"Raw Adjusted MD","MVA","Non-Coincident"]
[null,null,null,null,"Coincident"]
[null,null,"Date MD occurred",null,"Non-Coincident"]
[null,null,null,null,"Coincident"]
[null,null,"Half hour time period MD occurred",null,"Non-Coincident"]
[null,null,null,null,"Coincident"]
[null,null,"Winter/Summer Peaking",null,"Non-Coincident"]
[null,null,null,null,"Coincident"]
[null,null,"Adjustments - Embedded generation","MW","Non-Coincident"]
[null,null,null,null,"Coincident"]
[null,null,"Weather Corrected MD 10% POE","MW","Non-Coincident"]
[null,null,null,null,"Coincident"]
[null,null,"Weather Corrected MD 10% POE","MVA","Non-Coincident"]
[null,null,null,null,"Coincident"]
[null,null,"Weather Corrected MD 50% POE","MW","Non-Coincident"]
[null,null,null,null,"Coincident"]
[null,null,"Weather Corrected MD 50% POE","MVA","Non-Coincident"]
[null,null,null,null,"Coincident"]
[null,"<Enter connection point name>","Connection Point Rating","MVA","Non-Coincident"]
[null,null,null,null,"Coincident"]
[null,null,"Raw Adjusted MD","MW","Non-Coincident"]
[null,null,null,null,"Coincident"]
[null,null,"Raw Adjusted MD","MVA","Non-Coincident"]
[null,null,null,null,"Coincident"]
[null,null,"Date MD occurred",null,"Non-Coincident"]
[null,null,null,null,"Coincident"]
[null,null,"Half hour time period MD occurred",null,"Non-Coincident"]
[null,null,null,null,"Coincident"]
[null,null,"Winter/Summer Peaking",null,"Non-Coincident"]
[null,null,null,null,"Coincident"]
[null,null,"Adjustments - Embedded generation","MW","Non-Coincident"]
[null,null,null,null,"Coincident"]
[null,null,"Weather Corrected MD 10% POE","MW","Non-Coincident"]
[null,null,null,null,"Coincident"]
[null,null,"Weather Corrected MD 10% POE","MVA","Non-Coincident"]
[null,null,null,null,"Coincident"]
[null,null,"Weather Corrected MD 50% POE","MW","Non-Coincident"]
[null,null,null,null,"Coincident"]
[null,null,"Weather Corrected MD 50% POE","MVA","Non-Coincident"]
[null,null,null,null,"Coincident"]
[null,"<Enter connection point name>","Connection Point Rating","MVA","Non-Coincident"]
[null,null,null,null,"Coincident"]
[null,null,"Raw Adjusted MD","MW","Non-Coincident"]
[null,null,null,null,"Coincident"]
[null,null,"Raw Adjusted MD","MVA","Non-Coincident"]
[null,null,null,null,"Coincident"]
[null,null,"Date MD occurred",null,"Non-Coincident"]
[null,null,null,null,"Coincident"]
[null,null,"Half hour time period MD occurred",null,"Non-Coincident"]
[null,null,null,null,"Coincident"]
[null,null,"Winter/Summer Peaking",null,"Non-Coincident"]
[null,null,null,null,"Coincident"]
[null,null,"Adjustments - Embedded generation","MW","Non-Coincident"]
[null,null,null,null,"Coincident"]
[null,null,"Weather Corrected MD 10% POE","MW","Non-Coincident"]
[null,null,null,null,"Coincident"]
[null,null,"Weather Corrected MD 10% POE","MVA","Non-Coincident"]
[null,null,null,null,"Coincident"]
[null,null,"Weather Corrected MD 50% POE","MW","Non-Coincident"]
[null,null,null,null,"Coincident"]
[null,null,"Weather Corrected MD 50% POE","MVA","Non-Coincident"]
[null,null,null,null,"Coincident"]
[null,"<Enter connection point name>","Connection Point Rating","MVA","Non-Coincident"]
[null,null,null,null,"Coincident"]
[null,null,"Raw Adjusted MD","MW","Non-Coincident"]
[null,null,null,null,"Coincident"]
[null,null,"Raw Adjusted MD","MVA","Non-Coincident"]
[null,null,null,null,"Coincident"]
[null,null,"Date MD occurred",null,"Non-Coincident"]
[null,null,null,null,"Coincident"]
[null,null,"Half hour time period MD occurred",null,"Non-Coincident"]
[null,null,null,null,"Coincident"]
[null,null,"Winter/Summer Peaking",null,"Non-Coincident"]
[null,null,null,null,"Coincident"]
[null,null,"Adjustments - Embedded generation","MW","Non-Coincident"]
[null,null,null,null,"Coincident"]
[null,null,"Weather Corrected MD 10% POE","MW","Non-Coincident"]
[null,null,null,null,"Coincident"]
[null,null,"Weather Corrected MD 10% POE","MVA","Non-Coincident"]
[null,null,null,null,"Coincident"]
[null,null,"Weather Corrected MD 50% POE","MW","Non-Coincident"]
[null,null,null,null,"Coincident"]
[null,null,"Weather Corrected MD 50% POE","MVA","Non-Coincident"]
[null,null,null,null,"Coincident"]
[null,"<Enter connection point name>","Connection Point Rating","MVA","Non-Coincident"]
[null,null,null,null,"Coincident"]
[null,null,"Raw Adjusted MD","MW","Non-Coincident"]
[null,null,null,null,"Coincident"]
[null,null,"Raw Adjusted MD","MVA","Non-Coincident"]
[null,null,null,null,"Coincident"]
[null,null,"Date MD occurred",null,"Non-Coincident"]
[null,null,null,null,"Coincident"]
[null,null,"Half hour time period MD occurred",null,"Non-Coincident"]
[null,null,null,null,"Coincident"]
[null,null,"Winter/Summer Peaking",null,"Non-Coincident"]
[null,null,null,null,"Coincident"]
[null,null,"Adjustments - Embedded generation","MW","Non-Coincident"]
[null,null,null,null,"Coincident"]
[null,null,"Weather Corrected MD 10% POE","MW","Non-Coincident"]
[null,null,null,null,"Coincident"]
[null,null,"Weather Corrected MD 10% POE","MVA","Non-Coincident"]
[null,null,null,null,"Coincident"]
[null,null,"Weather Corrected MD 50% POE","MW","Non-Coincident"]
[null,null,null,null,"Coincident"]
[null,null,"Weather Corrected MD 50% POE","MVA","Non-Coincident"]
[null,null,null,null,"Coincident"]
[null,"<Enter connection point name>","Connection Point Rating","MVA","Non-Coincident"]
[null,null,null,null,"Coincident"]
[null,null,"Raw Adjusted MD","MW","Non-Coincident"]
[null,null,null,null,"Coincident"]
[null,null,"Raw Adjusted MD","MVA","Non-Coincident"]
[null,null,null,null,"Coincident"]
[null,null,"Date MD occurred",null,"Non-Coincident"]
[null,null,null,null,"Coincident"]
[null,null,"Half hour time period MD occurred",null,"Non-Coincident"]
[null,null,null,null,"Coincident"]
[null,null,"Winter/Summer Peaking",null,"Non-Coincident"]
[null,null,null,null,"Coincident"]
[null,null,"Adjustments - Embedded generation","MW","Non-Coincident"]
[null,null,null,null,"Coincident"]
[null,null,"Weather Corrected MD 10% POE","MW","Non-Coincident"]
[null,null,null,null,"Coincident"]
[null,null,"Weather Corrected MD 10% POE","MVA","Non-Coincident"]
[null,null,null,null,"Coincident"]
[null,null,"Weather Corrected MD 50% POE","MW","Non-Coincident"]
[null,null,null,null,"Coincident"]
[null,null,"Weather Corrected MD 50% POE","MVA","Non-Coincident"]
[null,null,null,null,"Coincident"]
[null,"<Enter connection point name>","Connection Point Rating","MVA","Non-Coincident"]
[null,null,null,null,"Coincident"]
[null,null,"Raw Adjusted MD","MW","Non-Coincident"]
[null,null,null,null,"Coincident"]
[null,null,"Raw Adjusted MD","MVA","Non-Coincident"]
[null,null,null,null,"Coincident"]
[null,null,"Date MD occurred",null,"Non-Coincident"]
[null,null,null,null,"Coincident"]
[null,null,"Half hour time period MD occurred",null,"Non-Coincident"]
[null,null,null,null,"Coincident"]
[null,null,"Winter/Summer Peaking",null,"Non-Coincident"]
[null,null,null,null,"Coincident"]
[null,null,"Adjustments - Embedded generation","MW","Non-Coincident"]
[null,null,null,null,"Coincident"]
[null,null,"Weather Corrected MD 10% POE","MW","Non-Coincident"]
[null,null,null,null,"Coincident"]
[null,null,"Weather Corrected MD 10% POE","MVA","Non-Coincident"]
[null,null,null,null,"Coincident"]
[null,null,"Weather Corrected MD 50% POE","MW","Non-Coincident"]
[null,null,null,null,"Coincident"]
[null,null,"Weather Corrected MD 50% POE","MVA","Non-Coincident"]
[null,null,null,null,"Coincident"]
[null,"<Enter connection point name>","Connection Point Rating","MVA","Non-Coincident"]
[null,null,null,null,"Coincident"]
[null,null,"Raw Adjusted MD","MW","Non-Coincident"]
[null,null,null,null,"Coincident"]
[null,null,"Raw Adjusted MD","MVA","Non-Coincident"]
[null,null,null,null,"Coincident"]
[null,null,"Date MD occurred",null,"Non-Coincident"]
[null,null,null,null,"Coincident"]
[null,null,"Half hour time period MD occurred",null,"Non-Coincident"]
[null,null,null,null,"Coincident"]
[null,null,"Winter/Summer Peaking",null,"Non-Coincident"]
[null,null,null,null,"Coincident"]
[null,null,"Adjustments - Embedded generation","MW","Non-Coincident"]
[null,null,null,null,"Coincident"]
[null,null,"Weather Corrected MD 10% POE","MW","Non-Coincident"]
[null,null,null,null,"Coincident"]
[null,null,"Weather Corrected MD 10% POE","MVA","Non-Coincident"]
[null,null,null,null,"Coincident"]
[null,null,"Weather Corrected MD 50% POE","MW","Non-Coincident"]
[null,null,null,null,"Coincident"]
[null,null,"Weather Corrected MD 50% POE","MVA","Non-Coincident"]
[null,null,null,null,"Coincident"]
[null,"<Enter connection point name>","Connection Point Rating","MVA","Non-Coincident"]
[null,null,null,null,"Coincident"]
[null,null,"Raw Adjusted MD","MW","Non-Coincident"]
[null,null,null,null,"Coincident"]
[null,null,"Raw Adjusted MD","MVA","Non-Coincident"]
[null,null,null,null,"Coincident"]
[null,null,"Date MD occurred",null,"Non-Coincident"]
[null,null,null,null,"Coincident"]
[null,null,"Half hour time period MD occurred",null,"Non-Coincident"]
[null,null,null,null,"Coincident"]
[null,null,"Winter/Summer Peaking",null,"Non-Coincident"]
[null,null,null,null,"Coincident"]
[null,null,"Adjustments - Embedded generation","MW","Non-Coincident"]
[null,null,null,null,"Coincident"]
[null,null,"Weather Corrected MD 10% POE","MW","Non-Coincident"]
[null,null,null,null,"Coincident"]
[null,null,"Weather Corrected MD 10% POE","MVA","Non-Coincident"]
[null,null,null,null,"Coincident"]
[null,null,"Weather Corrected MD 50% POE","MW","Non-Coincident"]
[null,null,null,null,"Coincident"]
[null,null,"Weather Corrected MD 50% POE","MVA","Non-Coincident"]
[null,null,null,null,"Coincident"]
[null,"<Enter connection point name>","Connection Point Rating","MVA","Non-Coincident"]
[null,null,null,null,"Coincident"]
[null,null,"Raw Adjusted MD","MW","Non-Coincident"]
[null,null,null,null,"Coincident"]
[null,null,"Raw Adjusted MD","MVA","Non-Coincident"]
[null,null,null,null,"Coincident"]
[null,null,"Date MD occurred",null,"Non-Coincident"]
[null,null,null,null,"Coincident"]
[null,null,"Half hour time period MD occurred",null,"Non-Coincident"]
[null,null,null,null,"Coincident"]
[null,null,"Winter/Summer Peaking",null,"Non-Coincident"]
[null,null,null,null,"Coincident"]
[null,null,"Adjustments - Embedded generation","MW","Non-Coincident"]
[null,null,null,null,"Coincident"]
[null,null,"Weather Corrected MD 10% POE","MW","Non-Coincident"]
[null,null,null,null,"Coincident"]
[null,null,"Weather Corrected MD 10% POE","MVA","Non-Coincident"]
[null,null,null,null,"Coincident"]
[null,null,"Weather Corrected MD 50% POE","MW","Non-Coincident"]
[null,null,null,null,"Coincident"]
[null,null,"Weather Corrected MD 50% POE","MVA","Non-Coincident"]
[null,null,null,null,"Coincident"]
[null,"<Enter connection point name>","Connection Point Rating","MVA","Non-Coincident"]
[null,null,null,null,"Coincident"]
[null,null,"Raw Adjusted MD","MW","Non-Coincident"]
[null,null,null,null,"Coincident"]
[null,null,"Raw Adjusted MD","MVA","Non-Coincident"]
[null,null,null,null,"Coincident"]
[null,null,"Date MD occurred",null,"Non-Coincident"]
[null,null,null,null,"Coincident"]
[null,null,"Half hour time period MD occurred",null,"Non-Coincident"]
[null,null,null,null,"Coincident"]
[null,null,"Winter/Summer Peaking",null,"Non-Coincident"]
[null,null,null,null,"Coincident"]
[null,null,"Adjustments - Embedded generation","MW","Non-Coincident"]
[null,null,null,null,"Coincident"]
[null,null,"Weather Corrected MD 10% POE","MW","Non-Coincident"]
[null,null,null,null,"Coincident"]
[null,null,"Weather Corrected MD 10% POE","MVA","Non-Coincident"]
[null,null,null,null,"Coincident"]
[null,null,"Weather Corrected MD 50% POE","MW","Non-Coincident"]
[null,null,null,null,"Coincident"]
[null,null,"Weather Corrected MD 50% POE","MVA","Non-Coincident"]
[null,null,null,null,"Coincident"]
[null,"<Enter connection point name>","Connection Point Rating","MVA","Non-Coincident"]
[null,null,null,null,"Coincident"]
[null,null,"Raw Adjusted MD","MW","Non-Coincident"]
[null,null,null,null,"Coincident"]
[null,null,"Raw Adjusted MD","MVA","Non-Coincident"]
[null,null,null,null,"Coincident"]
[null,null,"Date MD occurred",null,"Non-Coincident"]
[null,null,null,null,"Coincident"]
[null,null,"Half hour time period MD occurred",null,"Non-Coincident"]
[null,null,null,null,"Coincident"]
[null,null,"Winter/Summer Peaking",null,"Non-Coincident"]
[null,null,null,null,"Coincident"]
[null,null,"Adjustments - Embedded generation","MW","Non-Coincident"]
[null,null,null,null,"Coincident"]
[null,null,"Weather Corrected MD 10% POE","MW","Non-Coincident"]
[null,null,null,null,"Coincident"]
[null,null,"Weather Corrected MD 10% POE","MVA","Non-Coincident"]
[null,null,null,null,"Coincident"]
[null,null,"Weather Corrected MD 50% POE","MW","Non-Coincident"]
[null,null,null,null,"Coincident"]
[null,null,"Weather Corrected MD 50% POE","MVA","Non-Coincident"]
[null,null,null,null,"Coincident"]
[null,"<Enter connection point name>","Connection Point Rating","MVA","Non-Coincident"]
[null,null,null,null,"Coincident"]
[null,null,"Raw Adjusted MD","MW","Non-Coincident"]
[null,null,null,null,"Coincident"]
[null,null,"Raw Adjusted MD","MVA","Non-Coincident"]
[null,null,null,null,"Coincident"]
[null,null,"Date MD occurred",null,"Non-Coincident"]
[null,null,null,null,"Coincident"]
[null,null,"Half hour time period MD occurred",null,"Non-Coincident"]
[null,null,null,null,"Coincident"]
[null,null,"Winter/Summer Peaking",null,"Non-Coincident"]
[null,null,null,null,"Coincident"]
[null,null,"Adjustments - Embedded generation","MW","Non-Coincident"]
[null,null,null,null,"Coincident"]
[null,null,"Weather Corrected MD 10% POE","MW","Non-Coincident"]
[null,null,null,null,"Coincident"]
[null,null,"Weather Corrected MD 10% POE","MVA","Non-Coincident"]
[null,null,null,null,"Coincident"]
[null,null,"Weather Corrected MD 50% POE","MW","Non-Coincident"]
[null,null,null,null,"Coincident"]
[null,null,"Weather Corrected MD 50% POE","MVA","Non-Coincident"]
[null,null,null,null,"Coincident"]
[null,"<Enter connection point name>","Connection Point Rating","MVA","Non-Coincident"]
[null,null,null,null,"Coincident"]
[null,null,"Raw Adjusted MD","MW","Non-Coincident"]
[null,null,null,null,"Coincident"]
[null,null,"Raw Adjusted MD","MVA","Non-Coincident"]
[null,null,null,null,"Coincident"]
[null,null,"Date MD occurred",null,"Non-Coincident"]
[null,null,null,null,"Coincident"]
[null,null,"Half hour time period MD occurred",null,"Non-Coincident"]
[null,null,null,null,"Coincident"]
[null,null,"Winter/Summer Peaking",null,"Non-Coincident"]
[null,null,null,null,"Coincident"]
[null,null,"Adjustments - Embedded generation","MW","Non-Coincident"]
[null,null,null,null,"Coincident"]
[null,null,"Weather Corrected MD 10% POE","MW","Non-Coincident"]
[null,null,null,null,"Coincident"]
[null,null,"Weather Corrected MD 10% POE","MVA","Non-Coincident"]
[null,null,null,null,"Coincident"]
[null,null,"Weather Corrected MD 50% POE","MW","Non-Coincident"]
[null,null,null,null,"Coincident"]
[null,null,"Weather Corrected MD 50% POE","MVA","Non-Coincident"]
[null,null,null,null,"Coincident"]
[null,"<Enter connection point name>","Connection Point Rating","MVA","Non-Coincident"]
[null,null,null,null,"Coincident"]
[null,null,"Raw Adjusted MD","MW","Non-Coincident"]
[null,null,null,null,"Coincident"]
[null,null,"Raw Adjusted MD","MVA","Non-Coincident"]
[null,null,null,null,"Coincident"]
[null,null,"Date MD occurred",null,"Non-Coincident"]
[null,null,null,null,"Coincident"]
[null,null,"Half hour time period MD occurred",null,"Non-Coincident"]
[null,null,null,null,"Coincident"]
[null,null,"Winter/Summer Peaking",null,"Non-Coincident"]
[null,null,null,null,"Coincident"]
[null,null,"Adjustments - Embedded generation","MW","Non-Coincident"]
[null,null,null,null,"Coincident"]
[null,null,"Weather Corrected MD 10% POE","MW","Non-Coincident"]
[null,null,null,null,"Coincident"]
[null,null,"Weather Corrected MD 10% POE","MVA","Non-Coincident"]
[null,null,null,null,"Coincident"]
[null,null,"Weather Corrected MD 50% POE","MW","Non-Coincident"]
[null,null,null,null,"Coincident"]
[null,null,"Weather Corrected MD 50% POE","MVA","Non-Coincident"]
[null,null,null,null,"Coincident"]
[null,"<Enter connection point name>","Connection Point Rating","MVA","Non-Coincident"]
[null,null,null,null,"Coincident"]
[null,null,"Raw Adjusted MD","MW","Non-Coincident"]
[null,null,null,null,"Coincident"]
[null,null,"Raw Adjusted MD","MVA","Non-Coincident"]
[null,null,null,null,"Coincident"]
[null,null,"Date MD occurred",null,"Non-Coincident"]
[null,null,null,null,"Coincident"]
[null,null,"Half hour time period MD occurred",null,"Non-Coincident"]
[null,null,null,null,"Coincident"]
[null,null,"Winter/Summer Peaking",null,"Non-Coincident"]
[null,null,null,null,"Coincident"]
[null,null,"Adjustments - Embedded generation","MW","Non-Coincident"]
[null,null,null,null,"Coincident"]
[null,null,"Weather Corrected MD 10% POE","MW","Non-Coincident"]
[null,null,null,null,"Coincident"]
[null,null,"Weather Corrected MD 10% POE","MVA","Non-Coincident"]
[null,null,null,null,"Coincident"]
[null,null,"Weather Corrected MD 50% POE","MW","Non-Coincident"]
[null,null,null,null,"Coincident"]
[null,null,"Weather Corrected MD 50% POE","MVA","Non-Coincident"]
[null,null,null,null,"Coincident"]
[null,"<Enter connection point name>","Connection Point Rating","MVA","Non-Coincident"]
[null,null,null,null,"Coincident"]
[null,null,"Raw Adjusted MD","MW","Non-Coincident"]
[null,null,null,null,"Coincident"]
[null,null,"Raw Adjusted MD","MVA","Non-Coincident"]
[null,null,null,null,"Coincident"]
[null,null,"Date MD occurred",null,"Non-Coincident"]
[null,null,null,null,"Coincident"]
[null,null,"Half hour time period MD occurred",null,"Non-Coincident"]
[null,null,null,null,"Coincident"]
[null,null,"Winter/Summer Peaking",null,"Non-Coincident"]
[null,null,null,null,"Coincident"]
[null,null,"Adjustments - Embedded generation","MW","Non-Coincident"]
[null,null,null,null,"Coincident"]
[null,null,"Weather Corrected MD 10% POE","MW","Non-Coincident"]
[null,null,null,null,"Coincident"]
[null,null,"Weather Corrected MD 10% POE","MVA","Non-Coincident"]
[null,null,null,null,"Coincident"]
[null,null,"Weather Corrected MD 50% POE","MW","Non-Coincident"]
[null,null,null,null,"Coincident"]
[null,null,"Weather Corrected MD 50% POE","MVA","Non-Coincident"]
[null,null,null,null,"Coincident"]
[null,"<Enter connection point name>","Connection Point Rating","MVA","Non-Coincident"]
[null,null,null,null,"Coincident"]
[null,null,"Raw Adjusted MD","MW","Non-Coincident"]
[null,null,null,null,"Coincident"]
[null,null,"Raw Adjusted MD","MVA","Non-Coincident"]
[null,null,null,null,"Coincident"]
[null,null,"Date MD occurred",null,"Non-Coincident"]
[null,null,null,null,"Coincident"]
[null,null,"Half hour time period MD occurred",null,"Non-Coincident"]
[null,null,null,null,"Coincident"]
[null,null,"Winter/Summer Peaking",null,"Non-Coincident"]
[null,null,null,null,"Coincident"]
[null,null,"Adjustments - Embedded generation","MW","Non-Coincident"]
[null,null,null,null,"Coincident"]
[null,null,"Weather Corrected MD 10% POE","MW","Non-Coincident"]
[null,null,null,null,"Coincident"]
[null,null,"Weather Corrected MD 10% POE","MVA","Non-Coincident"]
[null,null,null,null,"Coincident"]
[null,null,"Weather Corrected MD 50% POE","MW","Non-Coincident"]
[null,null,null,null,"Coincident"]
[null,null,"Weather Corrected MD 50% POE","MVA","Non-Coincident"]
[null,null,null,null,"Coincident"]
[null,"<Enter connection point name>","Connection Point Rating","MVA","Non-Coincident"]
[null,null,null,null,"Coincident"]
[null,null,"Raw Adjusted MD","MW","Non-Coincident"]
[null,null,null,null,"Coincident"]
[null,null,"Raw Adjusted MD","MVA","Non-Coincident"]
[null,null,null,null,"Coincident"]
[null,null,"Date MD occurred",null,"Non-Coincident"]
[null,null,null,null,"Coincident"]
[null,null,"Half hour time period MD occurred",null,"Non-Coincident"]
[null,null,null,null,"Coincident"]
[null,null,"Winter/Summer Peaking",null,"Non-Coincident"]
[null,null,null,null,"Coincident"]
[null,null,"Adjustments - Embedded generation","MW","Non-Coincident"]
[null,null,null,null,"Coincident"]
[null,null,"Weather Corrected MD 10% POE","MW","Non-Coincident"]
[null,null,null,null,"Coincident"]
[null,null,"Weather Corrected MD 10% POE","MVA","Non-Coincident"]
[null,null,null,null,"Coincident"]
[null,null,"Weather Corrected MD 50% POE","MW","Non-Coincident"]
[null,null,null,null,"Coincident"]
[null,null,"Weather Corrected MD 50% POE","MVA","Non-Coincident"]
[null,null,null,null,"Coincident"]
[null,"<Enter connection point name>","Connection Point Rating","MVA","Non-Coincident"]
[null,null,null,null,"Coincident"]
[null,null,"Raw Adjusted MD","MW","Non-Coincident"]
[null,null,null,null,"Coincident"]
[null,null,"Raw Adjusted MD","MVA","Non-Coincident"]
[null,null,null,null,"Coincident"]
[null,null,"Date MD occurred",null,"Non-Coincident"]
[null,null,null,null,"Coincident"]
[null,null,"Half hour time period MD occurred",null,"Non-Coincident"]
[null,null,null,null,"Coincident"]
[null,null,"Winter/Summer Peaking",null,"Non-Coincident"]
[null,null,null,null,"Coincident"]
[null,null,"Adjustments - Embedded generation","MW","Non-Coincident"]
[null,null,null,null,"Coincident"]
[null,null,"Weather Corrected MD 10% POE","MW","Non-Coincident"]
[null,null,null,null,"Coincident"]
[null,null,"Weather Corrected MD 10% POE","MVA","Non-Coincident"]
[null,null,null,null,"Coincident"]
[null,null,"Weather Corrected MD 50% POE","MW","Non-Coincident"]
[null,null,null,null,"Coincident"]
[null,null,"Weather Corrected MD 50% POE","MVA","Non-Coincident"]
[null,null,null,null,"Coincident"]
[null,"<Enter connection point name>","Connection Point Rating","MVA","Non-Coincident"]
[null,null,null,null,"Coincident"]
[null,null,"Raw Adjusted MD","MW","Non-Coincident"]
[null,null,null,null,"Coincident"]
[null,null,"Raw Adjusted MD","MVA","Non-Coincident"]
[null,null,null,null,"Coincident"]
[null,null,"Date MD occurred",null,"Non-Coincident"]
[null,null,null,null,"Coincident"]
[null,null,"Half hour time period MD occurred",null,"Non-Coincident"]
[null,null,null,null,"Coincident"]
[null,null,"Winter/Summer Peaking",null,"Non-Coincident"]
[null,null,null,null,"Coincident"]
[null,null,"Adjustments - Embedded generation","MW","Non-Coincident"]
[null,null,null,null,"Coincident"]
[null,null,"Weather Corrected MD 10% POE","MW","Non-Coincident"]
[null,null,null,null,"Coincident"]
[null,null,"Weather Corrected MD 10% POE","MVA","Non-Coincident"]
[null,null,null,null,"Coincident"]
[null,null,"Weather Corrected MD 50% POE","MW","Non-Coincident"]
[null,null,null,null,"Coincident"]
[null,null,"Weather Corrected MD 50% POE","MVA","Non-Coincident"]
[null,null,null,null,"Coincident"]
[null,"<Enter connection point name>","Connection Point Rating","MVA","Non-Coincident"]
[null,null,null,null,"Coincident"]
[null,null,"Raw Adjusted MD","MW","Non-Coincident"]
[null,null,null,null,"Coincident"]
[null,null,"Raw Adjusted MD","MVA","Non-Coincident"]
[null,null,null,null,"Coincident"]
[null,null,"Date MD occurred",null,"Non-Coincident"]
[null,null,null,null,"Coincident"]
[null,null,"Half hour time period MD occurred",null,"Non-Coincident"]
[null,null,null,null,"Coincident"]
[null,null,"Winter/Summer Peaking",null,"Non-Coincident"]
[null,null,null,null,"Coincident"]
[null,null,"Adjustments - Embedded generation","MW","Non-Coincident"]
[null,null,null,null,"Coincident"]
[null,null,"Weather Corrected MD 10% POE","MW","Non-Coincident"]
[null,null,null,null,"Coincident"]
[null,null,"Weather Corrected MD 10% POE","MVA","Non-Coincident"]
[null,null,null,null,"Coincident"]
[null,null,"Weather Corrected MD 50% POE","MW","Non-Coincident"]
[null,null,null,null,"Coincident"]
[null,null,"Weather Corrected MD 50% POE","MVA","Non-Coincident"]
[null,null,null,null,"Coincident"]
[null,"<Enter connection point name>","Connection Point Rating","MVA","Non-Coincident"]
[null,null,null,null,"Coincident"]
[null,null,"Raw Adjusted MD","MW","Non-Coincident"]
[null,null,null,null,"Coincident"]
[null,null,"Raw Adjusted MD","MVA","Non-Coincident"]
[null,null,null,null,"Coincident"]
[null,null,"Date MD occurred",null,"Non-Coincident"]
[null,null,null,null,"Coincident"]
[null,null,"Half hour time period MD occurred",null,"Non-Coincident"]
[null,null,null,null,"Coincident"]
[null,null,"Winter/Summer Peaking",null,"Non-Coincident"]
[null,null,null,null,"Coincident"]
[null,null,"Adjustments - Embedded generation","MW","Non-Coincident"]
[null,null,null,null,"Coincident"]
[null,null,"Weather Corrected MD 10% POE","MW","Non-Coincident"]
[null,null,null,null,"Coincident"]
[null,null,"Weather Corrected MD 10% POE","MVA","Non-Coincident"]
[null,null,null,null,"Coincident"]
[null,null,"Weather Corrected MD 50% POE","MW","Non-Coincident"]
[null,null,null,null,"Coincident"]
[null,null,"Weather Corrected MD 50% POE","MVA","Non-Coincident"]
[null,null,null,null,"Coincident"]
[null,"<Enter connection point name>","Connection Point Rating","MVA","Non-Coincident"]
[null,null,null,null,"Coincident"]
[null,null,"Raw Adjusted MD","MW","Non-Coincident"]
[null,null,null,null,"Coincident"]
[null,null,"Raw Adjusted MD","MVA","Non-Coincident"]
[null,null,null,null,"Coincident"]
[null,null,"Date MD occurred",null,"Non-Coincident"]
[null,null,null,null,"Coincident"]
[null,null,"Half hour time period MD occurred",null,"Non-Coincident"]
[null,null,null,null,"Coincident"]
[null,null,"Winter/Summer Peaking",null,"Non-Coincident"]
[null,null,null,null,"Coincident"]
[null,null,"Adjustments - Embedded generation","MW","Non-Coincident"]
[null,null,null,null,"Coincident"]
[null,null,"Weather Corrected MD 10% POE","MW","Non-Coincident"]
[null,null,null,null,"Coincident"]
[null,null,"Weather Corrected MD 10% POE","MVA","Non-Coincident"]
[null,null,null,null,"Coincident"]
[null,null,"Weather Corrected MD 50% POE","MW","Non-Coincident"]
[null,null,null,null,"Coincident"]
[null,null,"Weather Corrected MD 50% POE","MVA","Non-Coincident"]
[null,null,null,null,"Coincident"]
[null,"<Enter connection point name>","Connection Point Rating","MVA","Non-Coincident"]
[null,null,null,null,"Coincident"]
[null,null,"Raw Adjusted MD","MW","Non-Coincident"]
[null,null,null,null,"Coincident"]
[null,null,"Raw Adjusted MD","MVA","Non-Coincident"]
[null,null,null,null,"Coincident"]
[null,null,"Date MD occurred",null,"Non-Coincident"]
[null,null,null,null,"Coincident"]
[null,null,"Half hour time period MD occurred",null,"Non-Coincident"]
[null,null,null,null,"Coincident"]
[null,null,"Winter/Summer Peaking",null,"Non-Coincident"]
[null,null,null,null,"Coincident"]
[null,null,"Adjustments - Embedded generation","MW","Non-Coincident"]
[null,null,null,null,"Coincident"]
[null,null,"Weather Corrected MD 10% POE","MW","Non-Coincident"]
[null,null,null,null,"Coincident"]
[null,null,"Weather Corrected MD 10% POE","MVA","Non-Coincident"]
[null,null,null,null,"Coincident"]
[null,null,"Weather Corrected MD 50% POE","MW","Non-Coincident"]
[null,null,null,null,"Coincident"]
[null,null,"Weather Corrected MD 50% POE","MVA","Non-Coincident"]
[null,null,null,null,"Coincident"]
[null,"<Enter connection point name>","Connection Point Rating","MVA","Non-Coincident"]
[null,null,null,null,"Coincident"]
[null,null,"Raw Adjusted MD","MW","Non-Coincident"]
[null,null,null,null,"Coincident"]
[null,null,"Raw Adjusted MD","MVA","Non-Coincident"]
[null,null,null,null,"Coincident"]
[null,null,"Date MD occurred",null,"Non-Coincident"]
[null,null,null,null,"Coincident"]
[null,null,"Half hour time period MD occurred",null,"Non-Coincident"]
[null,null,null,null,"Coincident"]
[null,null,"Winter/Summer Peaking",null,"Non-Coincident"]
[null,null,null,null,"Coincident"]
[null,null,"Adjustments - Embedded generation","MW","Non-Coincident"]
[null,null,null,null,"Coincident"]
[null,null,"Weather Corrected MD 10% POE","MW","Non-Coincident"]
[null,null,null,null,"Coincident"]
[null,null,"Weather Corrected MD 10% POE","MVA","Non-Coincident"]
[null,null,null,null,"Coincident"]
[null,null,"Weather Corrected MD 50% POE","MW","Non-Coincident"]
[null,null,null,null,"Coincident"]
[null,null,"Weather Corrected MD 50% POE","MVA","Non-Coincident"]
[null,null,null,null,"Coincident"]
[null,"<Enter connection point name>","Connection Point Rating","MVA","Non-Coincident"]
[null,null,null,null,"Coincident"]
[null,null,"Raw Adjusted MD","MW","Non-Coincident"]
[null,null,null,null,"Coincident"]
[null,null,"Raw Adjusted MD","MVA","Non-Coincident"]
[null,null,null,null,"Coincident"]
[null,null,"Date MD occurred",null,"Non-Coincident"]
[null,null,null,null,"Coincident"]
[null,null,"Half hour time period MD occurred",null,"Non-Coincident"]
[null,null,null,null,"Coincident"]
[null,null,"Winter/Summer Peaking",null,"Non-Coincident"]
[null,null,null,null,"Coincident"]
[null,null,"Adjustments - Embedded generation","MW","Non-Coincident"]
[null,null,null,null,"Coincident"]
[null,null,"Weather Corrected MD 10% POE","MW","Non-Coincident"]
[null,null,null,null,"Coincident"]
[null,null,"Weather Corrected MD 10% POE","MVA","Non-Coincident"]
[null,null,null,null,"Coincident"]
[null,null,"Weather Corrected MD 50% POE","MW","Non-Coincident"]
[null,null,null,null,"Coincident"]
[null,null,"Weather Corrected MD 50% POE","MVA","Non-Coincident"]
[null,null,null,null,"Coincident"]
[null,"<Enter connection point name>","Connection Point Rating","MVA","Non-Coincident"]
[null,null,null,null,"Coincident"]
[null,null,"Raw Adjusted MD","MW","Non-Coincident"]
[null,null,null,null,"Coincident"]
[null,null,"Raw Adjusted MD","MVA","Non-Coincident"]
[null,null,null,null,"Coincident"]
[null,null,"Date MD occurred",null,"Non-Coincident"]
[null,null,null,null,"Coincident"]
[null,null,"Half hour time period MD occurred",null,"Non-Coincident"]
[null,null,null,null,"Coincident"]
[null,null,"Winter/Summer Peaking",null,"Non-Coincident"]
[null,null,null,null,"Coincident"]
[null,null,"Adjustments - Embedded generation","MW","Non-Coincident"]
[null,null,null,null,"Coincident"]
[null,null,"Weather Corrected MD 10% POE","MW","Non-Coincident"]
[null,null,null,null,"Coincident"]
[null,null,"Weather Corrected MD 10% POE","MVA","Non-Coincident"]
[null,null,null,null,"Coincident"]
[null,null,"Weather Corrected MD 50% POE","MW","Non-Coincident"]
[null,null,null,null,"Coincident"]
[null,null,"Weather Corrected MD 50% POE","MVA","Non-Coincident"]
[null,null,null,null,"Coincident"]
[null,"<Enter connection point name>","Connection Point Rating","MVA","Non-Coincident"]
[null,null,null,null,"Coincident"]
[null,null,"Raw Adjusted MD","MW","Non-Coincident"]
[null,null,null,null,"Coincident"]
[null,null,"Raw Adjusted MD","MVA","Non-Coincident"]
[null,null,null,null,"Coincident"]
[null,null,"Date MD occurred",null,"Non-Coincident"]
[null,null,null,null,"Coincident"]
[null,null,"Half hour time period MD occurred",null,"Non-Coincident"]
[null,null,null,null,"Coincident"]
[null,null,"Winter/Summer Peaking",null,"Non-Coincident"]
[null,null,null,null,"Coincident"]
[null,null,"Adjustments - Embedded generation","MW","Non-Coincident"]
[null,null,null,null,"Coincident"]
[null,null,"Weather Corrected MD 10% POE","MW","Non-Coincident"]
[null,null,null,null,"Coincident"]
[null,null,"Weather Corrected MD 10% POE","MVA","Non-Coincident"]
[null,null,null,null,"Coincident"]
[null,null,"Weather Corrected MD 50% POE","MW","Non-Coincident"]
[null,null,null,null,"Coincident"]
[null,null,"Weather Corrected MD 50% POE","MVA","Non-Coincident"]
[null,null,null,null,"Coincident"]
[null,"<Enter connection point name>","Connection Point Rating","MVA","Non-Coincident"]
[null,null,null,null,"Coincident"]
[null,null,"Raw Adjusted MD","MW","Non-Coincident"]
[null,null,null,null,"Coincident"]
[null,null,"Raw Adjusted MD","MVA","Non-Coincident"]
[null,null,null,null,"Coincident"]
[null,null,"Date MD occurred",null,"Non-Coincident"]
[null,null,null,null,"Coincident"]
[null,null,"Half hour time period MD occurred",null,"Non-Coincident"]
[null,null,null,null,"Coincident"]
[null,null,"Winter/Summer Peaking",null,"Non-Coincident"]
[null,null,null,null,"Coincident"]
[null,null,"Adjustments - Embedded generation","MW","Non-Coincident"]
[null,null,null,null,"Coincident"]
[null,null,"Weather Corrected MD 10% POE","MW","Non-Coincident"]
[null,null,null,null,"Coincident"]
[null,null,"Weather Corrected MD 10% POE","MVA","Non-Coincident"]
[null,null,null,null,"Coincident"]
[null,null,"Weather Corrected MD 50% POE","MW","Non-Coincident"]
[null,null,null,null,"Coincident"]
[null,null,"Weather Corrected MD 50% POE","MVA","Non-Coincident"]
[null,null,null,null,"Coincident"]

{"sheet":"Amendments","index":18,"n_rows":2,"n_cols":4,"rows_kept":2,"cut":false,"hidden":false,"merged":[[0,1,0,3]]}
[null,"NSP data amendments"]
[null,{"$f":"INDEX(dms_TradingNameFull_List,MATCH(dms_TradingName,dms_TradingName_List))","v":"AusNet (T)"},"Table","Comments"]

{"sheet":"Unlocked worksheet","index":19,"n_rows":0,"n_cols":0,"rows_kept":0,"cut":false,"hidden":false,"merged":[]}